Workbook

Sheet Total
B1: DECEMBER, 2021 MONTH REPORT ABSTRACT
B2: ADDRESS OF THE HCFS | C2: NO.OF HCFs | D2: NO.OF BEDS | E2: YELLOW | F2: RED | G2: BLUE | H2: WHITE | I2: TOTAL
E3: Values are in Kilograms
B4: NIZAMABAD | C4: ='Area Wise Total'!D12 -> 319 | D4: =Nizamabad!E334 -> 5,133 | E4: =Nizamabad!DZ334 -> 11,797 | F4: =Nizamabad!EA334 -> 10,144 | G4: =Nizamabad!EB334 -> 61 | H4: =Nizamabad!EC334 -> 10 | I4: =SUM(E4:H4) -> 22,012
B5: KAMAREDDY | C5: ='Area Wise Total'!D19 -> 167 | D5: =Kamareddy!E177 -> 1,902 | E5: =Kamareddy!DZ177 -> 2,648 | F5: =Kamareddy!EA177 -> 3,010 | G5: =Kamareddy!EB177 -> 125 | H5: =Kamareddy!EC177 -> 0 | I5: =SUM(E5:H5) -> 5,783
B6: NIRMAL | C6: ='Area Wise Total'!D24 -> 85 | D6: =Nirmal!E93 -> 1,373 | E6: =Nirmal!DZ93 -> 1,673 | F6: =Nirmal!EA93 -> 1,062 | G6: =Nirmal!EB93 -> 43 | H6: =Nirmal!EC93 -> 0 | I6: =SUM(E6:H6) -> 2,778
B7: ADILABAD | C7: ='Area Wise Total'!D26 -> 82 | D7: =Adilabad!E87 -> 1,176 | E7: =Adilabad!DZ87 -> 1,815 | F7: =Adilabad!EA87 -> 1,041 | G7: =Adilabad!EB87 -> 30 | H7: =Adilabad!EC87 -> 0 | I7: =SUM(E7:H7) -> 2,886
B8: ASIFABAD | C8: ='Area Wise Total'!D28 -> 27 | D8: =Asifabad!E31 -> 525 | E8: =Asifabad!DZ31 -> 563 | F8: =Asifabad!EA31 -> 328 | G8: =Asifabad!EB31 -> 0 | H8: =Asifabad!EC31 -> 0 | I8: =SUM(E8:H8) -> 891
B9: TOTAL | C9: =SUM(C4:C8) -> 680 | D9: =SUM(D4:D8) -> 10,109 | E9: 18,496 | F9: 15,585 | G9: 259 | H9: =SUM(H4:H8) -> 10 | I9: 34,350
B11: DETAILS OF COLOURS
B12: YELLOW | C12: INCENERABLE WASTE
B13: RED | C13: AUTOCLAVE WASTE
B14: BLUE | C14: BROKEN GLASS, METALIC BODY IMPLANTS
B15: WHITE | C15: SHARPENS, NEEDLES, BLADES, SCALPELS, NAILS, LANCETS

Sheet Area Wise Total
B2: STATEMENT SHOWING AREA WISE RECEIVED BIO - MEDICAL WASTE
B3: DECEMBER 2021
B4: District | C4: Areas | D4: HCF's | E4: Beds | F4: Yellow | G4: Red | H4: Blue | I4: White
B6: Nizamabad | C6: Nizamabad | D6: =COUNTIF(Nizamabad!A4:A8,">0")+COUNTIF(Nizamabad!A12:A232,">0") -> 222 | E6: =SUM(Nizamabad!E4:E8)+SUM(Nizamabad!E12:E232) -> 3887 | F6: =SUM(Nizamabad!DZ4:DZ8)+SUM(Nizamabad!DZ12:DZ232) -> 9496 | G6: =SUM(Nizamabad!EA4:EA8)+SUM(Nizamabad!EA12:EA232) -> 8032 | H6: =SUM(Nizamabad!EB4:EB8)+SUM(Nizamabad!EB12:EB232) -> 29 | I6: =SUM(Nizamabad!EC4:EC8)+SUM(Nizamabad!EC12:EC232) -> 10
C7: Armoor | D7: =COUNTIF(Nizamabad!A234:A279,">0") -> 46 | E7: =SUM(Nizamabad!E234:E279) -> 606 | F7: =SUM(Nizamabad!DZ234:DZ279) -> 1119 | G7: =SUM(Nizamabad!EA234:EA279) -> 942 | H7: =SUM(Nizamabad!EB234:EB279) -> 0 | I7: =SUM(Nizamabad!EC234:EC279) -> 0
C8: Bodhan | D8: =COUNTIF(Nizamabad!A281:A321, ">0")+COUNTIF(Nizamabad!A9,">0") -> 42 | E8: =Nizamabad!E9+SUM(Nizamabad!E281:E321) -> 486 | F8: =Nizamabad!DZ9+SUM(Nizamabad!DZ281:DZ321) -> 904 | G8: =Nizamabad!EA9+SUM(Nizamabad!EA281:EA321) -> 860 | H8: =Nizamabad!EB9+SUM(Nizamabad!EB281:EB321) -> 8 | I8: =Nizamabad!EC9+SUM(Nizamabad!EC281:EC321) -> 0
C9: Dichpally | D9: =COUNTIF(Nizamabad!A323:A326, ">0") -> 4 | E9: =SUM(Nizamabad!E323:E326) -> 80 | F9: =SUM(Nizamabad!DZ323:DZ326) -> 182 | G9: =SUM(Nizamabad!EA323:EA326) -> 79 | H9: =SUM(Nizamabad!EB323:EB326) -> 18 | I9: =SUM(Nizamabad!EC323:EC326) -> 0
C10: Varni | D10: =COUNTIF(Nizamabad!A328:A329, ">0") -> 2 | E10: =SUM(Nizamabad!E328:E329) -> 31 | F10: =SUM(Nizamabad!DZ328:DZ329) -> 12 | G10: =SUM(Nizamabad!EA328:EA329) -> 168 | H10: =SUM(Nizamabad!EB328:EB329) -> 0 | I10: =SUM(Nizamabad!EC328:EC329) -> 0
C11: Navipet | D11: =COUNTIF(Nizamabad!A331:A333,">0") -> 3 | E11: =SUM(Nizamabad!E331:E333) -> 43 | F11: =SUM(Nizamabad!DZ331:DZ333) -> 84 | G11: =SUM(Nizamabad!EA331:EA333) -> 63 | H11: =SUM(Nizamabad!EB331:EB333) -> 6 | I11: =SUM(Nizamabad!EC331:EC333) -> 0
C12: Total: | D12: =SUM(D6:D11) -> 319 | E12: 5133 | F12: 11797 | G12: 10144 | H12: 61 | I12: 10
B14: Kamareddy | C14: Kamareddy | D14: =COUNTIF(Kamareddy!A4:A5, ">0")+COUNTIF(Kamareddy!A9:A138, ">0") -> 132 | E14: =SUM(Kamareddy!E4:E5)+SUM(Kamareddy!E9:E138) -> 1357 | F14: =SUM(Kamareddy!DZ4:DZ5)+SUM(Kamareddy!DZ9:DZ138) -> 1827 | G14: =SUM(Kamareddy!EA4:EA5)+SUM(Kamareddy!EA9:EA138) -> 2184 | H14: =SUM(Kamareddy!EB4:EB5)+SUM(Kamareddy!EB9:EB138) -> 64 | I14: =SUM(Kamareddy!EC4:EC5)+SUM(Kamareddy!EC9:EC138) -> 0
C15: Banswada | D15: =COUNTIF(Kamareddy!A6,">0")+COUNTIF(Kamareddy!A140:A161, ">0") -> 23 | E15: =Kamareddy!E6+SUM(Kamareddy!E140:E161) -> 298 | F15: =Kamareddy!DZ6+SUM(Kamareddy!DZ140:DZ161) -> 487 | G15: =Kamareddy!EA6+SUM(Kamareddy!EA140:EA161) -> 570 | H15: =Kamareddy!EB6+SUM(Kamareddy!EB140:EB161) -> 49 | I15: =Kamareddy!EC6+SUM(Kamareddy!EC140:EC161) -> 0
C16: Bichkunda | D16: =COUNTIF(Kamareddy!A163:A164, ">0") -> 2 | E16: =SUM(Kamareddy!E163:E164) -> 12 | F16: =SUM(Kamareddy!DZ163:DZ164) -> 32 | G16: =SUM(Kamareddy!EA163:EA164) -> 26 | H16: =SUM(Kamareddy!EB163:EB164) -> 0 | I16: =SUM(Kamareddy!EC163:EC164) -> 0
C17: Pitlam | D17: =COUNTIF(Kamareddy!A166:A169, ">0") -> 4 | E17: =SUM(Kamareddy!E166:E169) -> 40 | F17: =SUM(Kamareddy!DZ166:DZ169) -> 78 | G17: =SUM(Kamareddy!EA166:EA169) -> 44 | H17: =SUM(Kamareddy!EB166:EB169) -> 0 | I17: =SUM(Kamareddy!EC166:EC169) -> 0
C18: Yellareddy | D18: =COUNTIF(Kamareddy!A171:A176,">0") -> 6 | E18: =SUM(Kamareddy!E171:E176) -> 195 | F18: =SUM(Kamareddy!DZ171:DZ176) -> 222 | G18: =SUM(Kamareddy!EA171:EA176) -> 184 | H18: =SUM(Kamareddy!EB171:EB176) -> 18 | I18: =SUM(Kamareddy!EC171:EC176) -> 0
C19: Total: | D19: =SUM(D14:D18) -> 167 | E19: 1902 | F19: 2646 | G19: 3008 | H19: 131 | I19: 0
B21: Nirmal | C21: Nirmal | D21: =COUNTIF(Nirmal!A4,">0")+COUNTIF(Nirmal!A8:A66,">0") -> 60 | E21: =Nirmal!E4+SUM(Nirmal!E8:E66) -> 919 | F21: =Nirmal!DZ4+SUM(Nirmal!DZ8:DZ66) -> 1077 | G21: =Nirmal!EA4+SUM(Nirmal!EA8:EA66) -> 750 | H21: =Nirmal!EB4+SUM(Nirmal!EB8:EB66) -> 40 | I21: =Nirmal!EC4+SUM(Nirmal!EC8:EC66) -> 0
C22: Bhainsa | D22: =COUNTIF(Nirmal!A5,">0")+COUNTIF(Nirmal!A68:A86,">0") -> 20 | E22: =Nirmal!E5+SUM(Nirmal!E68:E86) -> 374 | F22: =Nirmal!DZ5+SUM(Nirmal!DZ68:DZ86) -> 516 | G22: =Nirmal!EA5+SUM(Nirmal!EA68:EA86) -> 267 | H22: =Nirmal!EB5+SUM(Nirmal!EB68:EB86) -> 3 | I22: =Nirmal!EC5+SUM(Nirmal!EC68:EC86) -> 0
C23: Mudhole | D23: =COUNTIF(Nirmal!A88:A92, ">0") -> 5 | E23: =SUM(Nirmal!E88:E92) -> 80 | F23: =SUM(Nirmal!DZ88:DZ92) -> 80 | G23: =SUM(Nirmal!EA88:EA92) -> 45 | H23: =SUM(Nirmal!EB88:EB92) -> 0 | I23: =SUM(Nirmal!EC88:EC92) -> 0
C24: Total: | D24: =SUM(D21:D23) -> 85 | E24: 1373 | F24: 1673 | G24: 1062 | H24: 43 | I24: 0
B26: Adilabad | D26: =COUNTIF(Adilabad!A4:A86,">0") -> 82 | E26: =SUM(Adilabad!E4:E86) -> 1176 | F26: =SUM(Adilabad!DZ4:DZ86) -> 1815 | G26: =SUM(Adilabad!EA4:EA86) -> 1041 | H26: =SUM(Adilabad!EB4:EB86) -> 30 | I26: =SUM(Adilabad!EC4:EC86) -> 0
B28: Asifabad | D28: =COUNTIF(Asifabad!A4:A30, ">0") -> 27 | E28: =SUM(Asifabad!E4:E29) -> 525 | F28: =SUM(Asifabad!DZ4:DZ29) -> 542 | G28: =SUM(Asifabad!EA4:EA29) -> 328 | H28: =SUM(Asifabad!EB4:EB29) -> 0 | I28: =SUM(Asifabad!EC4:EC29) -> 0
B30: Grand Total | D30: =D12+D19+D24+D26+D28 -> 680 | E30: =E12+E19+E24+E26+E28 -> 10109 | F30: 18473 | G30: 15583 | H30: 265 | I30: 10

Sheet Nizamabad
A1: DECEMBER MONTH REPORT | F1: 2021-12-01 | J1: 2021-12-02 | N1: 2021-12-03 | R1: 2021-12-04 | V1: 2021-12-05 | Z1: 2021-12-06 | AD1: 2021-12-07 | AH1: 2021-12-08 | AL1: 2021-12-09 | AP1: 2021-12-10 | AT1: 2021-12-11 | AX1: 2021-12-12 | BB1: 2021-12-13 | BF1: 2021-12-14 | BJ1: 2021-12-15 | BN1: 2021-12-16 | BR1: 2021-12-17 | BV1: 2021-12-18 | BZ1: 2021-12-19 | CD1: 2021-12-20 | CH1: 2021-12-21 | CL1: 2021-12-22 | CP1: 2021-12-23 | CT1: 2021-12-24 | CX1: 2021-12-25 | DB1: 2021-12-26 | DF1: 2021-12-27 | DJ1: 2021-12-28 | DN1: 2021-12-29 | DR1: 2021-12-30 | DV1: 2021-12-31 | DZ1: TOTAL
A2: SNO | B2: HCF ID | C2: NAME OF THE HCF | D2: ADDRESS OF THE HCFS | E2: NO.OF BEDS | F2: Yellow | G2: Red | H2: Blue | I2: White | J2: Yellow | K2: Red | L2: Blue | M2: White | N2: Yellow | O2: Red | P2: Blue | Q2: White | R2: Yellow | S2: Red | T2: Blue | U2: White | V2: Yellow | W2: Red | X2: Blue | Y2: White | Z2: Yellow | AA2: Red | AB2: Blue | AC2: White | AD2: Yellow | AE2: Red | AF2: Blue | AG2: White | AH2: Yellow | AI2: Red | AJ2: Blue | AK2: White | AL2: Yellow | AM2: Red | AN2: Blue | AO2: White | AP2: Yellow | AQ2: Red | AR2: Blue | AS2: White | AT2: Yellow | AU2: Red | AV2: Blue | AW2: White | AX2: Yellow | AY2: Red | AZ2: Blue | BA2: White | BB2: Yellow | BC2: Red | BD2: Blue | BE2: White | BF2: Yellow | BG2: Red | BH2: Blue | BI2: White | BJ2: Yellow | BK2: Red | BL2: Blue | BM2: White | BN2: Yellow | BO2: Red | BP2: Blue | BQ2: White | BR2: Yellow | BS2: Red | BT2: Blue | BU2: White | BV2: Yellow | BW2: Red | BX2: Blue | BY2: White | BZ2: Yellow | CA2: Red | CB2: Blue | CC2: White | CD2: Yellow | CE2: Red | CF2: Blue | CG2: White | CH2: Yellow | CI2: Red | CJ2: Blue | CK2: White | CL2: Yellow | CM2: Red | CN2: Blue | CO2: White | CP2: Yellow | CQ2: Red | CR2: Blue | CS2: White | CT2: Yellow | CU2: Red | CV2: Blue | CW2: White | CX2: Yellow | CY2: Red | CZ2: Blue | DA2: White | DB2: Yellow | DC2: Red | DD2: Blue | DE2: White | DF2: Yellow | DG2: Red | DH2: Blue | DI2: White | DJ2: Yellow | DK2: Red | DL2: Blue | DM2: White | DN2: Yellow | DO2: Red | DP2: Blue | DQ2: White | DR2: Yellow | DS2: Red | DT2: Blue | DU2: White | DV2: Yellow | DW2: Red | DX2: Blue | DY2: White | DZ2: Yellow | EA2: Red | EB2: Blue | EC2: White
A3: 100 AND ABOVE BEDS HCFs
A4: 1 | B4: GOVER503001TSBH00988 | C4: GOVT. DIST. HOSPITAL | D4: BESIDE NIZAMABAD BUS STATION, NIZAMABAD | E4: 500 | F4: 10 | G4: 10 | J4: 10 | R4: 12 | S4: 10 | V4: 11 | W4: 8 | Z4: 10 | AA4: 10 | AH4: 10 | AT4: 10 | AU4: 10 | AX4: 5 | AY4: 7 | BB4: 10 | BC4: 10 | BF4: 10 | BG4: 10 | BI4: 10 | BJ4: 10 | BK4: 10 | BN4: 10 | BR4: 10 | BS4: 10 | BV4: 6 | BW4: 5 | BZ4: 5 | CA4: 4 | CD4: 8 | CE4: 8 | CH4: 8 | CI4: 8 | CL4: 8 | CM4: 8 | CP4: 6 | CQ4: 6 | CT4: 5 | CU4: 6 | CX4: 8 | CY4: 8 | DB4: 8 | DC4: 8 | DF4: 6 | DG4: 8 | DJ4: 5 | DK4: 6 | DN4: 5 | DO4: 6 | DR4: 5 | DS4: 6 | DV4: 8 | DW4: 8 | DZ4: =F4+J4+N4+R4+V4+Z4+AD4+AH4+AL4+AP4+AT4+AX4+BB4+BF4+BJ4+BN4+BR4+BV4+BZ4+CD4+CH4+CL4+CP4+CT4+CX4+DB4+DF4+DJ4+DN4+DR4+DV4 -> 219 | EA4: =G4+K4+O4+S4+W4+AA4+AE4+AI4+AM4+AQ4+AU4+AY4+BC4+BG4+BK4+BO4+BS4+BW4+CA4+CE4+CI4+CM4+CQ4+CU4+CY4+DC4+DG4+DK4+DO4+DS4+DW4 -> 190 | EB4: =H4+L4+P4+T4+X4+AB4+AF4+AJ4+AN4+AR4+AV4+AZ4+BD4+BH4+BL4+BP4+BT4+BX4+CB4+CF4+CJ4+CN4+CR4+CV4+CZ4+DD4+DH4+DL4+DP4+DT4 -> 0 | EC4: =I4+M4+Q4+U4+Y4+AC4+AG4+AK4+AO4+AS4+AW4+BA4+BE4+BI4+BM4+BQ4+BU4+BY4+CC4+CG4+CK4+CO4+CS4+CW4+DA4+DE4+DI4+DM4+DQ4+DU4 -> 10
A5: 2 | B5: MEGHN503003TSBH00905 | C5: MEGHANA INSTITUTE OF DENTAL SCIENCE | D5: MALLARAM VILLAGE,NIZAMABAD | E5: 200 | V5: 4 | AD5: 10 | AE5: 10 | AH5: 10 | AI5: 10 | AL5: 10 | AM5: 10 | AT5: 10 | AU5: 10 | AX5: 8 | AY5: 6 | BB5: 10 | BC5: 10 | BF5: 10 | BG5: 10 | BJ5: 10 | BK5: 10 | BN5: 10 | BO5: 10 | BR5: 10 | BS5: 10 | BV5: 4 | BW5: 4 | BZ5: 3 | CA5: 3 | CD5: 5 | CE5: 5 | CH5: 6 | CI5: 5 | CL5: 6 | CM5: 5 | CT5: 3 | CU5: 3 | DB5: 2 | DC5: 2 | DF5: 3 | DG5: 5 | DJ5: 5 | DK5: 5 | DN5: 5 | DO5: 5 | DR5: 5 | DS5: 5 | DV5: 5 | DW5: 4 | DZ5: =F5+J5+N5+R5+V5+Z5+AD5+AH5+AL5+AP5+AT5+AX5+BB5+BF5+BJ5+BN5+BR5+BV5+BZ5+CD5+CH5+CL5+CP5+CT5+CX5+DB5+DF5+DJ5+DN5+DR5+DV5 -> 154 | EA5: =G5+K5+O5+S5+W5+AA5+AE5+AI5+AM5+AQ5+AU5+AY5+BC5+BG5+BK5+BO5+BS5+BW5+CA5+CE5+CI5+CM5+CQ5+CU5+CY5+DC5+DG5+DK5+DO5+DS5+DW5 -> 147 | EB5: =H5+L5+P5+T5+X5+AB5+AF5+AJ5+AN5+AR5+AV5+AZ5+BD5+BH5+BL5+BP5+BT5+BX5+CB5+CF5+CJ5+CN5+CR5+CV5+CZ5+DD5+DH5+DL5+DP5+DT5 -> 0 | EC5: =I5+M5+Q5+U5+Y5+AC5+AG5+AK5+AO5+AS5+AW5+BA5+BE5+BI5+BM5+BQ5+BU5+BY5+CC5+CG5+CK5+CO5+CS5+CW5+DA5+DE5+DI5+DM5+DQ5+DU5 -> 0
A6: 3 | B6: PRAGA503001TSBH06142 | C6: PRAGATHI HOSPITAL | D6: Dr. BHOOPATHI REDDY,HYD. ROAD, PRAGATHI NAGAR, NIZAMABAD | E6: 150 | V6: 7 | W6: 6 | AD6: 10 | AE6: 10 | AH6: 10 | AI6: 10 | AL6: 10 | AM6: 10 | AT6: 10 | AX6: 6 | AY6: 7 | BB6: 10 | BC6: 10 | BF6: 10 | BG6: 10 | BH6: 10 | BJ6: 10 | BK6: 10 | BN6: 10 | BO6: 10 | BR6: 10 | BS6: 10 | BV6: 8 | BW6: 6 | BZ6: 5 | CA6: 5 | CD6: 6 | CE6: 5 | CH6: 8 | CI6: 8 | CL6: 8 | CM6: 8 | CT6: 5 | CU6: 7 | DF6: 6 | DG6: 6 | DJ6: 6 | DK6: 8 | DN6: 6 | DO6: 6 | DR6: 5 | DS6: 5 | DV6: 8 | DW6: 8 | DZ6: 174 | EA6: 165 | EB6: 10 | EC6: 0
A7: 4 | B7: MEDIC503001TSBH09849 | C7: MEDICOVER HOSPITAL | D7: Dr. K.V BHASKAR REDDY,YELLAMMA GUTTA X ROAD, HYD. ROAD, NIZAMABAD | E7: 100 | F7: 10 | G7: 10 | J7: 10 | K7: 10 | V7: 5 | W7: 4 | Z7: 9 | AA7: 9 | AH7: 10 | AI7: 10 | AX7: 5 | AY7: 4 | BF7: 10 | BG7: 10 | BJ7: 10 | BK7: 10 | BN7: 10 | BO7: 10 | BR7: 10 | BS7: 10 | BV7: 4 | BW7: 6 | BZ7: 3 | CA7: 3 | CD7: 8 | CH7: 8 | CI7: 8 | CL7: 8 | CM7: 8 | CT7: 5 | CU7: 7 | DJ7: 5 | DK7: 5 | DN7: 3 | DO7: 4 | DS7: 5 | DW7: 6 | DZ7: 133 | EA7: 139 | EB7: 0 | EC7: 0
A8: 5 | B8: THIRU503001TSBH09850 | C8: THIRUMALA SUPER SPECIALITY HOSPITAL, NIZAMABAD | D8: DR. S. PARAMESHWAR REDDY, NEAR BUS STAND, STATION (RP) ROAD, NIZAMABAD | E8: 100 | F8: 5 | G8: 5 | J8: 5 | K8: 10 | V8: 3 | W8: 2 | Z8: 5 | AA8: 5 | AX8: 3 | AY8: 2 | BF8: 5 | BG8: 5 | BJ8: 5 | BK8: 5 | BN8: 5 | BO8: 5 | BR8: 10 | BS8: 10 | BV8: 3 | BW8: 4 | BZ8: 2 | CA8: 2 | CD8: 5 | CH8: 5 | CI8: 5 | CL8: 5 | CM8: 5 | CT8: 4 | CU8: 3 | DJ8: 5 | DK8: 5 | DO8: 3 | DS8: 3 | DW8: 3 | DZ8: 75 | EA8: 82 | EB8: 0 | EC8: 0
A9: 6 | B9: DISTR503185TSBH08531 | C9: AREA HOSPITAL, BODHAN | D9: NEAR AMBEDKAR CHOWRASTA, BODHAN | E9: 100 | G9: 6 | K9: 6 | O9: 6 | S9: 6 | W9: 5 | AA9: 5 | AE9: 5 | AM9: 6 | AQ9: 6 | AY9: 5 | BC9: 6 | BF9: 3 | BG9: 3 | BJ9: 3 | BK9: 3 | BN9: 3 | BO9: 3 | BR9: 5 | BV9: 6 | BZ9: 3 | CD9: 6 | CH9: 6 | CL9: 6 | CP9: 6 | CT9: 6 | CX9: 6 | DB9: 6 | DF9: 6 | DJ9: 6 | DN9: 6 | DR9: 6 | DV9: 6 | DZ9: 95 | EA9: 71 | EB9: 0 | EC9: 0
A10: 80 TO 50 BEDS HCFs
A11: NIZAMABAD
A12: 1 | B12: PRATI503001TSBH00889 | C12: PRATHIBHA SUPER SPECIALITY HOSPITAL | D12: Dr.MOTHI LAL JADAV,HYDERABAD ROAD,NIZAMABAD | E12: 80 | F12: 10 | G12: 10 | J12: 15 | K12: 10 | N12: 9 | O12: 9 | R12: 12 | S12: 12 | V12: 10 | W12: 8 | Z12: 10 | AA12: 10 | AH12: 10 | AI12: 10 | AT12: 10 | AU12: 10 | AX12: 10 | AY12: 12 | BB12: 10 | BC12: 10 | BJ12: 10 | BK12: 10 | BN12: 10 | BO12: 10 | BR12: 10 | BS12: 10 | BV12: 6 | BW12: 6 | BZ12: 5 | CA12: 5 | CD12: 4 | CE12: 8 | CH12: 7 | CI12: 9 | CL12: 7 | CM12: 9 | CT12: 6 | CU12: 8 | DF12: 6 | DG12: 7 | DJ12: 6 | DK12: 8 | DN12: 5 | DO12: 5 | DR12: 5 | DS12: 5 | DV12: 8 | DW12: 8 | DZ12: 201 | EA12: 209 | EB12: 0 | EC12: 0
A13: 2 | B13: SHIVA503001TSBH00427 | C13: SHIVA SAI EMERGENCY AND MULTI SPECIALITY HOSPITAL | D13: Dr. C. VINODA,OPP: DECCAN GRAMEENA BANK, KHALEEL WADI, NIZAMABAD | E13: 53 | F13: 3 | G13: 3 | J13: 3 | K13: 3 | V13: 3 | W13: 2 | AH13: 4 | AI13: 4 | AL13: 2 | AM13: 2 | AT13: 3 | AU13: 3 | AX13: 3 | AY13: 3 | BF13: 3 | BG13: 3 | BJ13: 2 | BK13: 2 | BN13: 3 | BO13: 3 | BR13: 5 | BS13: 5 | BV13: 3 | BW13: 3 | BZ13: 2 | CA13: 2 | CD13: 5 | CH13: 5 | CI13: 5 | CL13: 5 | CM13: 5 | CT13: 3 | CU13: 3 | DF13: 3 | DG13: 3 | DK13: 3 | DN13: 3 | DO13: 3 | DR13: 3 | DS13: 3 | DW13: 3 | DZ13: 66 | EA13: 66 | EB13: 0 | EC13: 0
A14: 3 | B14: BOMBA503001TSBH00885 | C14: BOMBAY NURISNG HOME | D14: Dr. T NARENDRA,YELLAMMA GUTTA X ROAD, HYD. ROAD, NIZAMABAD | E14: 50 | F14: 3 | G14: 3 | J14: 5 | N14: 2 | R14: 3 | V14: 3 | Z14: 2 | AA14: 2 | AH14: 2 | AX14: 2 | AY14: 2 | BC14: 3 | BF14: 3 | BK14: 5 | BN14: 3 | BO14: 3 | BR14: 3 | BV14: 3 | BZ14: 2 | CD14: 3 | CP14: 3 | CT14: 3 | CX14: 5 | DB14: 4 | DN14: 3 | DO14: 4 | DR14: 4 | DS14: 4 | DV14: 2 | DZ14: 63 | EA14: 26 | EB14: 0 | EC14: 0
A15: 4 | B15: BRIND503001TSBH00922 | C15: BRINDAVAN HOSPITAL | D15: Dr.B.NAVEEN BHASKER, HYD ROAD,NZB | E15: 50 | F15: 10 | G15: 15 | J15: 15 | K15: 10 | N15: 10 | O15: 15 | R15: 10 | S15: 10 | V15: 8 | W15: 7 | Z15: 10 | AA15: 10 | AH15: 10 | AI15: 10 | AT15: 10 | AU15: 10 | AX15: 3 | AY15: 2 | BB15: 10 | BC15: 10 | BF15: 10 | BG15: 10 | BJ15: 10 | BK15: 10 | BN15: 10 | BO15: 10 | BR15: 10 | BS15: 10 | BV15: 6 | BW15: 6 | BZ15: 5 | CA15: 5 | CD15: 8 | CP15: 6 | CQ15: 6 | CT15: 5 | CU15: 6 | CX15: 8 | CY15: 8 | DB15: 7 | DC15: 6 | DJ15: 8 | DK15: 8 | DN15: 4 | DO15: 5 | DR15: 4 | DS15: 4 | DW15: 8 | DZ15: 197 | EA15: 201 | EB15: 0 | EC15: 0
A16: 5 | B16: DREAM503001TSBH06107 | C16: DREAMLAND HOPE HOSPITAL | D16: Dr.B.KISHOR REDDY, OPP.OLD JJ HOSPITALNZB | E16: 50 | F16: 15 | G16: 15 | J16: 10 | K16: 10 | N16: 9 | O16: 9 | R16: 10 | S16: 10 | V16: 10 | W16: 8 | AX16: 4 | AY16: 4 | BF16: 10 | BG16: 10 | BV16: 8 | BW16: 6 | BZ16: 7 | CA16: 7 | CD16: 8 | CE16: 8 | CT16: 5 | CU16: 7 | CX16: 6 | DB16: 5 | DF16: 5 | DG16: 5 | DZ16: 112 | EA16: 99 | EB16: 0 | EC16: 0
A17: 6 | B17: GSBVM503001TSBH07045 | C17: GSBV MEMORIAL MULTI SPECIALTY HOSPITAL | D17: Dr. G MADHUSUDHAN,OPP. RAJEEVE GANDHI AUDITORUM, KHALEELWADI, NIZAMABAD | E17: 50 | G17: 10 | J17: 10 | K17: 10 | N17: 9 | O17: 9 | R17: 10 | S17: 10 | V17: 7 | W17: 7 | AX17: 5 | AY17: 3 | BF17: 10 | BG17: 10 | BV17: 8 | BW17: 7 | BZ17: 5 | CA17: 5 | CD17: 8 | CE17: 8 | CH17: 8 | CI17: 6 | CL17: 8 | CM17: 6 | CT17: 5 | CU17: 6 | CX17: 8 | CY17: 8 | DB17: 7 | DC17: 7 | DF17: 4 | DG17: 6 | DJ17: 6 | DK17: 6 | DN17: 5 | DO17: 5 | DR17: 4 | DS17: 4 | DV17: 6 | DW17: 6 | DZ17: 133 | EA17: 139 | EB17: 0 | EC17: 0
A18: 7 | B18: HEERA503001TSBH00919 | C18: HEERA ORTHOPAEDIC NURSING HOME | D18: Dr.G.KAULAIAH, HYD ROAD, NIZAMABAD | E18: 50 | F18: 3 | G18: 5 | J18: 5 | AX18: 2 | AY18: 2 | BF18: 3 | BG18: 3 | BV18: 2 | BZ18: 3 | CD18: 5 | CH18: 5 | CI18: 5 | CL18: 5 | CM18: 5 | CT18: 3 | CU18: 4 | DJ18: 5 | DN18: 4 | DO18: 4 | DV18: 5 | DZ18: 50 | EA18: 28 | EB18: 0 | EC18: 0
A19: 8 | B19: INDUR503001TSBH09851 | C19: INDUR CANCER HOSPITAL | D19: MADHAVA NAGAR, HYD ROAD, NIZAMABAD | E19: 50 | G19: 4 | K19: 4 | N19: 3 | O19: 7 | R19: 4 | S19: 8 | V19: 4 | W19: 5 | Z19: 3 | AA19: 7 | AE19: 4 | AH19: 2 | AI19: 6 | AM19: 4 | AP19: 5 | AQ19: 5 | AX19: 2 | AY19: 3 | BC19: 1 | BG19: 4 | BK19: 4 | BO19: 4 | BS19: 4 | BV19: 3 | BW19: 4 | BZ19: 3 | CA19: 3 | CE19: 4 | CI19: 4 | CM19: 4 | CQ19: 7 | CU19: 8 | CX19: 5 | CY19: 4 | DB19: 4 | DC19: 3 | DG19: 4 | DJ19: 3 | DK19: 4 | DO19: 4 | DR19: 3 | DS19: 7 | DV19: 4 | DZ19: 48 | EA19: 134 | EB19: 0 | EC19: 0
A20: 9 | B20: INDUS503001TSBH08523 | C20: INDUS SUPER SPECIALITY HOSPITAL | D20: H.NO. 5-6-192/194, SARASWATHI NAGAR, HYDERABAD ROAD, NIZAMABAD | E20: 50 | F20: 5 | G20: 5 | J20: 4 | K20: 4 | O20: 3 | R20: 5 | S20: 5 | V20: 4 | W20: 4 | AX20: 2 | AY20: 2 | BF20: 4 | BG20: 4 | BV20: 3 | BW20: 3 | BZ20: 2 | CA20: 2 | CD20: 3 | CH20: 3 | CI20: 3 | CL20: 3 | CM20: 3 | CT20: 4 | CU20: 4 | DJ20: 5 | DN20: 3 | DO20: 4 | DV20: 5 | DZ20: 55 | EA20: 46 | EB20: 0 | EC20: 0
A21: 10 | B21: JAYAH503001TSBH09852 | C21: JAYA HOSPITAL | D21: Dr.PREMANANDAM, KHALEEL WADA, NZB | E21: 50 | N21: 3 | O21: 5 | R21: 3 | S21: 3 | V21: 3 | W21: 3 | Z21: 4 | AA21: 4 | AH21: 5 | AI21: 5 | AP21: 6 | BV21: 2 | BZ21: 2 | CD21: 4 | CH21: 3 | CI21: 3 | CL21: 3 | CM21: 3 | CP21: 4 | CQ21: 4 | CY21: 5 | DC21: 4 | DJ21: 5 | DN21: 3 | DO21: 4 | DR21: 3 | DV21: 2 | DZ21: 55 | EA21: 43 | EB21: 0 | EC21: 0
A22: 11 | B22: MANOR503001TSBH01042 | C22: MANORAMA SUPER SPECIALITY HOSPITAL | D22: Dr.CHANDRA SHEKAR RAO, OPP. BUSTAND, KHALEELWADI, NIZAMABAD | E22: 50 | F22: 10 | G22: 10 | J22: 10 | K22: 15 | N22: 5 | O22: 5 | R22: 10 | S22: 10 | V22: 8 | W22: 7 | AH22: 10 | AI22: 10 | AT22: 10 | AU22: 10 | AX22: 5 | AY22: 5 | BB22: 10 | BC22: 10 | BF22: 15 | BG22: 15 | BJ22: 5 | BK22: 10 | BN22: 10 | BO22: 10 | BR22: 10 | BV22: 10 | BW22: 10 | BZ22: 8 | CA22: 7 | CD22: 6 | CE22: 6 | CH22: 9 | CI22: 9 | CL22: 9 | CM22: 9 | CP22: 5 | CQ22: 4 | CT22: 4 | CU22: 5 | CX22: 5 | DB22: 3 | DJ22: 10 | DK22: 5 | DN22: 3 | DO22: 4 | DR22: 3 | DS22: 3 | DV22: 5 | DZ22: 198 | EA22: 179 | EB22: 0 | EC22: 0
A23: 12 | B23: NOVAL503001TSBH08513 | C23: NOVALIFE HOSPITAL | D23: HNO:5-6-293, SARASWATHI NAGAR, NIZAMABAD. | E23: 50 | F23: 5 | G23: 5 | J23: 5 | K23: 5 | N23: 5 | O23: 5 | R23: 5 | S23: 5 | V23: 3 | W23: 3 | AH23: 5 | AI23: 5 | AT23: 5 | AU23: 5 | AX23: 2 | AY23: 2 | BB23: 10 | BC23: 10 | BF23: 5 | BG23: 5 | BJ23: 5 | BK23: 5 | BN23: 5 | BO23: 5 | BR23: 5 | BS23: 5 | BV23: 5 | BW23: 5 | BZ23: 3 | CA23: 2 | CH23: 6 | CI23: 6 | CL23: 6 | CM23: 6 | CP23: 5 | CQ23: 5 | CT23: 5 | CU23: 6 | CX23: 5 | CY23: 5 | DB23: 4 | DC23: 4 | DF23: 3 | DG23: 4 | DJ23: 5 | DK23: 5 | DN23: 4 | DO23: 4 | DR23: 4 | DS23: 4 | DZ23: 120 | EA23: 121 | EB23: 0 | EC23: 0
A24: 13 | B24: RRLIF503001TSBH00887 | C24: R R LIFE LINE HOSPITAL NIZAMABAD | D24: Dr. K. RAMESH, HNO: 5-6-766/1, OPP.RED CROSS BLOOD BANK, KHALEEL WADI, NIZAMABAD | E24: 50 | F24: 3 | G24: 5 | J24: 5 | K24: 5 | N24: 5 | O24: 5 | R24: 5 | S24: 10 | V24: 5 | W24: 6 | Z24: 5 | AA24: 5 | AD24: 5 | AE24: 5 | AH24: 5 | AI24: 5 | AL24: 5 | AM24: 5 | AP24: 6 | AQ24: 6 | AT24: 5 | AU24: 5 | AX24: 3 | AY24: 3 | BF24: 5 | BG24: 5 | BJ24: 5 | BK24: 5 | BN24: 5 | BR24: 5 | BS24: 5 | BV24: 5 | BZ24: 3 | CD24: 4 | CH24: 3 | CI24: 3 | CL24: 3 | CM24: 3 | CQ24: 7 | CT24: 4 | CU24: 4 | CX24: 5 | DB24: 4 | DF24: 4 | DG24: 4 | DJ24: 5 | DN24: 4 | DR24: 3 | DS24: 4 | DV24: 4 | DW24: 3 | DZ24: 128 | EA24: 108 | EB24: 0 | EC24: 0
A25: 14 | B25: SVRMU503001TSBH08033 | C25: S V R MULTI SPECIALITY HOSPITAL | D25: Dr. E. SANADHYA RANI, KHALEELWADI, NIZAMABAD | E25: 50 | F25: 5 | G25: 5 | J25: 5 | K25: 5 | R25: 5 | S25: 5 | V25: 5 | W25: 4 | BF25: 5 | BG25: 5 | BV25: 3 | BW25: 3 | BZ25: 2 | CA25: 2 | CD25: 4 | CH25: 5 | CI25: 5 | CL25: 5 | CM25: 5 | CP25: 3 | CQ25: 3 | CX25: 5 | DB25: 4 | DF25: 4 | DG25: 4 | DJ25: 2 | DK25: 3 | DW25: 3 | DZ25: 62 | EA25: 52 | EB25: 0 | EC25: 0
A26: 15 | B26: SRIGU503001TSBH06796 | C26: SRI GURU RAGHAVENDRA SUNRISE HOSPITAL | D26: HNO:5-793 & 5-7-94, OPP:MUNCIPAL COMPLEX, NIZAMABAD. | E26: 50 | F26: 10 | G26: 10 | J26: 6 | K26: 6 | N26: 3 | O26: 3 | V26: 5 | W26: 4 | AX26: 3 | AY26: 3 | BV26: 5 | BW26: 5 | BZ26: 3 | CA26: 4 | CP26: 5 | CQ26: 4 | DZ26: 40 | EA26: 39 | EB26: 0 | EC26: 0
A27: 16 | B27: SRIKR503001TSBH09853 | C27: SRI KRISHNA NEURO & MULTI SPECIALITY HOSPITAL | D27: Dr. K. BALA KRISHNA REDDY, 5-6-385 & 386, YELLAMMA GUTTA X ROAD, HYD. ROAD, NIZAMABAD | E27: 50 | J27: 5 | K27: 5 | N27: 5 | O27: 5 | R27: 5 | S27: 5 | V27: 4 | W27: 4 | Z27: 5 | AA27: 5 | AH27: 3 | AI27: 3 | AL27: 5 | AM27: 5 | AP27: 4 | AX27: 4 | AY27: 4 | BV27: 2 | BZ27: 2 | CD27: 5 | CH27: 3 | CI27: 3 | CL27: 3 | CM27: 3 | CP27: 3 | CQ27: 3 | CU27: 3 | CY27: 4 | DC27: 3 | DF27: 4 | DG27: 4 | DJ27: 5 | DN27: 3 | DO27: 3 | DR27: 3 | DS27: 3 | DZ27: 73 | EA27: 65 | EB27: 0 | EC27: 0
A28: 17 | B28: SRIMA503001TSBH00974 | C28: SRI MAHALAXMI CHILDRENS HOSPITAL | D28: Dr. G. HARI KRISHNA, HNO:5-7-7/1 , BESIDE NALANDA WOMENS DEGREE COLLEGE, NIZAMABAD | E28: 50 | J28: 3 | V28: 2 | W28: 2 | Z28: 5 | AA28: 5 | AD28: 3 | AE28: 3 | AH28: 5 | AI28: 5 | AL28: 4 | AM28: 4 | AP28: 5 | AQ28: 5 | AT28: 4 | AU28: 4 | AX28: 3 | AY28: 3 | BN28: 3 | BR28: 3 | BV28: 4 | BZ28: 4 | CD28: 3 | CH28: 6 | CI28: 6 | CL28: 6 | CM28: 6 | CP28: 5 | CQ28: 8 | CT28: 8 | CU28: 7 | CY28: 5 | DC28: 4 | DF28: 3 | DG28: 4 | DK28: 7 | DN28: 8 | DR28: 7 | DS28: 3 | DW28: 8 | DZ28: 94 | EA28: 89 | EB28: 0 | EC28: 0
A29: 18 | B29: SRIVI503001TSBH06146 | C29: SRI VISHNU HOSPITAL | D29: ABOVE KOTAK MAHINDRA BANK, OPP: CENTRAL LIBRARY,NIZAMABAD | E29: 50 | V29: 2 | W29: 3 | AD29: 10 | AE29: 10 | AH29: 10 | AI29: 10 | AT29: 10 | AU29: 10 | AX29: 2 | AY29: 2 | BF29: 10 | BG29: 10 | BJ29: 10 | BK29: 10 | BN29: 10 | BO29: 10 | BR29: 10 | BS29: 10 | BV29: 6 | BW29: 5 | BZ29: 5 | CA29: 5 | CT29: 5 | CU29: 7 | DF29: 7 | DG29: 7 | DJ29: 6 | DK29: 6 | DN29: 3 | DO29: 4 | DR29: 4 | DS29: 5 | DV29: 6 | DW29: 6 | DZ29: 116 | EA29: 120 | EB29: 0 | EC29: 0
A30: 19 | B30: SRINI503001TSBH06147 | C30: SRINIVAS GASTRO & LIVER CARE HOSPITAL | D30: Dr. K . CHARAN RAJ,BESIDE MRO OFFICE, OPP: DEO OFFICE AND CENTRAL LIBRARY , KHALEELWADI, NIZAMABAD | E30: 50 | F30: 3 | G30: 3 | J30: 3 | K30: 3 | N30: 4 | O30: 4 | V30: 3 | W30: 3 | AT30: 5 | AU30: 5 | AX30: 2 | AY30: 2 | BB30: 5 | BC30: 5 | BF30: 5 | BG30: 5 | BJ30: 5 | BK30: 5 | BN30: 5 | BO30: 5 | BR30: 5 | BS30: 5 | BV30: 4 | BZ30: 4 | CD30: 3 | CH30: 5 | CI30: 5 | CL30: 5 | CM30: 5 | CT30: 4 | CU30: 5 | DF30: 4 | DJ30: 5 | DN30: 4 | DO30: 4 | DR30: 4 | DS30: 4 | DW30: 5 | DZ30: 87 | EA30: 73 | EB30: 0 | EC30: 0
A31: 20 | B31: SSKSU503001TSBH00896 | C31: SSK SUPER SPECIALITY HOSPITAL | D31: H.NO. 5-6-144,DEVI THEATER X ROAD, HYDERABAD ROAD, NIZAMABAD,Nizamabad,Nizamabad South,NIZAMABAD,503001 | E31: 50 | V31: 2 | W31: 2 | BV31: 3 | BZ31: 3 | DZ31: 8 | EA31: 2 | EB31: 0 | EC31: 0 | ED31: Cl
A32: 21 | B32: VIJAY503001TSBH00903 | C32: VIJAYALAKSHMI HOSPITAL | D32: H.NO. 5-6-767, NEAR RAJIV GANDHI AUDITORIUM, OPP: RED CROSS BLOOD BANK, KHALEELWADI, NIZAMABAD | E32: 50 | V32: 3 | W32: 3 | AX32: 2 | AY32: 2 | DZ32: 5 | EA32: 5 | EB32: 0 | EC32: 0
A33: 49 TO 20 BEDS HCFs
A34: 22 | B34: ADARS503001TSBH09854 | C34: ADARSH MATERNITY NURSING HOME | D34: Dr. ANNAPURNA, H.NO.5-7-624/12, KHALEELWADI, NIZAMABAD | E34: 35 | F34: 3 | G34: 3 | J34: 3 | K34: 3 | N34: 3 | O34: 3 | R34: 4 | S34: 4 | V34: 3 | W34: 2 | AH34: 5 | AT34: 5 | AU34: 5 | BB34: 5 | BC34: 5 | BF34: 5 | BG34: 5 | BJ34: 5 | BK34: 5 | BN34: 3 | BO34: 5 | BR34: 5 | BS34: 5 | BV34: 3 | BW34: 3 | BZ34: 3 | CA34: 3 | CD34: 5 | CH34: 5 | CI34: 5 | CL34: 5 | CM34: 5 | CT34: 3 | CU34: 4 | DF34: 4 | DJ34: 5 | DN34: 4 | DO34: 4 | DR34: 3 | DS34: 3 | DW34: 3 | DZ34: 89 | EA34: 75 | EB34: 0 | EC34: 0
A35: 23 | B35: VAISH503001TSBH06135 | C35: VAISHNAVI HOSPITAL | D35: Dr.V.AKHILESH, SARASWATHI NAGAR, NIZAMABAD | E35: 35 | BZ35: 2 | CD35: 6 | CE35: 6 | CH35: 8 | CI35: 8 | CL35: 8 | CM35: 8 | CT35: 4 | CU35: 5 | DF35: 3 | DG35: 5 | DJ35: 5 | DK35: 5 | DN35: 4 | DO35: 4 | DR35: 4 | DS35: 4 | DV35: 5 | DW35: 5 | DZ35: 49 | EA35: 50 | EB35: 0 | EC35: 0
A36: 24 | B36: SILVE503001TSBH08526 | C36: SILVERLINE HOSPITALS | D36: OPP: DR BHARATHI RANI HOSPITAL, SARASWATHI NAGAR, KHALEELWADI, NIZAMABAD Nizamabad(V) Nizamabad South(M) NIZAMABAD(D) Telangana-503001 | E36: 31 | F36: 5 | G36: 5 | J36: 2 | N36: 3 | O36: 3 | R36: 4 | S36: 4 | V36: 3 | W36: 2 | AH36: 5 | AT36: 5 | AU36: 5 | BB36: 5 | BC36: 5 | BF36: 5 | BG36: 5 | BJ36: 5 | BK36: 5 | BN36: 5 | BO36: 5 | BR36: 5 | BS36: 5 | BV36: 3 | BW36: 5 | BZ36: 3 | CA36: 4 | CD36: 3 | CH36: 5 | CI36: 5 | CL36: 5 | CM36: 5 | CT36: 4 | CU36: 4 | DF36: 3 | DJ36: 3 | DN36: 3 | DO36: 4 | DR36: 3 | DS36: 3 | DW36: 3 | DZ36: 87 | EA36: 77 | EB36: 0 | EC36: 0
A37: 25 | B37: LIONS503001TSBH01124 | C37: LIONS EYE HOSPITAL | D37: OPP.RAJEEV GANDHI AUDITORIUM, KHALEEL WADI, NIZAMABAD | E37: 25 | G37: 2 | BF37: 3 | BV37: 2 | BZ37: 2 | CD37: 2 | CP37: 3 | CX37: 4 | DB37: 4 | DJ37: 3 | DZ37: 23 | EA37: 2 | EB37: 0 | EC37: 0
A38: 26 | B38: RITVI503002TSBH09855 | C38: RITVIK HOSPITAL | D38: Dr. N. LAVANYA, OPP. SHESHANK HOSPITAL, OPP: BUS STAND ROAD, KHALEELWADI, NIZAMABAD | E38: 25 | J38: 3 | K38: 4 | N38: 5 | O38: 5 | R38: 4 | S38: 4 | V38: 3 | W38: 3 | Z38: 3 | AA38: 3 | AH38: 2 | AI38: 2 | AL38: 3 | AM38: 3 | AX38: 3 | AY38: 3 | BV38: 3 | BZ38: 3 | CD38: 5 | CP38: 4 | CU38: 3 | CY38: 5 | DC38: 5 | DF38: 3 | DG38: 4 | DJ38: 4 | DN38: 3 | DO38: 3 | DR38: 3 | DS38: 3 | DW38: 4 | DZ38: 54 | EA38: 54 | EB38: 0 | EC38: 0
A39: 27 | B39: SAIAS503001TSBH09856 | C39: SAI ASHWINI HOSPITAL | D39: Dr. D NARAYANA RAO, KHALEELWADI, NIZAMABAD | E39: 25 | N39: 4 | R39: 3 | S39: 3 | V39: 3 | W39: 3 | Z39: 3 | AA39: 3 | AH39: 3 | AI39: 3 | AL39: 2 | AP39: 3 | AQ39: 3 | AX39: 2 | BV39: 3 | BZ39: 3 | CD39: 5 | CH39: 3 | CI39: 3 | CL39: 3 | CM39: 3 | CP39: 3 | CT39: 4 | CY39: 3 | DC39: 3 | DK39: 4 | DN39: 3 | DR39: 3 | DW39: 4 | DZ39: 53 | EA39: 35 | EB39: 0 | EC39: 0
A40: 28 | B40: VIKRA503001TSBH09857 | C40: VIKRAM HOSPITAL | D40: Dr. VIKRAM REDDY, NEAR R.D.O OFFICE, KHALEEL WADI, NIZAMABAD | E40: 25 | J40: 5 | K40: 3 | N40: 4 | O40: 4 | R40: 5 | S40: 5 | V40: 3 | W40: 4 | Z40: 4 | AA40: 4 | AH40: 5 | AI40: 5 | AP40: 5 | AQ40: 5 | BV40: 4 | BZ40: 4 | CD40: 5 | CH40: 3 | CL40: 3 | CP40: 3 | CT40: 4 | DG40: 4 | DJ40: 5 | DN40: 4 | DS40: 3 | DV40: 4 | DZ40: 70 | EA40: 37 | EB40: 0 | EC40: 0
A41: 29 | B41: ANKAM503001TSBH01037 | C41: ANKAM HOSPITAL | D41: HNO:5-7-132, KHALEEL WADI,NIZAMABAD | E41: 24 | V41: 2 | AD41: 5 | AE41: 5 | AH41: 6 | AI41: 6 | AL41: 5 | AM41: 5 | AT41: 5 | AU41: 5 | AX41: 3 | AY41: 3 | BF41: 5 | BG41: 5 | BJ41: 5 | BK41: 5 | BN41: 5 | BO41: 5 | BR41: 10 | BS41: 10 | BV41: 5 | BW41: 5 | BZ41: 3 | CA41: 3 | CD41: 5 | CH41: 6 | CI41: 6 | CL41: 6 | CM41: 6 | CT41: 5 | CU41: 5 | DJ41: 5 | DN41: 4 | DO41: 5 | DR41: 4 | DS41: 5 | DW41: 3 | DZ41: 94 | EA41: 87 | EB41: 0 | EC41: 0
A42: 30 | B42: GANGA503001TSBH06109 | C42: GANGA SARASWATHI CHILDRENS HOSPITAL | D42: DWARAKA NAGAR, NIZAMABAD,Nizamabad,Nizamabad South,NIZAMABAD,503001 | E42: 24 | CD42: 3 | CH42: 3 | CI42: 3 | CL42: 3 | CM42: 3 | CT42: 4 | CU42: 4 | DF42: 3 | DG42: 4 | DJ42: 2 | DN42: 3 | DO42: 3 | DR42: 3 | DS42: 3 | DV42: 2 | DZ42: 26 | EA42: 20 | EB42: 0 | EC42: 0
A43: 31 | B43: MEENA503001TSBH02590 | C43: MEENAKSHI NURSING HOME NIZAMABAD | D43: Dr. D. MEENAKSHI,BACKSIDE PRAGATHI HOSPITAL, SARASWATHI NAGAR , NIZAMABAD | E43: 24 | BF43: 5 | BG43: 5 | BN43: 5 | BO43: 5 | BV43: 5 | BW43: 5 | BZ43: 3 | CA43: 4 | CD43: 5 | CP43: 3 | CQ43: 2 | CX43: 6 | DB43: 5 | DJ43: 5 | DK43: 3 | DZ43: 42 | EA43: 24 | EB43: 0 | EC43: 0
A44: 32 | B44: SAIAY503001TSBH06137 | C44: SAI AYUSH CHILDRENS HOSPITAL | D44: BHARATHI RANI HOSPITAL LANE, BESIDE PRAGATHI HOSPITAL, SARASWATHI NAGAR, NIZAMABAD | E44: 22 | F44: 3 | G44: 5 | J44: 4 | K44: 4 | R44: 4 | S44: 4 | V44: 3 | W44: 3 | BF44: 2 | BV44: 3 | BZ44: 3 | CD44: 4 | CH44: 3 | CI44: 3 | CL44: 3 | CM44: 3 | CP44: 3 | CT44: 4 | CU44: 4 | CX44: 5 | DB44: 5 | DF44: 3 | DJ44: 3 | DW44: 3 | DZ44: 55 | EA44: 29 | EB44: 0 | EC44: 0
A45: 33 | B45: GAUTH503001TSBH06152 | C45: GAUTHAM NURSING HOME | D45: OLD JJ REDDY BUILDING , KHALEELWADI, NIZAMABAD,503001 | E45: 21 | K45: 1 | CT45: 3 | CU45: 3 | DF45: 4 | DN45: 4 | DO45: 4 | DR45: 3 | DS45: 3 | DZ45: 14 | EA45: 11 | EB45: 0 | EC45: 0 | ED45: Cl
A46: 34 | B46: NAGAR503001TSBH07036 | C46: NAGARJUNA HOSPITAL | D46: RAGHAVENDRA HOSPITAL BUILDING,KHALEELWADI,NIZAMABAD | E46: 21 | BF46: 3 | BG46: 3 | BN46: 3 | BO46: 3 | BV46: 3 | BZ46: 3 | CD46: 5 | CP46: 3 | CX46: 5 | DB46: 5 | DJ46: 3 | DW46: 3 | DZ46: 33 | EA46: 9 | EB46: 0 | EC46: 0
A47: 35 | B47: NARAS503001TSBH06161 | C47: NARASIMHA METERNITY CHILDRENS HOSPITAL | D47: Dr A. ARAVIND REDDY,OLD J J BUILDING, KHALEEL WADI, NIZAMABAD | E47: 21 | BF47: 3 | BG47: 3 | BN47: 3 | BO47: 5 | BV47: 3 | BZ47: 3 | CD47: 5 | CP47: 2 | CQ47: 2 | CX47: 5 | CY47: 3 | DB47: 5 | DC47: 3 | DJ47: 5 | DW47: 4 | DZ47: 34 | EA47: 20 | EB47: 0 | EC47: 0
A48: 36 | B48: SUJAT503001TSBH09858 | C48: SUJATHA NURSING HOME | D48: Dr. Y. SAMBASHIVA RAO, KHALEELWADI, NIZAMABAD | E48: 21 | J48: 2 | K48: 2 | N48: 3 | O48: 3 | R48: 3 | S48: 3 | V48: 2 | W48: 2 | AA48: 3 | AH48: 2 | AI48: 2 | AL48: 4 | AP48: 3 | AQ48: 3 | AX48: 2 | AY48: 2 | BV48: 3 | BZ48: 3 | CD48: 5 | CH48: 3 | CL48: 3 | CP48: 4 | CT48: 3 | CX48: 5 | DB48: 5 | DF48: 4 | DG48: 4 | DJ48: 5 | DN48: 3 | DO48: 3 | DR48: 3 | DS48: 3 | DV48: 2 | DZ48: 72 | EA48: 30 | EB48: 0 | EC48: 0
A49: 37 | B49: ANSHU503001TSBH08519 | C49: ANSHUL HOSPITAL | D49: Dr. JALAGAM THIRUPATHI RAO,OPP. INDIAN BANK, KHALEELWADI, NIZAMABAD | E49: 20 | CD49: 3 | CT49: 3 | CU49: 4 | DF49: 3 | DJ49: 3 | DN49: 3 | DO49: 3 | DR49: 3 | DS49: 3 | DV49: 2 | DZ49: 20 | EA49: 10 | EB49: 0 | EC49: 0
A50: 38 | B50: ANUPA503001TSBH09859 | C50: ANUPAMA HOSPITAL | D50: Dr. C SOMA SEKHARA PATIL,SARASWATHI NAGAR, ROAD NO.3, NIZAMABAD | E50: 20 | N50: 3 | O50: 4 | R50: 5 | S50: 5 | V50: 3 | W50: 2 | Z50: 3 | AA50: 3 | AH50: 4 | AI50: 2 | AT50: 3 | AU50: 3 | BB50: 3 | BC50: 3 | BF50: 3 | BG50: 3 | BJ50: 5 | BK50: 5 | BN50: 3 | BO50: 3 | BR50: 3 | BS50: 3 | BV50: 3 | BW50: 3 | BZ50: 2 | CA50: 2 | CD50: 5 | CQ50: 3 | CY50: 3 | DC50: 3 | DJ50: 3 | DN50: 3 | DO50: 4 | DR50: 3 | DS50: 3 | DW50: 3 | DZ50: 57 | EA50: 60 | EB50: 0 | EC50: 0
A51: 39 | B51: CHAND503001TSBH08472 | C51: CHANDRASHILA CHILD CARE HOME | D51: Dr. P ANAND,OPP. DECCAN GRAMEENA BANK, KHALEEL WADI, NIZAMABAD | E51: 20 | AD51: 3 | AE51: 3 | AH51: 4 | AI51: 4 | AT51: 5 | AU51: 5 | BF51: 5 | BG51: 5 | BJ51: 3 | BK51: 3 | BN51: 5 | BO51: 5 | BR51: 5 | BS51: 5 | BV51: 3 | BZ51: 3 | CT51: 5 | CU51: 5 | DF51: 5 | DG51: 5 | DK51: 4 | DN51: 3 | DO51: 4 | DR51: 5 | DS51: 5 | DW51: 5 | DZ51: 54 | EA51: 58 | EB51: 0 | EC51: 0
A52: 40 | B52: ESIHO503001TSBH09860 | C52: ESI HOSPITAL | D52: Dr.K.RANGA SWAMY,NEAR P F OFFICE, SEETHARAM NAGAR COLONY, ANAND NAGAR, NIZAMABAD | E52: 20 | AH52: 5 | AI52: 5 | AT52: 5 | AU52: 5 | BB52: 5 | BC52: 5 | BF52: 3 | BG52: 5 | BJ52: 5 | BK52: 5 | BR52: 10 | BS52: 10 | BV52: 3 | BW52: 3 | BZ52: 2 | CA52: 2 | CD52: 3 | CP52: 5 | CQ52: 5 | CX52: 4 | CY52: 4 | DB52: 4 | DC52: 4 | DJ52: 6 | DK52: 6 | DN52: 4 | DO52: 4 | DR52: 3 | DV52: 4 | DZ52: 71 | EA52: 63 | EB52: 0 | EC52: 0
A53: 41 | B53: FLOWE503001TSBH10083 | C53: FLOWER HOSPITAL | D53: NEAR LIMRA GARDEN FUNCTION HALL, QUILLA ROAD, BODHAN ROAD, NIZAMABAD | E53: 20 | F53: 3 | J53: 3 | N53: 3 | R53: 3 | V53: 2 | Z53: 3 | AD53: 3 | AH53: 3 | AP53: 3 | AU53: 2 | BB53: 3 | BF53: 3 | BJ53: 3 | BN53: 3 | BR53: 3 | BV53: 3 | BZ53: 3 | CD53: 3 | CH53: 3 | CL53: 3 | CP53: 3 | CT53: 3 | CX53: 3 | DB53: 3 | DF53: 3 | DJ53: 3 | DN53: 3 | DR53: 3 | DV53: 3 | DZ53: 83 | EA53: 2 | EB53: 0 | EC53: 0
A54: 42 | B54: HARIK503001TSBH00963 | C54: HARIKA HOSPITAL | D54: Dr. D L N SWAMY,BESIDE BALAJI LAB, KHALEEL WADI , NIZAMABAD | E54: 20 | N54: 3 | O54: 3 | R54: 2 | S54: 4 | V54: 2 | W54: 3 | Z54: 4 | BB54: 3 | BC54: 3 | BF54: 3 | BG54: 3 | BJ54: 3 | BV54: 2 | BZ54: 2 | CD54: 3 | CI54: 5 | CM54: 5 | CT54: 4 | CU54: 4 | DK54: 3 | DN54: 3 | DO54: 3 | DR54: 3 | DW54: 4 | DZ54: 37 | EA54: 40 | EB54: 0 | EC54: 0
A55: 43 | B55: HARIT503001TSBH07066 | C55: HARITHA CHILDRENS HOSPITAL | D55: Dr. P RAM MOHAN,HNO:-5-6-11, DWARAJA NAGAR , NIZAMABAD | E55: 20 | N55: 3 | R55: 3 | V55: 3 | Z55: 3 | BB55: 3 | BC55: 3 | BG55: 3 | BJ55: 3 | BV55: 2 | BZ55: 2 | CD55: 3 | CI55: 5 | CM55: 5 | CT55: 3 | CU55: 4 | DK55: 3 | DN55: 4 | DO55: 4 | DR55: 4 | DS55: 4 | DW55: 3 | DZ55: 36 | EA55: 34 | EB55: 0 | EC55: 0
A56: 44 | B56: HARSH503001TSBH06141 | C56: HARSHA SAI EYE HOSPTIAL | D56: Dr. D KEERTHI KUMAR,BESIDE ILD J J REDDY HOSPITAL. DWARAKA NAGAR, NIZAMABAD | E56: 20 | N56: 4 | O56: 4 | S56: 3 | W56: 3 | Z56: 3 | BB56: 3 | BC56: 3 | BF56: 3 | BJ56: 3 | BK56: 3 | CD56: 3 | CI56: 5 | CM56: 5 | CT56: 4 | CU56: 4 | DK56: 4 | DN56: 4 | DO56: 4 | DR56: 3 | DS56: 4 | DW56: 3 | DZ56: 30 | EA56: 45 | EB56: 0 | EC56: 0
A57: 45 | B57: HAYAT503001TSBH08505 | C57: HAYATT HOSPITAL | D57: OPP.BUS STAND LANE,NIZAMABD | E57: 20 | F57: 3 | J57: 3 | O57: 2 | BB57: 3 | BC57: 3 | BG57: 3 | BK57: 3 | BR57: 3 | BS57: 5 | BV57: 2 | BZ57: 2 | CD57: 5 | CH57: 3 | CI57: 5 | CL57: 3 | CM57: 5 | CT57: 4 | CU57: 4 | DK57: 3 | DN57: 5 | DO57: 5 | DS57: 3 | DW57: 3 | DZ57: 36 | EA57: 44 | EB57: 0 | EC57: 0
A58: 46 | B58: INDUR503001TSBH01025 | C58: INDUR NURSING HOME | D58: Dr. P BHARATHI RANI,SARSWATHI NAGAR, KHALEEL WADI, NIZAMABAD | E58: 20 | J58: 3 | R58: 3 | S58: 3 | V58: 3 | W58: 3 | BF58: 3 | BV58: 3 | BZ58: 3 | CD58: 5 | CH58: 3 | CI58: 3 | CL58: 3 | CM58: 3 | CT58: 3 | CU58: 4 | DJ58: 4 | DN58: 5 | DO58: 3 | DV58: 3 | DZ58: 44 | EA58: 19 | EB58: 0 | EC58: 0
A59: 47 | B59: KEERT503001TSBH09861 | C59: KEERTHI SAI NURSING HOME | D59: Dr. P PREMALATHA,KHALEEL WADI , NIZAMABAD | E59: 20 | N59: 3 | O59: 3 | R59: 2 | V59: 2 | Z59: 2 | AA59: 2 | AI59: 2 | BV59: 2 | BZ59: 2 | CD59: 4 | CH59: 3 | CL59: 3 | CQ59: 2 | CT59: 4 | CX59: 3 | DB59: 3 | DJ59: 2 | DN59: 3 | DO59: 3 | DR59: 3 | DS59: 3 | DW59: 2 | DZ59: 41 | EA59: 17 | EB59: 0 | EC59: 0
A60: 48 | B60: LATHA503001TSBH08537 | C60: LATHA NURSING HOME | D60: Dr. LATHA,HNO: 5-7-160, KHALEEL WADI, NIZAMABAD(Dr.M.BHOOMA REDDY) | E60: 20 | F60: 5 | G60: 5 | J60: 5 | K60: 4 | R60: 3 | S60: 3 | V60: 3 | W60: 3 | BF60: 3 | BV60: 3 | BZ60: 3 | CH60: 3 | CI60: 3 | CL60: 3 | CM60: 3 | CT60: 4 | CU60: 4 | DF60: 4 | DG60: 4 | DK60: 3 | DW60: 3 | DZ60: 39 | EA60: 35 | EB60: 0 | EC60: 0
A61: 49 | B61: MAAAR503001TSBH07088 | C61: MAA AROGYA HOSPITAL | D61: KHALEELWADI,NIZAMABAD | E61: 20 | BF61: 5 | BG61: 5 | BV61: 3 | BW61: 3 | BZ61: 2 | CA61: 2 | CD61: 5 | CP61: 3 | CX61: 4 | DB61: 4 | DK61: 3 | DZ61: 26 | EA61: 13 | EB61: 0 | EC61: 0
A62: 50 | B62: MAHAL503001TSBH09862 | C62: MAHALAXMI NURSING HOME | D62: Dr. SHAKUNTHALA, H.NO:5-7-76, KHALEELWADI, NIZAMABAD. | E62: 20 | N62: 5 | O62: 5 | R62: 5 | S62: 5 | V62: 3 | W62: 3 | Z62: 5 | AA62: 5 | AH62: 5 | AI62: 5 | AP62: 5 | AQ62: 5 | BV62: 3 | BZ62: 3 | CD62: 7 | CI62: 4 | CM62: 4 | CQ62: 3 | CU62: 4 | CY62: 5 | DC62: 5 | DK62: 3 | DN62: 3 | DO62: 3 | DR62: 3 | DW62: 3 | DZ62: 47 | EA62: 62 | EB62: 0 | EC62: 0
A63: 51 | B63: MAHES503001TSBH00981 | C63: MAHESHWARI MULTI SPECIALITY HOSPITAL | D63: KHALEEL WADI , NIZAMABAD | E63: 20 | BF63: 3 | BG63: 3 | BV63: 3 | BZ63: 3 | CD63: 6 | CP63: 4 | CQ63: 3 | CX63: 4 | DB63: 4 | DZ63: 27 | EA63: 6 | EB63: 0 | EC63: 0
A64: 52 | B64: SRICH503001TSBH07062 | C64: SRI CHINMAYEE SUPER SPECIALITY HOSPITAL | D64: INDUR CT SCAN LANE, OPP: MEESEVA, DR. NARSING RAO (ORTHO) BUILDING, KHALEELWADI, NIZAMABAD,Nizamabad,Nizamabad South,NIZAMABAD,503001 | E64: 20 | DZ64: 0 | EA64: 0 | EB64: 0 | EC64: 0 | ED64: Cl
A65: 53 | B65: SREED503224TSCL08459 | C65: SRI DATTA POLYCLINIC DIABETIES SPECIALITY CENTER | D65: Dr. K. RAJESH,OPP: R D O OFFICE, NIZAMABAD | E65: 20 | G65: 5 | J65: 4 | K65: 4 | BV65: 3 | BZ65: 3 | CP65: 3 | CQ65: 2 | DZ65: 13 | EA65: 11 | EB65: 0 | EC65: 0
A66: 54 | B66: SSBAL503001TSBH06119 | C66: SS BALAJI HOSPITAL | D66: Dr. D. INDIRA, HNO: 5-6-162, BEHIND SYNDICATE BANK, OPP. KAPILA HOTEL,HYD ROAD,NZB | E66: 20 | AD66: 5 | AE66: 10 | AH66: 5 | AI66: 10 | AL66: 5 | AM66: 5 | AT66: 5 | AU66: 5 | AX66: 3 | AY66: 3 | BF66: 5 | BG66: 10 | BJ66: 5 | BK66: 5 | BN66: 5 | BO66: 5 | BR66: 5 | BS66: 5 | BV66: 4 | BW66: 6 | BZ66: 3 | CA66: 4 | CT66: 4 | CU66: 4 | DF66: 3 | DG66: 4 | DJ66: 5 | DK66: 5 | DN66: 4 | DO66: 4 | DR66: 4 | DS66: 4 | DV66: 5 | DW66: 5 | DZ66: 75 | EA66: 94 | EB66: 0 | EC66: 0
A67: 55 | B67: SUYOG503001TSBH00908 | C67: SUYOG CHILDRENS NEONATAL HOME | D67: Dr. SURESH JAJU, HYD ROAD,NIZAMABAD | E67: 20 | J67: 2 | DZ67: 2 | EA67: 0 | EB67: 0 | EC67: 0
A68: 56 | B68: TAKSH503001TSBH09863 | C68: TAKSH MULTI SPECIALITY HOSPITAL | D68: In lane opposite Sunflower School weekly market, Nizamabad, Telangana 503001 | E68: 20 | J68: 3 | K68: 3 | N68: 3 | O68: 3 | R68: 3 | S68: 3 | V68: 3 | W68: 3 | AA68: 3 | AH68: 3 | AI68: 3 | AM68: 4 | AP68: 4 | AQ68: 4 | AY68: 2 | BV68: 4 | BZ68: 4 | CD68: 5 | CH68: 3 | CI68: 3 | CL68: 3 | CM68: 3 | CP68: 4 | CT68: 3 | CX68: 4 | DB68: 4 | DF68: 4 | DG68: 4 | DN68: 3 | DO68: 4 | DR68: 4 | DS68: 4 | DV68: 3 | DZ68: 67 | EA68: 46 | EB68: 0 | EC68: 0
A69: 57 | B69: TIRUM503001TSBH07828 | C69: THIRUMALA NURSING HOME | D69: Dr. T. JEEVAN RAO, H.NO:5-7-99, DOCTOR'S LANE, KHALEELWADI, NIZAMABAD | E69: 20 | DV69: 3 | DW69: 3 | DZ69: =F69+J69+N69+R69+V69+Z69+AD69+AH69+AL69+AP69+AT69+AX69+BB69+BF69+BJ69+BN69+BR69+BV69+BZ69+CD69+CH69+CL69+CP69+CT69+CX69+DB69+DF69+DJ69+DN69+DR69+DV69 -> 3 | EA69: =G69+K69+O69+S69+W69+AA69+AE69+AI69+AM69+AQ69+AU69+AY69+BC69+BG69+BK69+BO69+BS69+BW69+CA69+CE69+CI69+CM69+CQ69+CU69+CY69+DC69+DG69+DK69+DO69+DS69+DW69 -> 3 | EB69: =H69+L69+P69+T69+X69+AB69+AF69+AJ69+AN69+AR69+AV69+AZ69+BD69+BH69+BL69+BP69+BT69+BX69+CB69+CF69+CJ69+CN69+CR69+CV69+CZ69+DD69+DH69+DL69+DP69+DT69 -> 0 | EC69: =I69+M69+Q69+U69+Y69+AC69+AG69+AK69+AO69+AS69+AW69+BA69+BE69+BI69+BM69+BQ69+BU69+BY69+CC69+CG69+CK69+CO69+CS69+CW69+DA69+DE69+DI69+DM69+DQ69+DU69 -> 0
A70: 58 | B70: VASAV503001TSBH00977 | C70: VASAVI EYE HOSPITAL | D70: Dr. D. DWARAKANATH, H.NO.5-7-17, KHALELWADI, NIZAMABAD. | E70: 20 | AD70: 3 | AE70: 3 | AH70: 3 | AI70: 3 | AL70: 3 | AM70: 3 | AT70: 3 | AU70: 3 | AX70: 2 | AY70: 2 | BG70: 3 | BJ70: 3 | BN70: 3 | BO70: 3 | BR70: 3 | BV70: 4 | BZ70: 4 | CD70: 3 | CH70: 4 | CI70: 3 | CL70: 4 | CM70: 3 | CT70: 3 | CU70: 4 | DF70: 3 | DG70: 3 | DJ70: 2 | DN70: 4 | DR70: 3 | DV70: 4 | DZ70: 61 | EA70: 33 | EB70: 0 | EC70: 0
A71: 59 | B71: VEDAN503001TSBH09864 | C71: VEDANSH HOSPITAL | D71: Behind Pragathi Hospital, Saraswathi Nagar, Nizamabad | E71: 20 | J71: 3 | K71: 3 | N71: 3 | O71: 3 | R71: 3 | S71: 3 | V71: 3 | W71: 3 | Z71: 3 | AA71: 3 | AH71: 2 | AI71: 2 | AL71: 2 | AM71: 2 | AP71: 3 | AQ71: 3 | AX71: 2 | AY71: 2 | BV71: 4 | BW71: 4 | BZ71: 2 | CA71: 2 | CD71: 4 | CI71: 3 | CM71: 3 | CP71: 4 | CT71: 4 | CX71: 5 | DB71: 5 | DF71: 3 | DG71: 4 | DJ71: 2 | DN71: 4 | DO71: 4 | DR71: 4 | DS71: 4 | DV71: 3 | DZ71: 68 | EA71: 48 | EB71: 0 | EC71: 0
A72: 19 TO 1 BEDS HCFs
A73: 60 | B73: SRISA503001TSBH01186 | C73: SRI SAI VENKATESHWARA HOSPITAL | D73: Dr. V. ARUNA, KHALEEL WADI , NIZAMABAD | E73: 18 | DV73: 3 | DW73: 3 | DZ73: 3 | EA73: 3 | EB73: 0 | EC73: 0
A74: 61 | B74: SWAMY503001TSBH08027 | C74: SWAMY CHILDREN'S HOSPITAL | D74: Dr. SATYAKUMAR SWAMY, HNO: 5-7-48, OPP. MODEM PUBLIC SCHOOL , KHALEELWADI, NIZAMABAD | E74: 16 | CI74: 3 | CM74: 3 | CT74: 3 | CU74: 3 | DF74: 3 | DJ74: 2 | DO74: 3 | DS74: 3 | DZ74: 8 | EA74: 15 | EB74: 0 | EC74: 0
A75: 62 | B75: AASHI503001TSBH07081 | C75: AASHIRWAD HOSPITAL | D75: Dr.PRASHANT KURDUKAR, SARASWATHI NAGAR, NIZAMABAD. | E75: 15 | AD75: 5 | AE75: 5 | AH75: 4 | AI75: 4 | AL75: 5 | AM75: 5 | AT75: 2 | AU75: 3 | AX75: 4 | AY75: 4 | BF75: 3 | BG75: 3 | BJ75: 3 | BK75: 3 | BR75: 3 | BS75: 3 | BV75: 3 | BW75: 3 | BZ75: 2 | CA75: 2 | CT75: 4 | CU75: 4 | DF75: 4 | DN75: 4 | DO75: 4 | DR75: 4 | DS75: 4 | DZ75: 50 | EA75: 47 | EB75: 0 | EC75: 0
A76: 63 | B76: CHAKR503001TSBH09866 | C76: CHAKRAPANI NEURO CARE HOSPITAL | D76: OPP:SANDHYA RANI HOSPITAL, BUS STAND LANE, KHALEELWADI, NIZAMABAD | E76: 15 | N76: 5 | O76: 5 | R76: 5 | S76: 5 | V76: 3 | W76: 2 | Z76: 5 | AA76: 5 | AH76: 4 | AI76: 4 | AT76: 3 | AU76: 3 | BB76: 5 | BC76: 5 | BG76: 5 | BS76: 5 | BW76: 5 | CA76: 3 | CD76: 5 | DK76: 5 | DN76: 4 | DO76: 5 | DR76: 3 | DS76: 3 | DV76: 5 | DZ76: 47 | EA76: 60 | EB76: 0 | EC76: 0
A77: 64 | B77: CHAND503001TSBH00959 | C77: CHANDRASHEKAR ORTHOPAEDIC HOSPITAL | D77: Dr. M CHANDRA SHEKAR, OPP. BALAJI LAB, KHALEEL WADI, NIZAMABAD | E77: 15 | V77: 2 | W77: 2 | AD77: 4 | AE77: 4 | AH77: 4 | AI77: 4 | AT77: 5 | AU77: 5 | BF77: 5 | BG77: 5 | BJ77: 2 | BK77: 2 | BN77: 5 | BO77: 5 | BR77: 5 | BS77: 5 | BV77: 3 | BZ77: 3 | CT77: 5 | CU77: 5 | DF77: 5 | DG77: 5 | DN77: 4 | DO77: 4 | DR77: 5 | DS77: 5 | DW77: 5 | DZ77: 57 | EA77: 56 | EB77: 0 | EC77: 0
A78: 65 | B78: DWARA503001TSBH01041 | C78: DWARAKAMAI CHILDRENS HOSPITAL | D78: J.J.REDDY X ROAD, KHALEELWADI, NIZAMABAD. | E78: 15 | G78: 3 | J78: 3 | V78: 2 | W78: 2 | BG78: 2 | CD78: 4 | CI78: 5 | CM78: 5 | CT78: 3 | CU78: 3 | DF78: 3 | DG78: 4 | DJ78: 3 | DN78: 4 | DO78: 4 | DR78: 3 | DS78: 3 | DW78: 2 | DZ78: 25 | EA78: 33 | EB78: 0 | EC78: 0
A79: 66 | B79: KIWIS503001TSBH00969 | C79: KIWI SPECIALITY HOSPITAL | D79: Dr. D. PRATHIMA RAJ REDDY, BESIDE SYNDICATE BANK, KHALEELWADI, NIZAMABAD | E79: 15 | F79: 6 | G79: 4 | J79: 3 | K79: 3 | R79: 3 | S79: 3 | V79: 3 | W79: 3 | BF79: 3 | BG79: 3 | BV79: 3 | BZ79: 3 | CH79: 5 | CI79: 5 | CL79: 5 | CM79: 5 | CT79: 5 | CU79: 5 | DF79: 3 | DG79: 5 | DK79: 3 | DV79: 5 | DZ79: 47 | EA79: 39 | EB79: 0 | EC79: 0
A80: 67 | B80: M.N.R503001TSBH09867 | C80: M.N.R. HOSPITAL | D80: NEAR ARUNA HOSPITAL, KHALEELWADI, NIZAMABAD | E80: 15 | N80: 5 | O80: 5 | R80: 5 | S80: 5 | V80: 5 | W80: 5 | AA80: 5 | AH80: 4 | AI80: 4 | AP80: 5 | AQ80: 5 | BV80: 2 | BZ80: 2 | CD80: 3 | CH80: 3 | CL80: 3 | CQ80: 5 | CU80: 4 | CY80: 5 | DC80: 4 | DJ80: 3 | DN80: 3 | DO80: 4 | DR80: 3 | DS80: 3 | DW80: 3 | DZ80: 46 | EA80: 57 | EB80: 0 | EC80: 0
A81: 68 | B81: MAAMU503001TSBH11385 | C81: MAA MULTISPECIALITY HOSPITAL | D81: OPP: SUNFLOWER HIGH SCHOOL, BESIDE DR. KAVITHA REDDY HOSPITAL, WEEKLY MARKET, NIZAMABAD | E81: 15 | DF81: 3 | DG81: 3 | DJ81: 3 | DN81: 3 | DO81: 3 | DR81: 3 | DS81: 3 | DV81: 2 | DZ81: =F81+J81+N81+R81+V81+Z81+AD81+AH81+AL81+AP81+AT81+AX81+BB81+BF81+BJ81+BN81+BR81+BV81+BZ81+CD81+CH81+CL81+CP81+CT81+CX81+DB81+DF81+DJ81+DN81+DR81+DV81 -> 14 | EA81: =G81+K81+O81+S81+W81+AA81+AE81+AI81+AM81+AQ81+AU81+AY81+BC81+BG81+BK81+BO81+BS81+BW81+CA81+CE81+CI81+CM81+CQ81+CU81+CY81+DC81+DG81+DK81+DO81+DS81+DW81 -> 9 | EB81: =H81+L81+P81+T81+X81+AB81+AF81+AJ81+AN81+AR81+AV81+AZ81+BD81+BH81+BL81+BP81+BT81+BX81+CB81+CF81+CJ81+CN81+CR81+CV81+CZ81+DD81+DH81+DL81+DP81+DT81 -> 0 | EC81: =I81+M81+Q81+U81+Y81+AC81+AG81+AK81+AO81+AS81+AW81+BA81+BE81+BI81+BM81+BQ81+BU81+BY81+CC81+CG81+CK81+CO81+CS81+CW81+DA81+DE81+DI81+DM81+DQ81+DU81 -> 0
A82: 69 | B82: MANOR503001TSBH06133 | C82: MANORAMA HOSPITAL | D82: Dr. RAMA DEVI, OPP. BUSTAND, KHALEEL WADI, NIZAMABAD | E82: 15 | V82: 3 | W82: 4 | DZ82: 3 | EA82: 4 | EB82: 0 | EC82: 0
A83: 70 | B83: RUDRA503001TSBH10006 | C83: RUDRA SAI HOSPITAL | D83: Dr.DONTULA PRASHANTH, BESIDE DR JEEVAN RAO HOSPITAL, NEAR RAJIV GANDHI AUDITORIUM, KHALEELWADI, NIZAMABAD | E83: 15 | N83: 4 | O83: 4 | R83: 3 | S83: 3 | V83: 3 | W83: 3 | Z83: 3 | AA83: 3 | AH83: 2 | AL83: 2 | AX83: 2 | CH83: 3 | CL83: 3 | CP83: 3 | CT83: 3 | CY83: 2 | DC83: 2 | DF83: 3 | DG83: 4 | DJ83: 5 | DN83: 3 | DR83: 3 | DW83: 4 | DZ83: 45 | EA83: 25 | EB83: 0 | EC83: 0
A84: 71 | B84: SAADH503001TSBH08525 | C84: SAADHYA MULTISPECIALITY HOSPITAL | D84: BEHIND BHARATHI RANI HOSPITAL, OPP: DWARAKA ENT HOSPITAL, KHALEELWADI, NIZAMABAD | E84: 15 | F84: 3 | J84: 3 | V84: 3 | W84: 2 | AD84: 5 | AE84: 3 | AH84: 3 | AI84: 3 | AL84: 2 | AM84: 2 | AT84: 2 | AU84: 2 | AX84: 2 | AY84: 2 | BG84: 3 | BK84: 2 | BN84: 2 | BR84: 3 | BV84: 5 | BZ84: 3 | CD84: 7 | CH84: 3 | CL84: 3 | CT84: 4 | CU84: 4 | DK84: 2 | DN84: 3 | DO84: 3 | DR84: 3 | DS84: 3 | DV84: 2 | DZ84: 61 | EA84: 31 | EB84: 0 | EC84: 0
A85: 72 | B85: SHASH503001TSBH00930 | C85: SHASHANK HOSPITAL | D85: Dr. K. MOTHILAL, OPP: BUSTAND LANE, KHALEELWADI, NIZAMABAD. | E85: 15 | J85: 5 | K85: 5 | O85: 3 | S85: 5 | W85: 5 | AD85: 5 | AE85: 5 | AH85: 3 | AI85: 3 | AL85: 2 | AM85: 2 | AT85: 5 | AU85: 5 | AX85: 2 | AY85: 2 | BF85: 3 | BG85: 3 | BJ85: 3 | BK85: 3 | BN85: 5 | BO85: 5 | BR85: 5 | BS85: 5 | BV85: 3 | BW85: 3 | BZ85: 3 | CA85: 3 | CD85: 5 | CH85: 5 | CI85: 5 | CL85: 5 | CM85: 5 | CP85: 2 | CT85: 48 | CU85: 4 | DF85: 3 | DG85: 4 | DK85: 3 | DN85: 3 | DO85: 3 | DR85: 3 | DS85: 3 | DV85: 3 | DZ85: 121 | EA85: 84 | EB85: 0 | EC85: 0
A86: 73 | B86: SRIHA503001TSBH00960 | C86: SRI HARSHA KIDNEY & URO CENTRE | D86: Dr. M. ANAND KUMAR, H.NO. 5-6-92, DWARAKA NAGAR, KHALEELWADI, NIZAMABAD | E86: 15 | G86: 5 | V86: 2 | W86: 2 | AD86: 4 | AE86: 4 | AH86: 5 | AI86: 5 | AM86: 3 | AT86: 3 | AU86: 3 | AY86: 3 | BG86: 3 | BK86: 5 | BN86: 3 | BR86: 5 | BV86: 4 | BZ86: 3 | CH86: 5 | CI86: 5 | CL86: 5 | CM86: 5 | CT86: 3 | CU86: 4 | DF86: 3 | DG86: 4 | DK86: 3 | DW86: 4 | DZ86: 45 | EA86: 58 | EB86: 0 | EC86: 0
A87: 74 | B87: SRIRA503001TSBH00950 | C87: SRI RAKSHA HOSPITAL | D87: Dr. M. RAMDAS, PRAGATHI HOSPITAL BACKSIDE LANE, DWARAKA NAGAR, NIZAMABAD | E87: 15 | F87: 3 | J87: 3 | K87: 3 | AD87: 5 | AH87: 3 | AI87: 3 | AL87: 4 | AM87: 4 | AT87: 2 | AU87: 2 | AX87: 3 | AY87: 3 | BF87: 3 | BG87: 3 | BJ87: 4 | BN87: 2 | BR87: 3 | BS87: 3 | BV87: 4 | BZ87: 3 | CD87: 3 | CH87: 4 | CI87: 4 | CL87: 4 | CM87: 4 | CQ87: 3 | CT87: 4 | CU87: 4 | DV87: 4 | DZ87: 61 | EA87: 36 | EB87: 0 | EC87: 0
A88: 75 | B88: SRIVE503001TSBH09868 | C88: SRI VENKATESHWARA MATERNITY NURSING HOME | D88: Dr. SMT. K. PARVATHI, H.NO.9-6-795, NEAR RAJIV GANDHI AUDITORIUM, KHALEELWADI, NIZAMABAD | E88: 15 | J88: 2 | K88: 2 | N88: 5 | O88: 5 | R88: 3 | S88: 3 | V88: 2 | W88: 2 | Z88: 3 | AA88: 2 | AH88: 2 | AI88: 2 | AL88: 4 | AP88: 4 | AQ88: 4 | AX88: 4 | BV88: 3 | BZ88: 3 | CD88: 4 | CH88: 4 | CL88: 4 | CQ88: 4 | CT88: 3 | CX88: 5 | DB88: 4 | DF88: 3 | DG88: 3 | DJ88: 3 | DN88: 4 | DR88: 3 | DV88: 3 | DZ88: 75 | EA88: 27 | EB88: 0 | EC88: 0
A89: 76 | B89: SWATH503001TSBH09869 | C89: SWATHI CHILDREN'S HOSPITAL | D89: Dr. M. PRABHAKAR, 5-6-241, Rd Number 1, Saraswathi Nagar, Tilak Gardens, NEAR RAJIV GANDHI AUDITORIUM, Khaleelwadi, Nizamabad. | E89: 15 | DO89: 3 | DS89: 2 | DZ89: 0 | EA89: 5 | EB89: 0 | EC89: 0 | ED89: Cl
A90: 77 | B90: SWETH503001TSBH08530 | C90: SWETHA KIDNEY CENTRE & MATERNITY NURSING HOME | D90: Dr. K. SUJATHA, OPP: DESAI BEEDI GODOWN, HYDERABAD ROAD, NIZAMABAD | E90: 15 | V90: 2 | W90: 2 | DV90: 3 | DW90: 4 | DZ90: 5 | EA90: 6 | EB90: 0 | EC90: 0
A91: 78 | B91: VENKA503001TSBH00962 | C91: VENKAT CHILDREN'S HOSPITAL | D91: Dr .B. VENKAT, NEAR INDIAN BANK, KHALEEL WADI, NIZAMABAD | E91: 15 | V91: 2 | W91: 3 | DV91: 3 | DW91: 3 | DZ91: 5 | EA91: 6 | EB91: 0 | EC91: 0
A92: 79 | B92: VENKA503001TSBH01918 | C92: VENKATA SAI NEW BORN CHILDRENS HOSPITAL | D92: ROAD NO. 3, OPP: R.D.O OFFICE, SARASWATHI NAGAR, NIZAMBAD | E92: 15 | V92: 2 | W92: 2 | DV92: 3 | DW92: 3 | DZ92: 5 | EA92: 5 | EB92: 0 | EC92: 0
A93: 80 | B93: PAVAN503001TSBH07053 | C93: PAVAN NEURO HOSPITAL | D93: H.NO. 5-6-92, J J REDDY HOSPITAL LINE, BESIDE TEJA HOSPITAL, DWARAKA NAGAR, KHALEELWADI, NIZAMABAD | E93: 13 | AD93: 10 | AE93: 10 | AH93: 5 | AI93: 10 | AL93: 5 | AM93: 5 | AT93: 5 | AU93: 5 | AX93: 5 | AY93: 5 | BF93: 5 | BG93: 5 | BJ93: 5 | BK93: 5 | BN93: 5 | BO93: 5 | BR93: 5 | BS93: 5 | BV93: 5 | BW93: 5 | BZ93: 2 | CA93: 3 | CP93: 2 | CQ93: 5 | CT93: 4 | CU93: 4 | CX93: 4 | DB93: 4 | DF93: 3 | DG93: 4 | DJ93: 5 | DN93: 4 | DO93: 4 | DR93: 4 | DS93: 4 | DV93: 5 | DZ93: 92 | EA93: 84 | EB93: 0 | EC93: 0
A94: 81 | B94: DEVIH503001TSBH09870 | C94: DEVI HOSPITAL | D94: H.No. 5-7-146, Near Maitri Hospital, Ganga Lab Lane, Khaleelwadi, Nizamabad | E94: 12 | N94: 3 | O94: 3 | R94: 2 | S94: 2 | V94: 2 | W94: 2 | Z94: 3 | AA94: 3 | AI94: 2 | AT94: 3 | AU94: 3 | BC94: 5 | BG94: 2 | BK94: 3 | BS94: 3 | BW94: 3 | CA94: 3 | CD94: 3 | CQ94: 2 | CY94: 3 | DC94: 3 | DJ94: 2 | DN94: 4 | DO94: 4 | DR94: 3 | DS94: 3 | DV94: 2 | DZ94: 27 | EA94: 49 | EB94: 0 | EC94: 0
A95: 82 | B95: RKLAX503001TSBH09882 | C95: RK LAXMI CHILDRENS HOSPITAL | D95: Dr.DEEPAK RATHOD,Building No N12A, Opposite Chakrapani Hospital, Bank Of India Road, Khaleelwadi, Nizamabad | E95: 12 | Z95: 3 | AA95: 3 | AH95: 3 | AQ95: 5 | BV95: 3 | BZ95: 3 | CI95: 4 | CM95: 4 | CQ95: 5 | CT95: 3 | CX95: 3 | DB95: 3 | DF95: 3 | DJ95: 2 | DN95: 3 | DR95: 3 | DZ95: 32 | EA95: 21 | EB95: 0 | EC95: 0
A96: 83 | B96: SRISU503001TSBH09871 | C96: SRI SURYA HOSPITAL | D96: Dr. RAMU KAMUTALA, BESIDE GOUTHAMI DEGREE COLLEGE, KHALEELWADI, NIZAMABAD | E96: 12 | J96: 2 | K96: 3 | N96: 5 | O96: 5 | Z96: 3 | AA96: 3 | AD96: 3 | AH96: 3 | AI96: 3 | AM96: 2 | AP96: 3 | AQ96: 3 | AT96: 4 | AU96: 4 | AY96: 2 | BG96: 3 | BJ96: 3 | BR96: 3 | BV96: 7 | BZ96: 5 | CD96: 9 | CH96: 9 | CI96: 9 | CL96: 9 | CM96: 9 | CP96: 4 | CT96: 4 | CX96: 5 | DB96: 4 | DF96: 4 | DG96: 4 | DJ96: 4 | DN96: 6 | DR96: 6 | DS96: 3 | DV96: 6 | DZ96: 111 | EA96: 53 | EB96: 0 | EC96: 0
A97: 84 | B97: SUMAN503001TSBH09872 | C97: SUMANGALI HOSPITAL | D97: Dr. ARUN KUMAR,OPP. DIST. COURT, KHALEEL WADI , NIZAMABAD | E97: 12 | J97: 3 | K97: 3 | N97: 4 | O97: 4 | R97: 3 | S97: 3 | V97: 3 | W97: 3 | Z97: 2 | AH97: 3 | AI97: 3 | AL97: 4 | AP97: 3 | AQ97: 3 | AX97: 3 | BV97: 3 | BZ97: 3 | CD97: 5 | CH97: 3 | CI97: 3 | CL97: 3 | CM97: 3 | CP97: 4 | CQ97: 4 | CT97: 3 | CX97: 5 | DB97: 4 | DF97: 4 | DG97: 4 | DJ97: 3 | DN97: 3 | DO97: 3 | DR97: 3 | DS97: 3 | DV97: 3 | DZ97: 77 | EA97: 39 | EB97: 0 | EC97: 0
A98: 85 | B98: AAYUK503001TSBH09873 | C98: AAYUKSHA HOSPITAL | D98: ROAD NO.1, OPP: RDO OFFICE, DWARAKA NAGAR, KHALEELWADI, NIZAMABAD | E98: 10 | N98: 5 | O98: 5 | R98: 5 | S98: 5 | V98: 5 | W98: 5 | Z98: 5 | AA98: 5 | AH98: 5 | AI98: 5 | AT98: 5 | AU98: 5 | BB98: 5 | BC98: 5 | BG98: 5 | BJ98: 5 | BK98: 5 | BN98: 5 | BO98: 5 | BR98: 3 | BS98: 3 | BW98: 3 | CA98: 3 | CD98: 3 | CQ98: 2 | CX98: 4 | CY98: 5 | DB98: 4 | DC98: 5 | DJ98: 5 | DN98: 6 | DO98: 6 | DR98: 3 | DS98: 3 | DW98: 2 | DZ98: 73 | EA98: 82 | EB98: 0 | EC98: 0
A99: 86 | B99: APOOR503001TSBH07054 | C99: APOORVA NETHRALAYA & DIAGNOSTIC CENTER | D99: Dr. G. CHANDRA KANT, H.NO. 5-7-7/8, NEAR NALANDA WOMEN'S COLLEGE, KHALEELWADI, NIZAMABAD | E99: 10 | AD99: 5 | AE99: 5 | AH99: 3 | AI99: 3 | AL99: 5 | AM99: 5 | AT99: 3 | AU99: 3 | AX99: 4 | AY99: 4 | BF99: 3 | BG99: 3 | BK99: 3 | BN99: 5 | BO99: 5 | BR99: 3 | BS99: 3 | BV99: 3 | BZ99: 3 | CD99: 5 | CH99: 5 | CI99: 5 | CL99: 5 | CM99: 5 | CT99: 4 | CU99: 4 | DJ99: 3 | DN99: 3 | DO99: 4 | DR99: 3 | DS99: 3 | DW99: 3 | DZ99: 65 | EA99: 58 | EB99: 0 | EC99: 0
A100: 87 | B100: DEEPA503001TSBH09874 | C100: DEEPA HOSPITAL | D100: Dr. L RAMULU, 5-4-36/16, beside BJP OffIce, BESIDE TEJA HOSPITAL ,DWARAKA NAGAR , NIZAMABAD | E100: 10 | N100: 5 | O100: 5 | R100: 2 | S100: 2 | V100: 2 | W100: 2 | Z100: 3 | AA100: 3 | AH100: 2 | AI100: 2 | AT100: 3 | AU100: 3 | BG100: 2 | BK100: 3 | BS100: 2 | BW100: 2 | CA100: 2 | CD100: 3 | CQ100: 6 | CX100: 4 | DB100: 4 | DJ100: 3 | DN100: 4 | DO100: 4 | DV100: 2 | DZ100: 37 | EA100: 38 | EB100: 0 | EC100: 0
A101: 88 | B101: GANGA503001TSBH09875 | C101: GANGA BHAVANI HOSPITAL | D101: Dr.D. GOVIND, ROAD No.1, SARASWATHI NAGAR,NIZAMABAD | E101: 10 | N101: 4 | O101: 4 | R101: 2 | S101: 2 | V101: 2 | W101: 2 | Z101: 3 | AA101: 3 | AI101: 3 | AP101: 5 | AQ101: 5 | BV101: 3 | BZ101: 3 | CD101: 3 | CH101: 3 | CI101: 3 | CL101: 3 | CM101: 3 | CP101: 3 | CU101: 4 | CX101: 4 | DB101: 4 | DJ101: 2 | DN101: 4 | DO101: 4 | DR101: 3 | DS101: 3 | DV101: 3 | DZ101: 54 | EA101: 36 | EB101: 0 | EC101: 0
A102: 89 | B102: GAYAT503001TSBH00861 | C102: GAYATRI HOSPITAL | D102: Dr SUMALATHA HOSPITAL BUILDING, NEAR J.J. REDDY HOSPITAL, DWARAKA NAGAR, 1ST LANE, NIZAMABAD,Nizamabad,Nizamabad South,NIZAMABAD,503001 | E102: 10 | V102: 1 | W102: 1 | DV102: 3 | DW102: 3 | DZ102: 4 | EA102: 4 | EB102: 0 | EC102: 0
A103: 90 | B103: GOUTH503001TSBH01116 | C103: GOUTHAMI HOSPITAL | D103: Dr.B. JYOTHI RANI, KHALEELWADI, NIZAMABAD | E103: 10 | BV103: 3 | BZ103: 3 | DG103: 3 | DO103: 3 | DS103: 2 | DZ103: 6 | EA103: 8 | EB103: 0 | EC103: 0 | ED103: Cl
A104: 91 | B104: INDUR503001TSBH07056 | C104: INDUR CHILDRENS HOSPITAL | D104: HNO:5-6-809, KHALEELWADI, NIZAMABAD | E104: 10 | V104: 2 | W104: 2 | BV104: 4 | BZ104: 4 | CD104: 5 | CH104: 4 | CI104: 4 | CL104: 4 | CM104: 4 | CT104: 4 | CU104: 4 | DJ104: 3 | DN104: 4 | DO104: 4 | DV104: 3 | DZ104: 37 | EA104: 18 | EB104: 0 | EC104: 0
A105: 92 | B105: KGSCH503001TSBH09876 | C105: KGS CHILDRENS HOSPITAL | D105: Dr. K GOPAL SINGH, 5-7-204, BESIDE TIRUMALA HOSPITAL, Tilak Gardens, KHALLELWADI, NIZAMABAD | E105: 10 | N105: 2 | O105: 2 | R105: 2 | S105: 2 | V105: 2 | W105: 2 | AI105: 2 | AP105: 4 | AQ105: 4 | BV105: 2 | BZ105: 2 | CD105: 3 | CH105: 3 | CI105: 3 | CL105: 3 | CM105: 3 | CQ105: 2 | CU105: 3 | CY105: 5 | DC105: 5 | DK105: 2 | DN105: 4 | DO105: 3 | DR105: 2 | DS105: 3 | DV105: 2 | DZ105: 31 | EA105: 41 | EB105: 0 | EC105: 0
A106: 93 | B106: KAVIT503001TSBH09877 | C106: KAVITHA CHILDRENS HOSPITAL | D106: Dr.N. RAMCHANDER, Rd No. 4, Opp: Dr. Bharathirani Hospital, Saraswathi Nagar, NIZAMABAD. | E106: 10 | O106: 3 | R106: 2 | V106: 2 | Z106: 2 | AI106: 2 | AM106: 4 | AP106: 4 | AQ106: 4 | AY106: 4 | BV106: 2 | BZ106: 2 | CD106: 4 | CI106: 4 | CM106: 4 | CP106: 2 | CQ106: 3 | CU106: 3 | CY106: 3 | DC106: 3 | DJ106: 2 | DN106: 4 | DR106: 2 | DS106: 2 | DW106: 2 | DZ106: 28 | EA106: 41 | EB106: 0 | EC106: 0
A107: 94 | B107: KIDSC503001TSBH09878 | C107: KIDS CARE EMERGENCY CHILDRENS HOSPITAL | D107: Dr. J. RAMESH, OPP.TELANGANA GRAMEENA BANK, DWARAKANAGAR, KHALEELWADI, NIZAMABAD | E107: 10 | O107: 4 | S107: 5 | W107: 5 | AA107: 5 | AI107: 2 | AP107: 3 | AQ107: 3 | BV107: 2 | BZ107: 2 | CD107: 4 | CI107: 3 | CM107: 3 | CQ107: 4 | CT107: 4 | CY107: 3 | DC107: 3 | DK107: 3 | DN107: 3 | DO107: 3 | DR107: 3 | DS107: 4 | DW107: 3 | DZ107: 21 | EA107: 53 | EB107: 0 | EC107: 0
A108: 95 | B108: NEOLI503001TSBH00907 | C108: NEOLIFE CHILDREN'S HOSPITAL | D108: KHALEELWADI, NIZAMABAD | E108: 10 | BG108: 2 | BN108: 3 | BV108: 2 | BZ108: 2 | CP108: 2 | CX108: 3 | DB108: 3 | DJ108: 3 | DV108: 5 | DW108: 2 | DZ108: 23 | EA108: 4 | EB108: 0 | EC108: 0
A109: 96 | B109: NILOU503001TSBH08492 | C109: NILOUFER CHILD CARE HOSPITAL | D109: Dr. MOHD JUNED AHMED, J.J.REDDY X ROAD, KHALEELWADI, NIZAMABAD. | E109: 10 | BG109: 2 | BN109: 3 | BV109: 2 | BZ109: 2 | CD109: 3 | CP109: 3 | CQ109: 3 | CX109: 3 | DB109: 3 | DK109: 3 | DZ109: 19 | EA109: 8 | EB109: 0 | EC109: 0
A110: 97 | B110: NIZAM503001TSBH09879 | C110: NIZAMABAD NEURO SUPER SPECIALITY HOSPITAL | D110: Dr. V. CHANDRA SEKHAR REDDY, HNO: 5-7-35, KHALEELWADI, NIZAMABAD. | E110: 10 | V110: 2 | W110: 2 | AP110: 3 | AQ110: 3 | CH110: 3 | CI110: 3 | CL110: 3 | CM110: 3 | CU110: 3 | CY110: 4 | DC110: 4 | DO110: 4 | DZ110: 11 | EA110: 26 | EB110: 0 | EC110: 0
A111: 98 | B111: PADMA503001TSBH01076 | C111: PADMAVATHI GASTRO HOSPITAL | D111: Dr. SURENDAR REDDY, HNO:5-6-806 & 807, OPP. RAJIVGANDHI AUDITORIUM, KHALEELWADI, NZB | E111: 10 | V111: 2 | W111: 2 | BF111: 3 | BG111: 3 | BO111: 3 | BW111: 2 | CA111: 2 | CD111: 3 | CP111: 4 | CY111: 4 | DC111: 4 | DZ111: 12 | EA111: 20 | EB111: 0 | EC111: 0
A112: 99 | B112: RAINB503001TSBH01029 | C112: RAINBOW CHILDRENS HOSPITAL | D112: Dr.G.SAI PRASAD,HNO:5-6-809,KHALEEL WADI, NIZAMABAD. | E112: 10 | G112: 5 | AD112: 3 | AE112: 3 | AH112: 3 | AI112: 3 | AL112: 2 | AM112: 2 | AT112: 3 | AU112: 3 | AX112: 2 | AY112: 2 | BG112: 3 | BK112: 3 | BO112: 3 | BR112: 3 | BV112: 3 | BZ112: 3 | CT112: 4 | CU112: 4 | DF112: 5 | DG112: 5 | DJ112: 3 | DN112: 3 | DR112: 2 | DW112: 3 | DZ112: 39 | EA112: 39 | EB112: 0 | EC112: 0
A113: 100 | B113: REFRA503001TSBH00972 | C113: REFRACTO EYE HOSPITAL | D113: DR. PRADEEP KUMAR BODDU, BESIDE THRIMURTHY ENTERPRISE, VINAYAK NAGAR, NIZAMABAD | E113: 10 | F113: 3 | G113: 3 | J113: 3 | K113: 3 | R113: 3 | S113: 3 | V113: 3 | W113: 3 | BG113: 2 | BV113: 3 | BZ113: 3 | CH113: 3 | CI113: 4 | CL113: 3 | CM113: 4 | CP113: 3 | CX113: 3 | DB113: 3 | DZ113: 33 | EA113: 22 | EB113: 0 | EC113: 0
A114: 101 | B114: RUKMI503001TSBH09880 | C114: RUKMINI HOSPITAL | D114: Dr B. GAVASKAR, BESIDE BHARATHI RANI HOSPITAL, KHALEEELWADI, NIZAMABAD | E114: 10 | J114: 3 | K114: 3 | N114: 3 | O114: 3 | R114: 4 | S114: 4 | V114: 2 | W114: 2 | Z114: 3 | AA114: 3 | AH114: 4 | AL114: 2 | AP114: 4 | AX114: 2 | BV114: 3 | BZ114: 3 | CD114: 5 | CH114: 3 | CL114: 3 | CP114: 3 | CT114: 3 | CY114: 3 | DC114: 3 | DF114: 4 | DG114: 4 | DJ114: 3 | DN114: 3 | DO114: 3 | DR114: 3 | DS114: 3 | DW114: 4 | DZ114: 63 | EA114: 35 | EB114: 0 | EC114: 0
A115: 102 | B115: SHYLA503001TSBH06134 | C115: SHYLAJA HOSPITAL | D115: DR. T SHYLAJA, BESIDE POCHAMMA TEMPLE, POCHAMMMAGALLI, NIZAMBAD | E115: 10 | AD115: 5 | AE115: 5 | AH115: 5 | AI115: 5 | AL115: 5 | AM115: 5 | AT115: 5 | AU115: 5 | AX115: 4 | AY115: 4 | BF115: 3 | BG115: 3 | BJ115: 3 | BK115: 5 | BN115: 8 | BO115: 13 | BR115: 5 | BS115: 10 | BV115: 5 | BW115: 5 | BZ115: 3 | CA115: 2 | CD115: 6 | CH115: 5 | CI115: 5 | CL115: 5 | CM115: 5 | CT115: 4 | CU115: 4 | DF115: 3 | DG115: 3 | DJ115: 5 | DN115: 4 | DO115: 4 | DR115: 4 | DS115: 4 | DW115: 5 | DZ115: 87 | EA115: 92 | EB115: 0 | EC115: 0
A116: 103 | B116: SIDDI503001TSBH00928 | C116: SIDDIVINAYAKA HOSPITAL FOR CHILDREN | D116: Dr. AJJA SREENIVAS,POCHAMMA GALLI, BESIDE HOPE HOSPITAL LANE, NIZAMABAD | E116: 10 | F116: 5 | G116: 5 | AD116: 4 | AE116: 4 | AH116: 5 | AI116: 5 | AL116: 5 | AM116: 5 | AT116: 3 | AU116: 3 | AX116: 5 | AY116: 5 | BG116: 4 | BK116: 4 | BN116: 3 | BO116: 3 | BR116: 5 | BV116: 3 | BZ116: 3 | CH116: 5 | CI116: 5 | CL116: 5 | CM116: 5 | CQ116: 4 | CT116: 3 | CU116: 4 | DF116: 3 | DK116: 3 | DN116: 3 | DR116: 3 | DW116: 3 | DZ116: 63 | EA116: 62 | EB116: 0 | EC116: 0
A117: 104 | B117: SRIBA503001TSBH08029 | C117: SRI BALAJI HOSPITAL | D117: Dr. M. VENKATARAMANA,NEAR MEESEVA,KHALEEL WADI, NIZAMABAD | E117: 10 | O117: 1 | AD117: 3 | AE117: 3 | AH117: 4 | AI117: 4 | AL117: 4 | AM117: 4 | AT117: 3 | AU117: 3 | AX117: 4 | AY117: 4 | BF117: 3 | BG117: 1 | BJ117: 3 | BK117: 3 | BN117: 3 | BO117: 3 | BR117: 3 | BV117: 3 | BZ117: 3 | CD117: 6 | CH117: 4 | CL117: 4 | CT117: 3 | CU117: 4 | DF117: 1 | DK117: 3 | DO117: 3 | DS117: 3 | DW117: 3 | DZ117: 54 | EA117: 42 | EB117: 0 | EC117: 0
A118: 105 | B118: SRILA503001TSBH08470 | C118: SRI LAXMI CHILDRENS HOSPITAL | D118: Dr. CH. SRIKANTH, H.NO: 5-7-149. 1st FLOOR, OPP. PANJAB NATIONAL BANK, KHALEEL WADI, NIZAMABAD | E118: 10 | CD118: 3 | CI118: 3 | CM118: 3 | CT118: 3 | CU118: 3 | DF118: 3 | DJ118: 4 | DK118: 3 | DN118: 4 | DO118: 4 | DR118: 3 | DS118: 3 | DV118: 2 | DZ118: 22 | EA118: 19 | EB118: 0 | EC118: 0
A119: 106 | B119: SRIMA503001TSBH07043 | C119: SRI MAITHRI HOSPITAL | D119: Dr. C HARI PRASAD RAO, KHALEEL WADI, NIZAMABAD | E119: 10 | F119: 3 | K119: 3 | AD119: 3 | AE119: 3 | AM119: 4 | AY119: 4 | BV119: 4 | BZ119: 4 | CD119: 6 | CH119: 4 | CI119: 4 | CL119: 4 | CM119: 4 | CP119: 4 | CT119: 4 | CU119: 4 | DF119: 3 | DG119: 4 | DN119: 4 | DO119: 4 | DR119: 4 | DS119: 4 | DW119: 4 | DZ119: 47 | EA119: 42 | EB119: 0 | EC119: 0
A120: 107 | B120: SRIRA503001TSBH08527 | C120: SRI RAGHAVENDRA KIDNEY URO CARE CENTER | D120: Dr. A. RAGHAVENDER, D.NO:5-7-34, OPP. Dr. JAYANI NEHRU, BEHIND SSR JUNIOR COLLEGE, NIZAMABAD | E120: 10 | G120: 5 | AD120: 5 | AE120: 5 | AH120: 3 | AI120: 3 | AL120: 4 | AM120: 4 | AT120: 3 | AU120: 3 | AX120: 4 | AY120: 4 | BF120: 3 | BG120: 3 | BJ120: 3 | BK120: 3 | BN120: 2 | BO120: 2 | BR120: 3 | BS120: 3 | BV120: 4 | BZ120: 4 | CD120: 3 | CH120: 3 | CI120: 5 | CL120: 3 | CM120: 5 | CT120: 4 | CU120: 4 | DF120: 3 | DG120: 4 | DK120: 2 | DO120: 3 | DS120: 2 | DV120: 4 | DZ120: 58 | EA120: 60 | EB120: 0 | EC120: 0
A121: 108 | B121: SRIRA503001TSBH09883 | C121: SRI RAMA NETRA VAIDYASHALA | D121: P.B. KRISHNA MURTHY, Opp. Dr. Jhansi Bala Dawakhana, Tilak Gardens, Khaleelwadi, Nizamabad | E121: 10 | N121: 4 | O121: 4 | R121: 3 | S121: 3 | V121: 3 | W121: 3 | Z121: 3 | AA121: 3 | AH121: 3 | AI121: 3 | AM121: 2 | AP121: 4 | AQ121: 4 | AY121: 2 | BV121: 2 | BZ121: 2 | CD121: 5 | CH121: 4 | CI121: 3 | CL121: 4 | CM121: 3 | CP121: 3 | CT121: 3 | CX121: 4 | DB121: 4 | DF121: 3 | DG121: 3 | DN121: 3 | DO121: 3 | DR121: 3 | DS121: 3 | DV121: 3 | DZ121: 63 | EA121: 39 | EB121: 0 | EC121: 0
A122: 109 | B122: SRISA503001TSBH09884 | C122: SRI SAI HOSPITAL | D122: Dr.KAVITHA REDDY, RAVINDER REDDY, WEEKLY MARKET, OPP: LANE TO SUNFLOWER HIGH SCHOOL, NIZAMABAD | E122: 10 | CH122: 5 | CI122: 5 | CL122: 5 | CM122: 5 | CT122: 3 | CU122: 3 | DF122: 4 | DG122: 3 | DJ122: 2 | DK122: 3 | DN122: 4 | DO122: 3 | DR122: 4 | DS122: 4 | DV122: 3 | DW122: 3 | DZ122: 30 | EA122: 29 | EB122: 0 | EC122: 0
A123: 110 | B123: SRISA503001TSBH06121 | C123: SRI SAI VIMALA HOSPITAL | D123: OPP: KRISHNAMURTHY EYE HOSPITAL, KHALEELWADI, NIZAMABAD | E123: 10 | F123: 3 | CD123: 3 | CH123: 3 | CI123: 5 | CL123: 3 | CM123: 5 | CT123: 3 | CU123: 3 | DF123: 3 | DG123: 4 | DJ123: 3 | DN123: 3 | DO123: 3 | DR123: 3 | DS123: 3 | DV123: 3 | DZ123: 30 | EA123: 23 | EB123: 0 | EC123: 0
A124: 111 | B124: SRISA503001TSBH09885 | C124: SRI SATHYA SAI HOSPITAL | D124: Dr. R. VIDYA SAGAR, R. SHANTI SAGAR, HNo: 5-7-16, KHALEELWADI, NIZAMABAD. | E124: 10 | J124: 3 | K124: 3 | N124: 5 | O124: 5 | R124: 4 | S124: 4 | V124: 2 | W124: 2 | Z124: 4 | AA124: 4 | AH124: 2 | AI124: 2 | AL124: 4 | AM124: 4 | AP124: 3 | AQ124: 3 | AX124: 4 | AY124: 4 | BV124: 3 | BZ124: 3 | CD124: 5 | CH124: 4 | CL124: 4 | CP124: 4 | CQ124: 4 | CT124: 3 | CX124: 5 | DB124: 5 | DJ124: 2 | DN124: 3 | DO124: 4 | DR124: 3 | DS124: 3 | DV124: 3 | DZ124: 78 | EA124: 42 | EB124: 0 | EC124: 0
A125: 112 | B125: SRIHI503001TSBH07052 | C125: SRIHITHA HOSPITAL | D125: DR. SUBHASH ENT BUILDING, OPP: DR. ARUNA HOSPITAL, KHALEELWADI, NIZAMABAD | E125: 10 | DZ125: 0 | EA125: 0 | EB125: 0 | EC125: 0 | ED125: cl
A126: 113 | B126: SUKHI503001TSBH09881 | C126: SUKHIBHAVA HOSPITAL | D126: ROAD No.1, Dwaraka Nagar, Pochammagalli, Khaleelwadi, Nizamabad | E126: 10 | J126: 4 | K126: 4 | N126: 5 | O126: 5 | R126: 4 | S126: 5 | V126: 2 | W126: 3 | Z126: 4 | AH126: 4 | AI126: 5 | AP126: 5 | AQ126: 5 | BV126: 4 | BZ126: 2 | CD126: 5 | CH126: 3 | CI126: 3 | CL126: 3 | CM126: 3 | CP126: 3 | CQ126: 3 | CT126: 3 | CU126: 3 | DF126: 4 | DG126: 4 | DK126: 3 | DN126: 4 | DO126: 3 | DR126: 3 | DS126: 3 | DV126: 3 | DZ126: 65 | EA126: 52 | EB126: 0 | EC126: 0
A127: 114 | B127: TEJAH503001TSBH08453 | C127: TEJA HOSPITAL | D127: Dr. K.N. MALLESHWARI, DWARAKA NAGAR, OPP. LANE TO AXIS BANK, KHALEELWADI, NIZAMABAD | E127: 10 | AD127: 3 | AE127: 3 | AH127: 5 | AI127: 3 | AL127: 5 | AM127: 5 | AT127: 3 | AU127: 3 | AX127: 4 | AY127: 4 | BF127: 3 | BG127: 3 | BJ127: 3 | BK127: 3 | BN127: 3 | BO127: 3 | BR127: 5 | BS127: 5 | BV127: 4 | BZ127: 2 | CD127: 3 | CH127: 4 | CI127: 4 | CL127: 4 | CM127: 4 | CT127: 3 | CU127: 4 | DF127: 3 | DG127: 3 | DJ127: 3 | DN127: 3 | DO127: 3 | DR127: 3 | DS127: 3 | DV127: 3 | DZ127: 69 | EA127: 53 | EB127: 0 | EC127: 0
A128: 115 | B128: VIJAY503001TSBH07829 | C128: VIJAYA HOSPITAL & METERNITY HOME | D128: Dr. SURESH KUMAR VOJJELA,OPP. RAJEEV GANDHI AUDITORIUM, KHALEELWADI, NIZAMABAD | E128: 10 | CH128: 8 | CI128: 4 | CL128: 8 | CM128: 4 | CT128: 4 | CU128: 4 | DF128: 4 | DG128: 5 | DJ128: 3 | DN128: 3 | DO128: 3 | DR128: 3 | DS128: 3 | DV128: 3 | DW128: 3 | DZ128: 36 | EA128: 26 | EB128: 0 | EC128: 0
A129: 116 | B129: CITIC503001TSBH09886 | C129: CITICARE CHILDREN'S HOSPITAL | D129: NEAR SBI BANK, QILLA ROAD, NIZAMABAD | E129: 10 | G129: 1 | K129: 1 | O129: 1 | S129: 1 | W129: 1 | AA129: 1 | AE129: 1 | AI129: 1 | AQ129: 1 | BC129: 1 | BG129: 1 | BK129: 1 | BO129: 1 | BS129: 1 | BW129: 1 | CA129: 1 | CE129: 1 | CI129: 1 | CM129: 1 | CQ129: 1 | CU129: 1 | CY129: 1 | DC129: 1 | DG129: 1 | DK129: 1 | DO129: 1 | DS129: 1 | DW129: 1 | DZ129: 0 | EA129: 28 | EB129: 0 | EC129: 0
A130: 117 | B130: ESHWA503001TSBH09887 | C130: ESHWAR GASTRO & LIVER SUPERSPECIALITY HOSPITAL | D130: Dr. ESHWAR CHEGANTI, J P SHARMA BUILDING, BESIDE CORPORATION BANK, Near Mudiraj Hanuman Temple, Pochamagalli, Tilak Gardens, Khaleelwadi, NIZAMABAD | E130: 9 | N130: 5 | O130: 5 | R130: 4 | S130: 4 | V130: 2 | W130: 3 | Z130: 3 | AA130: 3 | AI130: 3 | AP130: 5 | AQ130: 5 | BV130: 3 | BZ130: 3 | CD130: 6 | CH130: 3 | CI130: 3 | CL130: 3 | CM130: 3 | CP130: 4 | CU130: 3 | CX130: 4 | DB130: 4 | DJ130: 3 | DN130: 3 | DO130: 4 | DS130: 4 | DV130: 5 | DZ130: 60 | EA130: 40 | EB130: 0 | EC130: 0
A131: 118 | B131: KAMAL503001TSBH08476 | C131: KAMALA EYE HOSPITAL | D131: OLD DR. PG. KRISHNAMURTHY EYE HOSPITAL, UNSARI BUILDING, BESIDE GOUTHAMI DEGREE COLLEGE, KHALEELWADI, NIZAMABAD,Nizamabad,Nizamabad South,NIZAMABAD,503001 | E131: 9 | CD131: 3 | CH131: 3 | CI131: 4 | CL131: 3 | CM131: 4 | CT131: 3 | CU131: 3 | DK131: 2 | DO131: 3 | DS131: 3 | DW131: 2 | DZ131: 12 | EA131: 21 | EB131: 0 | EC131: 0
A132: 119 | B132: SURYA503001TSBH01039 | C132: SURYA NEURO - PSYCHIATRY CENTRE | D132: H.NO. 5-7-77 & 78, KHALEELWADI, NIZAMABAD | E132: 9 | DV132: 2 | DW132: 2 | DZ132: 2 | EA132: 2 | EB132: 0 | EC132: 0
A133: 120 | B133: BALVE503001TSBH08535 | C133: BALVEER HOSPITAL | D133: KRITI HOSPITAL,NIZAMABAD | E133: 8 | AD133: 5 | AE133: 5 | AH133: 2 | AI133: 2 | AL133: 3 | AM133: 3 | AT133: 3 | AU133: 3 | AX133: 3 | AY133: 3 | BG133: 2 | BJ133: 3 | BN133: 2 | BR133: 3 | BV133: 2 | BZ133: 2 | CD133: 3 | CH133: 3 | CL133: 3 | CT133: 3 | CU133: 3 | DN133: 3 | DR133: 3 | DV133: 3 | DZ133: 49 | EA133: 21 | EB133: 0 | EC133: 0
A134: 121 | B134: GOURI503001TSBH08460 | C134: GOURI HOSPITAL | D134: BESIDE POCHAMMA TEMPLE, NEAR HOPE HOSPITAL, DWARAKA NAGAR, NIZAMABAD | E134: 8 | CD134: 3 | CH134: 4 | CI134: 5 | CL134: 4 | CM134: 5 | CT134: 4 | CU134: 4 | DF134: 3 | DJ134: 2 | DN134: 4 | DO134: 4 | DR134: 3 | DS134: 3 | DV134: 2 | DZ134: =F134+J134+N134+R134+V134+Z134+AD134+AH134+AL134+AP134+AT134+AX134+BB134+BF134+BJ134+BN134+BR134+BV134+BZ134+CD134+CH134+CL134+CP134+CT134+CX134+DB134+DF134+DJ134+DN134+DR134+DV134 -> 29 | EA134: =G134+K134+O134+S134+W134+AA134+AE134+AI134+AM134+AQ134+AU134+AY134+BC134+BG134+BK134+BO134+BS134+BW134+CA134+CE134+CI134+CM134+CQ134+CU134+CY134+DC134+DG134+DK134+DO134+DS134+DW134 -> 21 | EB134: =H134+L134+P134+T134+X134+AB134+AF134+AJ134+AN134+AR134+AV134+AZ134+BD134+BH134+BL134+BP134+BT134+BX134+CB134+CF134+CJ134+CN134+CR134+CV134+CZ134+DD134+DH134+DL134+DP134+DT134 -> 0 | EC134: =I134+M134+Q134+U134+Y134+AC134+AG134+AK134+AO134+AS134+AW134+BA134+BE134+BI134+BM134+BQ134+BU134+BY134+CC134+CG134+CK134+CO134+CS134+CW134+DA134+DE134+DI134+DM134+DQ134+DU134 -> 0
A135: 122 | B135: GUPTA503001TSBH07082 | C135: DR. GUPTAS ENT NURSING HOME | D135: Dr. VINOD PAWAR GUPTA,OPP.R D O OFFICE, ROAD NO.3, SARSWATHI NAGAR,NIZAMABAD | E135: 6 | G135: 3 | S135: 1 | W135: 1 | AD135: 3 | AE135: 3 | AH135: 2 | AI135: 2 | BG135: 2 | BK135: 2 | BN135: 3 | BR135: 5 | BV135: 3 | BZ135: 3 | CU135: 4 | DF135: 3 | DG135: 3 | DK135: 2 | DN135: 3 | DR135: 2 | DW135: 2 | DZ135: 27 | EA135: 25 | EB135: 0 | EC135: 0
A136: 123 | B136: HASIN503001TSBH08450 | C136: HASINI ENT NURSING HOME | D136: Dr. M SRIKANTH REDDY, OPP. BUS STAND LANE, KHALEELWADI, NIZAMABAD | E136: 6 | N136: 2 | O136: 2 | R136: 2 | S136: 3 | V136: 2 | W136: 3 | Z136: 3 | BB136: 3 | BC136: 3 | BG136: 3 | BJ136: 3 | BR136: 3 | BV136: 3 | BZ136: 3 | CD136: 3 | CI136: 3 | CM136: 3 | CT136: 3 | CU136: 4 | DK136: 2 | DN136: 3 | DO136: 3 | DR136: 3 | DW136: 3 | DZ136: 36 | EA136: 32 | EB136: 0 | EC136: 0
A137: 124 | B137: INDUR503001TSBH11399 | C137: INDUR NEURO PSYCHIATRIC HOSPITAL | D137: Dr. A VISHAL, RAJEEV GANDHI AUDITORIUM LANE, KHALEEL WADI, NIZAMABAD | E137: 6 | DV137: 2 | DW137: 2 | DZ137: 2 | EA137: 2 | EB137: 0 | EC137: 0
A138: 125 | C138: PRIMARY HEALTH CENTRE, INDALWAI | D138: INDALWAI VILLAGE, NIZAMABAD | E138: 6 | DZ138: 0 | EA138: 0 | EB138: 0 | EC138: 0
A139: 126 | B139: SRIVE503001TSBH09889 | C139: SRI VENKATESHWARA SPECIALITY HOSPITAL | D139: Dr. RAJKAMAL, PRAGATHI NAGAR, BEHIND PRAGATHI HOSPITAL, NIZAMABAD. | E139: 6 | J139: 3 | K139: 3 | N139: 3 | O139: 3 | R139: 2 | S139: 2 | V139: 2 | W139: 2 | Z139: 3 | AA139: 3 | AH139: 2 | AI139: 2 | AL139: 2 | AP139: 5 | AQ139: 5 | AX139: 2 | BV139: 4 | BZ139: 4 | CD139: 5 | CH139: 3 | CL139: 3 | CP139: 4 | CT139: 4 | CX139: 5 | DB139: 4 | DJ139: 3 | DZ139: 63 | EA139: 20 | EB139: 0 | EC139: 0
A140: 127 | B140: WISHF503001TSBH08479 | C140: WISH FERTILITY NURSING HOME | D140: DWARAKA NAGAR, NIZAMABAD | E140: 6 | CD140: 5 | CH140: 4 | CI140: 5 | CL140: 4 | CM140: 5 | CT140: 3 | CU140: 3 | DF140: 3 | DJ140: 2 | DN140: 4 | DO140: 4 | DR140: 3 | DS140: 3 | DV140: 2 | DZ140: 30 | EA140: 20 | EB140: 0 | EC140: 0
A141: 128 | B141: AYYAP503001TSBH08484 | C141: AYYAPPA DIAGNOSTICS AND EYE HOSPITAL | D141: HNO:5-6-6, POCHAMMA GALLI ,NIZAMABAD | E141: 5 | AD141: 5 | AE141: 5 | AH141: 2 | AI141: 2 | AL141: 3 | AM141: 3 | AT141: 2 | AU141: 2 | AX141: 3 | AY141: 3 | BG141: 2 | BK141: 3 | BN141: 2 | BR141: 3 | BV141: 2 | BZ141: 2 | CH141: 3 | CI141: 3 | CL141: 3 | CM141: 3 | CT141: 3 | CU141: 3 | DJ141: 2 | DN141: 3 | DO141: 3 | DR141: 2 | DS141: 2 | DW141: 2 | DZ141: 40 | EA141: 36 | EB141: 0 | EC141: 0
A142: 129 | B142: DWARA503001TSBH08030 | C142: DWARAKA ENT NURSING HOME | D142: Dr. V NAVEEN,BACKSIDE PRAGATHI HOSPITAL, DWARAKA NAGAR , NIZAMABAD | E142: 5 | F142: 3 | J142: 3 | K142: 3 | R142: 2 | S142: 2 | V142: 2 | W142: 2 | BF142: 2 | BG142: 2 | BV142: 3 | BZ142: 3 | CD142: 7 | CH142: 3 | CI142: 3 | CL142: 3 | CM142: 3 | CP142: 3 | CT142: 7 | CU142: 4 | DK142: 3 | DN142: 4 | DO142: 3 | DR142: 3 | DS142: 3 | DW142: 3 | DZ142: 48 | EA142: 31 | EB142: 0 | EC142: 0
A143: 130 | B143: GOPIK503001TSBH08449 | C143: GOPI KRISHNA ENT NURSING HOME | D143: Dr. R VENKATA KRISHNA,SARSWATHI NAGAR, ROAD NO.4, NIZAMABAD | E143: 5 | F143: 4 | J143: 2 | K143: 2 | R143: 2 | V143: 2 | BG143: 2 | BW143: 2 | CA143: 2 | CD143: 3 | CU143: 3 | DZ143: 13 | EA143: 11 | EB143: 0 | EC143: 0
A144: 131 | B144: KBRSC503001TSBH07089 | C144: KBRS CHEST HOSPITAL | D144: H.NO. 5-8-5, NEAR VIJAY TALKIES, NISHITHA DEGREE COLLEGE, YELLAMMA GUTTA, NIZAMABAD | E144: 5 | CD144: 3 | CH144: 3 | CI144: 3 | CL144: 3 | CM144: 3 | CT144: 3 | CU144: 3 | DG144: 3 | DJ144: 3 | DN144: 3 | DO144: 3 | DR144: 3 | DS144: 3 | DV144: 2 | DZ144: 23 | EA144: 18 | EB144: 0 | EC144: 0
A145: 132 | B145: KRITI503001TSBH08536 | C145: KRITI HOSPITAL | D145: Dr. S KRISHNA, OPP: BUS STAND, KHALEELWADI, NIZAMABAD,Nizamabad,Nizamabad South,NIZAMABAD,503001 | E145: 5 | O145: 2 | AA145: 2 | AI145: 2 | AP145: 3 | BV145: 2 | BZ145: 2 | CD145: 3 | CQ145: 2 | CT145: 3 | CY145: 3 | DC145: 3 | DK145: 2 | DN145: 4 | DO145: 4 | DS145: 2 | DW145: 2 | DZ145: 17 | EA145: 24 | EB145: 0 | EC145: 0
A146: 133 | B146: MEGHA503001TSBH00921 | C146: MEGHA EYE HOSPITAL | D146: H.NO. 5-6-210, SARASWATHI NAGAR, ROAD NO. 4, NIZAMABAD Nizamabad(V) Nizamabad South(M) NIZAMABAD(D) | E146: 5 | N146: 3 | O146: 3 | R146: 2 | S146: 5 | V146: 2 | W146: 3 | Z146: 3 | AA146: 3 | AH146: 2 | AI146: 2 | AP146: 3 | AQ146: 3 | BV146: 2 | BZ146: 2 | CD146: 8 | CI146: 3 | CM146: 3 | CP146: 3 | CU146: 3 | CY146: 3 | DC146: 3 | DJ146: 2 | DN146: 3 | DO146: 3 | DR146: 2 | DS146: 2 | DV146: 2 | DZ146: 39 | EA146: 39 | EB146: 0 | EC146: 0
A147: 134 | B147: SRISA503001TSBH08465 | C147: SRI SAI NARAYANA NETHRALAYA | D147: Dr. K.N. SRINIVAS, OPP. TELANGANA GRAMEENA BANK, KHALEELWADI, NIZAMABAD. | E147: 5 | AD147: 5 | AE147: 5 | AH147: 4 | AI147: 4 | AL147: 4 | AM147: 4 | AT147: 3 | AU147: 3 | AX147: 3 | AY147: 3 | BF147: 3 | BG147: 3 | BJ147: 4 | BN147: 3 | BO147: 3 | BR147: 3 | BS147: 3 | BV147: 4 | BZ147: 2 | CD147: 3 | CH147: 5 | CI147: 4 | CL147: 5 | CM147: 4 | CT147: 3 | CU147: 4 | DF147: 3 | DG147: 4 | DJ147: 3 | DV147: 4 | DZ147: 64 | EA147: 44 | EB147: 0 | EC147: 0
A148: 135 | B148: PRIMA503202TSBH06448 | C148: PRIMARY HEALTH CENTRE, YEDAPALLY | D148: YEDAPALLY | E148: 4 | F148: 4 | J148: 4 | N148: 4 | R148: 4 | V148: 4 | Z148: 4 | BB148: 4 | BJ148: 4 | BN148: 4 | BR148: 4 | BV148: 4 | BZ148: 3 | CD148: 4 | CH148: 4 | CL148: 4 | CT148: 4 | CX148: 4 | DB148: 4 | DN148: 4 | DR148: 4 | DV148: 4 | DZ148: 83 | EA148: 0 | EB148: 0 | EC148: 0
A149: 136 | B149: GANGA503001TSBH01185 | C149: GANGA DIAGNOSTIC CENTRE | D149: Dr. K. MADAN MOHAN RAO,KHALEEL WADI , NIZAMABAD | E149: 1 | F149: 3 | BV149: 2 | BZ149: 2 | CU149: 4 | CY149: 4 | DC149: 4 | DZ149: 7 | EA149: 12 | EB149: 0 | EC149: 0
A150: 137 | B150: INDUR503002TSBH01060 | C150: INDUR M.D.C.T& MRI CENTRE | D150: HNO:5-7-626,KHALLELWADI,NIZAMABAD | E150: 1 | BV150: 4 | BZ150: 3 | CD150: 5 | CH150: 4 | CI150: 4 | CL150: 4 | CM150: 4 | CT150: 3 | CU150: 3 | DJ150: 3 | DN150: 4 | DO150: 4 | DV150: 3 | DZ150: 33 | EA150: 15 | EB150: 0 | EC150: 0
A151: 138 | B151: SRIMU503001TSBH08480 | C151: SRI MUKHI SKIN AND HAIR CLINIC | D151: Dr.N.MADHUKAR, OPP: DR. KARUNAKAR HOSPITAL, SHOP NO. 20 &21 MUNCIPAL COMPLEX, KHALEELWADI, NIZAMABAD | E151: 1 | G151: 3 | J151: 3 | K151: 3 | AD151: 3 | AE151: 3 | AH151: 3 | AL151: 3 | AM151: 3 | AT151: 2 | AU151: 2 | AX151: 3 | AY151: 3 | BG151: 2 | BK151: 2 | BN151: 4 | BR151: 3 | BV151: 4 | BW151: 2 | BZ151: 2 | CA151: 2 | CD151: 3 | CH151: 3 | CI151: 3 | CL151: 3 | CM151: 3 | CP151: 3 | CT151: 3 | CU151: 3 | DK151: 2 | DO151: 3 | DS151: 2 | DV151: 4 | DZ151: 49 | EA151: 41 | EB151: 0 | EC151: 0
A152: 139 | B152: ARAVI503001TSCL09890 | C152: ARAVIND NETRALAYA | D152: Dr. SHARAD JOSHI,1ST FLOOR,CARPORATION BANK BUILDING, OPP: MUDHIRAJ SANGAM, KHALEELWADI, NIZAMABAD | E152: 0 | N152: 3 | O152: 3 | R152: 3 | S152: 2 | V152: 3 | W152: 2 | Z152: 2 | AA152: 2 | AI152: 2 | AT152: 2 | AU152: 2 | BC152: 2 | BG152: 2 | BJ152: 2 | BR152: 3 | BV152: 2 | BZ152: 2 | CD152: 3 | CQ152: 2 | CY152: 3 | DC152: 3 | DK152: 2 | DO152: 3 | DR152: 3 | DV152: 2 | DZ152: 30 | EA152: 30 | EB152: 0 | EC152: 0
A153: 140 | C153: DISTRICT VETERINARY HOSPITAL(DVH) | D153: BEHIND USHA PRASAD MULTIPLEX, KOTAGALLY, NIZAMABAD | E153: 0 | DZ153: 0 | EA153: 0 | EB153: 0 | EC153: 0
A154: 141 | B154: DR.AN503001TSBH01101 | C154: DR. ANILs DIABETIES CENTRE | D154: Dr. T ANIL KUMAR,OPP. RED CROSS BLOOD BANK,KHALEELWADI, NIZAMABAD | E154: 0 | F154: 3 | G154: 3 | K154: 2 | BF154: 2 | BV154: 2 | BZ154: 2 | CT154: 4 | CY154: 3 | DC154: 3 | DZ154: 13 | EA154: 11 | EB154: 0 | EC154: 0
A155: 142 | B155: ENTSP503001TSCL09892 | C155: ENT SPECIALITY CLINIC | D155: Dr.SANTHOSH KUMAR KONDA, Near Indur Medicals, Pochammagalli, Khaleelwadi, Nizamabad | E155: 0 | N155: 3 | O155: 3 | R155: 2 | S155: 2 | V155: 2 | W155: 2 | Z155: 2 | AA155: 2 | AH155: 2 | AI155: 2 | AU155: 2 | BC155: 2 | BG155: 3 | BK155: 2 | BS155: 3 | BW155: 2 | CA155: 2 | CD155: 3 | CQ155: 2 | CY155: 3 | DC155: 3 | DJ155: 2 | DN155: 3 | DO155: 3 | DR155: 3 | DV155: 2 | DZ155: 24 | EA155: 38 | EB155: 0 | EC155: 0
A156: 143 | B156: KALAE503001TSBH09893 | C156: KALA EYE HOSPITAL | D156: Dr. G ANIL KUMAR,BESIDE SHEETAL SCANNING CENTER , KHALLEL WADI, NIZAMABAD | E156: 5 | N156: 2 | O156: 2 | R156: 2 | V156: 2 | AA156: 2 | AI156: 2 | AP156: 4 | AQ156: 4 | BV156: 2 | BZ156: 2 | CD156: 4 | CI156: 3 | CM156: 3 | CP156: 2 | CU156: 3 | CY156: 3 | DC156: 3 | DK156: 2 | DN156: 3 | DR156: 2 | DW156: 2 | DZ156: 25 | EA156: 29 | EB156: 0 | EC156: 0
A157: 144 | B157: LAXMI503001TSBH08463 | C157: LAXMI ENT NURSING HOME | D157: Dr. K SUBASH,HNO:-5-6-202, KHALEEL WADI, NIZAMABAD | E157: 0 | BV157: 3 | BZ157: 3 | CI157: 5 | CM157: 5 | CT157: 3 | CU157: 4 | DF157: 4 | DG157: 4 | DK157: 3 | DW157: 3 | DZ157: 13 | EA157: 24 | EB157: 0 | EC157: 0
A158: 145 | B158: LAXMI503001TSBH01040 | C158: LAXMI HOSPITAL | D158: Dr. J BAPU REDDY,D.NO:-5-6-801, KHALEEL WADI , NIZAMABAD | E158: 0 | F158: 5 | G158: 5 | J158: 3 | K158: 3 | BG158: 3 | BV158: 3 | BZ158: 3 | CD158: 3 | CH158: 5 | CI158: 4 | CL158: 5 | CM158: 4 | CT158: 4 | CU158: 4 | DK158: 3 | DZ158: 31 | EA158: 26 | EB158: 0 | EC158: 0
A159: 146 | B159: PAVAN503002TSCL09894 | C159: PAVAN CLINIC | D159: Dr.BHARATH PAWAR, Opp. Rural Police Station, Armoor Road, Vidhyuth Nagar, KANTESHWAR,NIZAMABAD | E159: 0 | N159: 5 | O159: 5 | R159: 5 | S159: 5 | V159: 3 | W159: 2 | Z159: 5 | AA159: 5 | AP159: 5 | AQ159: 5 | CD159: 6 | CU159: 4 | CY159: 5 | DC159: 5 | DJ159: 5 | DN159: 3 | DR159: 2 | DS159: 2 | DZ159: 39 | EA159: 38 | EB159: 0 | EC159: 0
A160: 147 | B160: PRASH503001TSBH09895 | C160: PRASHANTHI NEURO PSYCHIATRIC HOSPITAL | D160: Dr.RAJENDER SOORINEEDU,KHALEELWADI,NZB | E160: 5 | N160: 2 | O160: 2 | S160: 2 | W160: 2 | AI160: 2 | AP160: 3 | AQ160: 3 | BV160: 2 | BZ160: 2 | CD160: 3 | CI160: 2 | CM160: 2 | CQ160: 5 | CU160: 3 | CY160: 3 | DC160: 3 | DJ160: 2 | DN160: 3 | DO160: 4 | DR160: 3 | DV160: 3 | DZ160: 23 | EA160: 33 | EB160: 0 | EC160: 0
A161: 148 | B161: SKINC503001TSBH07046 | C161: SKINCARE CLINIC | D161: Dr. D. SRINIVAS, MUNCIPAL COMPLEX SHOP NOs:25,26, TILAK GARDEN, KHALEELWADI, NIZAMABAD | E161: 1 | J161: 2 | K161: 2 | N161: 3 | O161: 3 | R161: 2 | S161: 2 | V161: 2 | W161: 2 | Z161: 3 | AA161: 2 | AL161: 2 | AP161: 3 | AQ161: 3 | AX161: 2 | BV161: 2 | BZ161: 2 | CD161: 3 | CH161: 3 | CL161: 3 | CQ161: 3 | CU161: 3 | CY161: 3 | DC161: 3 | DF161: 3 | DK161: 2 | DO161: 3 | DS161: 3 | DV161: 2 | DZ161: 37 | EA161: 34 | EB161: 0 | EC161: 0
A162: 149 | B162: SPARS503001TSCL08533 | C162: SPARSHA NEURO PSYCHIATRIC CENTRE | D162: Dr.ACHAMPET VIKAS,H.No:5-6-70, DWARAKA NAGAR, NIZAMABAD. | E162: 0 | J162: 2 | K162: 2 | N162: 3 | O162: 3 | R162: 2 | S162: 2 | V162: 2 | W162: 2 | Z162: 3 | AA162: 3 | AH162: 3 | AI162: 3 | AM162: 2 | AP162: 3 | AQ162: 3 | AY162: 2 | BV162: 2 | BZ162: 2 | CD162: 5 | CH162: 3 | CL162: 3 | CP162: 3 | CU162: 3 | CY162: 3 | DC162: 3 | DF162: 3 | DG162: 3 | DK162: 3 | DN162: 4 | DO162: 4 | DR162: 3 | DS162: 3 | DV162: 4 | DZ162: 50 | EA162: 44 | EB162: 0 | EC162: 0
A163: 150 | B163: SRIAD503002TSBH09896 | C163: SRI ADITYA ORTHOPAEDIC HOSPITAL | D163: Dr. SRINIVASA RAO NAIDU, MARUTHI NAGAR, ARMOOR ROAD, NIZAMABAD | E163: 5 | J163: 3 | K163: 3 | N163: 4 | O163: 4 | Z163: 3 | AA163: 3 | AL163: 2 | AM163: 2 | AP163: 3 | AQ163: 3 | AX163: 2 | AY163: 2 | CD163: 5 | CH163: 4 | CL163: 4 | CP163: 3 | CT163: 4 | CY163: 3 | DC163: 3 | DG163: 4 | DJ163: 4 | DO163: 4 | DS163: 3 | DV163: 3 | DZ163: 44 | EA163: 34 | EB163: 0 | EC163: 0
A164: DENTAL HOSPITALS (HCFs)
A165: 151 | B165: BHAGA503001TSBH09897 | C165: BHAGAVATHI DENTAL HOSPITAL | D165: Dr. Y . PRAVEEN KUMAR,NEAR MODERN PUBLIC SCHOOL, KHALEEL WADI, NIZAMABAD | E165: 5 | N165: 2 | O165: 2 | R165: 3 | S165: 3 | V165: 3 | W165: 3 | Z165: 2 | AA165: 2 | AI165: 2 | AT165: 2 | AU165: 2 | BC165: 3 | BG165: 2 | BK165: 2 | BS165: 3 | BW165: 3 | CA165: 3 | CD165: 3 | CY165: 3 | DC165: 3 | DK165: 2 | DO165: 3 | DR165: 3 | DV165: 2 | DZ165: 20 | EA165: 41 | EB165: 0 | EC165: 0
A166: 152 | B166: BRITE503001TSBH09898 | C166: BRITE SMILE DENTAL HOSPITAL | D166: Dr. RAHEEMUNNISA,HNO:5-6-9, BESIDE J. J REDDY HOSPITAL, KHALEEL WADI, NIZAMABAD | E166: 5 | N166: 5 | O166: 5 | R166: 4 | S166: 4 | V166: 4 | W166: 4 | Z166: 2 | AA166: 2 | AI166: 2 | AT166: 2 | AU166: 2 | BJ166: 3 | BK166: 3 | BS166: 5 | BW166: 3 | CA166: 3 | CD166: 3 | CQ166: 3 | CY166: 3 | DC166: 3 | DK166: 3 | DN166: 3 | DO166: 3 | DR166: 2 | DS166: 2 | DV166: 2 | DZ166: 30 | EA166: 50 | EB166: 0 | EC166: 0
A167: 153 | B167: NAVAT503001TSBH00906 | C167: NAVATHA MULTISPECIALITY DENTAL CLINIC | D167: Dr.M.PRATAP KUMAR,SARASWATHI NAGAR,NIZAMABAD | E167: 5 | BG167: 3 | BO167: 3 | BV167: 2 | BZ167: 2 | CD167: 3 | CP167: 2 | CY167: 4 | DC167: 4 | DK167: 3 | DZ167: 9 | EA167: 17 | EB167: 0 | EC167: 0
A168: 154 | B168: NIZAM503001TSBH09899 | C168: NIZAMABAD SUPER SPECIALITY DENTAL HOSPITAL | D168: Dr.SEENU NAIK, H.No. 5-6-798, BESIDE VIJAYA LAXMI HOSPITAL, KHALEELWADI, NIZAMABAD | E168: 5 | CD168: 4 | CP168: 4 | DK168: 3 | DR168: 3 | DS168: 3 | DV168: 3 | DZ168: 14 | EA168: 6 | EB168: 0 | EC168: 0
A169: 155 | B169: SHIVA503001TSBH08473 | C169: SHIVA SHREE SUPER SPECIALITY DENTAL CARE CENTER | D169: Dr.POLA SAMBA SHIVA RAO,BELOW CORPORATION BANK,NZB | E169: 5 | F169: 5 | G169: 5 | J169: 5 | K169: 5 | AD169: 4 | AE169: 4 | AH169: 4 | AI169: 4 | AL169: 2 | AM169: 2 | AX169: 2 | AY169: 2 | BF169: 3 | BG169: 3 | BK169: 2 | BN169: 2 | BO169: 2 | BR169: 3 | BV169: 3 | BZ169: 3 | CD169: 3 | CH169: 3 | CI169: 5 | CL169: 3 | CM169: 5 | CP169: 3 | CT169: 3 | CU169: 3 | DN169: 3 | DO169: 3 | DR169: 3 | DS169: 3 | DW169: 3 | DZ169: 57 | EA169: 51 | EB169: 0 | EC169: 0
A170: 156 | B170: HITEC503001TSBH09904 | C170: HITECH DENTAL CLINIC | D170: Dr. K. NANDA KUMAR,OPP. RAJEEVE GANDHI AUDITORUM, KHALEELWADI, NIZAMABAD | E170: 4 | N170: 2 | O170: 2 | R170: 3 | S170: 3 | V170: 3 | W170: 3 | Z170: 3 | AA170: 3 | AI170: 2 | AP170: 5 | CD170: 3 | CH170: 3 | CI170: 3 | CL170: 3 | CM170: 3 | CQ170: 2 | CU170: 3 | CX170: 4 | DB170: 4 | DJ170: 2 | DN170: 3 | DO170: 3 | DR170: 2 | DV170: 2 | DZ170: 42 | EA170: 27 | EB170: 0 | EC170: 0
A171: 157 | B171: MAHAL503001TSBH00920 | C171: MAHALAXMI DENTAL HOSPITAL | D171: Dr.B.GANGA REDDY, HNO;5-6-752/1,KHALEELWADI, NIZAMABAD | E171: 4 | BF171: 5 | BG171: 5 | BV171: 2 | BZ171: 2 | CD171: 5 | CP171: 3 | CX171: 3 | DB171: 3 | DZ171: 23 | EA171: 5 | EB171: 0 | EC171: 0
A172: 158 | B172: BAPUJ503001TSBH01091 | C172: BAPUJI SUPER SPECIALITY DENTAL | D172: Dr. J. BALRAM,OPP: INDUR CT SCAN, KHALEELWADI, NIZAMABAD | E172: 3 | CD172: 3 | CH172: 3 | CI172: 3 | CL172: 3 | CM172: 3 | CT172: 3 | CU172: 3 | DG172: 3 | DJ172: 4 | DN172: 3 | DR172: 3 | DV172: 2 | DZ172: 24 | EA172: 12 | EB172: 0 | EC172: 0
A173: 159 | B173: DR.KA503001TSBH00953 | C173: Dr. KARTHIK SUPER SPECIALITY DENTAL | D173: Dr. KARTHIK LABHISHETTY,OPP Dr. SRISAILAM, DWARAKANAGAR, KHALEELWADI, | E173: 3 | F173: 3 | G173: 3 | J173: 3 | K173: 3 | S173: 2 | W173: 2 | BG173: 3 | BV173: 3 | BZ173: 3 | CD173: 3 | CH173: 4 | CI173: 4 | CL173: 4 | CM173: 4 | CT173: 3 | CU173: 4 | DK173: 2 | DN173: 3 | DO173: 3 | DV173: 2 | DZ173: 31 | EA173: 30 | EB173: 0 | EC173: 0
A174: 160 | B174: S.V.S503001TSBH01078 | C174: SV SMILE 32 DENTAL HOSPITAL | D174: Dr. KONDA AMARNATH, OPP. Dr. SUBASH E.N.T HOSPITAL,KHALEELWADI, NIZAMABAD | E174: 3 | J174: 2 | CD174: 3 | CH174: 4 | CI174: 4 | CL174: 4 | CM174: 4 | CT174: 4 | CU174: 4 | DF174: 3 | DJ174: 3 | DN174: 3 | DO174: 3 | DR174: 2 | DS174: 2 | DV174: 2 | DZ174: 30 | EA174: 17 | EB174: 0 | EC174: 0
A175: 161 | B175: THETO503001TSBH08522 | C175: THE TOOTH CORNER | D175: HNO:5-6-350, ROAD NO. 1,NIZAMABAD | E175: 3 | DZ175: 0 | EA175: 0 | EB175: 0 | EC175: 0 | ED175: Cl
A176: 162 | B176: ANUDE503001TSBH09906 | C176: ANU DENTAL CARE | D176: DR. LAXMAN BOYAPATI, H.NO. 3-31, ROAD NO. 3, SARASWATHI NAGAR, NIZAMABAD | E176: 2 | N176: 2 | O176: 2 | R176: 2 | S176: 2 | V176: 2 | W176: 2 | Z176: 2 | AA176: 2 | AI176: 2 | AT176: 2 | AU176: 2 | BC176: 2 | BG176: 2 | BJ176: 2 | BK176: 2 | BO176: 2 | BS176: 3 | BW176: 2 | CA176: 2 | CD176: 3 | CQ176: 2 | DJ176: 2 | DO176: 2 | DS176: 2 | DW176: 2 | DZ176: 17 | EA176: 35 | EB176: 0 | EC176: 0
A177: 163 | B177: MANIS503001TSBH10012 | C177: MANISH DENTAL CLINIC | D177: 5-5-242, Road No 2, Opposite Ashirwad Hospital, Saraswathi Nagar, KHALEELWADI, NIZAMABAD | E177: 2 | N177: 3 | O177: 3 | S177: 2 | W177: 2 | Z177: 3 | AA177: 3 | AH177: 2 | AI177: 2 | AP177: 4 | AQ177: 4 | BV177: 2 | BZ177: 2 | CD177: 4 | CI177: 3 | CM177: 3 | CP177: 4 | CU177: 3 | CY177: 3 | DC177: 3 | DK177: 2 | DO177: 3 | DR177: 2 | DV177: 2 | DZ177: 28 | EA177: 36 | EB177: 0 | EC177: 0
A178: 164 | B178: ORANG503001TSBH10014 | C178: ORANGE DENTAL HOSPITAL | D178: DR. CH SRIKRISHNA, OPP: TELANGANA GRAMEENA BANK MAIN BRANCH, POCHAMMA GALLY, KHALEELWADI, NIZAMABAD | E178: 2 | N178: 2 | O178: 2 | S178: 2 | W178: 2 | Z178: 2 | AI178: 2 | AP178: 3 | AQ178: 3 | BV178: 2 | BZ178: 2 | CD178: 3 | CI178: 2 | CM178: 2 | CQ178: 3 | CU178: 3 | CY178: 2 | DC178: 2 | DK178: 2 | DN178: 3 | DR178: 2 | DV178: 2 | DZ178: 21 | EA178: 27 | EB178: 0 | EC178: 0
A179: 165 | B179: RSMUL503001TSBH10021 | C179: RS MULTI SPECIALITY DENTAL HOSPITAL | D179: Dr. JYOTHI KOTTUR, SHOP NO:5, MUNICIPAL COMPLEX, KHALEELWADI, NIZAMABAD | E179: 2 | J179: 2 | N179: 3 | O179: 3 | R179: 2 | V179: 2 | Z179: 2 | AA179: 2 | AH179: 2 | AM179: 2 | AY179: 2 | BV179: 3 | BZ179: 3 | CH179: 3 | CL179: 3 | CQ179: 4 | CU179: 3 | CY179: 2 | DC179: 2 | DF179: 3 | DJ179: 2 | DN179: 3 | DR179: 2 | DW179: 2 | DZ179: 35 | EA179: 22 | EB179: 0 | EC179: 0
A180: 166 | B180: SSKMU503001TSBH10027 | C180: SSK DENTAL CLINIC (SRI SAI KRISHNA) | D180: Dr. VINOD PAWAR, OPP: PRAGATHI HOSPITAL, Kapila Complex, Hyderabad Road, Pragathi Nagar, NIZAMABAD | E180: 2 | DZ180: 0 | EA180: 0 | EB180: 0 | EC180: 0
A181: 167 | B181: SAIPA503001TSBH10031 | C181: SAI PALLAVI MULTI SPECIALITY DENTAL CLINIC, NIZAMABAD | D181: Dr. N. PRASAD, BESIDE BHARATH PATHOLOGICAL LAB, NEAR HAYATT HOSPITAL, KHALEELWADI, NIZAMABAD | E181: 2 | J181: 3 | K181: 3 | N181: 3 | O181: 3 | R181: 3 | S181: 3 | V181: 2 | W181: 2 | Z181: 3 | AA181: 3 | AH181: 5 | AI181: 5 | AP181: 3 | AQ181: 3 | CD181: 3 | CP181: 3 | CU181: 4 | CY181: 4 | DC181: 4 | DF181: 3 | DG181: 3 | DK181: 2 | DN181: 3 | DR181: 3 | DW181: 3 | DZ181: 37 | EA181: 42 | EB181: 0 | EC181: 0
A182: 168 | B182: SHANT503001TSBH02309 | C182: SHANTHA MULTISPECIALITY DENTAL | D182: Dr.BHASKER NAIK,PUNJAB NATIONAL BANK COMPLEX,KHALEEL WADI,NIZAMABAD. | E182: 2 | F182: 3 | G182: 3 | J182: 2 | K182: 2 | N182: 2 | R182: 2 | V182: 2 | DZ182: 11 | EA182: 5 | EB182: 0 | EC182: 0
A183: 169 | B183: SPRMU503001TSBH07047 | C183: SPR MULTI SPECIALITY DENTAL CLINIC | D183: NARAYAN REDDY COMPLEX, OPP: MUDHIRAJ BHAVAN, KHALEELWADI, NIZAMABAD | E183: 2 | F183: 3 | G183: 3 | J183: 3 | K183: 3 | BV183: 3 | BZ183: 3 | CP183: 2 | DZ183: 14 | EA183: 6 | EB183: 0 | EC183: 0
A184: 170 | B184: SRISA503001TSBH10032 | C184: SRI SAI DENTAL CLINIC | D184: DR NAGESH BODHANKAR, HNO:5-7-132, BESIDE ANKAM HOSPITAL, KHALEEL WADI, NIZAMABAD | E184: 2 | J184: 3 | K184: 3 | N184: 3 | O184: 3 | R184: 4 | S184: 4 | V184: 2 | W184: 3 | Z184: 3 | AH184: 3 | AI184: 3 | AL184: 2 | AP184: 3 | AQ184: 3 | AX184: 2 | CD184: 5 | CH184: 3 | CI184: 2 | CL184: 3 | CM184: 2 | CU184: 3 | CX184: 4 | DB184: 4 | DN184: 3 | DO184: 3 | DR184: 3 | DS184: 3 | DV184: 4 | DZ184: 54 | EA184: 32 | EB184: 0 | EC184: 0
A185: 171 | B185: SRIAM503001TSBH10033 | C185: SRI AMALA DENTAL CLINIC | D185: Dr. K. SRINIVAS, BESIDE ESHWAR GASTRO & LIVER HOSPITAL, NEAR PUNJAB NATIONAL BANK, KHALEELWADI, NIZAMABAD | E185: 1 | F185: 3 | G185: 5 | K185: 3 | BF185: 3 | BG185: 3 | BJ185: 3 | BK185: 3 | BN185: 3 | BR185: 3 | BV185: 3 | BZ185: 3 | CD185: 5 | CT185: 4 | DJ185: 3 | DZ185: 33 | EA185: 14 | EB185: 0 | EC185: 0
A186: 172 | B186: APPLE503001TSBH10034 | C186: APPLE DENTAL SPECIALITIES | D186: Dr. CH SRIKRISHNA & VENKAT, RUDRA SAI HOSPITAL BUILDING, BESIDE ADARSH METERNITY NURSING HOME, NEAR RAJIV GANDHI AUDITORIUM, KHALEELWADI, NIZAMABAD. | E186: 1 | O186: 3 | R186: 3 | V186: 3 | Z186: 2 | AH186: 2 | AI186: 2 | AT186: 3 | AU186: 3 | BC186: 2 | BG186: 3 | BO186: 3 | BS186: 3 | BW186: 2 | CA186: 2 | CD186: 3 | CQ186: 2 | CY186: 3 | DC186: 3 | DJ186: 2 | DN186: 3 | DR186: 2 | DV186: 2 | DZ186: 25 | EA186: 31 | EB186: 0 | EC186: 0
A187: 173 | B187: HAPPY503001TSBH01092 | C187: HAPPY DENTAL HOSPITAL | D187: OPP: RAJIV GANDHI AUDITORIUM, KHALEELWADI, NIZAMABAD,Nizamabad,Nizamabad South,NIZAMABAD,503001 | E187: 1 | N187: 2 | R187: 2 | S187: 2 | V187: 2 | W187: 2 | Z187: 2 | BG187: 2 | BJ187: 3 | BV187: 2 | BZ187: 2 | CD187: 3 | CI187: 5 | CM187: 5 | CT187: 3 | CU187: 3 | DK187: 4 | DN187: 4 | DO187: 4 | DR187: 2 | DW187: 2 | DZ187: 27 | EA187: 29 | EB187: 0 | EC187: 0
A188: 174 | B188: MEGAD503001TSBH10035 | C188: MEGA DENTAL CARE | D188: Dr. MANJUNATH CH, BEHIND PUNJAB NATIONAL BANK, BESIDE VIMALA HOSPITAL & LATHA NURSING HOME, Rd No. 4, Saraswathi Nagar, Khaleelwadi, NIZAMABAD | E188: 1 | DV188: 2 | DW188: 2 | DZ188: 2 | EA188: 2 | EB188: 0 | EC188: 0
A189: 175 | B189: RRDEN503001TSBH10036 | C189: RR DENTAL CLINIC | D189: Dr.RAGHU RAVUTLA, SHOP NO.10, KAVITHA COMPLEX, NIZAMABAD | E189: 2 | N189: 3 | O189: 3 | S189: 2 | W189: 2 | Z189: 2 | AI189: 2 | AL189: 2 | AX189: 2 | BV189: 2 | BZ189: 2 | CD189: 3 | CI189: 3 | CM189: 3 | CQ189: 4 | CU189: 3 | CX189: 2 | DB189: 2 | DF189: 3 | DG189: 3 | DJ189: 2 | DN189: 2 | DR189: 2 | DW189: 3 | DZ189: 29 | EA189: 28 | EB189: 0 | EC189: 0
A190: 176 | B190: SAIKR503001TSBH01019 | C190: SAI KRISHNA DENTAL CLINIC | D190: OPP.RDO OFFICE,SRASWARTHI NAGAR,NZB | E190: 1 | J190: 5 | K190: 5 | DZ190: 5 | EA190: 5 | EB190: 0 | EC190: 0
A191: 177 | B191: SAITI503001TSBH06120 | C191: SAI TIRUMALA MULTISPECIALITY DENTAL CLINIC | D191: SHOP NO. 19, MUNCIPAL COMPLEX, BESIDE SRIMUKHI SKIN CARE HOSPITAL, KHALEELWADI, NIZAMABAD | E191: 1 | F191: 3 | G191: 3 | J191: 2 | K191: 2 | DZ191: 5 | EA191: 5 | EB191: 0 | EC191: 0
A192: 178 | B192: SRIBA503001TSBH10037 | C192: SRI BALAJI DENTAL CARE CENTER | D192: Dr. B. SRIKANTH, H.No 1-51/44, Near Axis Bank, BESIDE Dr. KRISHNA MURTHI EYE HOSPITAL, KHALEELWADI, NIZAMABAD | E192: 2 | AP192: 4 | AQ192: 4 | BV192: 2 | BZ192: 2 | CD192: 5 | CH192: 4 | CL192: 4 | CP192: 3 | CU192: 3 | CY192: 4 | DC192: 4 | DV192: 3 | DZ192: 27 | EA192: 15 | EB192: 0 | EC192: 0
A193: 179 | B193: SAISR503001TSBH10038 | C193: SAI SRINIVASA MULTI SPECIALITY DENTAL HOSPITAL | D193: Dr. K . CHARAN RAJ, JJ Reddy Circle, near Shivasai Multi Speciality Hospital, NEAR TELANGANA GRAMEENA BANK, Khaleelwadi, Nizamabad | E193: 4 | J193: 4 | K193: 4 | N193: 4 | R193: 3 | S193: 3 | V193: 3 | W193: 3 | Z193: 3 | AA193: 3 | AH193: 3 | AI193: 3 | AL193: 2 | AM193: 2 | AP193: 3 | AQ193: 3 | AX193: 2 | AY193: 2 | BV193: 3 | BZ193: 3 | CD193: 5 | CI193: 4 | CM193: 4 | CP193: 3 | CU193: 3 | CX193: 5 | DB193: 4 | DJ193: 4 | DK193: 3 | DN193: 3 | DO193: 3 | DR193: 3 | DS193: 3 | DV193: 3 | DZ193: 63 | EA193: 43 | EB193: 0 | EC193: 0
A194: 180 | B194: VENKA503001TSBH01118 | C194: VENKATESHWARA DENTAL CLINIC | D194: Dr. V. Vamshi Krishna, OPP:AXIS BANK, TEJA HOSPITAL LANE, DWARAKA NAGAR, NIZAMABAD | E194: 1 | BG194: 3 | BN194: 3 | BW194: 3 | CA194: 3 | CE194: 3 | CT194: 4 | CU194: 4 | DZ194: 7 | EA194: 16 | EB194: 0 | EC194: 0
A195: 181 | B195: SRINI503001TSBH00952 | C195: SRINIVAS DENTAL CLINIC & DIAGNOSTIC CENTER | D195: Dr. M. SRINIVAS REDDY,OPP: RED CROSS BLOOD BANK, KHALEEL WADI, NIZAMABAD | E195: 1 | DZ195: 0 | EA195: 0 | EB195: 0 | EC195: 0
A196: 182 | B196: SUPRI503001TSBH10039 | C196: SUPRIYA DENTAL CLINIC | D196: Dr. G.S. SUGUNAKAR RAJU, HNO:5-7-624/3, Beside Bharath Labs, OPP BUS STAND, Tilak Gardens, KHALEELWADI, NIZAMABAD. | E196: 1 | J196: 2 | N196: 3 | O196: 3 | R196: 2 | S196: 2 | V196: 2 | W196: 2 | Z196: 2 | AI196: 3 | AM196: 4 | AP196: 4 | AQ196: 4 | AY196: 3 | BV196: 3 | BZ196: 3 | CD196: 3 | CH196: 3 | CL196: 3 | CP196: 4 | CT196: 3 | CX196: 5 | DB196: 4 | DJ196: 2 | DN196: 3 | DR196: 3 | DV196: 2 | DZ196: 56 | EA196: 21 | EB196: 0 | EC196: 0
A197: 183 | B197: TELAN503001TSBH10040 | C197: TELANGANA MULTI SPECIALITY DENTAL HOSPITAL | D197: DR RAJA SHEKAR JAMALPUR, 5-7-204, Tilak Gardens, KHALEELWADI , NIZAMABAD | E197: 2 | DZ197: 0 | EA197: 0 | EB197: 0 | EC197: 0 | ED197: Cl
A198: 184 | B198: SHRIE503001TSBH10042 | C198: SHRI EYE AND DENTAL CARE | D198: Dr. PHANI RAJ KATHURI,HNO; 5-6-218, BESIDE SAI AYUSH CHILDRENS HOSPITAL, SARASWATHI NAGAR, BEHIND ANDHRA BANK, NIZAMABAD. | E198: 3 | J198: 3 | K198: 3 | N198: 4 | O198: 4 | R198: 3 | S198: 3 | V198: 3 | W198: 3 | Z198: 4 | AA198: 4 | AM198: 2 | AP198: 5 | AQ198: 5 | AY198: 2 | BV198: 3 | BZ198: 3 | CD198: 5 | CH198: 3 | CI198: 3 | CL198: 3 | CM198: 3 | CQ198: 3 | CT198: 3 | CY198: 5 | DC198: 4 | DF198: 3 | DK198: 3 | DN198: 3 | DR198: 3 | DV198: 3 | DZ198: =F198+J198+N198+R198+V198+Z198+AD198+AH198+AL198+AP198+AT198+AX198+BB198+BF198+BJ198+BN198+BR198+BV198+BZ198+CD198+CH198+CL198+CP198+CT198+CX198+DB198+DF198+DJ198+DN198+DR198+DV198 -> 54 | EA198: =G198+K198+O198+S198+W198+AA198+AE198+AI198+AM198+AQ198+AU198+AY198+BC198+BG198+BK198+BO198+BS198+BW198+CA198+CE198+CI198+CM198+CQ198+CU198+CY198+DC198+DG198+DK198+DO198+DS198+DW198 -> 47 | EB198: =H198+L198+P198+T198+X198+AB198+AF198+AJ198+AN198+AR198+AV198+AZ198+BD198+BH198+BL198+BP198+BT198+BX198+CB198+CF198+CJ198+CN198+CR198+CV198+CZ198+DD198+DH198+DL198+DP198+DT198 -> 0 | EC198: =I198+M198+Q198+U198+Y198+AC198+AG198+AK198+AO198+AS198+AW198+BA198+BE198+BI198+BM198+BQ198+BU198+BY198+CC198+CG198+CK198+CO198+CS198+CW198+DA198+DE198+DI198+DM198+DQ198+DU198 -> 0
A199: LABORATORIES (HCFs)
A200: 185 | B200: AAYUS503001TSBH00970 | C200: AAYUSH BLOOD BANK | D200: PUNJAB NATIONAL BANK BUILDING, KHALEELWADI, NIZAMABAD | E200: 1 | DV200: 4 | DW200: 4 | DZ200: 4 | EA200: 4 | EB200: 0 | EC200: 0
... 137 more rows

Sheet Kamareddy
A1: =Nizamabad!A1 -> DECEMBER MONTH REPORT | F1: =Nizamabad!F1 -> 2021-12-01 | J1: =Nizamabad!J1 -> 2021-12-02 | N1: =Nizamabad!N1 -> 2021-12-03 | R1: =Nizamabad!R1 -> 2021-12-04 | V1: =Nizamabad!V1 -> 2021-12-05 | Z1: =Nizamabad!Z1 -> 2021-12-06 | AD1: =Nizamabad!AD1 -> 2021-12-07 | AH1: =Nizamabad!AH1 -> 2021-12-08 | AL1: =Nizamabad!AL1 -> 2021-12-09 | AP1: =Nizamabad!AP1 -> 2021-12-10 | AT1: =Nizamabad!AT1 -> 2021-12-11 | AX1: =Nizamabad!AX1 -> 2021-12-12 | BB1: =Nizamabad!BB1 -> 2021-12-13 | BF1: =Nizamabad!BF1 -> 2021-12-14 | BJ1: =Nizamabad!BJ1 -> 2021-12-15 | BN1: =Nizamabad!BN1 -> 2021-12-16 | BR1: =Nizamabad!BR1 -> 2021-12-17 | BV1: =Nizamabad!BV1 -> 2021-12-18 | BZ1: =Nizamabad!BZ1 -> 2021-12-19 | CD1: =Nizamabad!CD1 -> 2021-12-20 | CH1: =Nizamabad!CH1 -> 2021-12-21 | CL1: =Nizamabad!CL1 -> 2021-12-22 | CP1: =Nizamabad!CP1 -> 2021-12-23 | CT1: =Nizamabad!CT1 -> 2021-12-24 | CX1: =Nizamabad!CX1 -> 2021-12-25 | DB1: =Nizamabad!DB1 -> 2021-12-26 | DF1: =Nizamabad!DF1 -> 2021-12-27 | DJ1: =Nizamabad!DJ1 -> 2021-12-28 | DN1: =Nizamabad!DN1 -> 2021-12-29 | DR1: =Nizamabad!DR1 -> 2021-12-30 | DV1: =Nizamabad!DV1 -> 2021-12-31 | DZ1: TOTAL
A2: SNO | B2: HCF ID | C2: NAME OF THE HCF | D2: ADDRESS OF THE HCFS | E2: NO.OF BEDS | F2: Yellow | G2: Red | H2: Blue | I2: White | J2: Yellow | K2: Red | L2: Blue | M2: White | N2: Yellow | O2: Red | P2: Blue | Q2: White | R2: Yellow | S2: Red | T2: Blue | U2: White | V2: Yellow | W2: Red | X2: Blue | Y2: White | Z2: Yellow | AA2: Red | AB2: Blue | AC2: White | AD2: Yellow | AE2: Red | AF2: Blue | AG2: White | AH2: Yellow | AI2: Red | AJ2: Blue | AK2: White | AL2: Yellow | AM2: Red | AN2: Blue | AO2: White | AP2: Yellow | AQ2: Red | AR2: Blue | AS2: White | AT2: Yellow | AU2: Red | AV2: Blue | AW2: White | AX2: Yellow | AY2: Red | AZ2: Blue | BA2: White | BB2: Yellow | BC2: Red | BD2: Blue | BE2: White | BF2: Yellow | BG2: Red | BH2: Blue | BI2: White | BJ2: Yellow | BK2: Red | BL2: Blue | BM2: White | BN2: Yellow | BO2: Red | BP2: Blue | BQ2: White | BR2: Yellow | BS2: Red | BT2: Blue | BU2: White | BV2: Yellow | BW2: Red | BX2: Blue | BY2: White | BZ2: Yellow | CA2: Red | CB2: Blue | CC2: White | CD2: Yellow | CE2: Red | CF2: Blue | CG2: White | CH2: Yellow | CI2: Red | CJ2: Blue | CK2: White | CL2: Yellow | CM2: Red | CN2: Blue | CO2: White | CP2: Yellow | CQ2: Red | CR2: Blue | CS2: White | CT2: Yellow | CU2: Red | CV2: Blue | CW2: White | CX2: Yellow | CY2: Red | CZ2: Blue | DA2: White | DB2: Yellow | DC2: Red | DD2: Blue | DE2: White | DF2: Yellow | DG2: Red | DH2: Blue | DI2: White | DJ2: Yellow | DK2: Red | DL2: Blue | DM2: White | DN2: Yellow | DO2: Red | DP2: Blue | DQ2: White | DR2: Yellow | DS2: Red | DT2: Blue | DU2: White | DV2: Yellow | DW2: Red | DX2: Blue | DY2: White | DZ2: Yellow | EA2: Red | EB2: Blue | EC2: White
A3: 100 AND ABOVE BEDS HCFs
A4: 1 | B4: AREAH503111TSBH06149 | C4: AREA HOSPITAL, KAMAREDDY | D4: STATION ROAD, KAMAREDDY | E4: 100 | G4: 5 | K4: 6 | W4: 4 | AA4: 5 | AE4: 5 | AI4: 5 | AM4: 5 | AQ4: 5 | AT4: 2 | AU4: 6 | AX4: 2 | AY4: 5 | BB4: 3 | BC4: 3 | BD4: 3 | BF4: 3 | BG4: 3 | BH4: 2 | BJ4: 3 | BK4: 3 | BN4: 3 | BO4: 3 | BR4: 3 | BS4: 3 | BV4: 3 | BW4: 3 | BZ4: 2 | CA4: 3 | CD4: 3 | CE4: 3 | CH4: 3 | CI4: 3 | CL4: 3 | CM4: 3 | CP4: 3 | CR4: 3 | CT4: 3 | CV4: 3 | CX4: 3 | CY4: 3 | DB4: 3 | DC4: 3 | DF4: 3 | DG4: 3 | DJ4: 3 | DK4: 3 | DN4: 3 | DO4: 3 | DR4: 3 | DS4: 3 | DV4: 3 | DW4: 3 | DZ4: =F4+J4+N4+R4+V4+Z4+AD4+AH4+AL4+AP4+AT4+AX4+BB4+BF4+BJ4+BN4+BR4+BV4+BZ4+CD4+CH4+CL4+CP4+CT4+CX4+DB4+DF4+DJ4+DN4+DR4+DV4 -> 60 | EA4: =G4+K4+O4+S4+W4+AA4+AE4+AI4+AM4+AQ4+AU4+AY4+BC4+BG4+BK4+BO4+BS4+BW4+CA4+CE4+CI4+CM4+CQ4+CU4+CY4+DC4+DG4+DK4+DO4+DS4+DW4 -> 102 | EB4: =H4+L4+P4+T4+X4+AB4+AF4+AJ4+AN4+AR4+AV4+AZ4+BD4+BH4+BL4+BP4+BT4+BX4+CB4+CF4+CJ4+CN4+CR4+CV4+CZ4+DD4+DH4+DL4+DP4+DT4 -> 11 | EC4: =I4+M4+Q4+U4+Y4+AC4+AG4+AK4+AO4+AS4+AW4+BA4+BE4+BI4+BM4+BQ4+BU4+BY4+CC4+CG4+CK4+CO4+CS4+CW4+DA4+DE4+DI4+DM4+DQ4+DU4 -> 0
A5: 2 | B5: JEEVA503111TSBH06112 | C5: JEEVADAN HOSPITAL | D5: KAMAREDDY | E5: 100 | G5: 6 | K5: 6 | O5: 6 | S5: 6 | W5: 3 | AA5: 5 | AE5: 6 | AI5: 6 | AM5: 5 | AP5: 3 | AQ5: 4 | AT5: 3 | AX5: 3 | BB5: 5 | BF5: 3 | BG5: 3 | BN5: 2 | BP5: 3 | BR5: 3 | BT5: 3 | BV5: 3 | BX5: 3 | BZ5: 3 | CD5: 3 | CE5: 3 | CH5: 3 | CJ5: 3 | CL5: 3 | CN5: 3 | CP5: 3 | CR5: 3 | CT5: 3 | CV5: 3 | CX5: 3 | CY5: 3 | DB5: 3 | DC5: 3 | DF5: 3 | DH5: 3 | DJ5: 3 | DK5: 3 | DN5: 3 | DO5: 3 | DR5: 3 | DT5: 3 | DV5: 3 | DW5: 3 | DZ5: =F5+J5+N5+R5+V5+Z5+AD5+AH5+AL5+AP5+AT5+AX5+BB5+BF5+BJ5+BN5+BR5+BV5+BZ5+CD5+CH5+CL5+CP5+CT5+CX5+DB5+DF5+DJ5+DN5+DR5+DV5 -> 64 | EA5: =G5+K5+O5+S5+W5+AA5+AE5+AI5+AM5+AQ5+AU5+AY5+BC5+BG5+BK5+BO5+BS5+BW5+CA5+CE5+CI5+CM5+CQ5+CU5+CY5+DC5+DG5+DK5+DO5+DS5+DW5 -> 74 | EB5: =H5+L5+P5+T5+X5+AB5+AF5+AJ5+AN5+AR5+AV5+AZ5+BD5+BH5+BL5+BP5+BT5+BX5+CB5+CF5+CJ5+CN5+CR5+CV5+CZ5+DD5+DH5+DL5+DP5+DT5 -> 27 | EC5: =I5+M5+Q5+U5+Y5+AC5+AG5+AK5+AO5+AS5+AW5+BA5+BE5+BI5+BM5+BQ5+BU5+BY5+CC5+CG5+CK5+CO5+CS5+CW5+DA5+DE5+DI5+DM5+DQ5+DU5 -> 0
A6: 3 | B6: AREAH503187TSBH08193 | C6: AREA HOSPITAL, BANSWADA | D6: BESIDE POST OFFFICE, BANSWADA | E6: 100 | G6: 5 | K6: 6 | O6: 5 | S6: 6 | W6: 3 | AA6: 5 | AE6: 6 | AI6: 6 | AM6: 6 | AQ6: 6 | AU6: 5 | AV6: 2 | AY6: 6 | BC6: 3 | BD6: 3 | BF6: 3 | BG6: 3 | BJ6: 3 | BL6: 3 | BN6: 3 | BO6: 3 | BR6: 3 | BT6: 3 | BV6: 3 | BX6: 3 | BZ6: 3 | CD6: 3 | CF6: 3 | CH6: 3 | CJ6: 3 | CL6: 3 | CN6: 3 | CP6: 3 | CR6: 3 | CT6: 3 | CV6: 3 | CX6: 3 | CZ6: 3 | DB6: 3 | DD6: 3 | DF6: 3 | DH6: 3 | DJ6: 3 | DL6: 3 | DN6: 3 | DP6: 3 | DR6: 3 | DT6: 3 | DV6: 3 | DX6: 3 | DZ6: 54 | EA6: 74 | EB6: 47 | EC6: 0
A7: BELOW 100 BEDS HCFs
A8: KAMAREDDY
A9: 1 | B9: LIFEH503111TSBH10120 | C9: LIFE HOSPITAL | D9: OPP: RAJEEV PARK, SIRICILLA ROAD, KAMAREDDY | E9: 50 | G9: 2 | K9: 1 | O9: 2 | S9: 2 | W9: 3 | AA9: 1 | AE9: 1 | AI9: 1 | AM9: 1 | AQ9: 1 | AU9: 1 | AY9: 1 | BC9: 1 | BG9: 1 | BO9: 1 | BS9: 1 | BW9: 2 | BZ9: 2 | CA9: 2 | CE9: 2 | CI9: 1 | CM9: 1 | CQ9: 1 | CU9: 1 | CY9: 1 | DC9: 1 | DG9: 1 | DK9: 1 | DO9: 1 | DS9: 1 | DW9: 1 | DZ9: =F9+J9+N9+R9+V9+Z9+AD9+AH9+AL9+AP9+AT9+AX9+BB9+BF9+BJ9+BN9+BR9+BV9+BZ9+CD9+CH9+CL9+CP9+CT9+CX9+DB9+DF9+DJ9+DN9+DR9+DV9 -> 2 | EA9: =G9+K9+O9+S9+W9+AA9+AE9+AI9+AM9+AQ9+AU9+AY9+BC9+BG9+BK9+BO9+BS9+BW9+CA9+CE9+CI9+CM9+CQ9+CU9+CY9+DC9+DG9+DK9+DO9+DS9+DW9 -> 38 | EB9: =H9+L9+P9+T9+X9+AB9+AF9+AJ9+AN9+AR9+AV9+AZ9+BD9+BH9+BL9+BP9+BT9+BX9+CB9+CF9+CJ9+CN9+CR9+CV9+CZ9+DD9+DH9+DL9+DP9+DT9 -> 0 | EC9: =I9+M9+Q9+U9+Y9+AC9+AG9+AK9+AO9+AS9+AW9+BA9+BE9+BI9+BM9+BQ9+BU9+BY9+CC9+CG9+CK9+CO9+CS9+CW9+DA9+DE9+DI9+DM9+DQ9+DU9 -> 0
A10: 2 | B10: RUSSH503111TSBH09846 | C10: RUSSH MULTI SPECIALITY HOSPITAL | D10: Dr.C. NAVEEN REDDY, HNO: 5-3-69/1, KOUNDINYA BUILDING, OPP: R&B GUEST HOUSE, KAMAREDDY | E10: 50 | F10: 2 | G10: 2 | H10: 2 | J10: 2 | K10: 1 | L10: 2 | N10: 2 | O10: 2 | P10: 2 | R10: 2 | S10: 2 | T10: 2 | V10: 1 | W10: 2 | X10: 1 | Z10: 2 | AA10: 2 | AD10: 2 | AE10: 2 | AH10: 2 | AI10: 2 | AL10: 2 | AM10: 2 | AP10: 2 | AQ10: 2 | AT10: 2 | AU10: 2 | AX10: 2 | AY10: 2 | BB10: 2 | BC10: 2 | BF10: 2 | BG10: 2 | BN10: 2 | BO10: 2 | BR10: 2 | BS10: 2 | BW10: 2 | BZ10: 2 | CA10: 2 | CD10: 2 | CE10: 2 | CI10: 2 | CL10: 2 | CM10: 2 | CP10: 2 | CQ10: 2 | CT10: 2 | CU10: 2 | CX10: 2 | CY10: 2 | DB10: 2 | DC10: 2 | DF10: 2 | DG10: 2 | DJ10: 2 | DK10: 2 | DN10: 2 | DO10: 2 | DR10: 2 | DS10: 2 | DW10: 3 | DZ10: =F10+J10+N10+R10+V10+Z10+AD10+AH10+AL10+AP10+AT10+AX10+BB10+BF10+BJ10+BN10+BR10+BV10+BZ10+CD10+CH10+CL10+CP10+CT10+CX10+DB10+DF10+DJ10+DN10+DR10+DV10 -> 53 | EA10: =G10+K10+O10+S10+W10+AA10+AE10+AI10+AM10+AQ10+AU10+AY10+BC10+BG10+BK10+BO10+BS10+BW10+CA10+CE10+CI10+CM10+CQ10+CU10+CY10+DC10+DG10+DK10+DO10+DS10+DW10 -> 60 | EB10: =H10+L10+P10+T10+X10+AB10+AF10+AJ10+AN10+AR10+AV10+AZ10+BD10+BH10+BL10+BP10+BT10+BX10+CB10+CF10+CJ10+CN10+CR10+CV10+CZ10+DD10+DH10+DL10+DP10+DT10 -> 9 | EC10: =I10+M10+Q10+U10+Y10+AC10+AG10+AK10+AO10+AS10+AW10+BA10+BE10+BI10+BM10+BQ10+BU10+BY10+CC10+CG10+CK10+CO10+CS10+CW10+DA10+DE10+DI10+DM10+DQ10+DU10 -> 0
A11: 3 | B11: SHISH503111TSBH11233 | C11: SHISHURAKSHA THIRUMALA CHILDREN'S HOSPITAL | D11: 1-7-68, OPP: DHARMASHALA, SIRCILLA ROAD, KAMAREDDY | E11: 50 | AQ11: 2 | AU11: 1 | AY11: 1 | BC11: 1 | BG11: 1 | BK11: 1 | BO11: 1 | BS11: 1 | BV11: 2 | BZ11: 2 | CE11: 2 | CI11: 2 | CM11: 2 | CQ11: 2 | CU11: 2 | CY11: 2 | DC11: 2 | DG11: 2 | DK11: 2 | DO11: 2 | DS11: 2 | DW11: 2 | DZ11: 4 | EA11: 33 | EB11: 0 | EC11: 0
A12: 4 | B12: RAJAM503110TSBH01045 | C12: RAJAMPET MULTISPECIALITY HOSPITAL | D12: Dr. E. SIDDIRAMULU,BUS STAND, RAJAMPET, KAMAREDDY | E12: 32 | F12: 2 | J12: 2 | N12: 2 | R12: 2 | V12: 2 | Z12: 2 | AD12: 2 | AH12: 2 | AL12: 2 | AP12: 2 | AU12: 2 | AY12: 2 | BB12: 2 | BG12: 2 | BK12: 2 | BO12: 2 | BS12: 2 | BW12: 2 | CA12: 2 | CH12: 2 | CP12: 2 | CT12: 2 | CX12: 2 | DB12: 2 | DF12: 2 | DJ12: 2 | DO12: 2 | DR12: 2 | DW12: 2 | DZ12: 38 | EA12: 20 | EB12: 0 | EC12: 0
A13: 5 | B13: JAYAM503111TSBH00986 | C13: JAYA MULTI SPECIALITY HOSPITAL | D13: Dr. D. RAJAMOULI,BESIDE ARYABATTA JUNIOR COLLEGE, KAMAREDDY | E13: 25 | G13: 2 | K13: 2 | S13: 2 | W13: 2 | AA13: 2 | AE13: 2 | AI13: 2 | AM13: 1 | AN13: 2 | AQ13: 1 | AR13: 2 | AU13: 2 | AY13: 2 | BG13: 2 | BJ13: 2 | BN13: 2 | BR13: 2 | BV13: 2 | BZ13: 2 | CD13: 2 | CH13: 2 | CL13: 2 | CP13: 2 | CT13: 2 | CX13: 2 | DB13: 2 | DH13: 2 | DL13: 2 | DN13: 2 | DR13: 2 | DV13: 2 | DZ13: 30 | EA13: 22 | EB13: 8 | EC13: 0
A14: 6 | B14: AKHIL503111TSBH09690 | C14: AKHILA HOSPITAL | D14: Dr. PUTTA MALLIKARJUN,N.H.7 ROAD, VIKASNAGAR COLONY, I.B.P. OPP: PETROLE BUNK, KAMAREDDY | E14: 20 | F14: 2 | J14: 2 | N14: 2 | R14: 2 | V14: 2 | Z14: 2 | AD14: 2 | AH14: 2 | AL14: 2 | AP14: 2 | AT14: 2 | AX14: 2 | BB14: 2 | BF14: 2 | BN14: 2 | BR14: 2 | BV14: 2 | BZ14: 2 | CD14: 2 | CI14: 2 | CL14: 2 | CQ14: 2 | CU14: 2 | CY14: 2 | DC14: 2 | DG14: 2 | DK14: 2 | DO14: 2 | DS14: 2 | DW14: 2 | DZ14: 40 | EA14: 20 | EB14: 0 | EC14: 0
A15: 7 | B15: SADHA503111TSBH09695 | C15: SADHANA HOSPITAL | D15: Dr. R. VENKAT, M.D.(O.M), HIGH SCHOOL ROAD, KAMAREDDY | E15: 20 | G15: 1 | K15: 1 | O15: 1 | S15: 1 | W15: 1 | AA15: 1 | AE15: 1 | AI15: 1 | AM15: 1 | AQ15: 1 | AU15: 1 | AY15: 1 | BC15: 1 | BG15: 1 | BO15: 1 | BS15: 1 | BW15: 1 | CA15: 1 | CE15: 1 | CH15: 1 | CM15: 1 | CP15: 1 | CT15: 1 | CX15: 1 | DB15: 1 | DF15: 1 | DJ15: 1 | DN15: 1 | DR15: 1 | DV15: 1 | DZ15: 10 | EA15: 20 | EB15: 0 | EC15: 0
A16: 8 | B16: SREEG503111TSBH00895 | C16: SREE GANESHA MULTI SPECIALITY HOSPITAL | D16: HNO;1-7-73,DAILY MARKET,THILA ROAD KAMAREDDY | E16: 20 | F16: 2 | J16: 2 | N16: 2 | R16: 2 | V16: 2 | Z16: 2 | AD16: 2 | AH16: 2 | AL16: 2 | AP16: 2 | AT16: 2 | AX16: 2 | BB16: 2 | BF16: 2 | BN16: 2 | BS16: 2 | BW16: 2 | CA16: 2 | CE16: 2 | CH16: 2 | CL16: 2 | CP16: 2 | CT16: 2 | CX16: 2 | DB16: 2 | DG16: 2 | DK16: 2 | DO16: 2 | DS16: 2 | DW16: 2 | DZ16: 42 | EA16: 18 | EB16: 0 | EC16: 0
A17: 9 | B17: SRIJA503111TSBH06130 | C17: SRI JANANI MOTHER & CHILD HOPSITAL | D17: GOWDOWN ROAD,NEAR POOJA DIAGNOSTICS CENTRE ,KAMAREDDY | E17: 20 | F17: 2 | J17: 2 | N17: 2 | R17: 2 | V17: 2 | Z17: 2 | AD17: 2 | AH17: 2 | AL17: 2 | AP17: 2 | AT17: 2 | AX17: 2 | BB17: 2 | BF17: 2 | BO17: 2 | BS17: 2 | BW17: 2 | CA17: 2 | CE17: 2 | CH17: 2 | CL17: 2 | CP17: 2 | CT17: 2 | CX17: 2 | DB17: 2 | DG17: 2 | DK17: 2 | DO17: 2 | DR17: 2 | DW17: 2 | DZ17: 42 | EA17: 18 | EB17: 0 | EC17: 0
A18: 10 | B18: SRISA503111TSBH07063 | C18: SRI SAI SIMHA MULTI SPECIALITY HOME | D18: Dr.D. SREELEELA,OLD BUS STAND, KAMAREDDY | E18: 20 | F18: 2 | J18: 2 | N18: 2 | R18: 2 | V18: 2 | Z18: 2 | AD18: 2 | AH18: 2 | AL18: 2 | AP18: 2 | AT18: 2 | AX18: 2 | BB18: 2 | BF18: 2 | BN18: 2 | BR18: 2 | BV18: 2 | BZ18: 2 | CE18: 2 | CH18: 2 | CP18: 2 | CT18: 2 | CX18: 2 | DB18: 2 | DF18: 2 | DJ18: 2 | DO18: 2 | DR18: 2 | DW18: 2 | DZ18: 52 | EA18: 6 | EB18: 0 | EC18: 0
A19: 11 | B19: THIRU503111TSBH00893 | C19: THIRUMALA NURSING HOME | D19: Dr. K. JANARDHAN,AHSOK NAGAR COLONY,KAMAREDDY | E19: 20 | F19: 2 | J19: 2 | N19: 2 | R19: 2 | V19: 2 | Z19: 2 | AD19: 2 | AH19: 2 | AL19: 2 | AP19: 2 | AU19: 2 | AY19: 2 | BB19: 2 | BG19: 2 | BO19: 2 | BS19: 2 | BW19: 2 | CA19: 2 | CE19: 2 | CH19: 2 | CL19: 2 | CP19: 2 | CT19: 2 | CX19: 2 | DB19: 2 | DF19: 2 | DJ19: 2 | DO19: 2 | DR19: 2 | DW19: 2 | DZ19: 40 | EA19: 20 | EB19: 0 | EC19: 0
A20: 12 | B20: DRBIS503111TSBH00941 | C20: B. ISHWAR DAS HOSPITAL | D20: Dr. V. SHAMSUNDER RAO,HNO: 2-1-2,NEAR RAILWAY BRIDGE,KAMAREDDY | E20: 18 | G20: 1 | K20: 1 | O20: 1 | S20: 1 | W20: 1 | AA20: 1 | AE20: 1 | AI20: 1 | AM20: 1 | AQ20: 1 | AU20: 1 | AY20: 1 | BC20: 1 | BG20: 1 | BJ20: 1 | BN20: 1 | BR20: 1 | BV20: 1 | BZ20: 1 | CD20: 1 | CH20: 1 | CL20: 1 | CP20: 1 | CT20: 1 | CX20: 1 | DB20: 1 | DF20: 1 | DJ20: 1 | DN20: 1 | DR20: 1 | DV20: 1 | DZ20: 17 | EA20: 14 | EB20: 0 | EC20: 0
A21: 13 | B21: DRKAN503001TSBH00942 | C21: Dr. K ANJAL REDDY MEMORIAL HOSPITAL | D21: Dr. K. ANJAL REDDY,NETHAJI ROAD,KAMAREDDY | E21: 15 | F21: 2 | J21: 2 | N21: 2 | R21: 2 | V21: 2 | Z21: 2 | AD21: 2 | AH21: 2 | AL21: 2 | AP21: 2 | AU21: 2 | AY21: 2 | BC21: 2 | BF21: 2 | BK21: 2 | BN21: 2 | BS21: 2 | BW21: 2 | CA21: 2 | CE21: 2 | CH21: 2 | CL21: 2 | CP21: 2 | CT21: 2 | CX21: 2 | DB21: 2 | DF21: 2 | DJ21: 2 | DO21: 2 | DR21: 2 | DW21: 2 | DZ21: 42 | EA21: 20 | EB21: 0 | EC21: 0
A22: 14 | B22: DEVIH503111TSBH08368 | C22: DEVI HOSPITAL | D22: NGO'S COLONY,NEWR ANDHRA BANK,KAMAREDDY. | E22: 15 | G22: 2 | K22: 2 | O22: 2 | S22: 2 | W22: 2 | AA22: 2 | AE22: 2 | AI22: 2 | AM22: 2 | AQ22: 2 | AU22: 2 | AY22: 2 | BC22: 2 | BG22: 2 | BJ22: 2 | BN22: 2 | BR22: 2 | BV22: 2 | BZ22: 2 | CD22: 2 | CH22: 2 | CL22: 2 | CP22: 2 | CT22: 2 | CX22: 2 | DB22: 2 | DF22: 2 | DJ22: 2 | DN22: 2 | DR22: 2 | DV22: 2 | DZ22: 34 | EA22: 28 | EB22: 0 | EC22: 0
A23: 15 | B23: DWARA503111TSBH01022 | C23: DWARAKA CHEST & CHILDREN'S | D23: DR K. PRAVEEN KUMAR, & K. RADHIKA, HNO.4-1-10, NEAR AMBEDKAR STATUE, RAILWAY BRIDGE, PEDDA BAZAR, KAMAREDDY | E23: 15 | F23: 1 | J23: 1 | N23: 1 | R23: 1 | V23: 1 | Z23: 1 | AD23: 1 | AH23: 1 | AL23: 1 | AP23: 1 | AT23: 1 | AX23: 1 | BB23: 1 | BF23: 1 | BJ23: 1 | BN23: 1 | BR23: 1 | CD23: 1 | CH23: 1 | CL23: 1 | CR23: 1 | CV23: 1 | CZ23: 1 | DD23: 1 | DH23: 1 | DL23: 1 | DP23: 1 | DT23: 1 | DZ23: 20 | EA23: 0 | EB23: 8 | EC23: 0
A24: 16 | B24: PARVA503111TSBH06129 | C24: PARVATHI CHILDRENS HOSPITAL | D24: Dr.D. MALLIKARJUNA RAO,NEAR OLD BUS STAND,SIRCILLA ROAD,KAMAREDDY | E24: 15 | G24: 1 | K24: 1 | O24: 1 | S24: 1 | W24: 1 | AA24: 1 | AE24: 1 | AI24: 1 | AM24: 1 | AQ24: 1 | AT24: 1 | AX24: 1 | BC24: 1 | BN24: 1 | BR24: 1 | BV24: 1 | BZ24: 1 | CD24: 1 | CH24: 1 | CL24: 1 | CP24: 1 | CT24: 1 | CX24: 1 | DB24: 1 | DF24: 1 | DJ24: 1 | DN24: 1 | DR24: 1 | DV24: 1 | DZ24: 18 | EA24: 11 | EB24: 0 | EC24: 0
A25: 17 | B25: RRHOS503111TSBH02591 | C25: R R HOSPITAL | D25: Dr. RADHA RAMANA,RAMAREDDY ROAD, KAMAREDDY | E25: 15 | F25: 4 | J25: 1 | K25: 2 | O25: 2 | S25: 2 | W25: 2 | AA25: 2 | AE25: 2 | AI25: 2 | AM25: 2 | AQ25: 2 | AU25: 2 | AY25: 2 | BC25: 2 | BG25: 2 | BN25: 2 | BR25: 2 | BV25: 2 | BZ25: 2 | CD25: 2 | CH25: 2 | CL25: 2 | CP25: 2 | CT25: 2 | CX25: 2 | DB25: 2 | DF25: 2 | DJ25: 2 | DN25: 2 | DR25: 2 | DV25: 2 | DZ25: 37 | EA25: 26 | EB25: 0 | EC25: 0
A26: 18 | B26: SIRIC503111TSBH00865 | C26: SIRI CHILDRANS HOSPITAL | D26: NEAR POTTI SRIRAMULU STATUE,KAMAREDDY | E26: 15 | G26: 1 | K26: 1 | O26: 1 | S26: 1 | W26: 1 | AA26: 1 | AE26: 1 | AI26: 1 | AM26: 1 | AQ26: 1 | AU26: 1 | AY26: 1 | BC26: 1 | BG26: 1 | BO26: 1 | BR26: 1 | BV26: 1 | BZ26: 1 | CD26: 1 | CH26: 1 | CL26: 1 | CP26: 1 | CT26: 1 | CX26: 1 | DB26: 1 | DF26: 1 | DJ26: 1 | DN26: 1 | DR26: 1 | DV26: 1 | DZ26: 15 | EA26: 15 | EB26: 0 | EC26: 0
A27: 19 | B27: SREEB503111TSBH11230 | C27: SREE BAVANA NURSING HOME | D27: DR.PATHA RAMALINGAM HOSPITAL, BESIDE MUNCIPAL OFFICE, KAMAREDDY | E27: 15 | AP27: 2 | AT27: 2 | AX27: 2 | BB27: 2 | BF27: 2 | BJ27: 2 | BN27: 2 | BR27: 2 | BV27: 2 | BZ27: 2 | CD27: 2 | CH27: 2 | CL27: 2 | CP27: 2 | CT27: 2 | CX27: 2 | DB27: 2 | DF27: 1 | DJ27: 2 | DN27: 2 | DR27: 2 | DV27: 2 | DZ27: 43 | EA27: 0 | EB27: 0 | EC27: 0
A28: 20 | B28: SRISA503111TSBH06156 | C28: SRI SAI KRISHNA HOSPITAL | D28: Dr.B. CHANDRASHEKAR REDDY,AHSOK NAGAR COLONY,KAMAREDDY | E28: 15 | F28: 2 | J28: 2 | N28: 2 | R28: 2 | V28: 2 | Z28: 2 | AD28: 2 | AH28: 2 | AL28: 2 | AP28: 2 | AT28: 2 | AX28: 2 | BB28: 2 | BF28: 2 | BN28: 2 | BS28: 2 | BW28: 2 | CA28: 2 | CE28: 2 | CH28: 2 | CL28: 2 | CP28: 2 | CT28: 2 | CX28: 2 | DB28: 2 | DF28: 2 | DJ28: 2 | DO28: 2 | DR28: 2 | DW28: 2 | DZ28: 48 | EA28: 12 | EB28: 0 | EC28: 0
A29: 21 | B29: SRISA503001TSBH08370 | C29: SRI SAI SRINIVASA HOSPITAL | D29: NEAR PRAKASH RAO EYE HOSPITAL, RAMAREDDY ROAD, KAMAREDDY | E29: 15 | G29: 1 | K29: 1 | O29: 1 | S29: 1 | W29: 1 | AA29: 1 | AE29: 1 | AI29: 1 | AM29: 1 | AQ29: 1 | AU29: 1 | AY29: 1 | BC29: 1 | BG29: 1 | BO29: 1 | BS29: 1 | BW29: 1 | CA29: 1 | CE29: 1 | CI29: 1 | CM29: 1 | CQ29: 1 | CU29: 1 | CX29: 1 | DB29: 1 | DF29: 1 | DJ29: 1 | DN29: 1 | DR29: 1 | DV29: 1 | DZ29: 7 | EA29: 23 | EB29: 0 | EC29: 0
A30: 22 | B30: SRISH503111TSBH08515 | C30: SRI SHIVAM MULTI SPECIALITY HOSPITAL | D30: H.NO. 1-5-62/4, GODOWN ROAD, KAMAREDDY,Kamareddy ( U ),Kamareddy,KAMAREDDY,503111 | E30: 15 | DZ30: 0 | EA30: 0 | EB30: 0 | EC30: 0
A31: 23 | B31: ADITY503111TSBH09686 | C31: ADITYA HOSPITAL | D31: Dr. AJAY PERALA,BESIDE POTTI SRIRAMULU STATU ,SIRCILLA ROAD,KAMAREDDY | E31: 12 | G31: 1 | K31: 1 | O31: 1 | R31: 2 | S31: 1 | V31: 2 | W31: 1 | AA31: 1 | AE31: 1 | AI31: 1 | AM31: 1 | AQ31: 1 | AU31: 1 | AY31: 1 | BC31: 1 | BG31: 1 | BO31: 1 | BS31: 1 | BW31: 1 | CA31: 1 | CE31: 1 | CH31: 1 | CM31: 1 | CP31: 1 | CT31: 1 | CX31: 1 | DB31: 1 | DF31: 1 | DJ31: 1 | DN31: 1 | DR31: 1 | DV31: 1 | DZ31: 14 | EA31: 20 | EB31: 0 | EC31: 0
A32: 24 | B32: SRIGA503111TSBH02588 | C32: SRI GANGA CHILDRENS HOSPITAL | D32: Dr. E. VENKATESHWAR GOVD,SIRCILLA ROAD, KAMAREDDY | E32: 12 | G32: 1 | K32: 1 | O32: 1 | S32: 1 | W32: 1 | AA32: 1 | AE32: 1 | AI32: 1 | AM32: 1 | AQ32: 1 | AU32: 1 | AY32: 1 | BC32: 1 | BG32: 1 | BN32: 1 | BR32: 1 | BV32: 1 | BZ32: 1 | CD32: 1 | CH32: 1 | CL32: 1 | CP32: 1 | CT32: 1 | CX32: 1 | DB32: 1 | DF32: 1 | DJ32: 1 | DN32: 1 | DR32: 1 | DV32: 1 | DZ32: 16 | EA32: 14 | EB32: 0 | EC32: 0
A33: 25 | B33: ASHWI503111TSBH09939 | C33: ASHWINI CLINIC | D33: DR. VIJAYA KUMAR, GODOWN ROAD, KAMAREDDY | E33: 10 | DZ33: 0 | EA33: 0 | EB33: 0 | EC33: 0
A34: 26 | B34: BALAJ503111TSBH00904 | C34: BALAJI HOSPITAL | D34: Dr. D. SRINIVASA RAO, DOOR NO.1-5-64, GODAM ROAD, KAMAREDDY | E34: 10 | G34: 1 | K34: 1 | O34: 1 | S34: 1 | W34: 1 | AA34: 1 | AE34: 1 | AI34: 1 | AM34: 1 | AQ34: 1 | AU34: 1 | AY34: 1 | BC34: 1 | BG34: 1 | BJ34: 1 | BN34: 1 | BR34: 1 | BV34: 1 | BZ34: 1 | CD34: 1 | CH34: 1 | CL34: 1 | CP34: 1 | CT34: 1 | CX34: 1 | DB34: 1 | DF34: 1 | DJ34: 1 | DR34: 1 | DV34: 1 | DZ34: 16 | EA34: 14 | EB34: 0 | EC34: 0
A35: 27 | B35: DR.PR503111TSBH07038 | C35: Dr. PRAKASH RAO EYE HOSPITAL | D35: HNO.1-5-442/9, RAMAREDDY, KAMAREDDY | E35: 10 | G35: 1 | K35: 1 | O35: 1 | S35: 1 | W35: 1 | AA35: 1 | AE35: 1 | AI35: 1 | AM35: 1 | AQ35: 1 | AU35: 1 | AY35: 1 | BC35: 1 | BG35: 1 | BK35: 1 | BO35: 1 | BR35: 1 | BV35: 1 | BZ35: 1 | CD35: 1 | CH35: 1 | CL35: 1 | CP35: 1 | CT35: 1 | CX35: 1 | DB35: 1 | DF35: 1 | DJ35: 1 | DN35: 1 | DR35: 1 | DV35: 1 | DZ35: 15 | EA35: 16 | EB35: 0 | EC35: 0
A36: 28 | B36: DRTBH503111TSBH09938 | C36: DR T BHAIRAIAH MEMORIAL HOSPITAL | D36: Dr.J. BHAIRAIAH,HNO:1-3-89, BESIDE SHRAVANI EYE HOSPITAL, GODOWN ROAD, KAMAREDDY | E36: 6 | G36: 1 | K36: 1 | O36: 1 | S36: 1 | W36: 1 | AA36: 1 | AE36: 1 | AI36: 1 | AM36: 1 | AQ36: 1 | AU36: 1 | AY36: 1 | BC36: 1 | BG36: 1 | BO36: 1 | BS36: 1 | BW36: 1 | CA36: 1 | CE36: 1 | CI36: 1 | CM36: 1 | CQ36: 1 | CU36: 1 | CX36: 1 | DB36: 1 | DF36: 1 | DJ36: 1 | DN36: 1 | DR36: 1 | DV36: 1 | DZ36: 7 | EA36: 23 | EB36: 0 | EC36: 0
A37: 29 | B37: GANDH503111TSBH09696 | C37: GANDHI HOSPITAL | D37: Opp: Dharmashala, Sircilla Road, KAMAREDDY | E37: 10 | G37: 1 | K37: 1 | O37: 1 | S37: 1 | W37: 1 | AA37: 1 | AE37: 1 | AI37: 1 | AM37: 1 | AQ37: 1 | AU37: 1 | AY37: 1 | BC37: 1 | BG37: 1 | BO37: 1 | BS37: 1 | BW37: 1 | CA37: 1 | CE37: 1 | CH37: 1 | CP37: 1 | CT37: 1 | CX37: 1 | DB37: 1 | DF37: 1 | DJ37: 1 | DN37: 1 | DR37: 1 | DV37: 1 | DZ37: 10 | EA37: 19 | EB37: 0 | EC37: 0
A38: 30 | B38: GEERE503111TSBH06128 | C38: GEEREDDY RAVINDER REDDY NEURO SUPER SPECIALITY HOSPITAL | D38: GOWDOWN ROAD, OPP: JAGRUTHI HOSPIITAL , KAMAREDDY. | E38: 10 | G38: 1 | K38: 1 | O38: 1 | S38: 1 | W38: 1 | AA38: 1 | AE38: 1 | AI38: 1 | AM38: 1 | AQ38: 1 | AT38: 1 | AX38: 1 | BC38: 1 | BF38: 1 | BJ38: 1 | BN38: 1 | BR38: 1 | BV38: 1 | BZ38: 1 | CH38: 1 | CL38: 1 | CP38: 1 | CT38: 1 | CX38: 1 | DB38: 1 | DF38: 1 | DJ38: 1 | DN38: 1 | DR38: 1 | DV38: 1 | DZ38: 19 | EA38: 11 | EB38: 0 | EC38: 0
A39: 31 | B39: KRISH503111TSBH07065 | C39: KRISHNAVENI CHILDRENS & NEONATAL HOSPITAL | D39: NETAJI ROAD,KAMAREDDY | E39: 10 | G39: 1 | K39: 1 | O39: 1 | S39: 1 | W39: 1 | AA39: 1 | AE39: 1 | AI39: 1 | AM39: 1 | AQ39: 1 | AT39: 1 | AX39: 1 | BC39: 1 | BN39: 1 | BR39: 1 | BV39: 1 | BZ39: 1 | CD39: 1 | CH39: 1 | CL39: 1 | CP39: 1 | CT39: 1 | CX39: 1 | DB39: 1 | DF39: 1 | DJ39: 1 | DN39: 1 | DR39: 1 | DV39: 1 | DZ39: 18 | EA39: 11 | EB39: 0 | EC39: 0
A40: 32 | B40: NETRA503111TSBH09940 | C40: NETRA JYOTHI VISION CARE CENTER | D40: Dr. SUMANTH REDDY.P, GODWN ROAD, KAMAREDDY | E40: 10 | G40: 1 | K40: 1 | O40: 1 | S40: 1 | W40: 1 | AA40: 1 | AE40: 1 | AI40: 1 | AM40: 1 | AQ40: 1 | AU40: 1 | AY40: 1 | BC40: 1 | BG40: 1 | BO40: 1 | BS40: 1 | BW40: 1 | CA40: 1 | CE40: 1 | CI40: 1 | CM40: 1 | CQ40: 1 | CU40: 1 | CX40: 1 | DB40: 1 | DF40: 1 | DJ40: 1 | DN40: 1 | DR40: 1 | DV40: 1 | DZ40: 7 | EA40: 23 | EB40: 0 | EC40: 0
A41: 33 | B41: RJHOS503111TSBH09781 | C41: R J HOSPITAL | D41: Jamal's RJ Hospital - #1-5-Ra0004, Kamareddy - Ramareddy Road, Kamareddy, Telangana 503111 | E41: 10 | G41: 1 | K41: 1 | O41: 1 | S41: 1 | W41: 1 | AA41: 1 | AE41: 1 | AI41: 1 | AM41: 1 | AQ41: 1 | BC41: 1 | BF41: 1 | BO41: 1 | BS41: 1 | BV41: 1 | BZ41: 1 | CD41: 1 | CH41: 1 | CL41: 1 | CP41: 1 | CT41: 1 | CX41: 1 | DB41: 1 | DF41: 1 | DJ41: 1 | DN41: 1 | DR41: 1 | DV41: 1 | DZ41: 15 | EA41: 13 | EB41: 0 | EC41: 0
A42: 34 | B42: RAJYA503111TSBH02589 | C42: RAJYALAKSHMI NURSING HOME | D42: Dr. V. RAJALAXMI,BESIDE MUNICIPAL OFFICE,KAMAREDDY | E42: 10 | F42: 2 | J42: 2 | N42: 2 | R42: 2 | V42: 2 | Z42: 2 | AD42: 2 | AH42: 2 | AL42: 2 | AP42: 2 | AU42: 2 | AY42: 2 | BB42: 2 | BG42: 2 | BO42: 2 | BS42: 2 | BW42: 2 | CA42: 2 | CE42: 2 | CH42: 2 | CL42: 2 | CP42: 2 | CT42: 2 | CX42: 2 | DB42: 2 | DG42: 2 | DK42: 2 | DO42: 2 | DW42: 2 | DZ42: 34 | EA42: 24 | EB42: 0 | EC42: 0
A43: 35 | B43: SHRAV503111TSBH09936 | C43: SHRAVANI EYE HOSPITAL | D43: Dr.G. SAMMI REDDY, BESIDE T. BAIRAIAH MEMORIAL HOSPITAL, GODOWN ROAD, KAMAREDDY | E43: 10 | G43: 1 | K43: 2 | O43: 2 | S43: 2 | W43: 2 | AA43: 2 | AE43: 2 | AI43: 2 | AM43: 2 | AQ43: 1 | AU43: 2 | AY43: 2 | BC43: 2 | BG43: 2 | BO43: 2 | BS43: 2 | BW43: 2 | CA43: 2 | CE43: 2 | CI43: 2 | CM43: 2 | CQ43: 2 | CU43: 2 | CX43: 2 | DB43: 2 | DF43: 2 | DJ43: 2 | DN43: 2 | DR43: 2 | DV43: 2 | DZ43: 14 | EA43: 44 | EB43: 0 | EC43: 0
A44: 36 | B44: SRIKR503111TSBH09902 | C44: SRI KRISHNA NETHRALAYA EYE CARE HOSPITAL | D44: DR V. SURESH KUMAR, GODOWN ROAD, KAMAREDDY | E44: 10 | G44: 1 | O44: 1 | S44: 1 | W44: 1 | AA44: 1 | AE44: 1 | AI44: 1 | AM44: 1 | AQ44: 1 | AU44: 1 | AY44: 1 | BC44: 1 | BG44: 1 | BO44: 1 | BS44: 1 | BW44: 1 | CA44: 1 | CE44: 1 | CI44: 1 | CM44: 1 | CP44: 1 | CT44: 1 | CX44: 1 | DB44: 1 | DF44: 1 | DJ44: 1 | DN44: 1 | DR44: 1 | DV44: 1 | DZ44: 9 | EA44: 20 | EB44: 0 | EC44: 0
A45: 37 | B45: SRILA503111TSBH08488 | C45: SRI LAXMI HOSPITAL | D45: OPP: INDRA DIAGNOSTICS, GODOWN ROAD, KAMAREDDY | E45: 10 | G45: 2 | K45: 2 | O45: 2 | S45: 2 | W45: 2 | AA45: 2 | AE45: 2 | AI45: 2 | AM45: 2 | AQ45: 2 | AU45: 2 | AY45: 2 | BC45: 2 | BG45: 2 | BO45: 2 | BS45: 2 | BW45: 2 | CA45: 2 | CE45: 2 | CI45: 2 | CM45: 2 | CP45: 2 | CT45: 2 | CX45: 2 | DB45: 2 | DF45: 2 | DJ45: 2 | DN45: 2 | DR45: 2 | DV45: 2 | DZ45: 18 | EA45: 42 | EB45: 0 | EC45: 0
A46: 38 | B46: SRIRA503111TSBH06158 | C46: SRI RAMA MULTI SPECIALITY HOSPITAL | D46: Dr S BHANU REKHA, OPP: R&B GUEST HOUSE, N.H.7 ROAD, KAMAREDDY, | E46: 10 | AP46: 2 | AT46: 2 | AX46: 2 | BB46: 2 | BG46: 2 | BS46: 2 | BW46: 2 | CA46: 2 | CX46: 2 | DB46: 2 | DF46: 2 | DJ46: 2 | DS46: 2 | DZ46: 16 | EA46: 10 | EB46: 0 | EC46: 0
A47: 39 | B47: SRIVE503111TSBH06159 | C47: SRI VENKATESHWARA CHILDRENS & NEONATAL HOSPITAL KAMAREDDY | D47: Dr K NARENDER RAO, GODOWN ROAD, KAMAREDDY | E47: 10 | G47: 1 | K47: 1 | O47: 1 | S47: 1 | W47: 1 | AA47: 1 | AE47: 1 | AI47: 1 | AM47: 1 | AQ47: 1 | AU47: 1 | AY47: 1 | BC47: 1 | BG47: 1 | BO47: 1 | BR47: 1 | BV47: 1 | BZ47: 1 | CD47: 1 | CH47: 1 | CL47: 1 | CP47: 1 | CT47: 1 | CX47: 1 | DB47: 1 | DF47: 1 | DJ47: 1 | DN47: 1 | DR47: 1 | DV47: 1 | DZ47: 15 | EA47: 15 | EB47: 0 | EC47: 0
A48: 40 | B48: SRINI503111TSBH01020 | C48: SRINIVASA CHILDRENS HOSPITAL | D48: Dr. S. SHIVA PRASAD, H.NO. 5-4-125/1, N.H.7 ROAD, NEAR DSP OFFICE, RAMAREDDY ROAD, KAMAREDDY | E48: 10 | G48: 1 | K48: 1 | O48: 1 | S48: 1 | W48: 1 | AA48: 1 | AE48: 1 | AI48: 1 | AM48: 1 | AQ48: 1 | AT48: 1 | AX48: 1 | BC48: 1 | BF48: 1 | BN48: 1 | BR48: 1 | BV48: 1 | BZ48: 1 | CD48: 1 | CH48: 1 | CL48: 1 | CP48: 1 | CT48: 1 | CX48: 1 | DB48: 1 | DF48: 1 | DJ48: 1 | DN48: 1 | DR48: 1 | DV48: 1 | DZ48: 19 | EA48: 11 | EB48: 0 | EC48: 0
A49: 41 | B49: SUPRE503111TSBH00932 | C49: SUPREETHA HOSPITAL | D49: DR. RAVINDER REDDY, OPP: DR ANJALREDDY HOSPITAL, NETHAJI ROAD,KAMAREDDY | E49: 10 | G49: 1 | K49: 1 | O49: 1 | S49: 1 | W49: 1 | AA49: 1 | AE49: 1 | AI49: 1 | AM49: 1 | AQ49: 1 | AT49: 1 | AX49: 1 | BC49: 1 | BF49: 1 | BN49: 1 | BR49: 1 | BV49: 1 | BZ49: 1 | CD49: 1 | CH49: 1 | CL49: 1 | CP49: 1 | CT49: 1 | CX49: 1 | DB49: 1 | DF49: 1 | DJ49: 1 | DN49: 1 | DR49: 1 | DV49: 1 | DZ49: 19 | EA49: 11 | EB49: 0 | EC49: 0
A50: 42 | B50: SURYA503111TSBH09941 | C50: SURYA HOSPITAL | D50: Dr.D. CHANDRASHEKAR, NEAR T. BHAIRAIAH HOSPITAL, GODOWN ROAD,KAMAREDDY | E50: 6 | G50: 1 | K50: 1 | O50: 1 | S50: 1 | W50: 1 | AA50: 1 | AE50: 1 | AI50: 1 | AM50: 1 | AQ50: 1 | AU50: 1 | AY50: 1 | BC50: 1 | BG50: 1 | BO50: 1 | BS50: 1 | BW50: 1 | CA50: 1 | CE50: 1 | CI50: 1 | CM50: 1 | CQ50: 1 | CU50: 1 | CY50: 1 | DC50: 1 | DF50: 1 | DJ50: 1 | DN50: 1 | DR50: 1 | DV50: 1 | DZ50: 5 | EA50: 25 | EB50: 0 | EC50: 0
A51: 43 | B51: TEJAS503111TSBH09687 | C51: TEJA SREE HOSPITAL | D51: OPP: SBI BANK & R.K. DEGREE COLLEGE, DEVUNIPALLY, NIZAMSAGAR ROAD, KAMAREDDY Kamareddy ( U )(V) Kamareddy(M) KAMAREDDY(D) Telangana-503111 | E51: 10 | G51: 1 | K51: 1 | O51: 1 | S51: 1 | W51: 1 | AA51: 1 | AE51: 1 | AI51: 1 | AM51: 1 | AQ51: 1 | AU51: 1 | AY51: 1 | BC51: 1 | BG51: 1 | BO51: 1 | BS51: 1 | BW51: 1 | CA51: 1 | CE51: 1 | CH51: 1 | CM51: 1 | CP51: 1 | CT51: 1 | CX51: 1 | DB51: 1 | DF51: 1 | DJ51: 1 | DN51: 1 | DR51: 1 | DV51: 1 | DZ51: 10 | EA51: 20 | EB51: 0 | EC51: 0
A52: 44 | B52: VARSH503111TSBH00947 | C52: VARSHA HOSPITAL | D52: DR. VARSHA K | E52: 10 | F52: 2 | J52: 2 | N52: 2 | R52: 2 | V52: 2 | Z52: 2 | AD52: 2 | AH52: 2 | AL52: 2 | AP52: 2 | AU52: 2 | AY52: 2 | BC52: 2 | BG52: 2 | BJ52: 1 | BN52: 2 | BR52: 2 | BV52: 2 | BZ52: 2 | CH52: 2 | CL52: 2 | CP52: 2 | CT52: 2 | CY52: 2 | DC52: 2 | DG52: 2 | DK52: 2 | DO52: 3 | DS52: 2 | DW52: 2 | DZ52: 37 | EA52: 23 | EB52: 0 | EC52: 0
A53: 45 | B53: VIKRA503111TSBH09698 | C53: VIKRAM LASER EYE CARE | D53: DR. VIKRAM REDDY, H.No.1-6-66, OPP: GAYATRI BANK & INDIAN OIL PETROL PUMP, SIRICILLA ROAD, KAMAREDDY | E53: 10 | G53: 1 | K53: 1 | O53: 1 | S53: 1 | W53: 1 | AA53: 1 | AE53: 1 | AI53: 1 | AM53: 1 | AQ53: 1 | AU53: 1 | AY53: 1 | BC53: 1 | BG53: 1 | BO53: 1 | BS53: 1 | BW53: 1 | CA53: 1 | CE53: 1 | CH53: 1 | CL53: 1 | CP53: 1 | CQ53: 1 | CT53: 1 | CX53: 1 | DB53: 1 | DF53: 1 | DJ53: 1 | DN53: 1 | DR53: 1 | DV53: 1 | DZ53: 11 | EA53: 20 | EB53: 0 | EC53: 0
A54: 46 | B54: KAMAR503111TSBH08454 | C54: KAMAREDDY EYE HOSPITAL | D54: GODOWN ROAD, KAMAREDDY | E54: 9 | G54: 1 | K54: 1 | O54: 1 | S54: 1 | W54: 1 | AA54: 1 | AE54: 1 | AI54: 1 | AM54: 1 | AQ54: 1 | AT54: 1 | AX54: 1 | BC54: 1 | BN54: 1 | BR54: 1 | BV54: 1 | BZ54: 1 | CD54: 1 | CH54: 1 | CL54: 1 | CP54: 1 | CT54: 1 | CX54: 1 | DB54: 1 | DF54: 1 | DJ54: 1 | DN54: 1 | DR54: 1 | DV54: 1 | DZ54: 18 | EA54: 11 | EB54: 0 | EC54: 0
A55: 47 | B55: KAMAR503111TSBH09697 | C55: KAMAREDDY NEURO SUPERSPECIALITY HOSPITAL | D55: OPP: SWATHI HOTEL, SIRICILLA ROAD, KAMAREDDY. | E55: 9 | G55: 1 | K55: 1 | O55: 1 | S55: 1 | W55: 1 | AA55: 1 | AE55: 1 | AI55: 1 | AM55: 1 | AQ55: 1 | AU55: 1 | AY55: 1 | BC55: 1 | BG55: 1 | BO55: 1 | BS55: 1 | BW55: 1 | CA55: 1 | CE55: 1 | CH55: 1 | CL55: 1 | CP55: 1 | CT55: 1 | CX55: 1 | DB55: 1 | DF55: 1 | DJ55: 1 | DN55: 1 | DR55: 1 | DV55: 1 | DZ55: 11 | EA55: 19 | EB55: 0 | EC55: 0
A56: 48 | B56: NAKSH503111TSBH09942 | C56: NAKSHATRA HOSPITAL | D56: OPP: SRI SAI KRISHNA HOSPITAL, PARSHI RAMULU FUNCTION HALL ROAD, ASHOK NAGAR COLONY, OPPOSITE LANE OF BUS STAND, KAMAREDDY | E56: 9 | G56: 2 | K56: 2 | O56: 2 | S56: 2 | W56: 2 | AE56: 2 | AI56: 2 | AM56: 2 | AQ56: 2 | AU56: 2 | AY56: 2 | BC56: 2 | BG56: 2 | BO56: 2 | BW56: 2 | CA56: 2 | CD56: 2 | CI56: 2 | CL56: 2 | CP56: 2 | CT56: 2 | CX56: 2 | DB56: 2 | DF56: 2 | DJ56: 2 | DN56: 2 | DR56: 2 | DV56: 2 | DZ56: 22 | EA56: 34 | EB56: 0 | EC56: 0
A57: 49 | B57: SVRHO503111TSBH09699 | C57: SVR HOSPITAL | D57: BESIDE: GUNJ GATE, SIRICILLA ROAD, KAMAREDDY | E57: 8 | G57: 2 | K57: 2 | O57: 2 | S57: 2 | W57: 2 | AA57: 1 | AE57: 2 | AI57: 2 | AQ57: 2 | AU57: 2 | AY57: 2 | BC57: 2 | BG57: 2 | BO57: 2 | BS57: 2 | BW57: 2 | CA57: 2 | CE57: 2 | CH57: 2 | CL57: 2 | CP57: 1 | CQ57: 2 | CT57: 2 | CX57: 2 | DB57: 2 | DF57: 2 | DJ57: 2 | DN57: 2 | DR57: 2 | DV57: 2 | DZ57: 21 | EA57: 37 | EB57: 0 | EC57: 0
A58: 50 | B58: DRPSU503111TSBH07067 | C58: DR. P SUDARSHAN RAJ CLINIC | D58: Dr. P. SUDARSHAN RAJ, H.NO. 1-9-53, MUSHRIF BHAGH, KAMAREDDY | E58: 6 | G58: 1 | K58: 1 | O58: 1 | S58: 1 | W58: 1 | AA58: 1 | AE58: 1 | AI58: 1 | AM58: 1 | AQ58: 1 | AU58: 1 | AY58: 1 | BC58: 1 | BG58: 1 | BK58: 1 | BO58: 1 | BR58: 1 | BV58: 1 | BZ58: 1 | CD58: 1 | CH58: 1 | CL58: 1 | CP58: 1 | CT58: 1 | CX58: 1 | DB58: 1 | DF58: 1 | DJ58: 1 | DN58: 1 | DR58: 1 | DV58: 1 | DZ58: 15 | EA58: 16 | EB58: 0 | EC58: 0
A59: 51 | B59: AMRUT503111TSBH07827 | C59: AMRUTHA CHILDRENS HOSPITAL | D59: Dr. K. VEERESH,BESIDE MUNICIPAL OFFICE,KAMAREDDY | E59: 5 | G59: 1 | K59: 1 | O59: 1 | S59: 1 | W59: 1 | AA59: 1 | AE59: 1 | AI59: 1 | AM59: 2 | AQ59: 1 | AU59: 1 | AY59: 1 | BC59: 1 | BF59: 1 | BJ59: 1 | BN59: 1 | BR59: 1 | BV59: 1 | BZ59: 1 | CH59: 1 | CL59: 1 | CP59: 1 | CT59: 1 | CX59: 1 | DB59: 1 | DF59: 1 | DJ59: 1 | DN59: 1 | DR59: 1 | DV59: 1 | DZ59: 17 | EA59: 14 | EB59: 0 | EC59: 0
A60: 52 | B60: JAGRU503111TSBH09903 | C60: JAGRUTHI HOSPITAL | D60: Dr. RAJA MOHAN REDDY, 1-5-98, Tilak Rd, GODOWN ROAD, KAMAREDDY | E60: 5 | G60: 1 | K60: 1 | O60: 1 | AE60: 1 | AI60: 1 | CI60: 1 | CM60: 1 | CQ60: 1 | CU60: 1 | CY60: 1 | DC60: 1 | DG60: 1 | DK60: 1 | DO60: 1 | DS60: 1 | DZ60: 0 | EA60: 15 | EB60: 0 | EC60: 0
A61: 53 | B61: SAIRA503111TSBH08388 | C61: SAIRAM GENERAL & SKIN HOSPITAL | D61: NEAR RAILWAY BRIDGE, BESIDE AMBEDKAR MURTHY, KAMAREDDY | E61: 5 | G61: 1 | K61: 1 | O61: 1 | S61: 1 | W61: 1 | AA61: 1 | AE61: 1 | AI61: 1 | AM61: 1 | AQ61: 1 | AT61: 1 | AX61: 1 | BB61: 1 | BF61: 2 | BN61: 1 | BR61: 1 | BV61: 1 | BZ61: 1 | CD61: 1 | CH61: 1 | CL61: 1 | CP61: 1 | CX61: 1 | DB61: 1 | DF61: 1 | DJ61: 1 | DN61: 1 | DV61: 1 | DZ61: 19 | EA61: 10 | EB61: 0 | EC61: 0
A62: 54 | B62: VAISH503111TSBH09700 | C62: VAISHNAVI HOSPITAL | D62: Dr. M. SRIDHAR, H.No.1-5-255/A, RAMAREDDY ROAD, KAMAREDDY | E62: 5 | F62: 2 | J62: 2 | N62: 2 | R62: 2 | V62: 2 | Z62: 2 | AD62: 2 | AH62: 2 | AL62: 2 | AP62: 2 | AT62: 2 | AX62: 2 | BB62: 2 | BF62: 2 | BN62: 2 | BR62: 2 | BV62: 2 | BZ62: 2 | CD62: 2 | CI62: 2 | CL62: 2 | CP62: 2 | CT62: 2 | CX62: 2 | DB62: 2 | DG62: 2 | DK62: 2 | DO62: 2 | DS62: 2 | DW62: 2 | DZ62: 48 | EA62: 12 | EB62: 0 | EC62: 0
A63: 55 | B63: VISHN503111TSBH01099 | C63: VISHNU ENT HOSPITAL | D63: Dr. N. HARISH KUMAR,RAMAREDDY ROAD, KAMAREDDY | E63: 5 | G63: 1 | K63: 2 | O63: 1 | S63: 1 | W63: 1 | AA63: 1 | AE63: 1 | AI63: 1 | AM63: 1 | AQ63: 1 | AT63: 1 | AX63: 1 | BC63: 1 | BF63: 1 | BJ63: 1 | BN63: 1 | BR63: 1 | BV63: 1 | BZ63: 1 | CH63: 1 | CL63: 1 | CP63: 1 | CT63: 1 | CX63: 1 | DB63: 1 | DF63: 1 | DJ63: 1 | DN63: 1 | DR63: 1 | DV63: 1 | DZ63: 19 | EA63: 12 | EB63: 0 | EC63: 0
A64: 56 | B64: DRSHI503111TSBH09943 | C64: DR. SHIVA PRASAD CLINIC | D64: Kovuru Bhoomaiah, Parsi Kamshetty & Co., Ghandhi Gunj, KAMAREDDY | E64: 4 | DZ64: 0 | EA64: 0 | EB64: 0 | EC64: 0
A65: 57 | B65: BASHE503111TSBH01034 | C65: BASHEERUDDIN MEMORIAL HOSPITAL (ZIYAVDDIN) | D65: Dr.MOHD. RIAZZUDDIN, KAMAREDDY | E65: 1 | G65: 1 | K65: 1 | O65: 1 | S65: 1 | W65: 1 | AA65: 1 | AE65: 1 | AI65: 1 | AM65: 1 | AQ65: 1 | AU65: 1 | AY65: 1 | BC65: 1 | BG65: 1 | BJ65: 1 | BN65: 1 | BR65: 1 | BV65: 1 | BZ65: 1 | CD65: 1 | CH65: 1 | CL65: 1 | CP65: 1 | CT65: 1 | CX65: 1 | DB65: 1 | DF65: 1 | DJ65: 1 | DN65: 1 | DR65: 1 | DV65: 1 | DZ65: 17 | EA65: 14 | EB65: 0 | EC65: 0
A66: 58 | B66: SRIVE503111TSBH01030 | C66: SRI VENKATA SAI SCAN'S | D66: HNO.1-5-68/A, GODOWN ROAD, KAMAREDDY | E66: 1 | G66: 2 | K66: 2 | O66: 1 | S66: 1 | W66: 1 | AA66: 1 | AE66: 1 | AI66: 1 | AU66: 1 | AY66: 1 | BC66: 1 | BG66: 1 | BO66: 1 | BR66: 1 | BV66: 1 | BZ66: 1 | CD66: 1 | CH66: 1 | CL66: 1 | CP66: 1 | CT66: 1 | CX66: 1 | DB66: 1 | DF66: 1 | DJ66: 1 | DN66: 1 | DR66: 1 | DV66: 1 | DZ66: 15 | EA66: 15 | EB66: 0 | EC66: 0
A67: 59 | B67: SRINI503111TSBH01044 | C67: SRINIVASA POLY CLINIC | D67: MAIN ROAD, KAMAREDDY | E67: 1 | G67: 1 | K67: 1 | O67: 1 | S67: 1 | W67: 1 | AA67: 1 | AE67: 1 | AI67: 1 | AM67: 1 | AQ67: 1 | AT67: 1 | AX67: 1 | BC67: 1 | BF67: 1 | BN67: 1 | BR67: 1 | BV67: 1 | BZ67: 1 | CD67: 1 | CH67: 1 | CL67: 1 | CP67: 1 | CT67: 1 | CX67: 1 | DB67: 1 | DF67: 1 | DJ67: 1 | DN67: 1 | DR67: 1 | DV67: 1 | DZ67: 19 | EA67: 11 | EB67: 0 | EC67: 0
A68: 60 | B68: LIONS503111TSBH09978 | C68: LIONS EYE HOSPITAL (V.T. THAKUR MEMORIAL) | D68: BESIDE KAMAREDDY EYE HOSPITAL, BATUKAMMA KUNTA, GODOWN ROAD, KAMAREDDY | E68: 10 | G68: 2 | K68: 2 | O68: 2 | S68: 2 | W68: 2 | AA68: 2 | AE68: 2 | AI68: 2 | AM68: 3 | AQ68: 2 | AT68: 1 | AU68: 2 | AX68: 1 | AY68: 2 | BC68: 2 | BG68: 2 | BK68: 2 | BO68: 2 | BS68: 2 | BW68: 2 | CA68: 2 | CD68: 1 | CE68: 2 | CI68: 2 | CM68: 2 | CQ68: 2 | CT68: 2 | CX68: 2 | DB68: 2 | DF68: 2 | DJ68: 2 | DN68: 2 | DR68: 2 | DV68: 2 | DZ68: 19 | EA68: 47 | EB68: 0 | EC68: 0
A69: 61 | B69: V.T.T503111TSBH01180 | C69: V T THAKUR BLOOD BANK | D69: BESIDE VT THAKUR LIONS EYE HOSPITAL, GODOWN ROAD,KAMAREDDY | E69: 1 | G69: 1 | K69: 1 | O69: 1 | S69: 1 | W69: 1 | AA69: 1 | AE69: 1 | AI69: 1 | AQ69: 1 | BC69: 1 | BF69: 1 | BN69: 1 | BR69: 1 | BV69: 1 | BZ69: 1 | CH69: 1 | CL69: 1 | CP69: 1 | CT69: 1 | CX69: 1 | DB69: 1 | DF69: 1 | DJ69: 1 | DN69: 1 | DR69: 1 | DV69: 1 | DZ69: 16 | EA69: 10 | EB69: 0 | EC69: 0
A70: 62 | B70: SRIBA503111TSCL09944 | C70: SRI BALAJI SKIN & ENT HOSPITAL | D70: DR. MURALI KONDA, BESIDE T. BHAIRAIAH HOSPITAL, GODOWN ROAD, KAMAREDDY | E70: 0 | G70: 1 | K70: 1 | O70: 1 | S70: 2 | W70: 2 | AA70: 1 | AE70: 1 | AI70: 1 | AM70: 1 | AQ70: 1 | AU70: 1 | AY70: 1 | BC70: 1 | BG70: 1 | BK70: 1 | BO70: 1 | BS70: 1 | BW70: 1 | CA70: 1 | CE70: 1 | CI70: 1 | CM70: 1 | CP70: 1 | CT70: 1 | CX70: 1 | DB70: 1 | DF70: 1 | DJ70: 1 | DN70: 1 | DR70: 1 | DV70: 1 | DZ70: 9 | EA70: 24 | EB70: 0 | EC70: 0
A71: 63 | B71: BHAIR503111TSPL09945 | C71: BHAIRAVA DIAGNOSTIC CENTRE | D71: GODOWN ROAD, BESIDE DR. NARENDER RAO CHILDRENS HOSPITAL, BESIDE INDIRA SCANNING CENTER,KAMAREDDY | E71: 0 | G71: 1 | K71: 1 | O71: 1 | S71: 1 | W71: 1 | AA71: 1 | AE71: 1 | AI71: 1 | AM71: 1 | AQ71: 1 | AU71: 1 | AY71: 1 | BC71: 1 | BG71: 1 | BK71: 1 | BO71: 1 | BS71: 1 | CE71: 1 | CI71: 1 | CM71: 1 | CQ71: 1 | CU71: 1 | CX71: 1 | DB71: 1 | DF71: 1 | DJ71: 1 | DN71: 1 | DR71: 1 | DV71: 1 | DZ71: 7 | EA71: 22 | EB71: 0 | EC71: 0
A72: 64 | B72: DRBBA503111TSCL09946 | C72: DR. B BALRAJ CLINIC | D72: Dr. B.BAL RAJ, GOPAL SWAMY ROAD, KAMAREDDY | E72: 0 | G72: 1 | K72: 1 | O72: 1 | S72: 1 | W72: 1 | AA72: 1 | AE72: 1 | AI72: 1 | AM72: 1 | AQ72: 1 | AU72: 1 | AY72: 1 | BC72: 1 | BG72: 1 | BO72: 1 | BS72: 1 | BW72: 1 | CA72: 1 | CE72: 1 | CI72: 1 | CM72: 1 | CQ72: 1 | CU72: 1 | CY72: 1 | DC72: 1 | DG72: 1 | DK72: 1 | DO72: 1 | DS72: 1 | DW72: 1 | DZ72: 0 | EA72: 30 | EB72: 0 | EC72: 0
A73: 65 | B73: DRHAN503111TSCL09947 | C73: HANUMANTHA RAO GOJE CLINIC | D73: Dr.HANUMANTHA RAO GOJE, BESIDE SANDEEPANI JR. COLLEGE, BESIDE BUS DEPOT, MAIN ROAD, KAMAREDDY | E73: 0 | G73: 1 | K73: 1 | O73: 1 | S73: 1 | W73: 1 | AA73: 2 | AE73: 1 | AI73: 1 | AM73: 1 | AQ73: 1 | AU73: 1 | AY73: 1 | BC73: 1 | BG73: 1 | BO73: 1 | BS73: 2 | BW73: 1 | CA73: 1 | CE73: 1 | CI73: 1 | CM73: 1 | CQ73: 1 | CU73: 1 | CY73: 1 | DC73: 1 | DG73: 1 | DK73: 1 | DO73: 1 | DS73: 1 | DW73: 1 | DZ73: 0 | EA73: 32 | EB73: 0 | EC73: 0
A74: 66 | B74: INDHR503111TSBH01035 | C74: INDHRANI DIAGNOSTIC CENTRE | D74: C/O AREA HOSPITAL,KAMAREDDY. | E74: 0 | G74: 1 | K74: 1 | O74: 1 | S74: 1 | W74: 1 | AA74: 1 | AE74: 1 | AI74: 1 | AM74: 1 | AQ74: 1 | AU74: 1 | AY74: 1 | BC74: 1 | BG74: 1 | BO74: 1 | BS74: 1 | BW74: 1 | CA74: 1 | CE74: 1 | CI74: 1 | CM74: 1 | CQ74: 1 | CU74: 1 | CY74: 1 | DC74: 1 | DG74: 1 | DK74: 1 | DO74: 1 | DS74: 1 | DW74: 1 | DZ74: =F74+J74+N74+R74+V74+Z74+AD74+AH74+AL74+AP74+AT74+AX74+BB74+BF74+BJ74+BN74+BR74+BV74+BZ74+CD74+CH74+CL74+CP74+CT74+CX74+DB74+DF74+DJ74+DN74+DR74+DV74 -> 0 | EA74: =G74+K74+O74+S74+W74+AA74+AE74+AI74+AM74+AQ74+AU74+AY74+BC74+BG74+BK74+BO74+BS74+BW74+CA74+CE74+CI74+CM74+CQ74+CU74+CY74+DC74+DG74+DK74+DO74+DS74+DW74 -> 30 | EB74: =H74+L74+P74+T74+X74+AB74+AF74+AJ74+AN74+AR74+AV74+AZ74+BD74+BH74+BL74+BP74+BT74+BX74+CB74+CF74+CJ74+CN74+CR74+CV74+CZ74+DD74+DH74+DL74+DP74+DT74 -> 0 | EC74: =I74+M74+Q74+U74+Y74+AC74+AG74+AK74+AO74+AS74+AW74+BA74+BE74+BI74+BM74+BQ74+BU74+BY74+CC74+CG74+CK74+CO74+CS74+CW74+DA74+DE74+DI74+DM74+DQ74+DU74 -> 0
A75: 67 | B75: MEDIC503111TSPL09948 | C75: MEDICARE X-RAY & DIAGNOSTIC CENTRE | D75: OPP: SRI KRISHNA EYE HOSPITAL, GODOWN ROAD, KAMAREDDY | E75: 0 | G75: 1 | K75: 1 | O75: 1 | S75: 1 | W75: 1 | AA75: 1 | AE75: 1 | AI75: 1 | AM75: 1 | AQ75: 1 | AU75: 1 | AY75: 1 | BC75: 1 | BG75: 1 | BK75: 1 | BO75: 1 | BS75: 1 | BW75: 1 | CA75: 1 | CE75: 1 | CI75: 1 | CT75: 1 | CX75: 1 | DB75: 1 | DF75: 1 | DJ75: 1 | DN75: 1 | DR75: 1 | DV75: 1 | DZ75: 8 | EA75: 21 | EB75: 0 | EC75: 0
A76: 68 | B76: POOJA503111TSPL09949 | C76: POOJA DIAGNOSTIC CENTRE | D76: MD PARVEZ, 1-3-17, Madina Masjid Rd, BEHIND GODOWNS, GODOWN ROAD, KAMAREDDY | E76: 0 | G76: 2 | K76: 2 | O76: 2 | S76: 2 | W76: 2 | AA76: 1 | AE76: 2 | AI76: 2 | AM76: 2 | AQ76: 2 | AU76: 2 | AY76: 2 | BC76: 2 | BG76: 2 | BK76: 2 | BO76: 2 | BS76: 2 | BW76: 2 | CA76: 2 | CE76: 2 | CI76: 1 | CM76: 2 | CQ76: 2 | CU76: 1 | CX76: 2 | DB76: 2 | DF76: 2 | DJ76: 2 | DN76: 2 | DR76: 2 | DV76: 2 | DZ76: 14 | EA76: 45 | EB76: 0 | EC76: 0
A77: 69 | B77: SADAS503111TSPL09776 | C77: SADASHIVA DIAGNOSTIC CENTER | D77: OPP: R.K. CHILDREN'S HOSPITAL, NETHAJI ROAD, KAMAREDDY | E77: 0 | G77: 1 | K77: 1 | O77: 1 | S77: 1 | W77: 1 | AA77: 1 | AE77: 1 | AI77: 1 | AM77: 1 | AQ77: 1 | AU77: 1 | AY77: 1 | BC77: 1 | BG77: 1 | BO77: 1 | BS77: 1 | BW77: 1 | CA77: 1 | CE77: 1 | CH77: 1 | CM77: 1 | CP77: 1 | CT77: 1 | CX77: 1 | DB77: 1 | DF77: 1 | DJ77: 1 | DN77: 1 | DR77: 1 | DV77: 2 | DZ77: 11 | EA77: 20 | EB77: 0 | EC77: 0
A78: 70 | B78: SEVAS503111TSBH01043 | C78: SEVASADAN DIAGNOSTIC CENTRE | D78: SRI KALABHAIRAVA COMPLEX, DAILY MARKET ROAD, KAMAREDDY. | E78: 0 | G78: 1 | K78: 1 | O78: 1 | S78: 1 | W78: 1 | AA78: 1 | AE78: 1 | AI78: 1 | AM78: 1 | AQ78: 1 | AT78: 1 | AX78: 1 | BC78: 1 | BF78: 1 | BN78: 1 | BR78: 1 | BV78: 1 | BZ78: 1 | CD78: 1 | CH78: 1 | CL78: 1 | CP78: 1 | CT78: 1 | CX78: 1 | DB78: 1 | DF78: 1 | DJ78: 1 | DN78: 1 | DR78: 1 | DV78: 1 | DZ78: 19 | EA78: 11 | EB78: 0 | EC78: 0
A79: 71 | B79: SHESH503111TSCL09950 | C79: SHESHADRI SKIN HOSPITAL | D79: OPP: ANDHRA BANK, BESIDE NEW BUS STAND, R.K. LODGE ROAD, NGO'S COLONY, KAMAREDDY | E79: 0 | G79: 1 | O79: 1 | S79: 1 | W79: 1 | AA79: 1 | AE79: 1 | AI79: 1 | AM79: 1 | AQ79: 1 | AU79: 1 | AY79: 1 | BC79: 1 | BG79: 1 | BK79: 1 | BO79: 1 | BS79: 1 | BW79: 1 | CA79: 1 | CE79: 1 | CI79: 2 | CM79: 1 | CQ79: 1 | CU79: 1 | CX79: 1 | DB79: 1 | DF79: 1 | DJ79: 1 | DN79: 1 | DR79: 1 | DV79: 1 | DZ79: 7 | EA79: 24 | EB79: 0 | EC79: 0
A80: 72 | B80: SPARS503111TSNH09901 | C80: SPARSHA SKIN & ENT HOSPITAL | D80: DR SANDEEP KUMAR RAVIRALA & DR B. SAKETH, 1-5-18, NEAR JAGRUTHI HOSPITAL, TILAK ROAD, GODOWN ROAD, KAMAREDDY. | E80: 0 | G80: 1 | K80: 1 | O80: 1 | S80: 1 | W80: 1 | AA80: 1 | AE80: 1 | AI80: 1 | AM80: 1 | AQ80: 1 | AU80: 1 | AY80: 1 | BC80: 1 | BG80: 1 | BK80: 1 | BO80: 1 | BS80: 1 | BW80: 1 | CA80: 1 | CE80: 1 | CI80: 1 | CM80: 1 | CQ80: 1 | CT80: 1 | CX80: 1 | DB80: 1 | DF80: 1 | DJ80: 1 | DN80: 1 | DR80: 1 | DV80: 1 | DZ80: 8 | EA80: 23 | EB80: 0 | EC80: 0
A81: 73 | B81: SRISA503111TSCL09951 | C81: SRI SAI CLINIC | D81: Dr. B.M. MALLIKARJUN,PEDDA BAZAR, KAMAREDDY | E81: 0 | G81: 1 | K81: 1 | O81: 1 | S81: 1 | W81: 1 | AA81: 1 | AE81: 1 | AI81: 1 | AM81: 1 | AQ81: 1 | AU81: 1 | AY81: 1 | BC81: 1 | BG81: 1 | BK81: 1 | BO81: 1 | BS81: 1 | BW81: 1 | CA81: 1 | CE81: 1 | CI81: 1 | CM81: 1 | CP81: 1 | CT81: 1 | CX81: 1 | DB81: 1 | DF81: 1 | DJ81: 1 | DN81: 1 | DR81: 1 | DV81: 1 | DZ81: 9 | EA81: 22 | EB81: 0 | EC81: 0
A82: 74 | B82: SRISA503111TSPL08474 | C82: SRI SAI DIAGNOSTIC CENTRE | D82: H.NO. 1-4-31, BESIDE LIONS EYE HOSPITAL, BATHUKAMMAKUNTA, GODOWN ROAD, KAMAREDDY | E82: 0 | G82: 1 | K82: 1 | O82: 1 | S82: 1 | W82: 1 | AA82: 1 | AE82: 1 | AI82: 1 | AM82: 1 | AQ82: 1 | AU82: 1 | AY82: 1 | BC82: 1 | BG82: 1 | BN82: 1 | BR82: 1 | BV82: 1 | BZ82: 1 | CD82: 1 | CH82: 1 | CL82: 1 | CP82: 1 | CT82: 1 | CX82: 1 | DB82: 1 | DF82: 1 | DJ82: 1 | DN82: 1 | DR82: 1 | DV82: 1 | DZ82: 16 | EA82: 14 | EB82: 0 | EC82: 0
A83: 75 | B83: SUNRI503111TSPL08461 | C83: SUNRISE SCANNING & DIAGNOSTIC CENTRE | D83: BESIDE DR. NARENDER RAO CHILDRENS HOSPITAL, GODOWN ROAD, KAMAREDDY,Kamareddy ( U ),Kamareddy,KAMAREDDY,503111 | E83: 0 | G83: 2 | K83: 2 | O83: 2 | S83: 2 | W83: 2 | AA83: 2 | AE83: 2 | AI83: 2 | AM83: 2 | AQ83: 2 | AT83: 2 | AX83: 2 | BC83: 2 | BF83: 2 | BN83: 2 | BR83: 2 | BV83: 2 | BZ83: 2 | CD83: 2 | CH83: 2 | CL83: 2 | CP83: 2 | CT83: 2 | CX83: 2 | DB83: 2 | DF83: 2 | DJ83: 2 | DN83: 2 | DR83: 2 | DV83: 2 | DZ83: 38 | EA83: 22 | EB83: 0 | EC83: 0
A84: 76 | B84: SREEV503111TSCL09952 | C84: SREE VINAYAKA SKIN CLINIC | D84: Dr.SRINIVAS BABU, BESIDE SANDEEPANI JUNIOR COLLEGE, OPP: NEW BUS STAND, SRI RAM NAGAR COLONY, KAMAREDDY | E84: 0 | G84: 1 | K84: 1 | O84: 1 | S84: 1 | W84: 1 | AA84: 1 | AE84: 1 | AI84: 1 | AM84: 1 | AQ84: 1 | AU84: 1 | AY84: 1 | BC84: 1 | BG84: 1 | BK84: 1 | BS84: 1 | BW84: 1 | CA84: 1 | CE84: 1 | CI84: 1 | CM84: 1 | CP84: 1 | CT84: 1 | CX84: 1 | DB84: 1 | DF84: 1 | DJ84: 1 | DN84: 1 | DR84: 1 | DV84: 1 | DZ84: 9 | EA84: 21 | EB84: 0 | EC84: 0
A85: 77 | B85: VINAY503111TSCL09762 | C85: VINAYAKA SKIN CLINIC, KAMAREDDY | D85: DR. AMIT KOLLI, OPP: NEW BUS STAND, SRI RAM NAGAR COLONY, KAMAREDDY | E85: 0 | G85: 1 | K85: 1 | O85: 1 | S85: 1 | W85: 1 | AA85: 1 | AE85: 1 | AI85: 1 | AM85: 1 | AQ85: 1 | AU85: 1 | AY85: 1 | BC85: 1 | BG85: 1 | BN85: 1 | BS85: 1 | BW85: 1 | CA85: 1 | CD85: 1 | CI85: 1 | CM85: 1 | CP85: 1 | CT85: 1 | CX85: 1 | DB85: 1 | DJ85: 1 | DS85: 1 | DV85: 1 | DZ85: 8 | EA85: 20 | EB85: 0 | EC85: 0
A86: 78 | B86: SHIVA503111TSBH00956 | C86: SHIVA SAI MULTISPECIALITY DENTAL CLINIC | D86: HNO:-1-7-73,THILK ROAD,KAMAREDDY | E86: 5 | G86: 1 | K86: 1 | O86: 1 | S86: 1 | T86: 1 | W86: 1 | AA86: 1 | AE86: 1 | AI86: 1 | AM86: 1 | AQ86: 1 | AT86: 1 | AX86: 1 | BC86: 1 | BF86: 1 | BN86: 1 | BR86: 1 | BV86: 1 | BZ86: 1 | CD86: 1 | CH86: 1 | CL86: 1 | CP86: 1 | CT86: 1 | CX86: 1 | DB86: 1 | DF86: 1 | DJ86: 1 | DN86: 1 | DR86: 1 | DV86: 1 | DZ86: 19 | EA86: 11 | EB86: 1 | EC86: 0
A87: 79 | B87: SRIRA503111TSBH09934 | C87: SRI RAMA MULTI SPECIALITY DENTAL H. | D87: Dr. M. MALLIKARJUN GUPTA COMPLEX, BESIDE MUNICIPAL OFFICE, KAMAREDDY | E87: 5 | F87: 2 | G87: 1 | J87: 2 | K87: 1 | N87: 2 | O87: 1 | R87: 2 | S87: 3 | V87: 1 | W87: 2 | Z87: 2 | AA87: 2 | AD87: 2 | AE87: 2 | AH87: 2 | AI87: 2 | AL87: 2 | AM87: 1 | AQ87: 1 | AU87: 1 | AY87: 1 | BC87: 1 | BG87: 1 | BK87: 1 | BO87: 3 | BS87: 1 | BW87: 1 | CA87: 1 | CE87: 1 | CH87: 2 | CI87: 1 | CL87: 2 | CM87: 1 | CP87: 3 | CT87: 2 | CX87: 1 | DB87: 1 | DF87: 1 | DJ87: 1 | DN87: 1 | DO87: 2 | DR87: 1 | DV87: 1 | DW87: 2 | DZ87: 33 | EA87: 34 | EB87: 0 | EC87: 0
A88: 80 | B88: SRIVE503111TSBH06155 | C88: SRI VENKATESHWARA MULTI SPECIALITY DENTAL & COSMETIC CLINIC | D88: Dr. R. BHARGAVI, HNO:5-3-447, SREE VENKATA NIVAASAM, VIDYA NAGAR COLONY, KAMAREDDY | E88: 5 | G88: 1 | K88: 1 | O88: 1 | S88: 1 | W88: 1 | AA88: 1 | AE88: 1 | AI88: 1 | AM88: 1 | AQ88: 1 | AU88: 1 | AY88: 1 | BC88: 1 | BG88: 1 | BO88: 1 | BR88: 1 | BV88: 1 | BZ88: 1 | CD88: 1 | CH88: 1 | CL88: 1 | CP88: 1 | CT88: 1 | CX88: 1 | DB88: 1 | DF88: 1 | DJ88: 1 | DN88: 1 | DR88: 1 | DV88: 1 | DZ88: 15 | EA88: 15 | EB88: 0 | EC88: 0
A89: 81 | B89: NIZAM503111TSBH09953 | C89: NIZAMABAD SUPER SPECIALITY DENTAL HOSPITAL | D89: Dr.V. CHANDRA SEKHAR,OPP: MUNICIPAL OFFICE,GOWTHAM MODEL SCHOOL COMPLEX, KAMAREDDY | E89: 2 | G89: 1 | K89: 2 | O89: 1 | S89: 1 | W89: 1 | AA89: 1 | AE89: 1 | AI89: 1 | AM89: 1 | AQ89: 1 | AU89: 1 | AY89: 1 | BC89: 1 | BG89: 1 | BK89: 1 | BO89: 1 | BS89: 1 | BW89: 1 | CA89: 1 | CE89: 1 | CH89: 1 | CM89: 1 | CP89: 1 | CT89: 1 | CX89: 1 | DB89: 1 | DF89: 1 | DJ89: 1 | DN89: 1 | DR89: 1 | DV89: 1 | DZ89: 10 | EA89: 22 | EB89: 0 | EC89: 0
A90: 82 | B90: SRISA503111TSBH09954 | C90: SRI SAI KRUPA COSMETIC MULTI SPECIALITY & DENTAL CARE | D90: Dr. K. ASHOK KUMAR,NEAR RAILWAY BRIDGE,PEDDA BAZAR, KAMAREDDY | E90: 2 | DZ90: 0 | EA90: 0 | EB90: 0 | EC90: 0
A91: 83 | B91: SUSHE503111TSBH09955 | C91: SUSHEELA DENTAL SPECIALITIES | D91: NEAR RAILWAY BRIDGE, BESIDE AMBEDKAR MURTHY, KAMAREDDY | E91: 2 | G91: 1 | K91: 1 | O91: 1 | S91: 1 | W91: 1 | AA91: 1 | AE91: 1 | AI91: 1 | AM91: 1 | AQ91: 1 | AU91: 1 | AY91: 1 | BC91: 1 | BG91: 1 | BK91: 1 | BO91: 1 | BS91: 1 | BW91: 1 | CA91: 1 | CE91: 1 | CI91: 1 | CL91: 1 | CP91: 1 | CT91: 1 | CX91: 1 | DB91: 1 | DF91: 1 | DJ91: 1 | DN91: 1 | DR91: 1 | DV91: 1 | DZ91: 10 | EA91: 21 | EB91: 0 | EC91: 0
A92: 84 | B92: SRMUL503111TSBH09956 | C92: SR MULTI SPECIALITY DENTAL HOSPITAL | D92: Dr.MD.IMAMUDDIN, GODWN ROAD, KAMAREDDY | E92: 1 | G92: 1 | K92: 1 | O92: 1 | S92: 1 | W92: 1 | AA92: 1 | AE92: 1 | AI92: 1 | AM92: 1 | AQ92: 1 | AU92: 1 | AY92: 1 | BC92: 1 | BG92: 1 | BK92: 1 | BO92: 1 | BS92: 1 | BW92: 1 | CA92: 1 | CE92: 1 | CI92: 1 | CM92: 1 | CP92: 1 | CT92: 1 | CX92: 1 | DB92: 1 | DF92: 1 | DJ92: 1 | DN92: 1 | DR92: 1 | DV92: 1 | DZ92: 9 | EA92: 22 | EB92: 0 | EC92: 0
A93: 85 | B93: SMILE503111TSBH09957 | C93: SMILE CARE DENTAL HOSPITAL | D93: Dr. A VINOD KUMAR, BESIDE REYMOND'S SHOP, NEAR SANDEEPANI JUNIOR COLLEGE, PRIYA THEATRE X ROAD, NEW BUS STAND ROAD, KAMAREDDY | E93: 1 | G93: 1 | K93: 1 | O93: 1 | S93: 1 | W93: 1 | AA93: 1 | AE93: 1 | AI93: 1 | AM93: 1 | AQ93: 1 | AU93: 1 | AY93: 1 | BC93: 1 | BG93: 1 | BK93: 1 | BO93: 1 | BS93: 1 | BW93: 1 | CA93: 1 | CE93: 1 | CI93: 1 | CM93: 1 | CP93: 1 | CX93: 1 | DB93: 1 | DF93: 1 | DJ93: 1 | DN93: 1 | DR93: 1 | DV93: 1 | DZ93: 8 | EA93: 22 | EB93: 0 | EC93: 0
A94: 86 | B94: CARED503111TSDH09778 | C94: CARE DENTAL CLINIC | D94: DR. MD. SAJID, D.NO.1-2-50, SIRICILLA ROAD, KAMAREDDY | E94: 0 | G94: 1 | K94: 1 | O94: 1 | S94: 1 | W94: 1 | AA94: 1 | AE94: 1 | AI94: 1 | AM94: 1 | AQ94: 1 | AU94: 1 | AY94: 1 | BC94: 1 | BG94: 1 | BO94: 1 | BS94: 1 | BW94: 1 | CA94: 1 | CE94: 1 | CH94: 1 | CM94: 1 | CP94: 1 | CT94: 1 | CX94: 1 | DB94: 1 | DF94: 1 | DJ94: 1 | DN94: 1 | DR94: 1 | DV94: 1 | DZ94: 10 | EA94: 20 | EB94: 0 | EC94: 0
A95: 87 | B95: GAYAT503111TSDH09764 | C95: GAYATHRI MULTISPECIALITY DENTAL CLINIC | D95: CSI COMPLEX, BESIDE CSI CHURCH, NEW BUS STAND, KAMAREDDY | E95: 0 | G95: 1 | K95: 1 | O95: 1 | S95: 1 | W95: 1 | AA95: 1 | AE95: 1 | AI95: 1 | AM95: 1 | AQ95: 1 | AU95: 1 | AY95: 1 | BC95: 1 | BG95: 1 | BO95: 1 | BS95: 1 | BW95: 1 | CA95: 1 | CE95: 1 | CI95: 1 | CM95: 1 | CP95: 1 | CT95: 1 | CX95: 1 | DB95: 1 | DF95: 1 | DJ95: 1 | DN95: 1 | DR95: 1 | DV95: 1 | DZ95: 9 | EA95: 21 | EB95: 0 | EC95: 0
A96: 88 | B96: TELAN503111TSDH09777 | C96: TELANGANA DENTAL HOSPITAL | D96: DR.MD SAJID, NIZAMSAGAR X ROADS, KAMAREDDY | E96: 0 | G96: 1 | K96: 1 | O96: 1 | S96: 1 | W96: 1 | AA96: 1 | AE96: 1 | AI96: 1 | AM96: 1 | AQ96: 1 | AU96: 1 | AY96: 1 | BC96: 1 | BG96: 1 | BO96: 1 | BS96: 1 | BW96: 1 | CA96: 1 | CE96: 1 | CH96: 1 | CM96: 1 | CP96: 1 | CT96: 1 | CX96: 1 | DB96: 1 | DF96: 1 | DJ96: 1 | DN96: 1 | DR96: 1 | DV96: 1 | DZ96: 10 | EA96: 20 | EB96: 0 | EC96: 0
A97: 89 | B97: VASAV503111TSDH09688 | C97: VASAVI DENTAL CARE | D97: Root Canal & Dental Implant Center, Nizamsagar Road, beside Honey Bakers Chowrasta, Kamareddy | E97: 0 | G97: 1 | K97: 1 | O97: 1 | S97: 1 | W97: 1 | AA97: 1 | AE97: 1 | AI97: 1 | AM97: 1 | AQ97: 1 | AU97: 1 | AY97: 1 | BC97: 1 | BG97: 1 | BO97: 1 | BS97: 1 | BW97: 1 | CA97: 1 | CE97: 1 | CH97: 1 | CM97: 1 | CP97: 1 | CT97: 1 | CX97: 1 | DB97: 1 | DF97: 1 | DJ97: 1 | DN97: 1 | DR97: 1 | DV97: 1 | DZ97: 10 | EA97: 20 | EB97: 0 | EC97: 0
A98: 90 | B98: CBNAA503111TSPL09935 | C98: CBNAAT LAB | D98: PHC, DEVANPALLY, BEHIND GOVT. ARTS & SCIENCE DEGREE COLLEGE, KAMAREDDY | E98: 0 | F98: 2 | J98: 2 | N98: 2 | R98: 2 | V98: 2 | Z98: 2 | AD98: 2 | AH98: 2 | AL98: 2 | AP98: 2 | AT98: 2 | AX98: 2 | BB98: 2 | BF98: 2 | BN98: 2 | BR98: 2 | BV98: 2 | BZ98: 2 | CD98: 2 | CH98: 2 | CL98: 2 | CP98: 2 | CT98: 2 | CX98: 2 | DB98: 2 | DF98: 2 | DJ98: 2 | DN98: 2 | DR98: 2 | DV98: 2 | DZ98: 60 | EA98: 0 | EB98: 0 | EC98: 0
A99: 91 | B99: MYTHR503111TSBH09937 | C99: MYTHRI MULTI SPECIALITY HOSPITAL | D99: BESIDE BALAJI HOSPITAL, NEAR BHUPUTRAMMA KALYANA MANDAPAM, GODOWN ROAD, KAMAREDDY | E99: 15 | G99: 1 | K99: 1 | O99: 1 | S99: 1 | W99: 1 | AA99: 1 | AE99: 1 | AI99: 1 | AM99: 1 | AQ99: 1 | AU99: 1 | AY99: 1 | BC99: 1 | BG99: 1 | BK99: 1 | BO99: 1 | BS99: 1 | BW99: 1 | CA99: 1 | CE99: 1 | CI99: 1 | CM99: 1 | CQ99: 1 | CT99: 1 | CX99: 1 | DB99: 1 | DF99: 1 | DJ99: 1 | DN99: 1 | DR99: 1 | DV99: 1 | DZ99: 8 | EA99: 23 | EB99: 0 | EC99: 0
A100: 92 | B100: BHANU503111TSCL09968 | C100: BHANU ORTHOPAEDIC CLINIC | D100: 1-5-47/1, Tilak Rd, opposite Dr Narendar rao children’s hospital, Kamareddy | E100: 0 | G100: 1 | K100: 1 | O100: 2 | S100: 1 | W100: 1 | AA100: 1 | AE100: 1 | AI100: 1 | AM100: 1 | AQ100: 1 | AU100: 1 | AY100: 1 | BC100: 1 | BG100: 1 | BK100: 1 | BO100: 1 | BS100: 1 | BW100: 1 | CA100: 1 | CE100: 1 | CI100: 1 | CM100: 1 | CQ100: 1 | CU100: 1 | CX100: 1 | DB100: 1 | DF100: 1 | DJ100: 1 | DN100: 1 | DR100: 1 | DV100: 1 | DZ100: 7 | EA100: 25 | EB100: 0 | EC100: 0
A101: 93 | B101: VASAV503111TSBH09970 | C101: VASAVI GASTRO & MULTISPECIALITY HOSPITAL, KAMAREDDY | D101: OPP: SBI BANK, NEAR RAILWAY STATION, SIRICILLA ROAD, KAMAREDDY | E101: 10 | DZ101: 0 | EA101: 0 | EB101: 0 | EC101: 0
A102: 94 | B102: BALAJ503111TSDH09971 | C102: BALAJI FAMILY DENTAL CARE | D102: OPP: ANJALI REDDY HOSPITAL, GODOWN ROAD, KAMAREDDY | E102: 0 | G102: 1 | K102: 1 | O102: 1 | S102: 1 | W102: 1 | AA102: 1 | AE102: 1 | AI102: 1 | AM102: 1 | AQ102: 1 | AU102: 1 | AY102: 1 | BC102: 1 | BG102: 1 | BK102: 1 | BO102: 1 | BW102: 1 | CA102: 1 | CE102: 1 | CI102: 1 | CM102: 1 | CQ102: 1 | CU102: 1 | CX102: 1 | DB102: 1 | DF102: 1 | DJ102: 1 | DN102: 1 | DR102: 1 | DV102: 1 | DZ102: 7 | EA102: 23 | EB102: 0 | EC102: 0
A103: 95 | B103: SRIRA503111TSBH09975 | C103: SRI RAMANA MULTISPECIALITY DENTAL CLINIC | D103: DHARMASHALA COMPLEX, CONGRESS OFFICE ROAD, UNIQUE SCHOOL ROAD, GODOWN ROAD, KAMAREDDY | E103: 2 | CU103: 1 | DF103: 2 | DZ103: 2 | EA103: 1 | EB103: 0 | EC103: 0
A104: 96 | B104: CITYN503111TSBH09977 | C104: CITY NEURO SUPER SPECIALITY HOSPITAL | D104: NEAR SREE GANESHA MULTI SPECIALITY HOSPITAL, TILAK ROAD, GODOWN ROAD, KAMAREDDY | E104: 7 | G104: 1 | K104: 1 | O104: 1 | S104: 1 | W104: 1 | AA104: 1 | AE104: 1 | AI104: 1 | AM104: 1 | AQ104: 1 | AU104: 1 | AY104: 1 | BC104: 1 | BG104: 1 | BK104: 1 | BO104: 1 | BS104: 1 | BW104: 1 | CA104: 1 | CE104: 1 | CI104: 1 | CM104: 1 | CP104: 1 | CT104: 1 | CX104: 1 | DB104: 1 | DF104: 1 | DJ104: 1 | DN104: 1 | DR104: 1 | DV104: 1 | DZ104: 9 | EA104: 22 | EB104: 0 | EC104: 0
A105: 97 | B105: RKHOS503111TSBH09979 | C105: R K HOSPITAL (CHILDREN & DENTAL), KAMAREDDY | D105: BESIDE ANJAL REDDY HOSPITAL, NETHAJI ROAD, KAMAREDDY | E105: 10 | G105: 1 | K105: 1 | AA105: 1 | AE105: 1 | AI105: 1 | AM105: 1 | AQ105: 1 | AU105: 1 | AY105: 1 | BC105: 1 | BO105: 1 | BS105: 1 | BW105: 1 | CA105: 1 | CE105: 1 | CI105: 1 | CM105: 1 | CQ105: 1 | CU105: 1 | CX105: 1 | DB105: 1 | DF105: 1 | DJ105: 1 | DN105: 1 | DR105: 1 | DV105: 1 | DZ105: 7 | EA105: 19 | EB105: 0 | EC105: 0
A106: 98 | B106: AJAYH503111TSBH09981 | C106: AJAY HOSPITAL (CHILDRENS & NEONATAL) KAMAREDDY | D106: BESIDE SPARSHA SKIN HOSPITAL & SRI LAXMI HOSPITAL, GODOWN ROAD, KAMAREDDY | E106: 9 | G106: 2 | K106: 2 | O106: 2 | S106: 2 | W106: 2 | AA106: 1 | AE106: 1 | AI106: 1 | AQ106: 1 | AU106: 1 | AY106: 1 | BC106: 1 | BG106: 2 | BK106: 1 | BO106: 1 | BS106: 2 | BW106: 1 | CA106: 1 | CE106: 1 | CI106: 1 | CM106: 1 | CQ106: 1 | CT106: 1 | CX106: 1 | DB106: 1 | DF106: 1 | DJ106: 1 | DN106: 1 | DR106: 1 | DV106: 1 | DZ106: 8 | EA106: 29 | EB106: 0 | EC106: 0
A107: 99 | B107: WALGO503111TSCL09982 | C107: WALGOT BONES HOSPITAL | D107: BESIDE DHARSHAN TALKIES, KAMAREDDY | E107: 0 | G107: 1 | K107: 1 | O107: 1 | S107: 1 | W107: 1 | AA107: 1 | AE107: 1 | AI107: 1 | AM107: 1 | AQ107: 1 | AU107: 1 | AY107: 1 | BC107: 1 | BG107: 1 | BK107: 1 | BO107: 1 | BS107: 1 | BW107: 1 | CA107: 1 | CE107: 1 | CI107: 1 | CM107: 1 | CQ107: 1 | CT107: 1 | CY107: 1 | DC107: 1 | DF107: 1 | DJ107: 1 | DN107: 1 | DR107: 1 | DV107: 1 | DZ107: 6 | EA107: 25 | EB107: 0 | EC107: 0
A108: 100 | B108: LIFEC503111TSPL09983 | C108: LIFE CELL DIAGNOSTICS | D108: NEAR DR. T. BHAIRAIAH HOSPITAL, BESIDE PRATHIBHA HIGH SCHOOL, GODOWN ROAD, KAMAREDDY | E108: 0 | G108: 2 | K108: 2 | O108: 2 | S108: 1 | W108: 1 | AA108: 2 | AE108: 1 | AI108: 1 | AM108: 1 | AQ108: 2 | AU108: 1 | AY108: 1 | BC108: 1 | BG108: 1 | BK108: 1 | BO108: 1 | BS108: 1 | BW108: 2 | CA108: 2 | CE108: 2 | CM108: 1 | CP108: 1 | CT108: 1 | CX108: 1 | DB108: 1 | DF108: 1 | DJ108: 1 | DN108: 1 | DR108: 1 | DV108: 1 | DZ108: 9 | EA108: 29 | EB108: 0 | EC108: 0
A109: 101 | B109: SRIKA503111TSDH09985 | C109: SRIKARA DENTAL CARE (MULTI SPECIALITY) HOSPITAL, KAMAREDDY | D109: OPP: GAYATRI BANK, SIRICILLA ROAD, KAMAREDDY | E109: 0 | K109: 1 | DZ109: 0 | EA109: 1 | EB109: 0 | EC109: 0
A110: 102 | B110: VEDAS503111TSCL09989 | C110: VEDA SKIN HOSPITAL, KAMAREDDY | D110: 1-5-98, Backside of Sparsha Skin Hospital, Tilak Road, Kamareddy, Telangana 503111 | E110: 0 | G110: 1 | K110: 1 | O110: 1 | S110: 1 | W110: 1 | AA110: 1 | AE110: 1 | AI110: 1 | AM110: 1 | AQ110: 1 | AU110: 1 | AY110: 1 | BC110: 1 | BG110: 1 | BK110: 1 | BO110: 1 | BS110: 1 | BW110: 1 | CA110: 1 | CE110: 1 | CI110: 1 | CM110: 1 | CQ110: 1 | CT110: 1 | CX110: 1 | DB110: 1 | DF110: 1 | DJ110: 1 | DN110: 1 | DR110: 1 | DV110: 1 | DZ110: 8 | EA110: 23 | EB110: 0 | EC110: 0
A111: 103 | B111: NAVAJ503111TSBH09992 | C111: NAVAJEEVAN PHYSIOTHERAPY & MULTI REHABILITATION HOSPITAL, KAMAREDDY | D111: OPP: SRI LAXMI HOSPITAL, NEAR SPARSHA SKIN HOSPITAL, GODOWN ROAD, KAMAREDDY | E111: 5 | DZ111: 0 | EA111: 0 | EB111: 0 | EC111: 0
A112: 104 | B112: SADHG503111TSPL10080 | C112: SADHGURU DIAGNOSTIC CENTER | D112: NEAR DR.NARENDER RAO HOSPITAL, GODOWN ROAD, KAMAREDDY | E112: 0 | G112: 1 | K112: 1 | O112: 1 | S112: 1 | W112: 1 | AA112: 1 | AE112: 1 | AI112: 1 | AM112: 1 | AQ112: 1 | AU112: 1 | AY112: 1 | BC112: 1 | BG112: 1 | BO112: 1 | BS112: 1 | BW112: 1 | CA112: 1 | CE112: 1 | CI112: 1 | CM112: 1 | CQ112: 1 | CU112: 1 | CY112: 1 | DC112: 1 | DG112: 1 | DK112: 1 | DO112: 1 | DS112: 1 | DW112: 1 | DZ112: 0 | EA112: 30 | EB112: 0 | EC112: 0
A113: 105 | B113: KAMAR503111TSDH10082 | C113: KAMAREDDY DENTAL CLINIC | D113: DR K. RAJENDER, GODOWN ROAD, KAMAREDDY | E113: 1 | G113: 1 | K113: 1 | O113: 1 | S113: 1 | W113: 1 | AA113: 1 | AE113: 1 | AI113: 1 | AM113: 1 | AQ113: 1 | AU113: 1 | AY113: 1 | BC113: 1 | BG113: 1 | BK113: 1 | BO113: 1 | BS113: 1 | BW113: 1 | CA113: 1 | CD113: 1 | CH113: 1 | CL113: 1 | CP113: 1 | CT113: 1 | CX113: 1 | DB113: 1 | DF113: 1 | DJ113: 1 | DN113: 1 | DR113: 1 | DV113: 1 | DZ113: 12 | EA113: 19 | EB113: 0 | EC113: 0
A114: 106 | C114: CHC BICHKUNDA | D114: BICHKUNDA | E114: 30 | DZ114: 0 | EA114: 0 | EB114: 0 | EC114: 0
A115: 107 | B115: COMMU503123TSBH09984 | C115: COMMUNITY HEALTH CENTRE, DOMAKONDA | D115: NEAR BUS STAND, DOMAKONDA , KAMAREDDY DIST. | E115: 30 | DZ115: 0 | EA115: 0 | EB115: 0 | EC115: 0
A116: 108 | C116: CHC GANDHARI | D116: GANDHARI | E116: 30 | DZ116: 0 | EA116: 0 | EB116: 0 | EC116: 0
A117: 109 | C117: CHC MADHNOOR | D117: MADNOOR | E117: 30 | DZ117: 0 | EA117: 0 | EB117: 0 | EC117: 0
A118: 110 | C118: CHC PITLAM | D118: PITLAM | E118: 30 | DZ118: 0 | EA118: 0 | EB118: 0 | EC118: 0
A119: 111 | C119: PHC, ANNARAM | D119: ANNARAM | E119: 6 | DZ119: 0 | EA119: 0 | EB119: 0 | EC119: 0
A120: 112 | C120: PHC, BIBIPET | D120: BIBIPET | E120: 6 | DZ120: 0 | EA120: 0 | EB120: 0 | EC120: 0
A121: 113 | C121: PHC, BIKNOOR | D121: BIKNOOR | E121: 6 | DZ121: 0 | EA121: 0 | EB121: 0 | EC121: 0
A122: 114 | C122: PHC, DEVANPALLY | D122: DEVANPALLY | E122: 6 | DZ122: 0 | EA122: 0 | EB122: 0 | EC122: 0
A123: 115 | C123: PHC, DONGLI | D123: DONGLI | E123: 6 | DZ123: 0 | EA123: 0 | EB123: 0 | EC123: 0
A124: 116 | C124: PHC, HANMAJIPET | D124: HANMAJIPET | E124: 6 | DZ124: 0 | EA124: 0 | EB124: 0 | EC124: 0
A125: 117 | C125: PHC, JUKKAL | D125: JUKKAL | E125: 6 | DZ125: 0 | EA125: 0 | EB125: 0 | EC125: 0
A126: 118 | C126: PHC, LINGAMPET | D126: LINGAMPET | E126: 6 | DZ126: 0 | EA126: 0 | EB126: 0 | EC126: 0
A127: 119 | C127: PHC, MACHAREDDY | D127: MACHAREDDY | E127: 6 | DZ127: 0 | EA127: 0 | EB127: 0 | EC127: 0
A128: 120 | C128: PHC, MATHMAL | D128: MATHMAL | E128: 6 | DZ128: 0 | EA128: 0 | EB128: 0 | EC128: 0
A129: 121 | C129: PHC, NAGIREDDYPET | D129: NAGIREDDYPET | E129: 6 | DZ129: 0 | EA129: 0 | EB129: 0 | EC129: 0
A130: 122 | C130: PHC, NIZAMSAGAR | D130: NIZAMSAGAR | E130: 6 | DZ130: 0 | EA130: 0 | EB130: 0 | EC130: 0
A131: 123 | C131: PHC, PEDDA KODAPGAL | D131: PEDDAKODAPGAL | E131: 6 | DZ131: 0 | EA131: 0 | EB131: 0 | EC131: 0
A132: 124 | C132: PHC, PULKAL | D132: PULKAL | E132: 6 | DZ132: 0 | EA132: 0 | EB132: 0 | EC132: 0
A133: 125 | C133: PHC, RAJAMPET | D133: RAJAMPET | E133: 6 | DZ133: 0 | EA133: 0 | EB133: 0 | EC133: 0
A134: 126 | C134: PHC, RAMAREDDY | D134: RAMAREDDY | E134: 6 | DZ134: 0 | EA134: 0 | EB134: 0 | EC134: 0
A135: 127 | C135: PHC, SADHASHIVNAGAR | D135: SADHASHIVNAGAR | E135: 6 | DZ135: 0 | EA135: 0 | EB135: 0 | EC135: 0
A136: 128 | C136: PHC, UTHNOOR | D136: UTHNOOR | E136: 6 | DZ136: 0 | EA136: 0 | EB136: 0 | EC136: 0
A137: 129 | C137: PHC, YERRAPAHAD | D137: YERRAPAHAD | E137: 6 | DZ137: 0 | EA137: 0 | EB137: 0 | EC137: 0
A138: 130 | C138: UPHC-RAJEEV NAGAR | D138: RAJEEV NAGAR | E138: 6 | DZ138: =F138+J138+N138+R138+V138+Z138+AD138+AH138+AL138+AP138+AT138+AX138+BB138+BF138+BJ138+BN138+BR138+BV138+BZ138+CD138+CH138+CL138+CP138+CT138+CX138+DB138+DF138+DJ138+DN138+DR138+DV138 -> 0 | EA138: =G138+K138+O138+S138+W138+AA138+AE138+AI138+AM138+AQ138+AU138+AY138+BC138+BG138+BK138+BO138+BS138+BW138+CA138+CE138+CI138+CM138+CQ138+CU138+CY138+DC138+DG138+DK138+DO138+DS138+DW138 -> 0 | EB138: =H138+L138+P138+T138+X138+AB138+AF138+AJ138+AN138+AR138+AV138+AZ138+BD138+BH138+BL138+BP138+BT138+BX138+CB138+CF138+CJ138+CN138+CR138+CV138+CZ138+DD138+DH138+DL138+DP138+DT138 -> 0 | EC138: =I138+M138+Q138+U138+Y138+AC138+AG138+AK138+AO138+AS138+AW138+BA138+BE138+BI138+BM138+BQ138+BU138+BY138+CC138+CG138+CK138+CO138+CS138+CW138+DA138+DE138+DI138+DM138+DQ138+DU138 -> 0
A139: BANSWADA
A140: 1 | B140: LIONS503187TSBH01181 | C140: LIONS EYE HOSPITAL | D140: OPP: GOVT HOSPITAL , MAIN ROAD, BANSWADA : 08466-226666 | E140: 25 | G140: 2 | K140: 2 | O140: 2 | S140: 2 | W140: 2 | AA140: 2 | AE140: 2 | AI140: 2 | AM140: 2 | AQ140: 2 | AU140: 2 | AY140: 2 | BC140: 2 | BG140: 2 | BJ140: 2 | BN140: 2 | BR140: 2 | CD140: 2 | CH140: 2 | CL140: 2 | CP140: 2 | CT140: 2 | CX140: 2 | DF140: 2 | DJ140: 2 | DN140: 2 | DR140: 2 | DV140: 2 | DZ140: =F140+J140+N140+R140+V140+Z140+AD140+AH140+AL140+AP140+AT140+AX140+BB140+BF140+BJ140+BN140+BR140+BV140+BZ140+CD140+CH140+CL140+CP140+CT140+CX140+DB140+DF140+DJ140+DN140+DR140+DV140 -> 28 | EA140: =G140+K140+O140+S140+W140+AA140+AE140+AI140+AM140+AQ140+AU140+AY140+BC140+BG140+BK140+BO140+BS140+BW140+CA140+CE140+CI140+CM140+CQ140+CU140+CY140+DC140+DG140+DK140+DO140+DS140+DW140 -> 28 | EB140: =H140+L140+P140+T140+X140+AB140+AF140+AJ140+AN140+AR140+AV140+AZ140+BD140+BH140+BL140+BP140+BT140+BX140+CB140+CF140+CJ140+CN140+CR140+CV140+CZ140+DD140+DH140+DL140+DP140+DT140 -> 0 | EC140: =I140+M140+Q140+U140+Y140+AC140+AG140+AK140+AO140+AS140+AW140+BA140+BE140+BI140+BM140+BQ140+BU140+BY140+CC140+CG140+CK140+CO140+CS140+CW140+DA140+DE140+DI140+DM140+DQ140+DU140 -> 0
A141: 2 | B141: MANJE503187TSBH09770 | C141: MANJEERA MULTI SPECIALITY HOSPITAL | D141: H.No.1, ANJIREDDY COMPLEX, BESIDE ANDHRA BANK, OLD BANSWADA ROAD, BANSWADA. | E141: 20 | F141: 2 | J141: 2 | N141: 2 | R141: 2 | V141: 2 | Z141: 2 | AD141: 2 | AH141: 2 | AL141: 2 | AP141: 2 | AT141: 2 | AX141: 2 | BB141: 2 | BF141: 2 | BJ141: 2 | BN141: 2 | BR141: 2 | BV141: 2 | BZ141: 2 | CE141: 2 | CI141: 2 | CM141: 2 | CQ141: 2 | CU141: 2 | CY141: 2 | DB141: 2 | DG141: 2 | DK141: 2 | DO141: 2 | DS141: 2 | DW141: 2 | DZ141: =F141+J141+N141+R141+V141+Z141+AD141+AH141+AL141+AP141+AT141+AX141+BB141+BF141+BJ141+BN141+BR141+BV141+BZ141+CD141+CH141+CL141+CP141+CT141+CX141+DB141+DF141+DJ141+DN141+DR141+DV141 -> 40 | EA141: =G141+K141+O141+S141+W141+AA141+AE141+AI141+AM141+AQ141+AU141+AY141+BC141+BG141+BK141+BO141+BS141+BW141+CA141+CE141+CI141+CM141+CQ141+CU141+CY141+DC141+DG141+DK141+DO141+DS141+DW141 -> 22 | EB141: =H141+L141+P141+T141+X141+AB141+AF141+AJ141+AN141+AR141+AV141+AZ141+BD141+BH141+BL141+BP141+BT141+BX141+CB141+CF141+CJ141+CN141+CR141+CV141+CZ141+DD141+DH141+DL141+DP141+DT141 -> 0 | EC141: =I141+M141+Q141+U141+Y141+AC141+AG141+AK141+AO141+AS141+AW141+BA141+BE141+BI141+BM141+BQ141+BU141+BY141+CC141+CG141+CK141+CO141+CS141+CW141+DA141+DE141+DI141+DM141+DQ141+DU141 -> 0
A142: 3 | B142: SRMUL503187TSBH11391 | C142: SR MULTISPECIALITY HOSPITAL | D142: H.NO. 1-1-11/5/1/B, SUDHA COMPLEX,OPP: BUS STAND, TEACHERS COLONY, BANSWADA | E142: 20 | DC142: 2 | DZ142: 0 | EA142: 2 | EB142: 0 | EC142: 0
A143: 4 | B143: BINDU503187TSBH07084 | C143: BINDUSHREE CHILDRENS HOSPITAL | D143: H.NO. 1-1-11/5/1/B, SUDHA COMPLEX, OPP: BUS STAND, TEACHERS COLONY, BANSWADA | E143: 15 | G143: 1 | K143: 1 | O143: 1 | S143: 1 | W143: 1 | AA143: 1 | AE143: 1 | AI143: 1 | AM143: 1 | AQ143: 1 | AU143: 1 | AY143: 1 | BC143: 1 | BG143: 1 | BK143: 1 | BO143: 1 | BS143: 1 | BW143: 1 | CA143: 1 | CE143: 1 | CH143: 1 | CM143: 1 | CP143: 1 | CT143: 1 | CX143: 1 | DB143: 1 | DF143: 1 | DJ143: 1 | DN143: 1 | DR143: 1 | DV143: 1 | DZ143: 10 | EA143: 21 | EB143: 0 | EC143: 0
A144: 5 | B144: GUPTA503187TSBH07083 | C144: GUPTAS E.N.T. NURSING HOME | D144: H.NO. 1-1-11/5/1/B, SUDHA COMPLEX, OPP:BUS STAND, TEACHERS COLONY, BANSWADA, Banswada (CT)(V) Banswada(M) KAMAREDDY(D) Telangana-503187 | E144: 15 | G144: 1 | K144: 1 | O144: 1 | AA144: 1 | AE144: 1 | AI144: 1 | AM144: 1 | AQ144: 1 | AU144: 1 | AY144: 1 | BC144: 1 | BG144: 1 | BK144: 2 | BO144: 1 | BS144: 1 | BW144: 1 | CA144: 1 | CD144: 1 | CH144: 1 | CL144: 1 | CP144: 1 | CT144: 1 | CX144: 1 | DB144: 1 | DF144: 1 | DJ144: 1 | DN144: 1 | DR144: 1 | DV144: 1 | DZ144: 12 | EA144: 18 | EB144: 0 | EC144: 0
A145: 6 | B145: SRIBA503187TSBH09779 | C145: SRI BALAJI HOSPITAL | D145: OPP: RAM MANDIR, NEAR ANDHRA BANK, OLD BANSWADA ROAD, BANSWADA | E145: 15 | F145: 2 | J145: 2 | N145: 2 | R145: 2 | T145: 1 | V145: 2 | X145: 1 | Z145: 2 | AD145: 2 | AH145: 2 | AL145: 2 | AP145: 1 | AT145: 2 | AX145: 2 | BB145: 2 | BF145: 2 | BJ145: 2 | BN145: 2 | BS145: 1 | BW145: 2 | CA145: 2 | CD145: 2 | CI145: 2 | CL145: 2 | CQ145: 2 | CU145: 2 | CY145: 2 | DC145: 2 | DG145: 2 | DK145: 2 | DN145: 2 | DR145: 2 | DV145: 2 | DZ145: 41 | EA145: 19 | EB145: 2 | EC145: 0
A146: 7 | B146: AMRIT504001TSBH00944 | C146: AMRITA HOSPITAL | D146: Dr. P. SUDHA,BESIDE SARASWATHI MANDIR, BANSWADA,NZB | E146: 10 | F146: 6 | J146: 6 | N146: 6 | R146: 6 | V146: 2 | Z146: 6 | AD146: 6 | AH146: 6 | AL146: 6 | AP146: 6 | AT146: 6 | AX146: 2 | BB146: 6 | BF146: 6 | BJ146: 6 | BN146: 6 | BR146: 6 | BV146: 6 | BZ146: 4 | CD146: 6 | CH146: 6 | CL146: 6 | CQ146: 6 | CU146: 6 | CY146: 6 | DC146: 6 | DG146: 6 | DK146: 6 | DR146: 2 | DV146: 2 | DZ146: 126 | EA146: 36 | EB146: 0 | EC146: 0
A147: 8 | B147: BALKA503187TSBH09705 | C147: BALKAMAL CHILDRENS HOSPITAL | D147: Dr. T. KIRAN KUMAR, BODHAN ROAD,BANSWADA,NIZAMABAD, | E147: 10 | G147: 1 | K147: 1 | O147: 1 | S147: 1 | W147: 1 | AA147: 1 | AE147: 1 | AI147: 1 | AM147: 1 | AQ147: 1 | AU147: 1 | AY147: 1 | BC147: 1 | BG147: 1 | BK147: 1 | BO147: 1 | BS147: 1 | BW147: 1 | CA147: 1 | CD147: 1 | CH147: 1 | CL147: 1 | CP147: 1 | CT147: 1 | CX147: 1 | DB147: 1 | DF147: 1 | DJ147: 1 | DN147: 1 | DR147: 1 | DV147: 1 | DZ147: 12 | EA147: 19 | EB147: 0 | EC147: 0
A148: 9 | B148: SRIDA503187TSBH09707 | C148: SRI DHANVANTHRI EYE HOSPITAL | D148: TIRUMALA COMPLEX, BESIDE ANNAPURNA SUPER MARKET, TADKOLE ROAD, BANSWADA | E148: 9 | G148: 8 | K148: 8 | O148: 8 | S148: 8 | W148: 2 | AA148: 8 | AE148: 8 | AI148: 8 | AM148: 8 | AQ148: 8 | AU148: 8 | AY148: 2 | BC148: 8 | BG148: 8 | BK148: 8 | BO148: 4 | BS148: 4 | BW148: 8 | CA148: 6 | CD148: 8 | CH148: 8 | CL148: 8 | CP148: 8 | CT148: 8 | CX148: 8 | DB148: 8 | DF148: 8 | DJ148: 8 | DN148: 8 | DR148: 8 | DV148: 4 | DZ148: 92 | EA148: 130 | EB148: 0 | EC148: 0
A149: 10 | B149: CHAIT503187TSBH10081 | C149: CHAITANYA METERNITY & NURSING HOME | D149: Dr. E. JEEVAN REDDY,CHAITHANYA COLONY, BANSWADA, KAMAREDDY | E149: 6 | G149: 1 | K149: 1 | O149: 1 | S149: 1 | W149: 1 | AA149: 1 | AE149: 1 | AI149: 1 | AM149: 1 | AQ149: 1 | AU149: 1 | AY149: 1 | BC149: 1 | BG149: 1 | BK149: 1 | BO149: 1 | BS149: 1 | BW149: 1 | CA149: 1 | CE149: 1 | CI149: 1 | CM149: 1 | CQ149: 1 | CU149: 1 | CY149: 1 | DC149: 1 | DG149: 1 | DK149: 1 | DO149: 1 | DS149: 1 | DW149: 1 | DZ149: 0 | EA149: 31 | EB149: 0 | EC149: 0
A150: 11 | B150: ANVIT503187TSBH09771 | C150: ANVITHA HOSPITAL | D150: Dr. D. SANTHOSH REDDY,OPP: BUS STAND,BANSWADA, BIZAMABAD | E150: 5 | G150: 1 | K150: 1 | O150: 1 | S150: 1 | W150: 1 | AA150: 1 | AE150: 1 | AI150: 1 | AM150: 1 | AQ150: 1 | AU150: 1 | AY150: 1 | BC150: 1 | BG150: 1 | BK150: 1 | BO150: 1 | BS150: 1 | BW150: 1 | CA150: 1 | CD150: 1 | CH150: 1 | CL150: 1 | CP150: 1 | CT150: 1 | CX150: 1 | DF150: 1 | DJ150: 1 | DN150: 1 | DR150: 1 | DV150: 1 | DZ150: 11 | EA150: 19 | EB150: 0 | EC150: 0
A151: 12 | B151: JAGRU503187TSBH09706 | C151: JAGRUTHI HOSPITAL | D151: D.No.1-1-11/4/1/C, OLD MALATHI MADAM BUILDING, NGO'S COLONY, BANSWADA | E151: 4 | S151: 1 | W151: 1 | AA151: 1 | AM151: 1 | AQ151: 1 | AU151: 1 | AY151: 1 | BC151: 1 | BG151: 1 | BO151: 1 | BS151: 1 | BW151: 1 | CA151: 1 | CE151: 1 | CH151: 1 | CM151: 1 | CP151: 1 | CT151: 1 | CX151: 1 | DB151: 1 | DF151: 1 | DJ151: 1 | DN151: 1 | DR151: 1 | DV151: 1 | DZ151: 10 | EA151: 15 | EB151: 0 | EC151: 0
A152: 13 | B152: GLOBA503187TSBH09766 | C152: GLOBAL MULTI SPECIALITY DENTAL CLINIC MAXILOFACIAL SUGICAL CENTRE | D152: M.B.R COMPLEX, BANSWADA, DIST.KAMREDDY, CELL NO: 9908781338 | E152: 2 | G152: 1 | K152: 1 | O152: 1 | S152: 1 | W152: 1 | AA152: 1 | AE152: 1 | AI152: 1 | AM152: 1 | AQ152: 1 | AU152: 1 | AY152: 1 | BC152: 1 | BG152: 1 | BO152: 1 | BS152: 1 | BW152: 1 | CA152: 1 | CD152: 1 | CH152: 1 | CL152: 1 | CP152: 1 | CT152: 1 | CX152: 1 | DB152: 1 | DF152: 1 | DJ152: 1 | DN152: 1 | DR152: 1 | DV152: 1 | DZ152: 12 | EA152: 18 | EB152: 0 | EC152: 0
A153: 14 | B153: DRGUN503187TSBH09933 | C153: DR GUNDERAO SHINDE | D153: NEAR MUNICIPAL OFFICE, BANSWADA | E153: 2 | G153: 1 | K153: 1 | O153: 1 | S153: 1 | W153: 1 | AA153: 1 | AE153: 1 | AI153: 1 | AM153: 1 | AQ153: 1 | AU153: 1 | AY153: 1 | BC153: 1 | BG153: 1 | BK153: 1 | BO153: 1 | BS153: 1 | BW153: 1 | CA153: 1 | CE153: 1 | CI153: 1 | CM153: 1 | CQ153: 1 | CU153: 1 | CY153: 1 | DB153: 1 | DG153: 1 | DK153: 1 | DO153: 1 | DS153: 1 | DW153: 1 | DZ153: 1 | EA153: 30 | EB153: 0 | EC153: 0
A154: 15 | B154: SALLA503187TSBH08686 | C154: SALLAWAR POLYCLINIC & DIAGNOSTICS | D154: OLD BUS STAND ROAD, BANSWADA, KAMAREDDY-503187 | E154: 2 | G154: 1 | K154: 1 | O154: 1 | S154: 1 | W154: 1 | AA154: 1 | AE154: 1 | AI154: 1 | AM154: 1 | AQ154: 1 | AU154: 1 | AY154: 1 | BC154: 1 | BG154: 1 | BK154: 1 | BO154: 1 | BS154: 1 | BW154: 1 | CA154: 1 | CD154: 1 | CH154: 1 | CL154: 1 | CP154: 1 | CT154: 1 | CX154: 1 | DC154: 1 | DF154: 1 | DJ154: 1 | DN154: 1 | DR154: 1 | DV154: 1 | DZ154: 11 | EA154: 20 | EB154: 0 | EC154: 0
A155: 16 | B155: RUKMI503187TSDH09932 | C155: RUKMINI MULTISPECIALITY DENTAL CLINIC | D155: Dr. A. JEEVAN,OPP: GOVT. HOSPITAL,BANSWADA,NZB | E155: 1 | G155: 1 | K155: 1 | O155: 1 | S155: 1 | W155: 1 | AA155: 1 | AE155: 1 | AI155: 1 | AM155: 1 | AQ155: 1 | AU155: 1 | AY155: 1 | BC155: 1 | BG155: 1 | BK155: 1 | BO155: 1 | BS155: 1 | BW155: 1 | CA155: 1 | CE155: 1 | CI155: 1 | CM155: 1 | CQ155: 1 | CU155: 1 | CY155: 1 | DB155: 1 | DG155: 1 | DK155: 1 | DO155: 1 | DS155: 1 | DW155: 1 | DZ155: 1 | EA155: 30 | EB155: 0 | EC155: 0
A156: 17 | B156: SRIGA503187TSPL09701 | C156: SRI GANESH DIAGNOSTIC CENTER | D156: H.NO.5-5-144/42, MAIN (BODHAN) ROAD, CHIATHANYA COLONY, BANSWADA | E156: 1 | G156: 1 | K156: 1 | O156: 1 | S156: 1 | W156: 1 | AA156: 1 | AE156: 1 | AI156: 1 | AM156: 1 | AQ156: 1 | AU156: 1 | AY156: 1 | BC156: 1 | BG156: 1 | BK156: 1 | BO156: 1 | BS156: 1 | BW156: 1 | CA156: 1 | CD156: 1 | CH156: 1 | CL156: 1 | CP156: 1 | CT156: 1 | CX156: 1 | DC156: 1 | DF156: 1 | DJ156: 1 | DN156: 1 | DR156: 1 | DV156: 1 | DZ156: 11 | EA156: 20 | EB156: 0 | EC156: 0
A157: 18 | B157: L.K.R503187TSCL11388 | C157: L.K. REDDY POLYCLINIC & DIAGNOSTIC CENTRE | D157: H.NO. 2-3-74, GOPAL REDDY COMPLEX,OLD ANGADI BAZAR,BANSWADA | E157: 0 | DZ157: 0 | EA157: 0 | EB157: 0 | EC157: 0
A158: 19 | B158: SRISR503187TSCL10141 | C158: SRI SRINIVAS CHILDREN CLINIC | D158: BESIDE RAMA KRISHNA THEATRE, MAIN ROAD, BANSWADA, KAMAREDDY | E158: 0 | DB158: 1 | DZ158: 1 | EA158: 0 | EB158: 0 | EC158: 0
A159: 20 | B159: SWAPN503187TSPL09694 | C159: SWAPNA PATHOLOGICAL LAB, BANSWADA, KAMAREDDY | D159: BESIDE HDFC BANK, OLD BANSWADA ROAD, BANSWADA, KAMAREDDY Banswada (CT)(V) Banswada(M) KAMAREDDY(D) Telangana-503187 | E159: 0 | G159: 1 | K159: 1 | O159: 1 | S159: 1 | W159: 1 | AA159: 1 | AE159: 1 | AI159: 1 | AM159: 1 | AQ159: 1 | AU159: 1 | AY159: 1 | BC159: 1 | BG159: 2 | BK159: 1 | BO159: 1 | BS159: 1 | BV159: 1 | BZ159: 1 | CD159: 1 | CH159: 1 | CL159: 1 | CP159: 1 | CT159: 1 | CX159: 1 | DB159: 1 | DF159: 1 | DJ159: 1 | DN159: 1 | DR159: 1 | DV159: 1 | DZ159: 14 | EA159: 18 | EB159: 0 | EC159: 0
A160: 21 | C160: UPHC-VARNI | D160: VARNI | E160: 30 | DZ160: 0 | EA160: 0 | EB160: 0 | EC160: 0
A161: 22 | C161: PHC, BIRKUR | D161: BIRKUR | E161: 6 | DZ161: 0 | EA161: 0 | EB161: 0 | EC161: 0
B162: BICHKUNDA
A163: 1 | B163: JWALA503306TSBH08468 | C163: JWALAMUKHI SPECIALITY DENTAL CLINIC | D163: KOLAWAR COMPLEX, NEAR PETROL PUMP, NEW BUS STAND, BICHKUNDA,Bichkunda,Bichkunda,KAMAREDDY,503306 | E163: 3 | K163: 1 | O163: 1 | S163: 1 | W163: 1 | AA163: 1 | AE163: 1 | AI163: 1 | AM163: 1 | AQ163: 1 | AU163: 1 | AY163: 1 | BC163: 1 | BG163: 1 | BK163: 1 | BO163: 1 | BS163: 1 | BV163: 1 | BZ163: 1 | CH163: 1 | CL163: 1 | CP163: 1 | CT163: 1 | CX163: 1 | DB163: 1 | DF163: 1 | DJ163: 1 | DN163: 1 | DR163: 1 | DV163: 1 | DZ163: =F163+J163+N163+R163+V163+Z163+AD163+AH163+AL163+AP163+AT163+AX163+BB163+BF163+BJ163+BN163+BR163+BV163+BZ163+CD163+CH163+CL163+CP163+CT163+CX163+DB164+DF163+DJ163+DN163+DR163+DV163 -> 13 | EA163: =G163+K163+O163+S163+W163+AA163+AE163+AI163+AM163+AQ163+AU163+AY163+BC163+BG163+BK163+BO163+BS163+BW163+CA163+CE163+CI163+CM163+CQ163+CU163+CY163+DC164+DG163+DK163+DO163+DS163+DW163 -> 16 | EB163: =H163+L163+P163+T163+X163+AB163+AF163+AJ163+AN163+AR163+AV163+AZ163+BD163+BH163+BL163+BP163+BT163+BX163+CB163+CF163+CJ163+CN163+CR163+CV163+CZ163+DD164+DH163+DL163+DP163+DT163 -> 0 | EC163: =I163+M163+Q163+U163+Y163+AC163+AG163+AK163+AO163+AS163+AW163+BA163+BE163+BI163+BM163+BQ163+BU163+BY163+CC163+CG163+CK163+CO163+CS163+CW163+DA163+DE164+DI163+DM163+DQ163+DU163 -> 0
A164: 2 | B164: SRITI503306TSBH08467 | C164: SRI TIRUMALA HOSPITAL BICHKUNDA | D164: BESIDE BUS STAND, BICHKUNDA,Bichkunda,Bichkunda,KAMAREDDY,503306 | E164: 9 | G164: 1 | O164: 1 | S164: 1 | W164: 1 | AA164: 1 | AE164: 1 | AI164: 1 | AM164: 1 | AQ164: 1 | AT164: 1 | AX164: 1 | BC164: 1 | BF164: 1 | BJ164: 1 | BN164: 1 | BR164: 1 | BV164: 1 | BZ164: 1 | CD164: 1 | CH164: 1 | CL164: 1 | CP164: 1 | CT164: 1 | CX164: 1 | DB164: 1 | DF164: 1 | DJ164: 1 | DN164: 1 | DR164: 1 | DV164: 1 | DZ164: =F164+J164+N164+R164+V164+Z164+AD164+AH164+AL164+AP164+AT164+AX164+BB164+BF164+BJ164+BN164+BR164+BV164+BZ164+CD164+CH164+CL164+CP164+CT164+CX164+DB165+DF164+DJ164+DN164+DR164+DV164 -> 19 | EA164: =G164+K164+O164+S164+W164+AA164+AE164+AI164+AM164+AQ164+AU164+AY164+BC164+BG164+BK164+BO164+BS164+BW164+CA164+CE164+CI164+CM164+CQ164+CU164+CY164+DC165+DG164+DK164+DO164+DS164+DW164 -> 10 | EB164: =H164+L164+P164+T164+X164+AB164+AF164+AJ164+AN164+AR164+AV164+AZ164+BD164+BH164+BL164+BP164+BT164+BX164+CB164+CF164+CJ164+CN164+CR164+CV164+CZ164+DD165+DH164+DL164+DP164+DT164 -> 0 | EC164: =I164+M164+Q164+U164+Y164+AC164+AG164+AK164+AO164+AS164+AW164+BA164+BE164+BI164+BM164+BQ164+BU164+BY164+CC164+CG164+CK164+CO164+CS164+CW164+DA164+DE165+DI164+DM164+DQ164+DU164 -> 0
B165: PITLAM
A166: 1 | B166: YSHOD503310TSBH00951 | C166: YSHODHA DEVI HOSPITAL | D166: OPP: POST OFFICE & POLICE STATION, PITLAM,Kamareddy ( U ),Kamareddy,KAMAREDDY,503310 | E166: 20 | G166: 1 | K166: 1 | O166: 1 | S166: 1 | W166: 1 | AA166: 1 | AE166: 1 | AI166: 1 | AM166: 1 | AQ166: 1 | AT166: 1 | AX166: 1 | BC166: 1 | BF166: 1 | BJ166: 1 | BN166: 1 | BR166: 1 | BV166: 1 | BZ166: 1 | CH166: 1 | CL166: 1 | CP166: 1 | CT166: 1 | CX166: 1 | DB166: 1 | DF166: 1 | DJ166: 1 | DN166: 1 | DR166: 1 | DV166: 1 | DZ166: =F166+J166+N166+R166+V166+Z166+AD166+AH166+AL166+AP166+AT166+AX166+BB166+BF166+BJ166+BN166+BR166+BV166+BZ166+CD166+CH166+CL166+CP166+CT166+CX166+DB167+DF166+DJ166+DN166+DR166+DV166 -> 19 | EA166: 11 | EB166: =H166+L166+P166+T166+X166+AB166+AF166+AJ166+AN166+AR166+AV166+AZ166+BD166+BH166+BL166+BP166+BT166+BX166+CB166+CF166+CJ166+CN166+CR166+CV166+CZ166+DD167+DH166+DL166+DP166+DT166 -> 0 | EC166: 0
A167: 2 | B167: SUNDE503310TSBH00957 | C167: SUNDER HOSPITAL | D167: THIMMANAGAR ROAD, PITLAM,Pitlam,Pitlam,KAMAREDDY,503310 | E167: 10 | G167: 1 | K167: 1 | O167: 1 | S167: 1 | W167: 1 | AA167: 1 | AE167: 1 | AI167: 1 | AM167: 1 | AQ167: 1 | AT167: 1 | AX167: 1 | BC167: 1 | BF167: 1 | BJ167: 1 | BN167: 1 | BR167: 1 | BV167: 1 | BZ167: 1 | CD167: 1 | CH167: 1 | CL167: 1 | CP167: 1 | CT167: 1 | CX167: 1 | DB167: 1 | DF167: 1 | DJ167: 1 | DN167: 1 | DR167: 1 | DV167: 1 | DZ167: 20 | EA167: 11 | EB167: 0 | EC167: 0
A168: 3 | B168: SRITI503110TSBH08466 | C168: SRI TIRUMALA HOSPITAL PITLAM | D168: THIMMANAGAR ROAD, PITLAM,Pitlam,Pitlam,KAMAREDDY,503110 | E168: 9 | G168: 1 | K168: 1 | O168: 1 | S168: 1 | W168: 1 | AA168: 1 | AE168: 1 | AI168: 1 | AM168: 1 | AQ168: 1 | AT168: 1 | AX168: 1 | BC168: 1 | BF168: 1 | BJ168: 1 | BN168: 1 | BR168: 1 | BV168: 1 | BZ168: 1 | CD168: 1 | CH168: 1 | CL168: 1 | CP168: 1 | CT168: 1 | CX168: 1 | DB168: 1 | DF168: 1 | DJ168: 1 | DN168: 1 | DR168: 1 | DV168: 1 | DZ168: 20 | EA168: 11 | EB168: 0 | EC168: 0
A169: 4 | B169: PRABH503310TSBH00949 | C169: PRABHU PATHOLOGICAL LABORATORY | D169: THIMMANAGAR ROAD, INDIRA CHOWK, PITLAM,Pitlam,Pitlam,KAMAREDDY,503310 | E169: 1 | G169: 1 | K169: 1 | O169: 1 | S169: 1 | W169: 1 | AA169: 1 | AE169: 1 | AI169: 1 | AM169: 1 | AQ169: 1 | AT169: 1 | AX169: 1 | BC169: 1 | BF169: 1 | BJ169: 1 | BN169: 1 | BR169: 1 | BV169: 1 | BZ169: 1 | CD169: 1 | CH169: 1 | CL169: 1 | CP169: 1 | CT169: 1 | CX169: 1 | DB169: 1 | DF169: 1 | DJ169: 1 | DN169: 1 | DR169: 1 | DV169: 1 | DZ169: 19 | EA169: 11 | EB169: 0 | EC169: 0
B170: YELLAREDDY
A171: 1 | B171: SRIVE503122TSBH00910 | C171: SRI VENKATESHWARA SUPER SPECIALITY HOSPITAL | D171: Dr. B. NAGESHWARA RAO,MAIN ROAD,YELLAREDDY, KAMAREDDY | E171: 80 | F171: 2 | J171: 2 | N171: 2 | R171: 2 | V171: 2 | Z171: 2 | AD171: 2 | AH171: 2 | AL171: 2 | AP171: 2 | AT171: 2 | AX171: 2 | BB171: 2 | BF171: 2 | BJ171: 2 | BN171: 2 | BR171: 2 | BV171: 2 | BZ171: 2 | CD171: 2 | CI171: 2 | CM171: 2 | CQ171: 2 | CU171: 2 | CY171: 2 | DC171: 2 | DG171: 2 | DK171: 2 | DO171: 2 | DS171: 2 | DW171: 2 | DZ171: =F171+J171+N171+R171+V171+Z171+AD171+AH171+AL171+AP171+AT171+AX171+BB171+BF171+BJ171+BN171+BR171+BV171+BZ171+CD171+CH171+CL171+CP171+CT171+CX171+DB172+DF171+DJ171+DN171+DR171+DV171 -> 42 | EA171: 20 | EB171: =H171+L171+P171+T171+X171+AB171+AF171+AJ171+AN171+AR171+AV171+AZ171+BD171+BH171+BL171+BP171+BT171+BX171+CB171+CF171+CJ171+CN171+CR171+CV171+CZ171+DD172+DH171+DL171+DP171+DT171 -> 0 | EC171: 0
A172: 2 | B172: YELLA503122TSBH00991 | C172: YELLAREDDY SUPER SPECIALITY HOSPITAL | D172: Dr. E. SIDDI RAMULU,MAIN ROAD,YELLAREDDY, KAMAREDDY | E172: 40 | F172: 2 | J172: 2 | N172: 2 | R172: 2 | V172: 2 | Z172: 2 | AD172: 2 | AH172: 2 | AL172: 2 | AP172: 2 | AU172: 2 | AY172: 2 | BB172: 2 | BF172: 2 | BJ172: 2 | BN172: 2 | BV172: 2 | BZ172: 2 | CD172: 2 | CH172: 2 | CL172: 2 | CP172: 2 | CT172: 2 | CX172: 2 | DB172: 2 | DF172: 2 | DJ172: 2 | DN172: 2 | DR172: 2 | DV172: 2 | DZ172: 54 | EA172: 9 | EB172: 0 | EC172: 0
A173: 3 | B173: COMMU503122TSBH09765 | C173: COMMUNITY HEALTH CENTER | D173: OPP.BUS STATION,YELLAREDDY. | E173: 30 | F173: 5 | K173: 5 | N173: 5 | S173: 5 | W173: 4 | Z173: 5 | AE173: 5 | AI173: 5 | AL173: 5 | AQ173: 5 | AU173: 5 | AY173: 4 | BC173: 5 | BG173: 5 | BK173: 5 | BO173: 5 | BW173: 5 | CA173: 4 | CE173: 5 | CI173: 5 | CM173: 5 | CQ173: 5 | CU173: 5 | CY173: 5 | DC173: 5 | DF173: 5 | DK173: 5 | DO173: 5 | DS173: 5 | DW173: 5 | DZ173: 26 | EA173: 117 | EB173: 0 | EC173: 0
A174: 4 | B174: ARKHO503122TSBH08475 | C174: ARK HOSPITAL | D174: NEAR SBI BANK, YELLAREDDY | E174: 20 | F174: 1 | G174: 2 | K174: 1 | O174: 1 | S174: 1 | W174: 1 | AA174: 1 | AE174: 1 | AI174: 1 | AM174: 1 | AQ174: 1 | AU174: 1 | AY174: 1 | BC174: 1 | BF174: 1 | BJ174: 1 | BN174: 1 | BV174: 1 | BZ174: 1 | CD174: 1 | CP174: 1 | CT174: 1 | CX174: 1 | DB174: 1 | DF174: 1 | DJ174: 1 | DN174: 1 | DR174: 1 | DZ174: 16 | EA174: 14 | EB174: 0 | EC174: 0
A175: 5 | B175: AJAYH503124TSBH08366 | C175: AJAY HOSPITAL (LINGAMPET) | D175: AMRUTHA COMPLEX, MAIN ROAD, LINGAMPET | E175: 15 | K175: 2 | O175: 2 | S175: 2 | W175: 2 | AA175: 2 | AE175: 2 | AI175: 2 | AM175: 2 | AQ175: 2 | AU175: 2 | AY175: 2 | BB175: 2 | BF175: 2 | BJ175: 2 | BN175: 2 | BV175: 2 | BZ175: 2 | CD175: 2 | CH175: 2 | CL175: 2 | CP175: 2 | CT175: 2 | CX175: 2 | DB175: 2 | DF175: 2 | DJ175: 2 | DN175: 2 | DR175: 2 | DV175: 2 | DZ175: 34 | EA175: 22 | EB175: 2 | EC175: 0
A176: 6 | B176: JEEVA503122TSBH09689 | C176: JEEVADAN HOSPITAL | D176: GANDIMASANIPET, MAIN ROAD,YELLAREDDY,KAMAREDDY | E176: 10 | F176: 2 | J176: 2 | N176: 2 | R176: 2 | V176: 2 | Z176: 5 | AD176: 2 | AH176: 2 | AL176: 3 | AP176: 2 | AT176: 2 | AX176: 2 | BB176: 2 | BF176: 2 | BJ176: 2 | BN176: 2 | BR176: 2 | BV176: 2 | BZ176: 2 | CD176: 2 | CH176: 2 | CL176: 2 | CQ176: 2 | CT176: 2 | CZ176: 2 | DD176: 2 | DH176: 2 | DL176: 2 | DP176: 2 | DT176: 2 | DX176: 2 | DZ176: =F176+J176+N176+R176+V176+Z176+AD176+AH176+AL176+AP176+AT176+AX176+BB176+BF176+BJ176+BN176+BR176+BV176+BZ176+CD176+CH176+CL176+CP176+CT176+CX176+DB176+DF176+DJ176+DN176+DR176+DV176 -> 50 | EA176: =G176+K176+O176+S176+W176+AA176+AE176+AI176+AM176+AQ176+AU176+AY176+BC176+BG176+BK176+BO176+BS176+BW176+CA176+CE176+CI176+CM176+CQ176+CU176+CY176+DC176+DG176+DK176+DO176+DS176+DW176 -> 2 | EB176: 16 | EC176: 0
C177: TOTAL | E177: =SUM(E4:E176) -> 1902 | F177: 55 | G177: 137 | H177: 2 | I177: 0 | J177: 46 | K177: 147 | L177: 2 | M177: 0 | N177: 50 | O177: 134 | P177: 2 | Q177: 0 | R177: 47 | S177: 142 | T177: 4 | U177: 0 | V177: 41 | W177: 133 | X177: 2 | Y177: 0 | Z177: 53 | AA177: 136 | AB177: 0 | AC177: 0 | AD177: 45 | AE177: 145 | AF177: 0 | AG177: 0 | AH177: 45 | AI177: 145 | AJ177: 0 | AK177: =SUM(AK4:AK176) -> 0 | AL177: 51 | AM177: 134 | AN177: 2 | AO177: 0 | AP177: 49 | AQ177: 142 | AR177: 2 | AS177: 0 | AT177: 59 | AU177: 131 | AV177: 2 | AW177: 0 | AX177: 55 | AY177: 124 | AZ177: 0 | BA177: 0 | BB177: 54 | BC177: 133 | BD177: 6 | BE177: 0 | BF177: 68 | BG177: 124 | BH177: 2 | BI177: 0 | BJ177: 46 | BK177: 60 | BL177: 3 | BM177: 0 | BN177: 82 | BO177: 102 | BP177: 3 | BQ177: =SUM(BQ4:BQ176) -> 0 | BR177: 75 | BS177: 96 | BT177: 6 | BU177: 0 | BV177: 80 | BW177: 104 | BX177: 6 | BY177: 0 | BZ177: 81 | CA177: 101 | CB177: 0 | CC177: 0 | CD177: 92 | CE177: 90 | CF177: 3 | CG177: 0 | CH177: 118 | CI177: 67 | CJ177: 6 | CK177: 0 | CL177: 114 | CM177: 68 | CN177: 6 | CO177: 0 | CP177: 129 | CQ177: 57 | CR177: 10 | CS177: 0 | CT177: 137 | CU177: 45 | CV177: 10 | CW177: =SUM(CW4:CW176) -> 0 | CX177: 147 | CY177: 42 | CZ177: 6 | DA177: 0 | DB177: =SUM(DB4:DB176) -> 147 | DC177: =SUM(DC4:DC176) -> 42 | DD177: =SUM(DD4:DD176) -> 6 | DE177: =SUM(DE4:DE176) -> 0 | DF177: 144 | DG177: 40 | DH177: 11 | DI177: 0 | DJ177: 139 | DK177: 48 | DL177: 8 | DM177: 0 | DN177: 129 | DO177: 53 | DP177: 6 | DQ177: 0 | DR177: 143 | DS177: 36 | DT177: 9 | DU177: 0 | DV177: 127 | DW177: 52 | DX177: 5 | DY177: 0 | DZ177: =F177+J177+N177+R177+V177+Z177+AD177+AH177+AL177+AP177+AT177+AX177+BB177+BF177+BJ177+BN177+BR177+BV177+BZ177+CD177+CH177+CL177+CP177+CT177+CX177+DB177+DF177+DJ177+DN177+DR177+DV177 -> 2648 | EA177: =G177+K177+O177+S177+W177+AA177+AE177+AI177+AM177+AQ177+AU177+AY177+BC177+BG177+BK177+BO177+BS177+BW177+CA177+CE177+CI177+CM177+CQ177+CU177+CY177+DC177+DG177+DK177+DO177+DS177+DW177 -> 3010 | EB177: =H177+L177+P177+T177+X177+AB177+AF177+AJ177+AN177+AR177+AV177+AZ177+BD177+BH177+BL177+BP177+BT177+BX177+CB177+CF177+CJ177+CN177+CR177+CV177+CZ177+DD177+DH177+DL177+DP177+DT177 -> 125 | EC177: =I177+M177+Q177+U177+Y177+AC177+AG177+AK177+AO177+AS177+AW177+BA177+BE177+BI177+BM177+BQ177+BU177+BY177+CC177+CG177+CK177+CO177+CS177+CW177+DA177+DE177+DI177+DM177+DQ177+DU177 -> 0

Sheet Nirmal
A1: =Nizamabad!A1 -> DECEMBER MONTH REPORT | F1: =Nizamabad!F1 -> 2021-12-01 | J1: =Nizamabad!J1 -> 2021-12-02 | N1: =Nizamabad!N1 -> 2021-12-03 | R1: =Nizamabad!R1 -> 2021-12-04 | V1: =Nizamabad!V1 -> 2021-12-05 | Z1: =Nizamabad!Z1 -> 2021-12-06 | AD1: =Nizamabad!AD1 -> 2021-12-07 | AH1: =Nizamabad!AH1 -> 2021-12-08 | AL1: =Nizamabad!AL1 -> 2021-12-09 | AP1: =Nizamabad!AP1 -> 2021-12-10 | AT1: =Nizamabad!AT1 -> 2021-12-11 | AX1: =Nizamabad!AX1 -> 2021-12-12 | BB1: =Nizamabad!BB1 -> 2021-12-13 | BF1: =Nizamabad!BF1 -> 2021-12-14 | BJ1: =Nizamabad!BJ1 -> 2021-12-15 | BN1: =Nizamabad!BN1 -> 2021-12-16 | BR1: =Nizamabad!BR1 -> 2021-12-17 | BV1: =Nizamabad!BV1 -> 2021-12-18 | BZ1: =Nizamabad!BZ1 -> 2021-12-19 | CD1: =Nizamabad!CD1 -> 2021-12-20 | CH1: =Nizamabad!CH1 -> 2021-12-21 | CL1: =Nizamabad!CL1 -> 2021-12-22 | CP1: =Nizamabad!CP1 -> 2021-12-23 | CT1: =Nizamabad!CT1 -> 2021-12-24 | CX1: =Nizamabad!CX1 -> 2021-12-25 | DB1: =Nizamabad!DB1 -> 2021-12-26 | DF1: =Nizamabad!DF1 -> 2021-12-27 | DJ1: =Nizamabad!DJ1 -> 2021-12-28 | DN1: =Nizamabad!DN1 -> 2021-12-29 | DR1: =Nizamabad!DR1 -> 2021-12-30 | DV1: =Nizamabad!DV1 -> 2021-12-31 | DZ1: TOTAL
A2: SNO | B2: HCF ID | C2: NAME OF THE HCF | D2: ADDRESS OF THE HCFS | E2: NO.OF BEDS | F2: Yellow | G2: Red | H2: Blue | I2: White | J2: Yellow | K2: Red | L2: Blue | M2: White | N2: Yellow | O2: Red | P2: Blue | Q2: White | R2: Yellow | S2: Red | T2: Blue | U2: White | V2: Yellow | W2: Red | X2: Blue | Y2: White | Z2: Yellow | AA2: Red | AB2: Blue | AC2: White | AD2: Yellow | AE2: Red | AF2: Blue | AG2: White | AH2: Yellow | AI2: Red | AJ2: Blue | AK2: White | AL2: Yellow | AM2: Red | AN2: Blue | AO2: White | AP2: Yellow | AQ2: Red | AR2: Blue | AS2: White | AT2: Yellow | AU2: Red | AV2: Blue | AW2: White | AX2: Yellow | AY2: Red | AZ2: Blue | BA2: White | BB2: Yellow | BC2: Red | BD2: Blue | BE2: White | BF2: Yellow | BG2: Red | BH2: Blue | BI2: White | BJ2: Yellow | BK2: Red | BL2: Blue | BM2: White | BN2: Yellow | BO2: Red | BP2: Blue | BQ2: White | BR2: Yellow | BS2: Red | BT2: Blue | BU2: White | BV2: Yellow | BW2: Red | BX2: Blue | BY2: White | BZ2: Yellow | CA2: Red | CB2: Blue | CC2: White | CD2: Yellow | CE2: Red | CF2: Blue | CG2: White | CH2: Yellow | CI2: Red | CJ2: Blue | CK2: White | CL2: Yellow | CM2: Red | CN2: Blue | CO2: White | CP2: Yellow | CQ2: Red | CR2: Blue | CS2: White | CT2: Yellow | CU2: Red | CV2: Blue | CW2: White | CX2: Yellow | CY2: Red | CZ2: Blue | DA2: White | DB2: Yellow | DC2: Red | DD2: Blue | DE2: White | DF2: Yellow | DG2: Red | DH2: Blue | DI2: White | DJ2: Yellow | DK2: Red | DL2: Blue | DM2: White | DN2: Yellow | DO2: Red | DP2: Blue | DQ2: White | DR2: Yellow | DS2: Red | DT2: Blue | DU2: White | DV2: Yellow | DW2: Red | DX2: Blue | DY2: White | DZ2: Yellow | EA2: Red | EB2: Blue | EC2: White
A3: 100 AND ABOVE BEDS HCFs
A4: 1 | B4: DISTR504106TSBH09389 | C4: DISTRICT HOSPITAL | D4: BUS STAND ROAD, NIRMAL | E4: 100 | H4: 1 | J4: 2 | P4: 1 | T4: 1 | X4: 1 | AE4: 1 | AI4: 1 | AM4: 1 | AQ4: 1 | AU4: 1 | AY4: 2 | BC4: 1 | BG4: 1 | BJ4: 2 | BN4: 4 | BR4: 2 | BV4: 2 | BZ4: 2 | CD4: 2 | CM4: 2 | CQ4: 1 | CU4: 2 | CY4: 2 | DC4: 2 | DK4: 3 | DO4: 4 | DZ4: =F4+J4+N4+R4+V4+Z4+AD4+AH4+AL4+AP4+AT4+AX4+BB4+BF4+BJ4+BN4+BR4+BV4+BZ4+CD4+CH4+CL4+CP4+CT4+CX4+DB4+DF4+DJ4+DN4+DR4+DV4 -> 16 | EA4: =G4+K4+O4+S4+W4+AA4+AE4+AI4+AM4+AQ4+AU4+AY4+BC4+BG4+BK4+BO4+BS4+BW4+CA4+CE4+CI4+CM4+CQ4+CU4+CY4+DC4+DG4+DK4+DO4+DS4+DW4 -> 25 | EB4: =H4+L4+P4+T4+X4+AB4+AF4+AJ4+AN4+AR4+AV4+AZ4+BD4+BH4+BL4+BP4+BT4+BX4+CB4+CF4+CJ4+CN4+CR4+CV4+CZ4+DD4+DH4+DL4+DP4+DT4 -> 4 | EC4: =I4+M4+Q4+U4+Y4+AC4+AG4+AK4+AO4+AS4+AW4+BA4+BE4+BI4+BM4+BQ4+BU4+BY4+CC4+CG4+CK4+CO4+CS4+CW4+DA4+DE4+DI4+DM4+DQ4+DU4 -> 0
A5: 2 | B5: GOVER504103TSBH10071 | C5: GOVT AREA HOSPITAL, BHAINSA | D5: MAIN ROAD, BHAINSA. | E5: 100 | G5: 1 | O5: 1 | S5: 1 | W5: 1 | Z5: 2 | AD5: 2 | AH5: 2 | AL5: 2 | AP5: 2 | AT5: 2 | AX5: 2 | BB5: 2 | BF5: 2 | BJ5: 2 | BN5: 3 | BO5: 3 | BR5: 1 | BV5: 1 | BZ5: 1 | CD5: 1 | CH5: 1 | CL5: 1 | CP5: 2 | CT5: 1 | CX5: 2 | DB5: 2 | DF5: 2 | DJ5: 4 | DN5: 5 | DZ5: =F5+J5+N5+R5+V5+Z5+AD5+AH5+AL5+AP5+AT5+AX5+BB5+BF5+BJ5+BN5+BR5+BV5+BZ5+CD5+CH5+CL5+CP5+CT5+CX5+DB5+DF5+DJ5+DN5+DR5+DV5 -> 47 | EA5: =G5+K5+O5+S5+W5+AA5+AE5+AI5+AM5+AQ5+AU5+AY5+BC5+BG5+BK5+BO5+BS5+BW5+CA5+CE5+CI5+CM5+CQ5+CU5+CY5+DC5+DG5+DK5+DO5+DS5+DW5 -> 7 | EB5: =H5+L5+P5+T5+X5+AB5+AF5+AJ5+AN5+AR5+AV5+AZ5+BD5+BH5+BL5+BP5+BT5+BX5+CB5+CF5+CJ5+CN5+CR5+CV5+CZ5+DD5+DH5+DL5+DP5+DT5 -> 0 | EC5: =I5+M5+Q5+U5+Y5+AC5+AG5+AK5+AO5+AS5+AW5+BA5+BE5+BI5+BM5+BQ5+BU5+BY5+CC5+CG5+CK5+CO5+CS5+CW5+DA5+DE5+DI5+DM5+DQ5+DU5 -> 0
A6: BELOW 100 BEDS HCFs
A7: NIRMAL
A8: 1 | B8: DEVEN504105TSBH08850 | C8: THIRUMALA SUPER SPECIALITY HOSPITAL, NIZAMABAD | D8: OPP: MAREMMA TEMPLE, KHANAPUR ROAD, NIRMAL | E8: 50 | F8: 2 | K8: 1 | N8: 2 | R8: 2 | V8: 1 | Z8: 2 | AD8: 2 | AH8: 2 | AM8: 1 | AQ8: 1 | AU8: 1 | AY8: 2 | BB8: 2 | BG8: 1 | BJ8: 1 | BN8: 1 | BR8: 2 | BV8: 1 | BZ8: 1 | CD8: 1 | CH8: 2 | CM8: 1 | CQ8: 1 | CU8: 2 | CY8: 1 | DC8: 1 | DF8: 1 | DK8: 2 | DO8: 2 | DR8: 2 | DV8: 2 | DZ8: 29 | EA8: 17 | EB8: 0 | EC8: 0
A9: 2 | B9: PRASH504106TSBH01038 | C9: PRASHANTH'S G.K HOSPITAL | D9: DR. PRASHANTH, D.NO. 5-7-100/2, DOCTORS LANE, NEAR BUS STAND, NIRMAL | E9: 50 | G9: 1 | K9: 1 | O9: 1 | S9: 1 | W9: 1 | AA9: 2 | AE9: 1 | AI9: 1 | AL9: 2 | AP9: 2 | BC9: 1 | BF9: 2 | BK9: 2 | BO9: 2 | BS9: 1 | BW9: 2 | CA9: 2 | CE9: 1 | CI9: 2 | CP9: 2 | CT9: 2 | CX9: 1 | DB9: 1 | DF9: 1 | DJ9: 2 | DN9: 2 | DR9: 2 | DV9: 2 | DZ9: 21 | EA9: 22 | EB9: 0 | EC9: 0
A10: 3 | B10: SRIAD504106TSBH00924 | C10: SRI ADITYA MULTI SPECIALITY HOSPITAL | D10: Dr. T. PRAMOD CHANDRA REDDY,MANCHIRAL ROAD, SHASTHRI NAGAR, NIRMAL | E10: 50 | G10: 1 | K10: 1 | O10: 1 | S10: 1 | W10: 1 | AA10: 1 | AE10: 1 | AI10: 1 | AL10: 2 | AP10: 1 | AT10: 1 | AX10: 1 | BC10: 1 | BK10: 2 | BO10: 3 | BR10: 2 | BV10: 1 | BZ10: 1 | CD10: 2 | CH10: 1 | CL10: 2 | CP10: 1 | CX10: 2 | DB10: 2 | DG10: 2 | DJ10: 3 | DN10: 2 | DS10: 2 | DW10: 2 | DZ10: 24 | EA10: 20 | EB10: 0 | EC10: 0
A11: 4 | B11: SUJAL504106TSBH00860 | C11: SUJALA NURSING HOME | D11: Dr. SUJALA,SUJALA NAGAR, MINI TANK BUND ROAD, NIRMAL. | E11: 50 | G11: 1 | L11: 1 | O11: 1 | S11: 1 | W11: 1 | Z11: 2 | AD11: 2 | AH11: 2 | AL11: 2 | AP11: 2 | AT11: 2 | AX11: 2 | BB11: 2 | BF11: 2 | BJ11: 2 | BN11: 2 | BR11: 1 | BV11: 1 | BZ11: 1 | CD11: 1 | CH11: 2 | CM11: 1 | CQ11: 1 | CY11: 1 | DC11: 1 | DF11: 2 | DK11: 2 | DO11: 2 | DR11: 1 | DV11: 1 | DZ11: 32 | EA11: 12 | EB11: 1 | EC11: 0
A12: 5 | B12: SURYA504106TSBH00987 | C12: SURYA MULTI SPECIALITY HOSPITAL | D12: Dr RAMCHANDRA REDDY, H.NO. 1-3-13, PLOT NO.2, MNCL X ROAD, NIRMAL | E12: 50 | F12: 2 | J12: 2 | N12: 2 | R12: 2 | V12: 1 | AA12: 1 | AE12: 1 | AI12: 1 | AM12: 1 | AQ12: 1 | AU12: 1 | AY12: 1 | BC12: 1 | BG12: 1 | BK12: 1 | BO12: 3 | BS12: 2 | BW12: 2 | CA12: 2 | CE12: 1 | CI12: 1 | CM12: 2 | CQ12: 2 | CU12: 1 | CY12: 2 | DC12: 2 | DG12: 3 | DK12: 2 | DO12: 2 | DS12: 3 | DW12: 3 | DZ12: 9 | EA12: 43 | EB12: 0 | EC12: 0
A13: 6 | B13: TIRUM504106TSBH00945 | C13: TIRUMALA NURSING HOME | D13: DR.M. RAMESH REDDY, DOCTORS LANE,BESIDE THIRUMALA THAKIES, NRMLAL | E13: 50 | F13: 2 | J13: 2 | N13: 2 | R13: 2 | V13: 1 | AA13: 2 | AE13: 1 | AI13: 1 | AM13: 1 | AQ13: 2 | BC13: 1 | BG13: 1 | BK13: 1 | BO13: 2 | BR13: 1 | BV13: 1 | BZ13: 1 | CD13: 2 | CH13: 2 | CL13: 1 | CP13: 2 | CT13: 2 | CX13: 2 | DB13: 2 | DG13: 1 | DJ13: 2 | DN13: 2 | DS13: 2 | DW13: 2 | DZ13: 29 | EA13: 17 | EB13: 0 | EC13: 0
A14: 7 | B14: SWARN504106TSBH10074 | C14: SWARNA HOSPITAL | D14: Dr. A. SUVARNA REDDY, BEHIND CANARA BANK, BHEEM REDDY COMPLEX, N.H. 7 ROAD, NIRMAL. | E14: 30 | H14: 1 | L14: 1 | P14: 1 | T14: 1 | X14: 1 | Z14: 1 | AD14: 2 | AH14: 2 | AL14: 2 | AP14: 1 | AT14: 1 | AX14: 1 | BB14: 2 | BF14: 2 | BJ14: 2 | BN14: 2 | BR14: 2 | BV14: 2 | BZ14: 2 | CD14: 2 | CH14: 1 | CL14: 2 | CP14: 2 | CT14: 1 | CX14: 1 | DB14: 1 | DF14: 2 | DJ14: 3 | DN14: 3 | DR14: 2 | DV14: 2 | DZ14: 46 | EA14: 0 | EB14: 5 | EC14: 0
A15: 8 | B15: KAVER504105TSBH00916 | C15: KAVERI CHILDRENS HOSPITAL | D15: DR. CHAKRADHAR, NEAR TIRUMALA THEATRE, OPP: RTO OFFICE,KAVERI NAGAR, NIRMAL,Nirmal,Nirmal (Urban),NIRMAL,504105 | E15: 25 | DZ15: 0 | EA15: 0 | EB15: 0 | EC15: 0
A16: 9 | B16: SRILA504106TSBH09723 | C16: SRI LAXMI CHAITANYA HOSPITAL | D16: Dr. A. CHAITANYA,ANBADI NARSIMLU COMPLEX, DOCTOR'S LANE, NIRMAL. | E16: 24 | G16: 1 | K16: 1 | O16: 1 | S16: 1 | W16: 1 | Z16: 2 | AD16: 2 | AH16: 2 | AM16: 1 | AQ16: 2 | AU16: 2 | AY16: 1 | BB16: 2 | BG16: 1 | BJ16: 1 | BN16: 3 | BR16: 1 | BV16: 1 | BZ16: 1 | CD16: 1 | CH16: 1 | CM16: 1 | CQ16: 1 | CU16: 2 | CY16: 1 | DC16: 1 | DG16: 2 | DK16: 3 | DO16: 3 | DS16: 3 | DW16: 3 | DZ16: 17 | EA16: 32 | EB16: 0 | EC16: 0
A17: 10 | B17: MRMUL504106TSBH08455 | C17: MR MULTI SPECIALITY HOSPITAL | D17: Nirmal(V) Nirmal (Urban)(M) NIRMAL(D) Telangana-504106 | E17: 20 | G17: 1 | K17: 1 | O17: 1 | S17: 1 | W17: 1 | AA17: 2 | AE17: 1 | AI17: 1 | AP17: 1 | AU17: 1 | AY17: 1 | BB17: 2 | BF17: 2 | BJ17: 1 | BN17: 1 | BS17: 2 | BW17: 2 | CA17: 2 | CE17: 2 | CI17: 2 | CL17: 2 | CP17: 1 | CT17: 1 | CX17: 1 | DB17: 1 | DF17: 1 | DJ17: 1 | DN17: 1 | DR17: 1 | DV17: 1 | DZ17: 18 | EA17: 21 | EB17: 0 | EC17: 0
A18: 11 | B18: N.B.R504106TSBH09720 | C18: N.B.R MULTI SPECIALITY HOSPITAL | D18: Dr. U. SHOBHA SUBHASH RAO,OPP. BUS DEPOT,NIRMAL | E18: 20 | G18: 1 | K18: 1 | O18: 1 | S18: 1 | W18: 1 | AA18: 2 | AD18: 2 | AH18: 2 | AL18: 2 | AP18: 2 | AT18: 2 | AX18: 2 | BB18: 2 | BF18: 2 | BJ18: 1 | BN18: 1 | BR18: 2 | BV18: 1 | BZ18: 1 | CD18: 1 | CH18: 2 | CL18: 2 | CP18: 1 | CT18: 1 | CX18: 1 | DB18: 1 | DF18: 1 | DJ18: 1 | DN18: 1 | DR18: 1 | DV18: 1 | DZ18: 36 | EA18: 7 | EB18: 0 | EC18: 0
A19: 12 | B19: RAVIM504106TSBH10075 | C19: RAVI MULTI SPECELITY HOSPITAL | D19: BEHIND PF OFFICE, DOCTORS LANE, OLD NH7 ROAD, NIRMAL | E19: 20 | H19: 1 | K19: 1 | P19: 1 | T19: 1 | X19: 1 | Z19: 1 | AE19: 1 | AI19: 1 | AL19: 2 | AP19: 1 | AT19: 1 | AX19: 1 | BC19: 1 | BF19: 2 | BK19: 1 | BO19: 2 | BR19: 1 | BV19: 2 | BZ19: 2 | CD19: 2 | CH19: 1 | CL19: 1 | CP19: 2 | CT19: 2 | CX19: 2 | DB19: 2 | DF19: 2 | DJ19: 1 | DN19: 1 | DR19: 1 | DV19: 1 | DZ19: 31 | EA19: 7 | EB19: 4 | EC19: 0
A20: 13 | B20: DEVIB504106TSBH10076 | C20: DEVI BAI HOSPITAL | D20: BESIDE SAROJA HOSPITAL, OLD NH7 ROAD, NIRMAL | E20: 15 | F20: 2 | K20: 1 | N20: 2 | R20: 2 | V20: 2 | AA20: 2 | AD20: 2 | AH20: 2 | AL20: 2 | AP20: 2 | AT20: 2 | AX20: 2 | BB20: 2 | BF20: 2 | BJ20: 1 | BN20: 2 | BR20: 2 | BV20: 1 | BZ20: 1 | CD20: 1 | CH20: 1 | CL20: 2 | CP20: 2 | CT20: 1 | CX20: 1 | DB20: 1 | DG20: 2 | DJ20: 1 | DN20: 1 | DR20: 1 | DV20: 1 | DZ20: 44 | EA20: 5 | EB20: 0 | EC20: 0
A21: 14 | B21: PADMI504106TSBH00886 | C21: PADMINI HOSPITAL | D21: Dr. U. RAMAKRISHNA,OPP.RURAL POLICE STATION, N.H. 7 NIRMAL. | E21: 15 | F21: 2 | J21: 2 | N21: 2 | R21: 2 | V21: 2 | Z21: 1 | AE21: 1 | AI21: 1 | AL21: 2 | AP21: 1 | AT21: 1 | AX21: 1 | BB21: 2 | BF21: 2 | BJ21: 2 | BN21: 2 | BR21: 2 | BV21: 1 | BZ21: 1 | CD21: 2 | CH21: 2 | CM21: 1 | CQ21: 1 | CU21: 2 | CY21: 2 | DC21: 2 | DF21: 2 | DK21: 2 | DO21: 3 | DR21: 2 | DV21: 2 | DZ21: 38 | EA21: 15 | EB21: 0 | EC21: 0
A22: 15 | B22: SAIBA504106TSBH00862 | C22: SAI BALAJI HOSPITAL | D22: BESIDE THIRUMALA THEATRE, NIRMAL | E22: 15 | F22: 2 | J22: 2 | N22: 2 | R22: 2 | V22: 2 | AA22: 2 | AE22: 2 | AI22: 1 | AL22: 2 | AP22: 2 | AT22: 2 | AX22: 2 | BB22: 2 | BF22: 2 | BJ22: 2 | BN22: 1 | BS22: 1 | BW22: 2 | CA22: 2 | CE22: 1 | CI22: 2 | CL22: 2 | CP22: 1 | CT22: 1 | CX22: 2 | DB22: 2 | DG22: 2 | DJ22: 2 | DN22: 2 | DS22: 2 | DW22: 2 | DZ22: 37 | EA22: 19 | EB22: 0 | EC22: 0
A23: 16 | B23: ANRPR504106TSBH10077 | C23: ANR PRAGATHI HOSPITAL | D23: BESIDE BUS STAND, PRIYADHARSHINI NAGAR, NIRMAL | E23: 15 | K23: 1 | Z23: 1 | AE23: 2 | AI23: 1 | AM23: 1 | AQ23: 1 | BC23: 1 | BG23: 1 | BK23: 1 | BO23: 1 | BR23: 2 | BW23: 2 | CA23: 2 | CD23: 2 | CH23: 2 | CM23: 1 | CP23: 2 | CU23: 2 | CY23: 1 | DC23: 1 | DF23: 1 | DK23: 1 | DN23: 2 | DR23: 1 | DV23: 1 | DZ23: 14 | EA23: 20 | EB23: 0 | EC23: 0
A24: 17 | B24: BALAJ504106TSBH10078 | C24: BALAJI MULTI SPECIALITY HOSPITAL | D24: BESIDE G.K. HOSPITAL, NEAR SRI LAXMI CHAITANYA HOSPITAL, OLD NH7 ROAD, NIRMAL | E24: 15 | H24: 1 | K24: 1 | P24: 1 | T24: 1 | X24: 1 | AA24: 1 | AD24: 2 | AH24: 2 | AL24: 2 | AP24: 2 | AT24: 2 | AX24: 2 | BB24: 2 | BF24: 2 | BJ24: 2 | BN24: 3 | BR24: 1 | BW24: 1 | CA24: 1 | CD24: 1 | CH24: 1 | CL24: 2 | CP24: 2 | CT24: 2 | CX24: 2 | DB24: 2 | DF24: 1 | DJ24: 1 | DN24: 2 | DR24: 3 | DV24: 3 | DZ24: 44 | EA24: 4 | EB24: 4 | EC24: 0
A25: 18 | B25: SRICH504106TSBH10079 | C25: SRI CHANDANA HOSPITAL | D25: Dr. B. MOHAN MURTHI, NEAR NEW BUS STAND, DHARMASAGAR LANE, NIRMAL. | E25: 15 | H25: 1 | K25: 1 | T25: 1 | X25: 1 | AA25: 2 | AE25: 1 | AI25: 1 | AM25: 1 | AQ25: 1 | AU25: 1 | AY25: 1 | BC25: 1 | BG25: 1 | BK25: 1 | BO25: 1 | BR25: 2 | BV25: 2 | BZ25: 2 | CD25: 2 | CH25: 1 | CM25: 2 | CQ25: 1 | CU25: 1 | CY25: 1 | DC25: 1 | DF25: 1 | DJ25: 1 | DN25: 1 | DR25: 1 | DV25: 1 | DZ25: 14 | EA25: 19 | EB25: 3 | EC25: 0
A26: 19 | B26: SRIVI504710TSBH00863 | C26: SRI VIDYA HOSPITAL | D26: BESIDE COMMUNIST STUPAM,NIRMAL | E26: 15 | G26: 1 | K26: 1 | O26: 1 | S26: 1 | W26: 1 | Z26: 2 | AE26: 1 | AI26: 1 | AL26: 2 | AP26: 2 | AT26: 2 | AX26: 2 | BB26: 2 | BF26: 2 | BJ26: 2 | BN26: 2 | BR26: 1 | BV26: 1 | BZ26: 1 | CD26: 1 | CH26: 1 | CL26: 2 | CP26: 1 | CT26: 1 | CX26: 2 | DB26: 2 | DG26: 1 | DJ26: 2 | DN26: 2 | DS26: 2 | DW26: 2 | DZ26: 35 | EA26: 12 | EB26: 0 | EC26: 0
A27: 20 | B27: SRILA504106TSBH09719 | C27: SRI LALITHA NURSING HOME | D27: Dr. D. RAJANI, NEAR BUS STAND, PRIYADERSHNI NAGAR, NIRMAL. | E27: 12 | F27: 2 | J27: 2 | N27: 2 | Z27: 1 | AE27: 1 | AI27: 1 | AL27: 2 | AP27: 1 | AT27: 1 | AX27: 1 | BC27: 1 | BF27: 2 | BK27: 2 | BO27: 1 | BR27: 2 | BV27: 1 | BZ27: 1 | CD27: 1 | CH27: 2 | CM27: 2 | CQ27: 2 | CU27: 2 | CY27: 2 | DC27: 2 | DF27: 2 | DK27: 3 | DO27: 3 | DR27: 2 | DV27: 2 | DZ27: 27 | EA27: 22 | EB27: 0 | EC27: 0
A28: 21 | C28: SRI MAHALAXMI HOSPITAL | D28: DOCTORS LANE, NIRMAL | E28: 12 | DZ28: 0 | EA28: 0 | EB28: 0 | EC28: 0
A29: 22 | B29: GKHOS504106TSBH10142 | C29: G K HOSPITAL | D29: Dr. G. KISHAN, # 6-1-1, CHINTAKUNTAWADA, BUDHWARPET ROAD, NEAR S.B.I, NIRMAL-504106. | E29: 11 | F29: 2 | J29: 2 | N29: 2 | R29: 1 | V29: 1 | AA29: 2 | AD29: 2 | AH29: 2 | AL29: 2 | AP29: 2 | AT29: 2 | AX29: 2 | BC29: 1 | BF29: 2 | BK29: 2 | BO29: 3 | BR29: 2 | BV29: 2 | BZ29: 2 | CD29: 2 | CH29: 2 | CL29: 1 | CP29: 1 | CT29: 1 | CX29: 1 | DB29: 1 | DF29: 2 | DJ29: 2 | DN29: 2 | DR29: 2 | DV29: 2 | DZ29: 47 | EA29: 8 | EB29: 0 | EC29: 0
A30: 23 | B30: CITYN504106TSBH07057 | C30: CITY NURSING HOME | D30: Dr. AYSHA PARVEEN,OLD BUS STAND ROAD, NIRMAL-504106. | E30: 10 | F30: 2 | K30: 1 | N30: 2 | R30: 2 | V30: 2 | Z30: 1 | AD30: 2 | AH30: 2 | AL30: 2 | AP30: 1 | AT30: 1 | AX30: 1 | BB30: 2 | BF30: 2 | BJ30: 1 | BN30: 2 | BR30: 2 | BV30: 1 | BZ30: 1 | CD30: 2 | CH30: 1 | CM30: 2 | CP30: 2 | CU30: 2 | CY30: 2 | DC30: 2 | DG30: 2 | DJ30: 1 | DN30: 2 | DS30: 2 | DW30: 2 | DZ30: 37 | EA30: 15 | EB30: 0 | EC30: 0
A31: 24 | B31: GAUTH504106TSBH06151 | C31: GAUTHAM NURSING HOME | D31: DR.P.VIJAYA KUMAR REDDY, BESIDE THIRUMALA TALKIES,NIRMAL-504106. | E31: 10 | H31: 1 | P31: 1 | T31: 1 | X31: 1 | AA31: 2 | AE31: 1 | AI31: 1 | AL31: 2 | AP31: 2 | AT31: 2 | AX31: 2 | BF31: 2 | BK31: 1 | BO31: 2 | BR31: 1 | BV31: 2 | BZ31: 2 | CD31: 1 | CH31: 1 | CL31: 1 | CQ31: 1 | CT31: 1 | CX31: 1 | DB31: 1 | DF31: 2 | DK31: 2 | DO31: 2 | DR31: 2 | DV31: 2 | DZ31: 27 | EA31: 12 | EB31: 4 | EC31: 0
A32: 25 | B32: KALPA504106TSBH00901 | C32: KALPANA MULTI SPECIALITY HOSPITAL NIRMAL | D32: Dr. R. MUKHESH,DHARMASAGAR LAKE, AMBADI NARSIMLU COMPELX, NIRMAL. | E32: 10 | F32: 2 | J32: 2 | N32: 2 | R32: 2 | V32: 2 | AA32: 2 | AE32: 1 | AI32: 1 | AM32: 1 | AQ32: 1 | AU32: 1 | AY32: 1 | BC32: 1 | BG32: 1 | BK32: 1 | BO32: 1 | BS32: 1 | BW32: 2 | CA32: 2 | CE32: 2 | CI32: 2 | CM32: 2 | CQ32: 2 | CU32: 2 | CY32: 2 | DC32: 2 | DG32: 2 | DK32: 2 | DO32: 2 | DS32: 2 | DW32: 2 | DZ32: 10 | EA32: 41 | EB32: 0 | EC32: 0
A33: 26 | C33: KALYANI HOSPITAL | D33: DOCTORS LANE, NIRMAL | E33: 10 | DZ33: 0 | EA33: 0 | EB33: 0 | EC33: 0
A34: 27 | B34: KANIK504106TSBH00892 | C34: KANIKA KIDNEY CARE CENTRE | D34: H.NO 5-6-7/10, DOCTORS LANE, OPP: THIRUMALA THEATORE, NIRMAL | E34: 10 | G34: 1 | K34: 1 | O34: 1 | S34: 1 | W34: 1 | AA34: 1 | AE34: 1 | AI34: 1 | AM34: 1 | AQ34: 2 | BC34: 2 | BG34: 1 | BK34: 1 | BO34: 1 | BS34: 1 | BW34: 1 | CA34: 1 | CE34: 1 | CI34: 2 | CL34: 1 | CP34: 1 | CT34: 2 | CX34: 1 | DB34: 1 | DG34: 1 | DJ34: 1 | DN34: 2 | DS34: 2 | DW34: 2 | DZ34: 9 | EA34: 27 | EB34: 0 | EC34: 0
A35: 28 | B35: NIRMA504106TSBH00927 | C35: NIRMAL NURSING HOME | D35: Dr.DAMERA RAMULU OPP.TIRUMALA THEATRE,NIRMAL | E35: 10 | G35: 1 | J35: 2 | L35: 1 | P35: 1 | T35: 1 | X35: 1 | Z35: 2 | AE35: 1 | AI35: 1 | AL35: 2 | AP35: 1 | AT35: 1 | AX35: 1 | BB35: 2 | BF35: 2 | BJ35: 1 | BN35: 2 | BR35: 2 | BV35: 1 | BZ35: 1 | CD35: 2 | CH35: 1 | CL35: 1 | CP35: 2 | CT35: 1 | CX35: 2 | DB35: 2 | DF35: 2 | DJ35: 1 | DN35: 1 | DR35: 1 | DV35: 1 | DZ35: 37 | EA35: 3 | EB35: 4 | EC35: 0
A36: 29 | C36: NIRMAL SAI NURSING HOME | D36: Dr. J. DHOOM SINGH,DOCTORS LANE, NEAR THIRUMALA TALKIS, NIRMAL. | E36: 10 | DZ36: 0 | EA36: 0 | EB36: 0 | EC36: 0
A37: 30 | C37: SAI RAM NURSING HOME | D37: Dr. P. HANMANTH REDDY,BESIDE THIRUMALA TALKIES, NIRMAL.-504106 | E37: 10 | DZ37: 0 | EA37: 0 | EB37: 0 | EC37: 0
A38: 31 | C38: SANJEEVANI HOSPITAL | D38: Dr. V. SRINIVASA REDDY,OPP. THIRUMALA TALKIES, DOCTORS LANE, N.H. 7 ROAD, NIRMAL. | E38: 10 | DZ38: 0 | EA38: 0 | EB38: 0 | EC38: 0
A39: 32 | B39: SAROJ504106TSBH08458 | C39: SAROJA MATERNITY & TRAUMA CARE CENTRE | D39: Dr. A. RAMANA GOUD,BESIDE TRA OFFICE, N.H.-7 ROAD, NIRMAL. | E39: 10 | F39: 2 | J39: 2 | N39: 2 | R39: 2 | V39: 2 | Z39: 1 | AE39: 1 | AI39: 1 | AL39: 2 | AP39: 2 | AT39: 2 | AX39: 2 | BB39: 2 | BF39: 2 | BJ39: 2 | BN39: 3 | BR39: 1 | BV39: 2 | BZ39: 2 | CD39: 1 | CH39: 2 | CM39: 1 | CQ39: 1 | CU39: 2 | CY39: 1 | DC39: 1 | DF39: 2 | DK39: 2 | DO39: 2 | DR39: 1 | DV39: 1 | DZ39: 40 | EA39: 12 | EB39: 0 | EC39: 0
A40: 33 | B40: SRIVE504106TSBH07087 | C40: SRI VENKATESHWARA HOSPITAL | D40: Dr. M. DAMODAR REDDY,BESIDE THIRUMALA TALKIES, NIRMAL.-504106. | E40: 10 | G40: 1 | K40: 1 | S40: 1 | W40: 1 | Z40: 2 | AD40: 2 | AH40: 2 | AM40: 1 | AQ40: 1 | AU40: 1 | AY40: 1 | BB40: 2 | BG40: 1 | BJ40: 2 | BN40: 1 | BS40: 2 | BW40: 2 | CA40: 2 | CE40: 2 | CI40: 1 | CL40: 2 | CP40: 2 | CT40: 1 | CX40: 1 | DB40: 1 | DF40: 3 | DJ40: 2 | DN40: 2 | DR40: 1 | DV40: 1 | DZ40: 27 | EA40: 18 | EB40: 0 | EC40: 0
A41: 34 | C41: SUSHRUTA CHILDRENS HOSPITAL | D41: Dr. K. MURALIDHAR, DOCTORS LANE, NIRMAL-504106. | E41: 10 | DZ41: 0 | EA41: 0 | EB41: 0 | EC41: 0
A42: 35 | C42: SVR CHILDRENS HOSPITAL | D42: Dr. C. SANTOSH RAJ,GANESH SAMEEL COMPLEX, NEAR THIRUMALA TALKIS, NIRMAL. | E42: 10 | DZ42: 0 | EA42: 0 | EB42: 0 | EC42: 0
A43: 36 | C43: VEDA CHILDREN'S HOSPITAL | D43: DOCTORS LANE, NIRMAL | E43: 10 | J43: 2 | N43: 2 | R43: 2 | V43: 2 | AA43: 1 | AE43: 1 | AI43: 1 | AL43: 2 | AP43: 2 | AT43: 2 | AX43: 2 | BC43: 1 | BF43: 2 | BK43: 1 | BO43: 2 | BR43: 1 | BV43: 2 | BZ43: 2 | CD43: 1 | CH43: 1 | CM43: 1 | CQ43: 1 | CU43: 2 | CY43: 2 | DC43: 2 | DG43: 1 | DK43: 1 | DO43: 2 | DS43: 2 | DW43: 2 | DZ43: 25 | EA43: 23 | EB43: 0 | EC43: 0
A44: 37 | B44: VIJAY504106TSBH09721 | C44: VIJAYA HOSPITAL | D44: Dr. K. RAGHUNANDAN REDDY, DOCTORS LANE, BESIDE THIRUMALA THEATRE, NIRMAL.-504106. | E44: 10 | G44: 1 | J44: 2 | O44: 1 | S44: 1 | W44: 1 | Z44: 2 | AD44: 2 | AH44: 2 | AL44: 2 | AP44: 2 | AT44: 2 | AX44: 2 | BC44: 1 | BF44: 2 | BK44: 2 | BO44: 3 | BS44: 2 | BW44: 2 | CA44: 1 | CE44: 2 | CI44: 2 | CL44: 2 | CP44: 2 | CT44: 1 | CX44: 1 | DB44: 1 | DF44: 2 | DJ44: 2 | DN44: 1 | DR44: 1 | DV44: 1 | DZ44: 32 | EA44: 19 | EB44: 0 | EC44: 0
A45: 38 | B45: SRICH504106TSBH08478 | C45: SRI CHANDRA CHILDRENS & NEONATAL HOSPITAL | D45: Dr. G. RAMESH,OPP. TIRUMALA TALKIS , N.H. 7 , NIRMAL | E45: 10 | G45: 1 | K45: 1 | O45: 1 | S45: 1 | W45: 1 | AA45: 1 | AE45: 1 | AI45: 1 | AM45: 1 | AQ45: 1 | AU45: 1 | AY45: 1 | BC45: 1 | BG45: 1 | BK45: 1 | BO45: 1 | BS45: 1 | BW45: 2 | CA45: 1 | CE45: 2 | CI45: 1 | CL45: 1 | CP45: 2 | CT45: 2 | CX45: 2 | DB45: 2 | DG45: 2 | DJ45: 2 | DN45: 1 | DS45: 1 | DW45: 1 | DZ45: 12 | EA45: 27 | EB45: 0 | EC45: 0
A46: 39 | C46: SRI DSK MULTISPECIALITY & MATERNITY HOSPITAL | D46: NIRMAL | E46: 9 | DZ46: 0 | EA46: 0 | EB46: 0 | EC46: 0
A47: 40 | B47: SRIKA504106TSBH09757 | C47: SRIKANTA HOSPITAL | D47: DR. CH. MOGULESHM H.NO.5-7-10/F-5, DOCTORS LANE, NEAR THIRUMALA TALKIES, OLD NH ROAD, NIRMAL. | E47: 9 | G47: 2 | K47: 2 | O47: 2 | S47: 2 | W47: 2 | AA47: 2 | AD47: 2 | AH47: 2 | AM47: 1 | AQ47: 2 | AU47: 2 | AY47: 2 | BB47: 2 | BG47: 1 | BJ47: 1 | BN47: 1 | BR47: 2 | BV47: 1 | BZ47: 1 | CD47: 1 | CH47: 1 | CL47: 2 | CP47: 1 | CT47: 1 | CX47: 1 | DB47: 1 | DF47: 1 | DJ47: 1 | DN47: 2 | DR47: 1 | DV47: 1 | DZ47: 26 | EA47: 20 | EB47: 0 | EC47: 0
A48: 41 | C48: SURAKSHA HOSPITAL | D48: H.NO. 5-9-68/5/1, DOCTORS LANE, NIRMAL | E48: 9 | DZ48: 0 | EA48: 0 | EB48: 0 | EC48: 0
A49: 42 | C49: TEJA HOSPITAL | D49: DOCTORS LANE, NIRMAL | E49: 9 | DZ49: 0 | EA49: 0 | EB49: 0 | EC49: 0
A50: 43 | B50: SRIKR504106TSBH07079 | C50: SRI KRISHNA NEURO SUPER SPECIALITY HOSPITAL | D50: TIRUMALA THEATOR ROAD,NIRMAL | E50: 8 | G50: 1 | K50: 1 | O50: 1 | S50: 1 | W50: 1 | AA50: 2 | AE50: 1 | AI50: 1 | AL50: 2 | AP50: 1 | AT50: 1 | AX50: 1 | BF50: 2 | BJ50: 2 | BN50: 2 | BR50: 1 | BV50: 2 | BZ50: 2 | CD50: 2 | CH50: 2 | CM50: 1 | CQ50: 2 | CU50: 1 | CY50: 2 | DC50: 2 | DG50: 2 | DK50: 2 | DO50: 2 | DR50: 1 | DV50: 1 | DZ50: 22 | EA50: 23 | EB50: 0 | EC50: 0
A51: 44 | B51: PRIMA504404TSBH09758 | C51: PRIMARY HEALTHCARE CENTRE, NARSAPUR | D51: VILLAGE: NARSAPUR, NIRMAL | E51: 6 | K51: 2 | N51: 2 | R51: 2 | V51: 2 | AA51: 1 | AE51: 1 | AI51: 1 | AM51: 1 | AQ51: 1 | AU51: 1 | AY51: 1 | BC51: 1 | BG51: 1 | BK51: 1 | BO51: 1 | BS51: 2 | BW51: 1 | CA51: 1 | CE51: 1 | CI51: 1 | CL51: 1 | CP51: 1 | CT51: 2 | CX51: 1 | DB51: 1 | DG51: 2 | DJ51: 1 | DN51: 1 | DZ51: 14 | EA51: 21 | EB51: 0 | EC51: 0
A52: 45 | B52: PHCSO504105TSBH01028 | C52: PRIMARY HEALTHCARE CENTRE, SOAN | D52: NEAR SOAN POLICE STATION, Soan, NIRMAL,504105 | E52: 6 | G52: 1 | K52: 1 | O52: 1 | S52: 1 | W52: 1 | Z52: 2 | AD52: 2 | AH52: 2 | AL52: 2 | AP52: 2 | AT52: 2 | AX52: 2 | BF52: 2 | BJ52: 1 | BN52: 2 | BR52: 2 | BV52: 2 | BZ52: 2 | CD52: 1 | CH52: 2 | CL52: 1 | CP52: 2 | CT52: 1 | CX52: 1 | DB52: 1 | DF52: 1 | DJ52: 1 | DN52: 2 | DR52: 1 | DV52: 1 | DZ52: 40 | EA52: 5 | EB52: 0 | EC52: 0
A53: 46 | C53: SRI KRISHNA CHILDRENS HOSP | D53: Dr. P. SANTOSH,OPP.AMBDHATAR STATUE,NIRMAL. | E53: 6 | DZ53: 0 | EA53: 0 | EB53: 0 | EC53: 0
A54: 47 | B54: OMSAI504106TSBH08456 | C54: OM SAI ENT HOSPITAL | D54: Dr.DEVDAS,NH-7 ROAD,NIRMAL | E54: 5 | H54: 1 | L54: 1 | P54: 1 | T54: 1 | X54: 1 | AA54: 1 | AE54: 1 | AI54: 1 | AM54: 1 | AQ54: 1 | BC54: 1 | BG54: 1 | BK54: 1 | BO54: 1 | BS54: 1 | BW54: 1 | CA54: 1 | CE54: 1 | CI54: 2 | CM54: 1 | CQ54: 1 | CU54: 1 | CY54: 1 | DC54: 1 | DG54: 1 | DK54: 1 | DO54: 2 | DS54: 2 | DW54: 2 | DZ54: 0 | EA54: 28 | EB54: 5 | EC54: 0
A55: 48 | B55: SRISA504106TSBH09722 | C55: SRI SAI ENT HOSPITAL | D55: Dr. S. SUNIL, 5-7-10/37/H3, Doctors lane, beside Thirumala Theater, Nirmal, Telangana 504106 | E55: 4 | G55: 1 | K55: 1 | O55: 1 | S55: 1 | W55: 1 | AA55: 2 | AD55: 2 | AH55: 2 | AM55: 1 | AQ55: 1 | AU55: 2 | AY55: 2 | BC55: 1 | BG55: 1 | BK55: 2 | BO55: 2 | BS55: 2 | BW55: 1 | CA55: 1 | CE55: 2 | CI55: 1 | CL55: 2 | CP55: 1 | CT55: 1 | CX55: 2 | DB55: 2 | DF55: 2 | DJ55: 2 | DN55: 1 | DR55: 1 | DV55: 1 | DZ55: 19 | EA55: 26 | EB55: 0 | EC55: 0
A56: 49 | B56: SHIVA504106TSBH00894 | C56: SHIVA SAI MULTI SPECIALIITY DENTAL CLINIC | D56: DOCTORS LANE, NIRMAL | E56: 3 | H56: 1 | P56: 1 | AA56: 2 | AE56: 1 | AI56: 1 | AM56: 1 | AQ56: 2 | AU56: 1 | AY56: 1 | BB56: 2 | BG56: 1 | BJ56: 2 | BR56: 1 | BV56: 2 | BZ56: 2 | CD56: 1 | CH56: 2 | CL56: 1 | CP56: 2 | CT56: 1 | CX56: 2 | DB56: 2 | DG56: 2 | DJ56: 1 | DS56: 2 | DW56: 2 | DZ56: 21 | EA56: 16 | EB56: 2 | EC56: 0
A57: 50 | C57: SRI SAI SUPER SPECIALITY DENTAL | D57: DR. VENKATA RAMANA, DOCTORS LANE, NIRMAL | E57: 3 | DZ57: 0 | EA57: 0 | EB57: 0 | EC57: 0
A58: 51 | C58: PARDHA DENTAL | E58: 2 | DZ58: 0 | EA58: 0 | EB58: 0 | EC58: 0
A59: 52 | C59: MUNWAR DENTAL | D59: Dr.MRS AMENA SHAHWAR,OPP. DCC BANK,NIRMAL | E59: 1 | DZ59: 0 | EA59: 0 | EB59: 0 | EC59: 0
A60: 53 | B60: NARAY504106TSDH09718 | C60: NARAYANA DENTAL CLINIC & IMPLANT CENTER | D60: BESIDE SVR CHILDRENS HOSPITAL, NEAR THIRUMALA THEATRE, VIVEKNAGAR, NIRMAL | E60: 0 | F60: 2 | J60: 2 | N60: 2 | R60: 2 | V60: 2 | AA60: 1 | AE60: 1 | AI60: 1 | AL60: 2 | AP60: 2 | AT60: 2 | AX60: 2 | BC60: 1 | BF60: 2 | BK60: 1 | BO60: 1 | BS60: 2 | BW60: 1 | CA60: 1 | CE60: 2 | CI60: 1 | CM60: 2 | CQ60: 2 | CU60: 2 | CY60: 1 | DC60: 1 | DG60: 1 | DJ60: 2 | DN60: 1 | DS60: 2 | DW60: 2 | DZ60: 23 | EA60: 26 | EB60: 0 | EC60: 0
A61: 54 | C61: NARAYANA HEART CARE HOSPITAL | D61: DOCTORS LANE,NEAR THIRUMALA TALKIS,NIRMAL | E61: 0 | DZ61: 0 | EA61: 0 | EB61: 0 | EC61: 0
A62: 55 | C62: NARENDRA NURSING HOME | D62: Dr.NAREDDRA REDDY NIRMAL | E62: 0 | DZ62: 0 | EA62: 0 | EB62: 0 | EC62: 0
A63: 56 | C63: NIRMAL NEURO HOSPITAL | D63: DOCTORS LANE, NIRMAL | E63: 0 | DZ63: 0 | EA63: 0 | EB63: 0 | EC63: 0
A64: 57 | B64: SHREE504106TSPL09725 | C64: SHREE DIAGNOSTICS & POLY CLINIC | D64: VENKATESHWARA COMPLEX,DOCTORS LANE, THIRUMALA THEATRE ROAD, NIRMAL | E64: 0 | G64: 1 | H64: 1 | J64: 2 | K64: 1 | P64: 1 | S64: 1 | T64: 1 | W64: 1 | X64: 1 | AA64: 1 | AE64: 1 | AI64: 1 | AL64: 2 | AP64: 1 | AT64: 1 | AX64: 1 | BB64: 2 | BF64: 2 | BJ64: 2 | BN64: 3 | BS64: 2 | BW64: 2 | CA64: 2 | CE64: 2 | CI64: 1 | CL64: 1 | CQ64: 1 | CT64: 1 | CX64: 2 | DB64: 2 | DF64: 1 | DJ64: 1 | DO64: 2 | DR64: 1 | DV64: 1 | DZ64: 26 | EA64: 19 | EB64: 4 | EC64: 0
A65: 58 | B65: SRIBA504106TSBH07077 | C65: SRI BALAJI SKIN CARE | D65: Dr. K. RAGHAVENDRA,OPP. ADCC BANK,THIRUMALA TALKIES ROAD,NIRMAL | E65: 0 | G65: 1 | K65: 1 | O65: 1 | Z65: 2 | AE65: 1 | AI65: 1 | AL65: 2 | AT65: 2 | AX65: 2 | BC65: 1 | BF65: 2 | BK65: 2 | BO65: 3 | BR65: 1 | BV65: 2 | BZ65: 2 | CH65: 1 | CM65: 2 | CQ65: 1 | CU65: 2 | CY65: 1 | DC65: 1 | DF65: 2 | DK65: 2 | DO65: 2 | DR65: 2 | DV65: 2 | DZ65: 22 | EA65: 22 | EB65: 0 | EC65: 0
A66: 59 | B66: SRINI504106TSBH00933 | C66: SRINIVASA DIAGNOSTICS & SPECIALITY LAB | D66: APPALA NARSAIAH COMPLEX,NEAR NEW BU STAND NIRMAL Nirmal(V) Nirmal (Urban)(M) NIRMAL(D) Telangana-504106 | E66: 0 | DZ66: 0 | EA66: 0 | EB66: 0 | EC66: 0
A67: BHAINSA HOSPITALS
A68: 1 | B68: ARADH504103TSBH08518 | C68: ARADHANA NURSING HOME | D68: Dr. G. Raja Reddy, GOKUL NAGAR, BHAINSA. | E68: 50 | F68: 2 | J68: 2 | N68: 2 | R68: 2 | V68: 2 | AA68: 4 | AD68: 2 | AH68: 2 | AL68: 2 | AP68: 2 | AT68: 2 | AX68: 2 | BC68: 1 | BK68: 1 | BO68: 4 | BS68: 2 | BW68: 2 | CA68: 1 | CE68: 2 | CH68: 1 | CL68: 1 | CP68: 1 | CT68: 1 | CX68: 2 | DB68: 2 | DF68: 2 | DJ68: 2 | DR68: 2 | DV68: 2 | DZ68: 38 | EA68: 17 | EB68: 0 | EC68: 0
A69: 2 | B69: KRISH504103TSBH09620 | C69: KRISHNA NURSING HOME | D69: Dr. DEEPA JADHAV,NARSIMHA NAGAR,BHAINSA, NIRMAL | E69: 50 | F69: 2 | J69: 2 | N69: 2 | R69: 2 | V69: 2 | AA69: 2 | AD69: 2 | AH69: 2 | AL69: 4 | AP69: 1 | AT69: 2 | AX69: 2 | BB69: 2 | BF69: 2 | BJ69: 2 | BN69: 2 | BR69: 1 | BV69: 1 | BZ69: 1 | CD69: 1 | CH69: 2 | CL69: 2 | CT69: 1 | CX69: 1 | DB69: 1 | DJ69: 3 | DN69: 2 | DR69: 2 | DV69: 2 | DZ69: =F69+J69+N69+R69+V69+Z69+AD69+AH69+AL69+AP69+AT69+AX69+BB69+BF69+BJ69+BN69+BR69+BV69+BZ69+CD69+CH69+CL69+CP69+CT69+CX69+DB69+DF69+DJ69+DN69+DR69+DV69 -> 51 | EA69: =G69+K69+O69+S69+W69+AA69+AE69+AI69+AM69+AQ69+AU69+AY69+BC69+BG69+BK69+BO69+BS69+BW69+CA69+CE69+CI69+CM69+CQ69+CU69+CY69+DC69+DG69+DK69+DO69+DS69+DW69 -> 2 | EB69: =H69+L69+P69+T69+X69+AB69+AF69+AJ69+AN69+AR69+AV69+AZ69+BD69+BH69+BL69+BP69+BT69+BX69+CB69+CF69+CJ69+CN69+CR69+CV69+CZ69+DD69+DH69+DL69+DP69+DT69 -> 0 | EC69: =I69+M69+Q69+U69+Y69+AC69+AG69+AK69+AO69+AS69+AW69+BA69+BE69+BI69+BM69+BQ69+BU69+BY69+CC69+CG69+CK69+CO69+CS69+CW69+DA69+DE69+DI69+DM69+DQ69+DU69 -> 0
A70: 3 | B70: SAISU504103TSBH01036 | C70: SAI SUPRIYA MULTI SPECIALTY HOSPITAL | D70: DOCTOR'S LANE, NARSIMHA TEMPLE ROAD, BHAINSA,Bhainsa (M),Bhainsa,NIRMAL,504103 | E70: 50 | F70: 2 | J70: 2 | R70: 2 | V70: 2 | AA70: 1 | AE70: 1 | AI70: 1 | AL70: 2 | AP70: 2 | AT70: 1 | AX70: 1 | BB70: 2 | BF70: 2 | BN70: 2 | BS70: 2 | BV70: 1 | BZ70: 1 | CE70: 1 | CI70: 1 | CQ70: 2 | CU70: 1 | CY70: 2 | DC70: 2 | DG70: 2 | DK70: 1 | DS70: 2 | DW70: 2 | DZ70: 22 | EA70: 21 | EB70: 0 | EC70: 0
A71: 4 | B71: NEWLI504103TSBH10067 | C71: NEW LIFE HOSPITAL | D71: FISH MARKET LANE, BHAINSA | E71: 8 | G71: 1 | K71: 1 | S71: 1 | W71: 1 | AD71: 2 | AH71: 2 | AL71: 2 | AT71: 2 | AX71: 2 | BJ71: 1 | BN71: 1 | BR71: 1 | BV71: 1 | BZ71: 1 | CD71: 1 | CH71: 1 | CL71: 2 | CP71: 1 | CT71: 2 | CX71: 1 | DB71: 1 | DJ71: 1 | DN71: 1 | DW71: 1 | DZ71: 26 | EA71: 5 | EB71: 0 | EC71: 0
A72: 5 | B72: SANJE504103TSBH10064 | C72: SANJEEVANI NURSING HOME | D72: Dr. G. SURENDER, ASAD BABA NAGAR, ROAD NO.3, BESIDE KRUPA GAS COMPANY, BHAINSA, NIRMAL. | E72: 17 | F72: 2 | J72: 2 | N72: 2 | R72: 2 | V72: 2 | Z72: 1 | AD72: 2 | AH72: 2 | AM72: 1 | AQ72: 1 | AU72: 1 | AY72: 1 | BC72: 1 | BK72: 1 | BN72: 2 | BO72: 1 | BS72: 2 | BW72: 1 | CA72: 1 | CI72: 2 | CM72: 2 | CQ72: 2 | CU72: 1 | CY72: 1 | DC72: 1 | DG72: 2 | DO72: 2 | DS72: 2 | DW72: 2 | DZ72: 17 | EA72: 28 | EB72: 0 | EC72: 0
A73: 6 | B73: ADITY504103TSBH10069 | C73: ADITYA NURSING HOME | D73: Dr. U. KASHINATH,GEETA COMPLEX, OPP.SBI BANK, BESIDE GEETA INDUSTRIES, BHAINSA. | E73: 15 | F73: 2 | L73: 1 | R73: 2 | V73: 2 | AA73: 2 | AD73: 2 | AH73: 2 | BC73: 1 | BF73: 2 | BK73: 1 | BO73: 4 | BS73: 1 | BW73: 2 | CA73: 1 | CE73: 2 | CI73: 1 | CM73: 1 | CQ73: 1 | CU73: 2 | CY73: 2 | DC73: 2 | DF73: 1 | DK73: 2 | DZ73: 13 | EA73: 25 | EB73: 1 | EC73: 0
A74: 7 | B74: AKSHA504103TSBH09716 | C74: AKSHARA MULTI SPECIALITY HOSPITAL | D74: Dr. RAMESH RATHOD, OPP: VEDHAM HIGH SCHOOL, DOCTORS LANE, BHAINSA | E74: 15 | F74: 2 | J74: 2 | R74: 2 | V74: 2 | Z74: 2 | AD74: 2 | AH74: 2 | AL74: 2 | AP74: 1 | AT74: 1 | AX74: 1 | BB74: 2 | BF74: 2 | BJ74: 1 | BN74: 2 | BR74: 1 | BV74: 1 | BZ74: 1 | CD74: 2 | CH74: 1 | CL74: 2 | CP74: 2 | CT74: 1 | CX74: 1 | DB74: 1 | DG74: 1 | DJ74: 1 | DN74: 1 | DS74: 2 | DW74: 2 | DZ74: 41 | EA74: 5 | EB74: 0 | EC74: 0
A75: 8 | B75: SAKSH504103TSBH09717 | C75: SAKSHI METERNITY HOSPITAL | D75: Dr. PADMAVATHI BHOSLE, DOCTORS LANE, NARSIMHA MAHADEV MANDER ROAD,BHAINSA, NIRMAL. | E75: 13 | G75: 1 | J75: 2 | O75: 1 | S75: 1 | W75: 1 | AA75: 2 | AD75: 2 | AL75: 2 | AP75: 2 | AT75: 2 | AX75: 2 | BB75: 2 | BF75: 2 | BJ75: 2 | BN75: 2 | BR75: 1 | BV75: 1 | BZ75: 1 | CD75: 1 | CH75: 2 | CL75: 1 | CP75: 2 | CT75: 1 | DF75: 3 | DJ75: 3 | DN75: 2 | DR75: 2 | DV75: 2 | DZ75: 42 | EA75: 6 | EB75: 0 | EC75: 0
A76: 9 | B76: SRISA504103TSBH09715 | C76: SRI SAI METERNITY & GBN HOSPITAL | D76: ABOVE UNION BANK, MAIN ROAD, BHAINSA | E76: 12 | F76: 2 | K76: 1 | N76: 2 | R76: 2 | V76: 2 | AA76: 1 | AD76: 2 | AH76: 2 | AM76: 1 | AQ76: 1 | AU76: 1 | AY76: 1 | BJ76: 1 | BN76: 1 | BS76: 2 | BW76: 2 | CA76: 1 | CD76: 2 | CH76: 1 | CL76: 2 | CP76: 1 | CT76: 2 | DF76: 2 | DJ76: 2 | DN76: 2 | DR76: 1 | DV76: 1 | DZ76: 30 | EA76: 11 | EB76: 0 | EC76: 0
A77: 10 | C77: ADARSHA HOSPITAL | D77: Dr. K. SHIVAPRASAD REDDY,BESIDE BUS STAND,BHAINSA, NIRMAL | E77: 10 | DZ77: 0 | EA77: 0 | EB77: 0 | EC77: 0
A78: 11 | B78: ANIRU504103TSBH08493 | C78: ANIRUDH CHILDRENS HOSPITAL | D78: BESIDE BUSSTAND, BHAINSA | E78: 10 | K78: 1 | P78: 1 | S78: 1 | W78: 1 | Z78: 1 | AD78: 2 | AH78: 2 | AM78: 1 | AQ78: 2 | AU78: 2 | AY78: 2 | BC78: 1 | BG78: 1 | BK78: 2 | BO78: 1 | BS78: 1 | BW78: 1 | CA78: 1 | CE78: 2 | CI78: 2 | CP78: 2 | CT78: 1 | CX78: 1 | DB78: 1 | DF78: 1 | DJ78: 1 | DN78: 1 | DR78: 1 | DV78: 1 | DZ78: 15 | EA78: 22 | EB78: 1 | EC78: 0
A79: 12 | B79: SRIDA504105TSBH07704 | C79: SRI DATTASAI NURSING HOME & INFERTILITY CLINIC | D79: Dr. VIJAY ANAND JADHAV, H.No.2-3-245/6, HAZARE COMPLEX, NARSIMHA MANDER ROAD, BHAINSA, NIRMAL | E79: 5 | G79: 1 | J79: 2 | O79: 1 | S79: 1 | W79: 1 | AD79: 2 | AH79: 2 | AL79: 2 | AT79: 1 | AX79: 1 | BB79: 2 | BF79: 2 | BJ79: 2 | BN79: 3 | BS79: 1 | BV79: 1 | BZ79: 1 | CD79: 1 | CI79: 1 | CM79: 1 | CQ79: 1 | CU79: 2 | CY79: 1 | DC79: 1 | DG79: 2 | DK79: 1 | DO79: 2 | DS79: 1 | DW79: 1 | DZ79: 22 | EA79: 19 | EB79: 0 | EC79: 0
A80: 13 | B80: SRINA504103TSBH08529 | C80: SRI NARAYANA GURUKRUPA NURSING HOME | D80: DR.C. RAJSHRI, DOCTORS LANE, NARSIMHA MANDIR ROAD, BHAINSA | E80: 7 | G80: 1 | N80: 2 | S80: 1 | W80: 1 | Z80: 1 | AE80: 2 | AI80: 1 | AP80: 2 | AT80: 2 | AX80: 2 | BB80: 2 | BJ80: 1 | BN80: 2 | BR80: 2 | BV80: 2 | BZ80: 1 | CD80: 2 | CH80: 2 | CM80: 2 | CQ80: 2 | CU80: 1 | CY80: 2 | DC80: 2 | DG80: 2 | DK80: 1 | DO80: 2 | DS80: 1 | DW80: 1 | DZ80: 23 | EA80: 22 | EB80: 0 | EC80: 0
A81: 14 | B81: SHIVA504103TSBH09724 | C81: SHIVA TEJA HOSPITAL | D81: GEETHA COMPLEX, SHIVAJI CHOWK, MAIN ROAD, BHAINSA | E81: 4 | F81: 2 | J81: 2 | N81: 2 | R81: 2 | V81: 2 | Z81: 1 | AD81: 2 | AH81: 2 | AQ81: 1 | AU81: 1 | AY81: 1 | BB81: 2 | BG81: 1 | BJ81: 1 | BN81: 1 | BV81: 2 | BZ81: 1 | CD81: 1 | CH81: 2 | CL81: 1 | CP81: 1 | CT81: 2 | CX81: 1 | DB81: 1 | DG81: 1 | DN81: 1 | DS81: 1 | DW81: 1 | DZ81: 32 | EA81: 7 | EB81: 0 | EC81: 0
A82: 15 | B82: AROGY504103TSBH10065 | C82: AROGYA HOSPITAL | D82: 4-3-77/1, NEAR KAMALA TALKIES, BESIDE BUS STAND, OPP: LIC OFFICE, BHAINSA | E82: 8 | F82: 2 | L82: 1 | N82: 2 | R82: 2 | V82: 2 | Z82: 1 | AE82: 1 | AI82: 1 | AM82: 1 | AP82: 2 | BC82: 1 | BF82: 2 | BK82: 1 | BO82: 2 | BS82: 2 | BW82: 1 | CA82: 1 | CE82: 2 | CI82: 1 | CM82: 1 | CQ82: 1 | CU82: 1 | CY82: 2 | DC82: 2 | DG82: 1 | DO82: 1 | DS82: 1 | DW82: 1 | DZ82: 13 | EA82: 25 | EB82: 1 | EC82: 0
A83: 16 | B83: BLOOD504103TSBH05545 | C83: BLOOD BANK AREA HOSPITAL BHAINSA | D83: OPP: BUS STAND , BHAINSA | E83: 0 | G83: 1 | J83: 2 | O83: 1 | S83: 1 | W83: 1 | AE83: 2 | AI83: 1 | AM83: 1 | AQ83: 1 | AU83: 1 | AY83: 1 | BC83: 1 | BG83: 1 | BR83: 1 | BV83: 1 | BZ83: 1 | CD83: 1 | CH83: 2 | CM83: 2 | CQ83: 1 | CU83: 1 | DG83: 3 | DK83: 3 | DO83: 4 | DS83: 4 | DW83: 4 | DZ83: 8 | EA83: 35 | EB83: 0 | EC83: 0
A84: 17 | B84: VAISH504103TSCL10072 | C84: VAISHNAVI CLINIC, BHAINSA, NIRMAL | D84: OPP: E.SEVA, ALI GODOWN, BUS STAND, BHAINSA | E84: 0 | G84: 1 | K84: 1 | O84: 1 | S84: 1 | W84: 1 | AD84: 2 | AH84: 2 | AL84: 2 | AP84: 2 | AT84: 2 | AX84: 2 | BB84: 2 | BF84: 2 | BJ84: 1 | BN84: 2 | BR84: 2 | BV84: 1 | BZ84: 1 | CD84: 1 | CH84: 1 | CL84: 2 | CT84: 1 | CX84: 2 | DB84: 2 | DF84: 1 | DJ84: 2 | DN84: 1 | DR84: 1 | DV84: 1 | DZ84: 38 | EA84: 5 | EB84: 0 | EC84: 0
A85: 18 | C85: SAHASRA SKIN HOSPITAL | D85: BHAINSA | E85: 0 | DZ85: 0 | EA85: 0 | EB85: 0 | EC85: 0
A86: 19 | B86: SRRDI504103TSPL10073 | C86: SRR DIAGNOSTIC CENTRE (SRI RAJA RAJESHWARA) | D86: BESIDE POST OFFICE, OPP: SANDESH COMPLEX, BUS STAND ROAD, BHAINSA | E86: 0 | G86: 1 | K86: 1 | O86: 1 | S86: 1 | W86: 1 | Z86: 2 | AD86: 2 | AH86: 2 | AL86: 2 | AP86: 1 | AT86: 1 | AX86: 1 | BB86: 2 | BF86: 2 | BJ86: 2 | BN86: 3 | BR86: 1 | BV86: 2 | BZ86: 1 | CD86: 2 | CH86: 1 | CL86: 1 | CP86: 2 | CT86: 2 | DF86: 2 | DN86: 2 | DR86: 1 | DV86: 1 | DZ86: 38 | EA86: 5 | EB86: 0 | EC86: 0
A87: MUDHOL HOSPITALS
A88: 1 | C88: L V PRASAD EYE HOSPITAL, MUDHOL | D88: Dr. D. SANDEEP RAO,BHOSLE GOPAL PATIL EYE CENTRE, MUDHOLE, NIRMAL. | E88: 26 | DZ88: 0 | EA88: 0 | EB88: 0 | EC88: 0
A89: 2 | B89: HYDER504105TSBH07034 | C89: HYDERABAD EYE INSTITUTE | D89: MUDHOLE, BASAR ROAD, NIRMAL | E89: 25 | F89: 2 | J89: 2 | N89: 2 | R89: 2 | V89: 2 | Z89: 2 | AD89: 2 | AL89: 2 | AP89: 2 | AT89: 2 | AX89: 2 | BB89: 2 | BF89: 2 | BJ89: 2 | BN89: 5 | BR89: 1 | BV89: 2 | BZ89: 1 | CD89: 2 | CL89: 1 | CP89: 2 | CX89: 1 | DB89: 1 | DF89: 3 | DJ89: 3 | DN89: 4 | DR89: 4 | DV89: 4 | DZ89: 62 | EA89: 0 | EB89: 0 | EC89: 0
A90: 3 | C90: NEW LIFE HOSPITAL | D90: MUDHOLE,NIRMAL DISTRICT | E90: 10 | DG90: 1 | DZ90: 0 | EA90: 1 | EB90: 0 | EC90: 0
A91: 4 | B91: SRISA504102TSBH10070 | C91: SRI SAI NURSING HOME, MUDHOL | D91: Dr. S. RAJESHWAR RAO,BESIDE MAHALAXMI TEMPLE, MUDHOLE | E91: 10 | F91: 2 | J91: 2 | N91: 2 | R91: 2 | V91: 2 | Z91: 1 | AE91: 1 | AH91: 2 | AP91: 1 | BC91: 1 | BF91: 2 | BJ91: 2 | BO91: 1 | BS91: 2 | BW91: 2 | CA91: 2 | CE91: 1 | CM91: 1 | CQ91: 1 | CU91: 2 | CY91: 2 | DC91: 2 | DG91: 2 | DK91: 1 | DO91: 1 | DS91: 2 | DW91: 1 | DZ91: 18 | EA91: 25 | EB91: 0 | EC91: 0
A92: 5 | B92: MATRU587313TSBH11253 | C92: MATRUSRI HOSPITAL | D92: H.NO.17-2, BESIDE GRAMPANCHAYAT OFFICE, MUDHOLE. | E92: 9 | BO92: 1 | BW92: 2 | CA92: 1 | CE92: 1 | CI92: 1 | CM92: 1 | CQ92: 2 | CU92: 1 | CY92: 2 | DC92: 2 | DG92: 1 | DK92: 1 | DO92: 1 | DS92: 1 | DW92: 1 | DZ92: =F92+J92+N92+R92+V92+Z92+AD92+AH92+AL92+AP92+AT92+AX92+BB92+BF92+BJ92+BN92+BR92+BV92+BZ92+CD92+CH92+CL92+CP92+CT92+CX92+DB92+DF92+DJ92+DN92+DR92+DV92 -> 0 | EA92: =G92+K92+O92+S92+W92+AA92+AE92+AI92+AM92+AQ92+AU92+AY92+BC92+BG92+BK92+BO92+BS92+BW92+CA92+CE92+CI92+CM92+CQ92+CU92+CY92+DC92+DG92+DK92+DO92+DS92+DW92 -> 19 | EB92: =H92+L92+P92+T92+X92+AB92+AF92+AJ92+AN92+AR92+AV92+AZ92+BD92+BH92+BL92+BP92+BT92+BX92+CB92+CF92+CJ92+CN92+CR92+CV92+CZ92+DD92+DH92+DL92+DP92+DT92 -> 0 | EC92: =I92+M92+Q92+U92+Y92+AC92+AG92+AK92+AO92+AS92+AW92+BA92+BE92+BI92+BM92+BQ92+BU92+BY92+CC92+CG92+CK92+CO92+CS92+CW92+DA92+DE92+DI92+DM92+DQ92+DU92 -> 0
C93: TOTAL | E93: =SUM(E4:E92) -> 1373 | F93: =SUM(F4:F92) -> 46 | G93: =SUM(G4:G92) -> 27 | H93: =SUM(H4:H92) -> 9 | I93: =SUM(I4:I92) -> 0 | J93: =SUM(J4:J92) -> 50 | K93: 30 | L93: 6 | M93: 0 | N93: 46 | O93: 22 | P93: 10 | Q93: 0 | R93: 47 | S93: 26 | T93: 9 | U93: 0 | V93: 44 | W93: 26 | X93: 9 | Y93: 0 | Z93: 39 | AA93: 50 | AB93: 0 | AC93: 0 | AD93: 58 | AE93: 36 | AF93: 0 | AG93: 0 | AH93: 56 | AI93: 31 | AJ93: 0 | AK93: 0 | AL93: 72 | AM93: 21 | AN93: 0 | AO93: 0 | AP93: 58 | AQ93: 27 | AR93: 0 | AS93: 0 | AT93: 57 | AU93: 22 | AV93: 0 | AW93: 0 | AX93: 57 | AY93: 23 | AZ93: 0 | BA93: 0 | BB93: 58 | BC93: 28 | BD93: 0 | BE93: 0 | BF93: 72 | BG93: 19 | BH93: 0 | BI93: 0 | BJ93: 53 | BK93: 33 | BL93: 0 | BM93: 0 | BN93: 71 | BO93: 53 | BP93: 0 | BQ93: 0 | BR93: 54 | BS93: 37 | BT93: 0 | BU93: 0 | BV93: =SUM(BV4:BV92) -> 54 | BW93: 39 | BX93: 0 | BY93: 0 | BZ93: 50 | CA93: 33 | CB93: 0 | CC93: 0 | CD93: 56 | CE93: 33 | CF93: 0 | CG93: 0 | CH93: 55 | CI93: 30 | CJ93: 0 | CK93: 0 | CL93: 51 | CM93: 36 | CN93: 0 | CO93: 0 | CP93: 54 | CQ93: 35 | CR93: 0 | CS93: 0 | CT93: 45 | CU93: 40 | CV93: 0 | CW93: 0 | CX93: 47 | CY93: 39 | CZ93: 0 | DA93: 0 | DB93: 47 | DC93: 39 | DD93: 0 | DE93: 0 | DF93: 54 | DG93: 47 | DH93: 0 | DI93: 0 | DJ93: 62 | DK93: 40 | DL93: 0 | DM93: 0 | DN93: 62 | DO93: 48 | DP93: 0 | DQ93: 0 | DR93: 49 | DS93: 46 | DT93: 0 | DU93: 0 | DV93: 49 | DW93: 46 | DX93: 0 | DY93: 0 | DZ93: 1673 | EA93: 1062 | EB93: 43 | EC93: 0

Sheet Adilabad
A1: =Nizamabad!A1 -> DECEMBER MONTH REPORT | F1: =Nizamabad!F1 -> 2021-12-01 | J1: =Nizamabad!J1 -> 2021-12-02 | N1: =Nizamabad!N1 -> 2021-12-03 | R1: =Nizamabad!R1 -> 2021-12-04 | V1: =Nizamabad!V1 -> 2021-12-05 | Z1: =Nizamabad!Z1 -> 2021-12-06 | AD1: =Nizamabad!AD1 -> 2021-12-07 | AH1: =Nizamabad!AH1 -> 2021-12-08 | AL1: =Nizamabad!AL1 -> 2021-12-09 | AP1: =Nizamabad!AP1 -> 2021-12-10 | AT1: =Nizamabad!AT1 -> 2021-12-11 | AX1: =Nizamabad!AX1 -> 2021-12-12 | BB1: =Nizamabad!BB1 -> 2021-12-13 | BF1: =Nizamabad!BF1 -> 2021-12-14 | BJ1: =Nizamabad!BJ1 -> 2021-12-15 | BN1: =Nizamabad!BN1 -> 2021-12-16 | BR1: =Nizamabad!BR1 -> 2021-12-17 | BV1: =Nizamabad!BV1 -> 2021-12-18 | BZ1: =Nizamabad!BZ1 -> 2021-12-19 | CD1: =Nizamabad!CD1 -> 2021-12-20 | CH1: =Nizamabad!CH1 -> 2021-12-21 | CL1: =Nizamabad!CL1 -> 2021-12-22 | CP1: =Nizamabad!CP1 -> 2021-12-23 | CT1: =Nizamabad!CT1 -> 2021-12-24 | CX1: =Nizamabad!CX1 -> 2021-12-25 | DB1: =Nizamabad!DB1 -> 2021-12-26 | DF1: =Nizamabad!DF1 -> 2021-12-27 | DJ1: =Nizamabad!DJ1 -> 2021-12-28 | DN1: =Nizamabad!DN1 -> 2021-12-29 | DR1: =Nizamabad!DR1 -> 2021-12-30 | DV1: =Nizamabad!DV1 -> 2021-12-31 | DZ1: TOTAL
A2: SNO | B2: HCF ID | C2: NAME OF THE HCF | D2: ADDRESS OF THE HCFS | E2: NO.OF BEDS | F2: Yellow | G2: Red | H2: Blue | I2: White | J2: Yellow | K2: Red | L2: Blue | M2: White | N2: Yellow | O2: Red | P2: Blue | Q2: White | R2: Yellow | S2: Red | T2: Blue | U2: White | V2: Yellow | W2: Red | X2: Blue | Y2: White | Z2: Yellow | AA2: Red | AB2: Blue | AC2: White | AD2: Yellow | AE2: Red | AF2: Blue | AG2: White | AH2: Yellow | AI2: Red | AJ2: Blue | AK2: White | AL2: Yellow | AM2: Red | AN2: Blue | AO2: White | AP2: Yellow | AQ2: Red | AR2: Blue | AS2: White | AT2: Yellow | AU2: Red | AV2: Blue | AW2: White | AX2: Yellow | AY2: Red | AZ2: Blue | BA2: White | BB2: Yellow | BC2: Red | BD2: Blue | BE2: White | BF2: Yellow | BG2: Red | BH2: Blue | BI2: White | BJ2: Yellow | BK2: Red | BL2: Blue | BM2: White | BN2: Yellow | BO2: Red | BP2: Blue | BQ2: White | BR2: Yellow | BS2: Red | BT2: Blue | BU2: White | BV2: Yellow | BW2: Red | BX2: Blue | BY2: White | BZ2: Yellow | CA2: Red | CB2: Blue | CC2: White | CD2: Yellow | CE2: Red | CF2: Blue | CG2: White | CH2: Yellow | CI2: Red | CJ2: Blue | CK2: White | CL2: Yellow | CM2: Red | CN2: Blue | CO2: White | CP2: Yellow | CQ2: Red | CR2: Blue | CS2: White | CT2: Yellow | CU2: Red | CV2: Blue | CW2: White | CX2: Yellow | CY2: Red | CZ2: Blue | DA2: White | DB2: Yellow | DC2: Red | DD2: Blue | DE2: White | DF2: Yellow | DG2: Red | DH2: Blue | DI2: White | DJ2: Yellow | DK2: Red | DL2: Blue | DM2: White | DN2: Yellow | DO2: Red | DP2: Blue | DQ2: White | DR2: Yellow | DS2: Red | DT2: Blue | DU2: White | DV2: Yellow | DW2: Red | DX2: Blue | DY2: White | DZ2: Yellow | EA2: Red | EB2: Blue | EC2: White
A3: 100 AND ABOVE BEDS HCFs
A4: 1 | B4: RIMS(504001TSBH10171 | C4: RIMS (RAJIV GANDHI INSTITUTE OF MEDICAL SCIENCES) | D4: RIKSHAW COLONY, BUS STATION ROAD, ADILABAD | E4: 500 | F4: 2 | J4: 4 | N4: 4 | R4: 2 | V4: 2 | Z4: 2 | AY4: 2 | BV4: 3 | BW4: 4 | BZ4: 3 | CA4: 4 | CD4: 2 | CE4: 4 | CH4: 4 | CI4: 5 | CL4: 4 | CM4: 5 | CP4: 3 | CQ4: 3 | CT4: 5 | CU4: 5 | CX4: 4 | CY4: 5 | DB4: 4 | DC4: 3 | DF4: 4 | DG4: 4 | DJ4: 5 | DK4: 7 | DL4: 4 | DN4: 5 | DO4: 6 | DR4: 6 | DS4: 5 | DV4: 6 | DW4: 5 | DZ4: =F4+J4+N4+R4+V4+Z4+AD4+AH4+AL4+AP4+AT4+AX4+BB4+BF4+BJ4+BN4+BR4+BV4+BZ4+CD4+CH4+CL4+CP4+CT4+CX4+DB4+DF4+DJ4+DN4+DR4+DV4 -> 74 | EA4: =G4+K4+O4+S4+W4+AA4+AE4+AI4+AM4+AQ4+AU4+AY4+BC4+BG4+BK4+BO4+BS4+BW4+CA4+CE4+CI4+CM4+CQ4+CU4+CY4+DC4+DG4+DK4+DO4+DS4+DW4 -> 67 | EB4: =H4+L4+P4+T4+X4+AB4+AF4+AJ4+AN4+AR4+AV4+AZ4+BD4+BH4+BL4+BP4+BT4+BX4+CB4+CF4+CJ4+CN4+CR4+CV4+CZ4+DD4+DH4+DL4+DP4+DT4 -> 4 | EC4: =I4+M4+Q4+U4+Y4+AC4+AG4+AK4+AO4+AS4+AW4+BA4+BE4+BI4+BM4+BQ4+BU4+BY4+CC4+CG4+CK4+CO4+CS4+CW4+DA4+DE4+DI4+DM4+DQ4+DU4 -> 0
B5: BELOW 100 BEDS HCFs
A6: 1 | C6: AAYUSHMAN HOSPITAL | D6: RAMPUR N.H. 44, ROAD, ADILABAD | E6: 50 | DZ6: =F6+J6+N6+R6+V6+Z6+AD6+AH6+AL6+AP6+AT6+AX6+BB6+BF6+BJ6+BN6+BR6+BV6+BZ6+CD6+CH6+CL6+CP6+CT6+CX6+DB6+DF6+DJ6+DN6+DR6+DV6 -> 0 | EA6: =G6+K6+O6+S6+W6+AA6+AE6+AI6+AM6+AQ6+AU6+AY6+BC6+BG6+BK6+BO6+BS6+BW6+CA6+CE6+CI6+CM6+CQ6+CU6+CY6+DC6+DG6+DK6+DO6+DS6+DW6 -> 0 | EB6: =H6+L6+P6+T6+X6+AB6+AF6+AJ6+AN6+AR6+AV6+AZ6+BD6+BH6+BL6+BP6+BT6+BX6+CB6+CF6+CJ6+CN6+CR6+CV6+CZ6+DD6+DH6+DL6+DP6+DT6 -> 0 | EC6: =I6+M6+Q6+U6+Y6+AC6+AG6+AK6+AO6+AS6+AW6+BA6+BE6+BI6+BM6+BQ6+BU6+BY6+CC6+CG6+CK6+CO6+CS6+CW6+DA6+DE6+DI6+DM6+DQ6+DU6 -> 0
A7: 2 | B7: CHROM504001TSBH09734 | C7: CHROME SUPER SPECIALITY HOSPITAL | D7: D.NO.4-5-29/5, BHUKTHAPUR, BESIDE TAMSI, BUS STAND, ADILABAD | E7: 50 | H7: 1 | J7: 2 | P7: 2 | T7: 1 | Z7: 2 | AD7: 2 | AH7: 2 | AL7: 2 | AP7: 2 | AT7: 2 | AX7: 2 | BB7: 2 | BF7: 2 | BJ7: 2 | BN7: 2 | BR7: 2 | BV7: 1 | BZ7: 1 | CD7: 2 | CL7: 2 | CP7: 2 | CT7: 1 | CX7: 2 | DB7: 2 | DG7: 2 | DJ7: 2 | DN7: 2 | DR7: 2 | DV7: 2 | DZ7: 47 | EA7: 2 | EB7: 4 | EC7: 0
A8: 3 | B8: SRISE504311TSBH00926 | C8: THIRUMALA SUPER SPECIALITY HOSPITAL, NIZAMABAD | D8: SRI SEVALAL MAHARAJ HOSPITAL,UTNOOR,I.B CHOWRASTA,Utnoor,Utnoor,ADILABAD,504311 | E8: 50 | Z8: 2 | AE8: 1 | AL8: 2 | AP8: 1 | AT8: 1 | AX8: 1 | BC8: 1 | BF8: 2 | BK8: 1 | BO8: 1 | BS8: 1 | BW8: 1 | CA8: 1 | CE8: 1 | CI8: 2 | CL8: 1 | CP8: 2 | CT8: 2 | CX8: 1 | DB8: 1 | DF8: 2 | DJ8: 1 | DN8: 1 | DR8: 1 | DV8: 1 | DZ8: 22 | EA8: 10 | EB8: 0 | EC8: 0
A9: 4 | B9: HYDER504001TSBH09727 | C9: HYDERABAD EYE INSTITUTE (LV PRASAD) | D9: SESHANNA CHENNAWAR EYE CENTER, NARESH RAO (Administrator), NEAR CHAVARA SCHOOL, MAVALA VILLAGE, NH 7, ADILIBAD | E9: 22 | F9: 2 | J9: 2 | N9: 2 | R9: 2 | V9: 2 | AA9: 2 | AE9: 1 | AI9: 1 | AM9: 1 | AQ9: 1 | BB9: 2 | BG9: 1 | BJ9: 2 | BN9: 3 | BR9: 2 | BV9: 2 | BZ9: 2 | CD9: 2 | CH9: 1 | CM9: 2 | CQ9: 2 | CU9: 1 | CX9: 2 | DB9: 2 | DF9: 4 | DK9: 3 | DO9: 5 | DR9: 4 | DV9: 4 | DZ9: 42 | EA9: 20 | EB9: 0 | EC9: 0
A10: 5 | B10: CHRIS504001TSBH08494 | C10: CHRISTIAN HOSPITAL | D10: DOOR NO:2-143, OLD NATIONAL HIGHWAY ROAD,ADILABAD | E10: 20 | K10: 1 | AA10: 1 | AE10: 1 | AI10: 1 | AL10: 2 | AP10: 2 | BB10: 2 | BF10: 2 | BJ10: 1 | BN10: 1 | BR10: 1 | BV10: 1 | BZ10: 1 | CD10: 2 | CH10: 1 | CL10: 1 | CP10: 1 | CT10: 2 | CX10: 1 | DB10: 1 | DG10: 2 | DJ10: 1 | DN10: 1 | DS10: 1 | DW10: 1 | DZ10: 24 | EA10: 8 | EB10: 0 | EC10: 0
A11: 6 | B11: SACHI504001TSBH06153 | C11: SACHI NURSING HOME | D11: OPP. NATRAJ THEATRE, BHUKTAPUR, ADILABAD. | E11: 20 | K11: 1 | AA11: 2 | AE11: 1 | AI11: 1 | AM11: 1 | AQ11: 1 | BC11: 1 | BG11: 1 | BK11: 1 | BO11: 2 | BS11: 2 | BW11: 2 | CA11: 2 | CE11: 1 | CI11: 2 | CL11: 2 | CP11: 1 | CT11: 2 | CX11: 2 | DB11: 2 | DF11: 2 | DJ11: 2 | DN11: 2 | DR11: 2 | DV11: 2 | DZ11: 19 | EA11: 21 | EB11: 0 | EC11: 0
A12: 7 | B12: SNEHA504001TSBH08482 | C12: SNEHA NURSING HOME, ADILABAD | D12: Dr. SANJAY L. GUJRATHI,NEAR DWARAKANAGAR HANUMAN TEMPLE, ADILABAD | E12: 20 | F12: 2 | J12: 2 | N12: 2 | R12: 2 | V12: 2 | Z12: 2 | AD12: 2 | AH12: 2 | AL12: 2 | AP12: 1 | AT12: 1 | AX12: 1 | BB12: 2 | BF12: 2 | BJ12: 2 | BN12: 3 | BR12: 2 | BV12: 1 | BZ12: 1 | CD12: 2 | CH12: 1 | CM12: 1 | CQ12: 2 | CU12: 1 | CY12: 1 | DC12: 1 | DG12: 3 | DK12: 2 | DO12: 4 | DS12: 2 | DW12: 2 | DZ12: 37 | EA12: 19 | EB12: 0 | EC12: 0
A13: 8 | B13: ADITY504001TSBH09747 | C13: ADITYA HOSPITAL, GENERAL & CTIRICAL CARE CENTRE | D13: NETHAJI CHOWK, TNGO'S ROAD, CINEMA ROAD, BESIDE: ANIL CHIDRALA HOSPITAL, ADILABAD | E13: 15 | F13: 2 | N13: 2 | Z13: 1 | AE13: 1 | AI13: 1 | AM13: 1 | AQ13: 2 | AU13: 2 | AY13: 2 | BB13: 2 | BG13: 1 | BJ13: 2 | BN13: 1 | BS13: 1 | BW13: 2 | CA13: 2 | CE13: 1 | CI13: 2 | CL13: 2 | CP13: 1 | CT13: 2 | CX13: 2 | DB13: 2 | DF13: 2 | DJ13: 2 | DN13: 2 | DR13: 2 | DV13: 2 | DZ13: 29 | EA13: 18 | EB13: 0 | EC13: 0
A14: 9 | B14: AMMAH504001TSBH08481 | C14: AMMA HOSPITALS | D14: NEAR RIMS HOSPITAL,ADILABAD | E14: 15 | G14: 1 | J14: 2 | O14: 1 | S14: 1 | W14: 1 | AA14: 2 | AE14: 1 | AI14: 1 | AL14: 2 | AP14: 1 | AT14: 1 | AX14: 1 | BC14: 1 | BF14: 2 | BK14: 1 | BO14: 1 | BR14: 2 | BV14: 1 | BZ14: 1 | CD14: 1 | CH14: 1 | CL14: 1 | CP14: 1 | CT14: 1 | CX14: 1 | DB14: 1 | DF14: 1 | DJ14: 1 | DN14: 1 | DR14: 1 | DV14: 1 | DZ14: 25 | EA14: 11 | EB14: 0 | EC14: 0
A15: 10 | B15: JEEVA504001TSBH00978 | C15: JEEVANA JYOTHI HOSPITAL | D15: Dr. CHANDRA SHEKHAR REDDY,BESIDE BUS STAND, ADILABAD. 504001 | E15: 15 | F15: 2 | J15: 2 | N15: 2 | S15: 1 | W15: 1 | Z15: 1 | AE15: 1 | AI15: 1 | AL15: 2 | AP15: 2 | BB15: 2 | BF15: 2 | BJ15: 1 | BN15: 2 | BR15: 1 | BV15: 1 | BZ15: 1 | CD15: 2 | CH15: 2 | CL15: 1 | CP15: 2 | CT15: 2 | CX15: 2 | DB15: 2 | DG15: 2 | DJ15: 2 | DN15: 2 | DS15: 2 | DW15: 2 | DZ15: 38 | EA15: 10 | EB15: 0 | EC15: 0
A16: 11 | C16: SHAMALA SATHYANARAYANA HOSPITAL | D16: Dr.P.SATHYA NARAYANA,NETHAJI CHOWK,ADILABAD | E16: 15 | DZ16: 0 | EA16: 0 | EB16: 0 | EC16: 0
A17: 12 | C17: SHEKATH MATERNITY NURSING HOME | D17: Dr.MANOHAR,NTR CHOWK,ADILABAD | E17: 15 | DZ17: 0 | EA17: 0 | EB17: 0 | EC17: 0
A18: 13 | B18: SRAVY504001TSBH00979 | C18: SRAVYA NURSING HOME | D18: OPP:REGISTRATION OFFICE,VIDYANAGAR COLONY, BUS STAND ROAD NH-7, ADILABAD,Adilabad,Adilabad (Urban),ADILABAD,504001 | E18: 15 | G18: 1 | K18: 1 | O18: 1 | S18: 1 | W18: 1 | Z18: 2 | AD18: 2 | AH18: 2 | AL18: 2 | AP18: 2 | AT18: 1 | AX18: 1 | BB18: 2 | BF18: 2 | BJ18: 2 | BN18: 3 | BR18: 1 | BV18: 2 | BZ18: 2 | CD18: 2 | CH18: 1 | CL18: 2 | CP18: 1 | CT18: 2 | CX18: 1 | DB18: 1 | DG18: 3 | DJ18: 2 | DN18: 2 | DS18: 2 | DW18: 2 | DZ18: 40 | EA18: 12 | EB18: 0 | EC18: 0
A19: 14 | B19: SRIBA504001TSBH00931 | C19: SRI BALAJI HOSPITAL | D19: Dr. A. AMIT SUNDER RAO,STATION ROAD, SHIVAJI CHOWK, ADILABAD. | E19: 14 | G19: 1 | H19: 1 | J19: 2 | K19: 1 | O19: 1 | P19: 1 | S19: 1 | W19: 1 | AA19: 1 | AE19: 1 | AI19: 1 | AM19: 1 | AQ19: 1 | AU19: 2 | AY19: 2 | BC19: 1 | BG19: 1 | BK19: 1 | BO19: 2 | BR19: 2 | BV19: 2 | BZ19: 2 | CD19: 1 | CH19: 1 | CL19: 1 | CP19: 2 | CT19: 1 | CX19: 2 | DB19: 2 | DF19: 2 | DJ19: 1 | DN19: 1 | DR19: 1 | DV19: 1 | DZ19: 24 | EA19: 19 | EB19: 2 | EC19: 0
A20: 15 | B20: AYYAP504001TSBH01032 | C20: AYYAPPA ORTHOPAEDIC & CHILDREN HOSPITAL | D20: Dr. ANIL KUMAR CHINDRALA,BEHIND NETHAJI CHOWK, T.N.G.O. ROAD, ADILABAD. | E20: 12 | J20: 2 | AA20: 1 | AE20: 1 | AI20: 1 | AM20: 1 | AQ20: 2 | AU20: 1 | AY20: 1 | BC20: 1 | BG20: 1 | BK20: 1 | BO20: 1 | BS20: 2 | BW20: 1 | CA20: 1 | CE20: 1 | CI20: 2 | CM20: 2 | CQ20: 2 | CU20: 2 | CY20: 1 | DC20: 1 | DF20: 1 | DK20: 1 | DO20: 1 | DR20: 1 | DV20: 1 | DZ20: 5 | EA20: 29 | EB20: 0 | EC20: 0
A21: 16 | C21: NEW LIFE PEOPLES NURSING HOME | D21: Dr.I.SUNDERAIAH,ADARSHA NAGAR,ADILABAD | E21: 12 | DZ21: 0 | EA21: 0 | EB21: 0 | EC21: 0
A22: 17 | B22: AARAD504001TSBH07805 | C22: AARADHYA DIGNOSTIC & CLINIC | D22: H.NO. 4-3-60/10 & 11, HOTEL LAXMI RESIDENCY BUILDING, BESIDE V.B. ELECTRONICS, BHUKTAPUR, ADILABAD,Adilabad,Adilabad (Urban),ADILABAD,504001 | E22: 11 | F22: 2 | J22: 2 | N22: 2 | R22: 2 | V22: 2 | Z22: 2 | AD22: 2 | AH22: 2 | AL22: 2 | AP22: 1 | AT22: 2 | AX22: 2 | BC22: 1 | BF22: 2 | BK22: 1 | BO22: 1 | BS22: 1 | BV22: 1 | BZ22: 1 | CD22: 2 | CH22: 2 | CL22: 1 | CP22: 1 | CT22: 1 | CX22: 2 | DB22: 2 | DG22: 2 | DJ22: 1 | DN22: 1 | DR22: 1 | DV22: 1 | DZ22: 42 | EA22: 6 | EB22: 0 | EC22: 0
A23: 18 | C23: A D B HOSPITAL | D23: ADILABAD | E23: 10 | DZ23: 0 | EA23: 0 | EB23: 0 | EC23: 0
A24: 19 | B24: AKBAN504001TSBH07693 | C24: AKBANI EYE CARE LASER CENTRE & DIAGNOSTICS | D24: Dr. MOHD IDRIS AKBANI, H.No. 7-7-17/9/1, OPP. ELECTICITY OFFICE, BJUKTAPUR, ADILABAD. | E24: 10 | F24: 2 | J24: 2 | N24: 2 | R24: 2 | V24: 2 | Z24: 1 | AD24: 2 | AH24: 2 | AM24: 1 | AQ24: 2 | AU24: 1 | AY24: 1 | BC24: 1 | BG24: 1 | BK24: 1 | BO24: 2 | BS24: 2 | BW24: 1 | CA24: 1 | CE24: 1 | CI24: 2 | CM24: 2 | CQ24: 2 | CU24: 2 | CY24: 1 | DC24: 1 | DF24: 2 | DK24: 2 | DO24: 2 | DR24: 2 | DV24: 2 | DZ24: 21 | EA24: 29 | EB24: 0 | EC24: 0
A25: 20 | B25: AKHIL504001TSBH01031 | C25: AKHIL ORTHOPAEDIC HOSPITAL | D25: DR.TIPPE SWAMY, BESIDE RANI SATJI AGENCY, NEAR BUS STAND, ADILABAD | E25: 10 | F25: 2 | J25: 2 | N25: 2 | R25: 2 | V25: 2 | Z25: 1 | AE25: 1 | AI25: 1 | AL25: 2 | AP25: 1 | AT25: 2 | AX25: 2 | BB25: 2 | BF25: 2 | BJ25: 1 | BN25: 2 | BS25: 2 | BW25: 2 | CA25: 2 | CE25: 2 | CI25: 1 | CL25: 1 | CP25: 1 | CT25: 1 | CX25: 2 | DB25: 2 | DG25: 1 | DJ25: 2 | DN25: 1 | DS25: 1 | DW25: 1 | DZ25: 35 | EA25: 14 | EB25: 0 | EC25: 0
A26: 21 | B26: DR.AG504001TSBH07806 | C26: DR. AGARWAL HOSPITAL & TRAUMA CARE CENTRE | D26: Dr.AGARWAL,DrPRAVEEN KUMAR ADILABAD. | E26: 10 | K26: 1 | AA26: 1 | AE26: 1 | AI26: 1 | AL26: 2 | AP26: 2 | AT26: 1 | AX26: 1 | BB26: 2 | BF26: 2 | BJ26: 2 | BN26: 1 | BR26: 1 | BV26: 2 | BZ26: 1 | CD26: 1 | CH26: 2 | CL26: 1 | CP26: 2 | CT26: 2 | CX26: 1 | DB26: 1 | DF26: 1 | DJ26: 1 | DN26: 2 | DR26: 1 | DV26: 1 | DZ26: 33 | EA26: 4 | EB26: 0 | EC26: 0
A27: 22 | B27: JANAN504001TSBH07695 | C27: JANANI MATERNITY HOSPITAL | D27: NTR CHOWK,NEAR G.N RAO PETROL PUMP,ADILABAD TOWN. | E27: 10 | G27: 1 | K27: 1 | O27: 1 | S27: 1 | W27: 1 | Z27: 2 | AE27: 1 | AI27: 1 | AL27: 2 | AP27: 2 | AT27: 2 | AX27: 2 | BB27: 2 | BF27: 2 | BJ27: 2 | BN27: 2 | BR27: 1 | BV27: 1 | BZ27: 1 | CD27: 1 | CH27: 1 | CM27: 1 | CQ27: 1 | CU27: 2 | CY27: 2 | DC27: 2 | DG27: 2 | DK27: 2 | DS27: 2 | DW27: 2 | DZ27: 23 | EA27: 23 | EB27: 0 | EC27: 0
A28: 23 | B28: MADHA504001TSBH07799 | C28: MADHAVA HOSPITAL | D28: BESIDE HANUMAN CHOWK, BHUKTAPUR, ADILABAD | E28: 10 | F28: 2 | J28: 2 | N28: 2 | R28: 2 | V28: 2 | AA28: 2 | AE28: 1 | AI28: 1 | AM28: 1 | AQ28: 1 | AU28: 1 | AY28: 1 | BC28: 1 | BG28: 1 | BK28: 1 | BO28: 1 | BS28: 1 | BW28: 1 | CA28: 1 | CE28: 2 | CI28: 2 | CL28: 1 | CP28: 2 | CT28: 1 | CX28: 1 | DB28: 1 | DG28: 1 | DJ28: 1 | DS28: 1 | DW28: 1 | DZ28: 17 | EA28: 22 | EB28: 0 | EC28: 0
A29: 24 | B29: NAKSH504001TSBH07039 | C29: NAKSHATRA HOSPITAL | D29: Dr.SHILPA SANDEEP AITWAR, ABOVE APPOLLO PHARMACY, HAVELLS ELECTRICALS, SHIVAJI CHOWK, STATION ROAD, ADILABAD | E29: 10 | G29: 1 | K29: 1 | O29: 1 | T29: 1 | X29: 1 | Z29: 1 | AD29: 2 | AH29: 2 | AL29: 2 | AQ29: 2 | AT29: 2 | AX29: 2 | BB29: 2 | BF29: 2 | BJ29: 2 | BN29: 1 | BR29: 2 | BV29: 1 | BZ29: 1 | CD29: 2 | CH29: 2 | CL29: 2 | CP29: 2 | CT29: 2 | CX29: 2 | DB29: 2 | DG29: 2 | DJ29: 2 | DN29: 2 | DZ29: 40 | EA29: 7 | EB29: 2 | EC29: 0
A30: 25 | B30: SAISA504001TSBH08487 | C30: SAI SAMRAKSHA HOSPITAL | D30: AMBEDKAR CHOWK, ADILABAD URBAN. | E30: 10 | G30: 1 | J30: 2 | O30: 1 | S30: 1 | W30: 1 | AA30: 1 | AE30: 1 | AI30: 1 | BB30: 2 | BJ30: 2 | BN30: 2 | BS30: 2 | BW30: 2 | CA30: 2 | CE30: 1 | CI30: 1 | CL30: 1 | CP30: 1 | CT30: 1 | CX30: 1 | DB30: 1 | DF30: 2 | DJ30: 2 | DN30: 1 | DR30: 1 | DV30: 1 | DZ30: 20 | EA30: 15 | EB30: 0 | EC30: 0
A31: 26 | B31: SHARA504001TSBH00968 | C31: SHARADA NURSING HOME | D31: Dr. D. N. SWAMY, H.NO. 7-1-13,OPP: NEW BUS STAND, ADILABAD | E31: 10 | F31: 2 | J31: 2 | N31: 2 | R31: 2 | V31: 2 | Z31: 2 | AD31: 2 | AI31: 1 | AL31: 2 | AP31: 2 | AQ31: 1 | AT31: 2 | AU31: 1 | AX31: 2 | AY31: 1 | BB31: 2 | BF31: 2 | BG31: 1 | BJ31: 2 | BN31: 2 | BR31: 1 | BV31: 1 | BZ31: 1 | CD31: 2 | CH31: 2 | CM31: 2 | CQ31: 2 | CU31: 2 | CY31: 2 | DC31: 2 | DF31: 3 | DK31: 2 | DO31: 3 | DR31: 3 | DV31: 3 | DZ31: 46 | EA31: 20 | EB31: 0 | EC31: 0
A32: 27 | B32: SHIVA504001TSBH01027 | C32: SHIVAPRIYA NURSING HOME | D32: SHIVAJI CHOWK, STATION ROAD, ADILABAD | E32: 10 | F32: 2 | J32: 2 | N32: 2 | R32: 2 | V32: 2 | AA32: 1 | AD32: 2 | AH32: 2 | BC32: 1 | BG32: 1 | BK32: 1 | BO32: 2 | BS32: 2 | BW32: 1 | CA32: 1 | CE32: 1 | CI32: 2 | CL32: 1 | CP32: 1 | CT32: 1 | CX32: 1 | DB32: 1 | DF32: 1 | DJ32: 1 | DN32: 1 | DR32: 2 | DV32: 2 | DZ32: 26 | EA32: 13 | EB32: 0 | EC32: 0
A33: 28 | B33: SHREE504001TSBH07701 | C33: SHREE CRITICAL CARE HOSPITAL | D33: D.NO: 4-3-1, BEHIND CENTRAL LIBRARY, ADILABAD | E33: 10 | F33: 2 | J33: 2 | N33: 2 | R33: 2 | V33: 2 | Z33: 1 | AD33: 2 | AH33: 2 | AM33: 1 | AQ33: 1 | AU33: 1 | AY33: 1 | BB33: 2 | BG33: 1 | BJ33: 2 | BN33: 2 | BR33: 1 | BV33: 2 | BZ33: 2 | CD33: 2 | CH33: 1 | CM33: 2 | CQ33: 2 | CU33: 2 | CY33: 2 | DC33: 2 | DG33: 2 | DK33: 1 | DO33: 2 | DS33: 2 | DW33: 2 | DZ33: 29 | EA33: 24 | EB33: 0 | EC33: 0
A34: 29 | B34: SHRIG504001TSBH01024 | C34: SHRI GAJANAN METERNITY & NURSING HOME | D34: Dr. ANUPAMA R. KASAWAR, OPP. NATRAJ TALKIES, ADILABAD-504001 | E34: 10 | F34: 2 | K34: 1 | O34: 1 | S34: 1 | W34: 1 | AD34: 2 | AH34: 2 | AL34: 2 | AP34: 2 | AT34: 2 | AX34: 2 | BB34: 2 | BF34: 2 | BJ34: 2 | BN34: 2 | BS34: 2 | BW34: 1 | CA34: 1 | CE34: 1 | CI34: 2 | CM34: 1 | CQ34: 1 | CU34: 1 | CY34: 1 | DC34: 1 | DF34: 1 | DK34: 1 | DO34: 1 | DR34: 2 | DV34: 2 | DZ34: 27 | EA34: 18 | EB34: 0 | EC34: 0
A35: 30 | B35: SRIRA504001TSBH00975 | C35: SRI RAMA METERNITY & SURGICAL NURSING HOME | D35: Dr. G. PRAKASH,NEAR RAILWAY GATE, GUNJ ROAD, ADILIBAD. | E35: 10 | H35: 1 | K35: 1 | O35: 1 | AA35: 2 | AE35: 1 | AL35: 2 | AP35: 1 | AT35: 1 | AX35: 1 | BF35: 2 | BK35: 1 | BO35: 2 | BR35: 1 | BV35: 2 | BZ35: 2 | CD35: 2 | CH35: 1 | CL35: 2 | CP35: 2 | CT35: 2 | CX35: 2 | DB35: 2 | DG35: 2 | DJ35: 1 | DN35: 1 | DS35: 2 | DW35: 2 | DZ35: 27 | EA35: 14 | EB35: 1 | EC35: 0
A36: 31 | C36: SRI RAGHAVENDRA NURSING HOME, ADB | D36: Dr. G. SHANTI SATYANARAYANA,OPP. SHAMA URDU SCHOOL,NEAR POWER HOUSE,N.H. 7, ADILABAD | E36: 10 | DZ36: 0 | EA36: 0 | EB36: 0 | EC36: 0
A37: 32 | B37: SRIVE504001TSBH09726 | C37: SRI VENKATESHWARA CHILDRENS HOSPITAL | D37: Dr.M.PRAMOD KUMAR REDDY, NTR CHOWK, OPP: BIRYANI HOUSE, RAVINDRA NAGAR COLONY, STATION ROAD, ADILABAD. | E37: 10 | F37: 2 | J37: 2 | N37: 2 | R37: 2 | V37: 2 | Z37: 1 | AD37: 2 | AH37: 2 | BC37: 1 | BG37: 1 | BK37: 2 | BO37: 1 | BR37: 2 | BV37: 1 | BZ37: 1 | CD37: 1 | CH37: 2 | CM37: 1 | CQ37: 1 | CU37: 1 | CY37: 1 | DC37: 1 | DG37: 2 | DK37: 2 | DO37: 2 | DS37: 1 | DW37: 1 | DZ37: 22 | EA37: 18 | EB37: 0 | EC37: 0
A38: 33 | B38: SRIVI504001TSBH00961 | C38: SRI VIGNESHWARA ORTHOPAEDIC HOSPITAL | D38: Dr. V. RAVIKANTH RAO,NEAR NATRAJ THEATRE, ADILABAD | E38: 10 | F38: 2 | J38: 2 | R38: 2 | V38: 2 | AD38: 2 | AH38: 2 | BB38: 2 | BF38: 2 | BJ38: 2 | BN38: 1 | BS38: 1 | BW38: 1 | CA38: 1 | CE38: 2 | CI38: 1 | CL38: 1 | CP38: 1 | CT38: 2 | CX38: 1 | DB38: 1 | DF38: 1 | DJ38: 2 | DN38: 1 | DR38: 1 | DV38: 1 | DZ38: 31 | EA38: 6 | EB38: 0 | EC38: 0
A39: 34 | B39: SRINI504001TSBH00976 | C39: SRINIVASA METERNITY & SURGICAL NURSING HOME ADILABAD | D39: Dr. K. RAMA ASHOK,NETAJI CHOWK, TNGO'S ROAD, ADILABAD | E39: 10 | G39: 1 | K39: 1 | O39: 1 | T39: 1 | X39: 1 | Z39: 1 | AE39: 1 | AI39: 1 | AL39: 2 | AP39: 2 | AT39: 1 | AX39: 1 | BB39: 2 | BF39: 2 | BJ39: 2 | BN39: 2 | BR39: 1 | BV39: 2 | BZ39: 1 | CD39: 1 | CH39: 2 | CM39: 2 | CQ39: 2 | CU39: 2 | CY39: 1 | DC39: 1 | DF39: 2 | DK39: 2 | DO39: 2 | DR39: 2 | DV39: 2 | DZ39: 28 | EA39: 17 | EB39: 2 | EC39: 0
A40: 35 | B40: SUJAT504001TSBH00980 | C40: SUJATHA MATERNITY & SURGICAL NURSING HOME | D40: DR.L.MAHA BALESHWAR,OPP;SHAMA URDU SCHOOL,ADILABAD | E40: 10 | F40: 2 | J40: 2 | P40: 1 | R40: 2 | V40: 2 | AA40: 2 | AE40: 1 | AI40: 1 | AL40: 2 | AP40: 1 | AT40: 2 | AX40: 2 | BB40: 2 | BF40: 2 | BJ40: 2 | BN40: 2 | BR40: 2 | BV40: 1 | BZ40: 1 | CD40: 2 | CH40: 1 | CL40: 1 | CP40: 1 | CT40: 1 | CX40: 2 | DB40: 2 | DF40: 1 | DJ40: 1 | DN40: 1 | DR40: 2 | DV40: 2 | DZ40: 44 | EA40: 4 | EB40: 1 | EC40: 0
A41: 36 | B41: UPEND504001TSBH07058 | C41: UPENDRA GENERAL SPECILITY HOSPITAL | D41: OLD LAYOLA COLLEGE LINE,ADILABAD | E41: 10 | F41: 2 | J41: 2 | N41: 2 | R41: 2 | V41: 2 | AA41: 2 | AD41: 2 | AH41: 2 | AM41: 1 | AQ41: 2 | AU41: 1 | AY41: 1 | BG41: 1 | BS41: 1 | BW41: 2 | CA41: 2 | CE41: 2 | CI41: 1 | CL41: 2 | CP41: 2 | CT41: 1 | CX41: 1 | DB41: 1 | DG41: 2 | DJ41: 1 | DN41: 2 | DS41: 2 | DW41: 2 | DZ41: 24 | EA41: 22 | EB41: 0 | EC41: 0
A42: 37 | B42: VAIBH504001TSBH07080 | C42: VAIBHAVI HOSPITAL | D42: Dr. T.SATISH KUMAR,BESIDE RTC BUS STAND, ADILABAD | E42: 10 | F42: 2 | J42: 2 | N42: 2 | R42: 2 | V42: 2 | Z42: 1 | AD42: 2 | AH42: 2 | AM42: 1 | AQ42: 1 | AU42: 1 | AY42: 1 | BC42: 1 | BG42: 1 | BK42: 2 | BO42: 1 | BS42: 1 | BW42: 2 | CA42: 1 | CE42: 1 | CI42: 2 | CM42: 2 | CQ42: 1 | CU42: 1 | CY42: 2 | DC42: 2 | DG42: 1 | DK42: 1 | DO42: 1 | DS42: 1 | DW42: 1 | DZ42: 15 | EA42: 29 | EB42: 0 | EC42: 0
A43: 38 | B43: VIJAY504001TSBH09749 | C43: VIJAYA NURSING HOME | D43: Near Central Bank, Opp: Adilabad Neuro Super Speciality Hospital, Dwaraka Nagar, Ravindra Nagar Colony, Adilabad(U), Telangana 504001 | E43: 10 | G43: 1 | K43: 1 | O43: 1 | S43: 1 | W43: 1 | AA43: 2 | AD43: 2 | AH43: 2 | AL43: 2 | AP43: 2 | AT43: 2 | AX43: 2 | BB43: 2 | BF43: 2 | BJ43: 2 | BN43: 2 | BR43: 2 | BV43: 1 | BZ43: 1 | CD43: 2 | CH43: 1 | CL43: 2 | CP43: 2 | CT43: 1 | CX43: 1 | DB43: 1 | DF43: 1 | DJ43: 2 | DN43: 2 | DR43: 2 | DV43: 2 | DZ43: 43 | EA43: 7 | EB43: 0 | EC43: 0
A44: 39 | C44: ELITE HOSPITAL | D44: ADILABAD | E44: 9 | DZ44: 0 | EA44: 0 | EB44: 0 | EC44: 0
A45: 40 | B45: KIRAN504001TSBH08511 | C45: KIRAN LASER EYE HOSPITAL | D45: HOTEL DWARAKA,BHIKTAPUR,ADILABAD, ADILABAD. | E45: 9 | F45: 2 | J45: 2 | N45: 2 | R45: 2 | V45: 2 | AA45: 2 | AE45: 1 | AI45: 1 | AM45: 1 | AU45: 1 | AY45: 1 | BB45: 2 | BG45: 1 | BJ45: 2 | BN45: 2 | BR45: 1 | BV45: 1 | BZ45: 1 | CD45: 1 | CH45: 2 | CT45: 1 | CX45: 2 | DB45: 2 | DG45: 2 | DJ45: 2 | DN45: 2 | DS45: 2 | DW45: 2 | DZ45: 31 | EA45: 14 | EB45: 0 | EC45: 0
A46: 41 | B46: SANSA504001TSBH09750 | C46: SANSA GASTRO LIVER & SKIN HOSPITAL | D46: # 4-3-1/6B, NEAR BY ARUN ICE CREAM, PATEL MARG, BHUKTHAPUR, ADILABAD | E46: 9 | F46: 2 | J46: 2 | R46: 2 | V46: 2 | AA46: 2 | AE46: 1 | AI46: 1 | AM46: 1 | AU46: 2 | AY46: 2 | BB46: 2 | BG46: 1 | BJ46: 2 | BN46: 1 | BS46: 2 | BV46: 1 | BZ46: 1 | CD46: 2 | CH46: 2 | CQ46: 2 | CU46: 2 | CY46: 1 | DC46: 1 | DF46: 1 | DK46: 2 | DO46: 2 | DR46: 2 | DV46: 2 | DZ46: 24 | EA46: 22 | EB46: 0 | EC46: 0
A47: 42 | B47: SHIVA504001TSBH09753 | C47: SHIVAJI HOSPITAL | D47: SHIVAJI CHOWK, STATION ROAD, ADILABAD | E47: 8 | AA47: 2 | AD47: 2 | AH47: 2 | AL47: 2 | AT47: 2 | AX47: 2 | BC47: 1 | BF47: 2 | BK47: 1 | BO47: 1 | BR47: 2 | BV47: 2 | BZ47: 2 | CD47: 1 | CH47: 1 | CQ47: 2 | CU47: 1 | CY47: 2 | DC47: 2 | DF47: 1 | DK47: 2 | DO47: 1 | DR47: 1 | DV47: 1 | DZ47: 23 | EA47: 15 | EB47: 0 | EC47: 0
A48: 43 | B48: SURAK504001TSBH00958 | C48: SURAKSHA CHILDREN'S HOSPITAL | D48: DR. K. SHIVA, 1ST FLOOR, BANK OF BARODA COMPLEX, JYOTHI BAPULE CHOWK, ADILABAD | E48: 8 | F48: 2 | J48: 2 | O48: 1 | S48: 1 | W48: 1 | DZ48: 4 | EA48: 3 | EB48: 0 | EC48: 0
A49: 44 | B49: PRIME504001TSBH09756 | C49: PRIME NEURO GENERAL HOSPITAL | D49: 3rd Floor, Above Bank of Baroda, Faiz Tower, Bhuktapur, Telangana 504001 | E49: 7 | F49: 2 | J49: 2 | N49: 2 | R49: 2 | V49: 2 | AA49: 2 | AD49: 2 | AH49: 2 | BC49: 1 | BG49: 1 | BK49: 1 | BO49: 2 | BR49: 1 | BV49: 2 | BZ49: 1 | CD49: 1 | CH49: 2 | CP49: 1 | CT49: 2 | CX49: 1 | DB49: 1 | DG49: 1 | DJ49: 2 | DN49: 2 | DS49: 2 | DW49: 2 | DZ49: 30 | EA49: 12 | EB49: 0 | EC49: 0
A50: 45 | B50: SHREE504001TSBH00985 | C50: SHREE GAJANAN HOSPITAL | D50: Dr. ABHIJIT NUGURWAR,STATION ROAD, SHIVAJI CHOWK, ADILABAD. | E50: 6 | F50: 2 | J50: 2 | N50: 2 | R50: 2 | V50: 2 | AA50: 2 | AD50: 2 | AH50: 2 | BB50: 2 | BF50: 2 | BJ50: 2 | BN50: 1 | BS50: 2 | BW50: 1 | CA50: 1 | CI50: 1 | CP50: 2 | CT50: 1 | CX50: 2 | DB50: 2 | DF50: 1 | DJ50: 2 | DN50: 2 | DR50: 1 | DV50: 1 | DZ50: 35 | EA50: 7 | EB50: 0 | EC50: 0
A51: 46 | B51: ADILA504001TSBH08490 | C51: ADILABAD NEURO SUPER SPECIALITY HOSPITAL | D51: NEAR CENTRAL BANK OF INDIA, BESIDE TNGO' ROAD, DWARAKA NAGAR, ADILABAD Adilabad(V) Adilabad (Urban)(M) ADILABAD(D) Telangana-504001 | E51: 5 | G51: 1 | K51: 1 | O51: 1 | S51: 1 | W51: 1 | AA51: 1 | AD51: 2 | AH51: 2 | AL51: 2 | AP51: 2 | AT51: 1 | AX51: 1 | BB51: 2 | BF51: 2 | BJ51: 2 | BN51: 1 | BS51: 1 | BW51: 2 | CA51: 2 | CI51: 2 | CQ51: 1 | CU51: 2 | CY51: 1 | DC51: 1 | DF51: 1 | DK51: 2 | DO51: 2 | DR51: 2 | DV51: 2 | DZ51: 22 | EA51: 22 | EB51: 0 | EC51: 0
A52: 47 | B52: SEVAH504001TSBH01046 | C52: SEVA HOSPITAL & KIDNEY CENTRE | D52: NEAR THAKUR HOTEL, SHIVAJI CHOWK, ADILABAD | E52: 5 | G52: 1 | O52: 1 | S52: 1 | W52: 1 | AA52: 2 | AD52: 2 | AH52: 2 | AM52: 1 | AQ52: 1 | AU52: 2 | AY52: 2 | BC52: 1 | BG52: 1 | BK52: 1 | BO52: 1 | BR52: 2 | BV52: 2 | BZ52: 2 | CH52: 1 | CP52: 2 | CT52: 1 | CX52: 2 | DB52: 2 | DG52: 1 | DJ52: 1 | DN52: 1 | DS52: 1 | DW52: 1 | DZ52: 20 | EA52: 19 | EB52: 0 | EC52: 0
A53: 48 | B53: TIRUM504001TSBH07800 | C53: TIRUMALA HOSPITAL | D53: OPP: NEW BUS STAND, BESIDE HDFC ATM & DR. SWAMY CHILDREN HOSPITAL, ADILABAD | E53: 5 | F53: 2 | J53: 2 | N53: 2 | R53: 2 | V53: 2 | AA53: 1 | AE53: 1 | AH53: 2 | AL53: 2 | AP53: 2 | AT53: 2 | AX53: 2 | BB53: 2 | BF53: 2 | BJ53: 2 | BN53: 1 | BR53: 1 | BV53: 1 | BZ53: 1 | CH53: 2 | CQ53: 1 | CU53: 2 | CY53: 1 | DC53: 1 | DG53: 2 | DK53: 2 | DO53: 2 | DS53: 2 | DW53: 2 | DZ53: 32 | EA53: 17 | EB53: 0 | EC53: 0
A54: 49 | B54: ARUND504111TSBH06111 | C54: ARUN DENTAL CLINIC | D54: DR. ARUN KUMAR BADAVATH, SHIVAJI CHOWK LANE, ADILABAD. | E54: 3 | G54: 1 | J54: 2 | O54: 1 | S54: 1 | W54: 1 | AA54: 2 | AE54: 1 | AI54: 1 | AL54: 2 | AP54: 1 | AT54: 1 | AX54: 1 | BB54: 2 | BF54: 2 | BJ54: 2 | BN54: 1 | BS54: 2 | BW54: 2 | CA54: 2 | CI54: 2 | CL54: 1 | CP54: 2 | CT54: 1 | CX54: 2 | DB54: 2 | DF54: 1 | DJ54: 1 | DN54: 2 | DR54: 1 | DV54: 1 | DZ54: 28 | EA54: 16 | EB54: 0 | EC54: 0
A55: 50 | B55: MANAS504001TSBH01033 | C55: MANASVI CHILDRENS HOSPITAL | D55: Dr. N. SHARAD REDDY,BESIDE MAHESHWARI TALKIES, ADILABAD. 504001 | E55: 3 | G55: 1 | K55: 1 | O55: 1 | S55: 1 | W55: 1 | AA55: 2 | AD55: 2 | AH55: 2 | AL55: 2 | AP55: 2 | AT55: 2 | AX55: 2 | BB55: 2 | BF55: 2 | BJ55: 2 | BN55: 2 | BR55: 1 | BV55: 2 | BZ55: 2 | CH55: 2 | CL55: 2 | CP55: 2 | CT55: 2 | CX55: 1 | DB55: 1 | DF55: 1 | DJ55: 1 | DN55: 3 | DR55: 2 | DV55: 2 | DZ55: 44 | EA55: 7 | EB55: 0 | EC55: 0
A56: 51 | B56: SRISA504001TSBH00909 | C56: SRI SAIRAM MULTISPECIALITY DENTAL CARE | D56: Dr.SAI RAM ,NETAJI CHOWK, ADILABAD | E56: 3 | G56: 1 | K56: 1 | O56: 1 | T56: 1 | X56: 1 | AA56: 1 | AE56: 2 | AI56: 2 | AL56: 2 | AP56: 1 | AU56: 1 | AY56: 1 | BC56: 1 | BF56: 2 | BG56: 1 | BK56: 1 | BO56: 1 | BR56: 1 | BS56: 1 | BV56: 2 | BW56: 1 | BZ56: 2 | CA56: 1 | CD56: 1 | CH56: 2 | CI56: 1 | CL56: 2 | CM56: 2 | CP56: 1 | CQ56: 2 | CT56: 2 | CX56: 2 | CY56: 1 | DB56: 2 | DC56: 1 | DF56: 1 | DG56: 2 | DJ56: 1 | DK56: 1 | DN56: 2 | DO56: 1 | DR56: 2 | DS56: 1 | DV56: 2 | DW56: 1 | DZ56: 30 | EA56: 30 | EB56: 2 | EC56: 0
A57: 52 | B57: VRUND504001TSBH09754 | C57: VRUNDAVAN HOSPITAL | D57: 4-3-74/56/1, Dwaraka Nagar, Ravindra Nagar Colony, Adilabad(U), Telangana 504001 | E57: 3 | F57: 2 | J57: 2 | N57: 2 | R57: 2 | V57: 2 | AA57: 2 | AE57: 1 | AI57: 1 | AL57: 2 | AP57: 2 | AT57: 1 | AX57: 1 | BF57: 2 | BR57: 2 | BV57: 2 | BZ57: 2 | CD57: 2 | CH57: 1 | CM57: 2 | CQ57: 2 | CU57: 1 | CY57: 1 | DC57: 1 | DF57: 1 | DK57: 1 | DO57: 1 | DR57: 2 | DV57: 2 | DZ57: 32 | EA57: 13 | EB57: 0 | EC57: 0
A58: 53 | B58: CAREH504001TSBH09737 | C58: CARE HOSPITAL | D58: DR. M. HEMANTH RAO, Mahalaxmiwada, Adilabad(U), Telangana 504001 | E58: 2 | F58: 2 | K58: 1 | N58: 2 | R58: 2 | V58: 2 | AA58: 1 | AE58: 1 | AI58: 1 | AM58: 1 | AP58: 1 | AT58: 2 | AX58: 2 | BF58: 2 | BS58: 1 | BW58: 2 | CA58: 2 | CE58: 1 | CI58: 2 | CL58: 1 | CP58: 1 | CT58: 2 | CX58: 2 | DB58: 2 | DG58: 2 | DJ58: 1 | DN58: 1 | DS58: 1 | DW58: 1 | DZ58: 25 | EA58: 17 | EB58: 0 | EC58: 0
A59: 54 | B59: DISTR504001TSBH08539 | C59: DISTRICT VETERINARY HOSPITAL | D59: DISTRICT VETERINARY AND ANIMAL HUSBANDRY OFFICE, BHUKTHAPUR, ADILABAD,Adilabad,Adilabad (Urban),ADILABAD,504001 | E59: 2 | DZ59: 0 | EA59: 0 | EB59: 0 | EC59: 0
A60: 55 | B60: GURUK504001TSBH09738 | C60: GURUKRUPA SUPERSPECIALITY DENTAL CLINIC & IMPLANT CENTER | D60: DR. SWAPNIL VAIVASARE, OPP: HDFC BANK, NEAR MAHESHWARI THEATER, MAHALAXMIWADA, ADILABAD. | E60: 2 | DZ60: 0 | EA60: 0 | EB60: 0 | EC60: 0
A61: 56 | B61: MANAS504001TSBH09735 | C61: MANASA CLINIC | D61: Dr. C. S. BISWAS,MASOOD CHOWK, SATHNALA ROAD, ADILABAD. | E61: 2 | F61: 2 | J61: 2 | N61: 2 | R61: 2 | V61: 2 | AB61: 1 | AE61: 1 | AI61: 1 | AM61: 1 | AQ61: 2 | AU61: 1 | AY61: 1 | BG61: 1 | BR61: 2 | BV61: 2 | BZ61: 1 | CD61: 2 | CH61: 2 | CL61: 2 | CP61: 2 | CT61: 2 | CX61: 1 | DB61: 1 | DG61: 3 | DJ61: 1 | DN61: 1 | DS61: 2 | DW61: 2 | DZ61: 29 | EA61: 15 | EB61: 1 | EC61: 0
A62: 57 | B62: DRSAN504001TSBH07698 | C62: DR SANDEEP PAWAR CLINIC | D62: Dr.SANDEEP POWAR,ADILABAD | E62: 1 | G62: 1 | O62: 1 | S62: 1 | W62: 1 | AB62: 1 | AE62: 1 | AI62: 1 | AL62: 2 | AP62: 1 | AT62: 2 | AX62: 2 | BF62: 2 | BR62: 1 | BV62: 1 | BZ62: 1 | CD62: 1 | CH62: 2 | CM62: 1 | CQ62: 1 | CU62: 1 | CY62: 2 | DC62: 2 | DF62: 2 | DK62: 2 | DO62: 2 | DR62: 2 | DV62: 2 | DZ62: 21 | EA62: 17 | EB62: 1 | EC62: 0
A63: 58 | B63: GANAP504001TSBH00984 | C63: GANAPATI DIAGNOSTIC CENTRE | D63: Dr. RAJU RAMEKAR, BESIDE UNION BANK, CINEM ROAD, ADILIBAD. | E63: 1 | G63: 1 | J63: 2 | O63: 1 | S63: 1 | W63: 1 | AB63: 1 | AE63: 1 | AI63: 1 | AM63: 1 | AQ63: 2 | AU63: 1 | AY63: 1 | BG63: 1 | BR63: 2 | BV63: 2 | BZ63: 1 | CD63: 2 | CH63: 1 | CL63: 2 | CP63: 2 | CT63: 2 | CX63: 1 | DB63: 1 | DF63: 2 | DJ63: 1 | DN63: 1 | DR63: 1 | DV63: 1 | DZ63: 24 | EA63: 12 | EB63: 1 | EC63: 0
A64: 59 | B64: JAGAD504001TSBH01023 | C64: JAGADAMBA DIAGNOSTIC CENTRE, ADB | D64: Dr.NILESH K.AGARWAL,ADILABAD | E64: 1 | G64: 1 | K64: 1 | O64: 1 | S64: 1 | W64: 1 | AA64: 2 | AE64: 1 | AI64: 1 | AM64: 1 | AQ64: 1 | AU64: 1 | AY64: 1 | BG64: 1 | BS64: 1 | BW64: 1 | CA64: 1 | CE64: 1 | CI64: 2 | CL64: 2 | CP64: 1 | CT64: 1 | CX64: 1 | DB64: 1 | DF64: 1 | DJ64: 1 | DN64: 1 | DR64: 2 | DV64: 2 | DZ64: 13 | EA64: 20 | EB64: 0 | EC64: 0
A65: 60 | B65: SRIVE504001TSBH00890 | C65: SRI VENKATESHWARA DENTAL CLINIC, ADB | D65: Dr. L. PRAMOD REDDY,H.NO. 7-7-49/7/11, ABDUL KALAM ROAD,VIDYA NAGAR,ADB | E65: 1 | F65: 2 | J65: 2 | N65: 2 | R65: 2 | V65: 2 | AA65: 2 | AD65: 2 | AH65: 2 | AL65: 2 | AP65: 2 | BF65: 2 | BR65: 2 | BV65: 2 | BZ65: 2 | CD65: 2 | CH65: 1 | CM65: 1 | CQ65: 1 | CU65: 1 | CY65: 2 | DC65: 2 | DF65: 1 | DK65: 1 | DO65: 1 | DR65: 1 | DV65: 1 | DZ65: 32 | EA65: 11 | EB65: 0 | EC65: 0
A66: 61 | B66: ADILA504001TSPL09755 | C66: ADILABAD DIAGNOSTIC CENTRE | D66: OPP: ANDHRA BANK, MAHESHWARI THEATRE ROAD, BESIDE SRI LAXMI MEDICAL HALL TNGOS HOME ROAD,ADILABAD | E66: 0 | H66: 1 | L66: 1 | N66: 2 | R66: 2 | V66: 2 | AA66: 2 | AE66: 1 | AI66: 1 | AM66: 1 | AQ66: 1 | BG66: 1 | BS66: 1 | BW66: 1 | CA66: 1 | CE66: 1 | CI66: 1 | CL66: 2 | CP66: 2 | CT66: 2 | CX66: 1 | DB66: 1 | DG66: 2 | DJ66: 2 | DN66: 1 | DS66: 2 | DW66: 2 | DZ66: 17 | EA66: 18 | EB66: 2 | EC66: 0
A67: 62 | B67: AREAV504304TSBH08540 | C67: AREA VETERINARY HOSPITAL BOATH | D67: "O/o Area Veterinary Hospital Boath village, Boath Mandal, Adilabad District",Boath (K),Boath,ADILABAD,504304 | E67: 0 | AA67: 2 | AD67: 2 | AH67: 2 | AL67: 2 | AP67: 2 | AT67: 2 | AX67: 2 | BF67: 2 | BR67: 2 | BV67: 2 | BZ67: 2 | CD67: 2 | CH67: 2 | CM67: 2 | CQ67: 1 | CU67: 1 | CY67: 1 | DC67: 1 | DG67: 1 | DK67: 2 | DO67: 1 | DS67: 1 | DW67: 1 | DZ67: 24 | EA67: 14 | EB67: 0 | EC67: 0
A68: 63 | C68: BALAJI HOSPITAL | D68: BESIDE NEW BUS STAND, ADILABAD. | E68: 0 | DZ68: 0 | EA68: 0 | EB68: 0 | EC68: 0
A69: 64 | B69: BLOOD504311TSBH06114 | C69: BLOOD BANK CHC UTNOOR | D69: BOYAWADA , NEAR OLD BUS STAND, UTNOOR,Utnoor,Utnoor,ADILABAD,504311 | E69: 0 | AE69: 1 | AI69: 1 | AM69: 1 | AQ69: 2 | AU69: 2 | AY69: 2 | BG69: 1 | BS69: 2 | BW69: 2 | CA69: 1 | CE69: 2 | CI69: 2 | CL69: 2 | CP69: 2 | CT69: 2 | CX69: 2 | DB69: 2 | DF69: 2 | DJ69: 3 | DN69: 3 | DR69: 5 | DV69: 5 | DZ69: =F69+J69+N69+R69+V69+Z69+AD69+AH69+AL69+AP69+AT69+AX69+BB69+BF69+BJ69+BN69+BR69+BV69+BZ69+CD69+CH69+CL69+CP69+CT69+CX69+DB69+DF69+DJ69+DN69+DR69+DV69 -> 28 | EA69: =G69+K69+O69+S69+W69+AA69+AE69+AI69+AM69+AQ69+AU69+AY69+BC69+BG69+BK69+BO69+BS69+BW69+CA69+CE69+CI69+CM69+CQ69+CU69+CY69+DC69+DG69+DK69+DO69+DS69+DW69 -> 19 | EB69: =H69+L69+P69+T69+X69+AB69+AF69+AJ69+AN69+AR69+AV69+AZ69+BD69+BH69+BL69+BP69+BT69+BX69+CB69+CF69+CJ69+CN69+CR69+CV69+CZ69+DD69+DH69+DL69+DP69+DT69 -> 0 | EC69: =I69+M69+Q69+U69+Y69+AC69+AG69+AK69+AO69+AS69+AW69+BA69+BE69+BI69+BM69+BQ69+BU69+BY69+CC69+CG69+CK69+CO69+CS69+CW69+DA69+DE69+DI69+DM69+DQ69+DU69 -> 0
A70: 65 | B70: DHARA504001TSNH09752 | C70: DHARAMCHAND CLINIC | D70: DR. DHARAMCHAND CHOUDHARI, D.NO.4-2-140/1, NEAR RAM SITA MANDIR, GANDHI CHOWK, ADILABAD | E70: 0 | F70: 2 | J70: 2 | N70: 2 | R70: 2 | V70: 2 | AA70: 2 | AE70: 1 | AI70: 1 | AL70: 2 | AP70: 1 | BF70: 2 | BS70: 1 | BW70: 1 | CA70: 1 | CE70: 2 | CI70: 1 | CL70: 1 | CP70: 2 | CT70: 1 | CX70: 2 | DB70: 2 | DF70: 1 | DJ70: 1 | DN70: 1 | DR70: 1 | DV70: 1 | DZ70: 28 | EA70: 10 | EB70: 0 | EC70: 0
A71: 66 | C71: DR. SUSHMA BHOOS REDDY HOSPITAL | D71: Dr.SUSHMA BHOOS REDDY,ADILABAD | E71: 0 | DZ71: 0 | EA71: 0 | EB71: 0 | EC71: 0
A72: 67 | C72: DR.D R CHOUDHARI | D72: DrD.R.CHOUDHARI,ADILABAD | E72: 0 | DZ72: 0 | EA72: 0 | EB72: 0 | EC72: 0
A73: 68 | B73: HARSH504001TSBH08532 | C73: HARSHA SKIN & GENERAL HOSPITAL | D73: BESIDE AXIS BANK,ADILABAD | E73: 0 | G73: 1 | L73: 1 | O73: 1 | S73: 1 | W73: 1 | AB73: 1 | AE73: 1 | AI73: 1 | AL73: 2 | AP73: 2 | AT73: 1 | AX73: 1 | BF73: 2 | BS73: 1 | BW73: 1 | CA73: 1 | CE73: 1 | CI73: 1 | CL73: 1 | CP73: 2 | CT73: 2 | CX73: 1 | DB73: 1 | DF73: 1 | DJ73: 2 | DN73: 2 | DR73: 1 | DV73: 1 | DZ73: 22 | EA73: 11 | EB73: 2 | EC73: 0
A74: 69 | B74: KALLE503001TSBH07069 | C74: KALLEM BHOOMAREDDY ENT CARE | D74: Dr.YELMA BHOOMA REDDY,OPP.MAHESHWARI THEATRE,ADILABAD. | E74: 0 | AB74: 1 | AD74: 2 | AH74: 2 | BR74: 2 | BV74: 2 | BZ74: 1 | CD74: 2 | CH74: 1 | CM74: 1 | CQ74: 1 | CU74: 2 | CY74: 2 | DC74: 2 | DG74: 2 | DK74: 2 | DO74: 2 | DS74: 2 | DW74: 2 | DZ74: 12 | EA74: 18 | EB74: 1 | EC74: 0
A75: 70 | B75: KARTI504001TSBH07807 | C75: KARTIKEYA HOSPITAL | D75: NEAR CENTRAL BANK OF INDIA. ADILABAD | E75: 0 | G75: 1 | K75: 1 | O75: 1 | S75: 1 | W75: 1 | AA75: 1 | AE75: 1 | AI75: 1 | BS75: 1 | BW75: 1 | CA75: 1 | CE75: 1 | CI75: 2 | CM75: 2 | CQ75: 1 | CU75: 1 | CY75: 1 | DC75: 1 | DF75: 1 | DK75: 2 | DO75: 2 | DR75: 1 | DV75: 1 | DZ75: 3 | EA75: 24 | EB75: 0 | EC75: 0
A76: 71 | C76: SIDDI VINAYAKA ORTHO | D76: Dr. DEEPAK PUSHKAR,1st FLOOR, BESIDE KARUR VYSYA BANK,STATION ROAD,ADILIBAD | E76: 0 | DZ76: 0 | EA76: 0 | EB76: 0 | EC76: 0
A77: 72 | B77: SINDH504001TSDH09733 | C77: SINDHU DENTAL CLINIC | D77: Dr. ANIL TATE, 3-7-29/c,shivaji chowk,chincharawada Station, road, Mahalaxmiwada, Adilabad(U), Telangana 504001 | E77: 0 | F77: 2 | J77: 2 | N77: 2 | R77: 2 | V77: 2 | AA77: 2 | AE77: 1 | AI77: 1 | AL77: 2 | AP77: 2 | AU77: 2 | AY77: 2 | BF77: 2 | BR77: 1 | BV77: 2 | BZ77: 2 | CD77: 1 | CH77: 1 | CL77: 2 | CP77: 2 | CT77: 1 | CX77: 1 | DB77: 1 | DG77: 1 | DJ77: 2 | DN77: 2 | DS77: 2 | DW77: 2 | DZ77: 34 | EA77: 13 | EB77: 0 | EC77: 0
A78: 73 | C78: SOUMYA DIAGNOSTICS CENTRE | D78: ADILABAD | E78: 0 | DZ78: 0 | EA78: 0 | EB78: 0 | EC78: 0
A79: 74 | B79: SRIVI504001TSDH09732 | C79: SRI VIJAYA SAI DENTAL CLINIC | D79: DR. AAREWAR CHANDRAKANTH, Station road shivaji chowk. Opp. Sai bar and Restaurant, Station road, near takur hotel, Adilabad(U), Telangana 504001 | E79: 0 | J79: 2 | N79: 2 | R79: 2 | V79: 2 | AB79: 1 | AD79: 2 | AH79: 1 | AL79: 2 | AP79: 1 | AT79: 1 | AX79: 1 | BF79: 2 | BS79: 1 | BW79: 2 | CA79: 1 | CE79: 2 | CI79: 2 | CL79: 1 | CP79: 1 | CT79: 2 | CX79: 2 | DB79: 2 | DG79: 1 | DJ79: 1 | DN79: 1 | DS79: 2 | DW79: 2 | DZ79: 28 | EA79: 13 | EB79: 1 | EC79: 0
A80: 75 | C80: SUHAS HOSPITAL ADB | D80: Dr. P. KRANTHI,OPP. BUS STAND, BESIDE ARYABHATTA SCHOOL,ADB | E80: 0 | DZ80: 0 | EA80: 0 | EB80: 0 | EC80: 0
A81: 76 | B81: THYRO504001TSPL09751 | C81: THYROCARE SAMPLE COLLECTION CENTRE | D81: Door No - 7-1-55, Muncipal Colony, near Sandeep Pawar Hospital, Dwaraka Nagar, Adilabad | E81: 0 | F81: 2 | J81: 2 | N81: 2 | R81: 2 | V81: 2 | AA81: 2 | AE81: 1 | AI81: 1 | AL81: 2 | AP81: 2 | BF81: 2 | BR81: 1 | BV81: 1 | BZ81: 1 | CD81: 1 | CH81: 1 | CL81: 2 | CP81: 2 | CT81: 1 | CX81: 1 | DB81: 1 | DF81: 1 | DJ81: 1 | DN81: 2 | DR81: 1 | DV81: 1 | DZ81: 34 | EA81: 4 | EB81: 0 | EC81: 0
A82: 77 | B82: TRINE504001TSBH06190 | C82: TRINETRAA DIAGNOSTICS CENTRE | D82: MKA ASSOCIATES ,STREET NO. 3, DWARAKANAGAR, ADILABAD | E82: 0 | F82: 2 | J82: 2 | N82: 2 | T82: 1 | X82: 1 | AA82: 2 | AD82: 2 | AH82: 2 | AL82: 2 | AP82: 1 | AT82: 1 | AX82: 1 | BF82: 2 | BR82: 2 | BV82: 1 | BZ82: 1 | CD82: 2 | CH82: 2 | CM82: 2 | CQ82: 1 | CU82: 2 | CY82: 2 | DC82: 2 | DF82: 1 | DK82: 1 | DO82: 2 | DR82: 1 | DV82: 1 | DZ82: 28 | EA82: 14 | EB82: 2 | EC82: 0
A83: 78 | B83: VAZED504001TSPL09736 | C83: VAZE DIAGNOSTICS | D83: Dr. PRAFULL H. VAZE,4-2-1, Old Bus Stand Rd, Kumarpet, Mahalaxmiwada, Adilabad(U), Telangana 504001 | E83: 0 | F83: 2 | J83: 2 | N83: 2 | R83: 2 | V83: 2 | AA83: 2 | AE83: 1 | AI83: 1 | AM83: 1 | AQ83: 2 | BG83: 1 | BS83: 2 | BW83: 1 | CA83: 1 | CE83: 1 | CI83: 1 | CL83: 1 | CP83: 2 | CX83: 1 | DB83: 1 | DG83: 1 | DJ83: 1 | DN83: 1 | DS83: 2 | DW83: 2 | DZ83: 17 | EA83: 19 | EB83: 0 | EC83: 0
A84: 79 | C84: VIGNESHWARA HOSPITAL | D84: Dr. V.RAVIKANTH RAO,NEAR NATRAJ THEATRE, ADILABAD. | E84: 0 | CT84: 1 | DZ84: 1 | EA84: 0 | EB84: 0 | EC84: 0
A85: 80 | C85: KALAVATHI VOLUNTARY BLOOD BANK ( A UNIT OF KALAVATHI WELFARE SOCIETY ) | D85: ADILABAD | E85: 0 | DZ85: 0 | EA85: 0 | EB85: 0 | EC85: 0
A86: 81 | B86: NAROT504001TSCL10113 | C86: NAROTHAM REDDY CHILDREN'S CLINIC | D86: NEAR CENTRAL LIBRARY, BESIDE SRI CRITICAL CARE HOSPITAL, NETHAJI CHOWK, ADILABAD | E86: 0 | G86: 1 | L86: 1 | O86: 1 | S86: 1 | W86: 1 | AA86: 2 | AD86: 2 | AH86: 2 | AL86: 2 | AP86: 1 | AT86: 1 | AX86: 1 | BF86: 2 | BR86: 1 | BV86: 2 | BZ86: 1 | CD86: 2 | CH86: 1 | CM86: 2 | CQ86: 1 | CU86: 2 | CY86: 2 | DC86: 2 | DF86: 1 | DK86: 1 | DO86: 1 | DR86: 1 | DV86: 1 | DZ86: 21 | EA86: 17 | EB86: 1 | EC86: 0
C87: TOTAL | E87: =SUM(E4:E86) -> 1176 | F87: =SUM(F4:F86) -> 66 | G87: =SUM(G4:G86) -> 19 | H87: =SUM(H4:H86) -> 4 | I87: =SUM(I4:I86) -> 0 | J87: =SUM(J4:J86) -> 78 | K87: 17 | L87: 3 | M87: 0 | N87: 62 | O87: 22 | P87: 4 | Q87: 0 | R87: 60 | S87: 19 | T87: 5 | U87: 0 | V87: 60 | W87: 19 | X87: 4 | Y87: 0 | Z87: 25 | AA87: 65 | AB87: 6 | AC87: 0 | AD87: 54 | AE87: 37 | AF87: 0 | AG87: 0 | AH87: 53 | AI87: 35 | AJ87: 0 | AK87: 0 | AL87: 70 | AM87: 20 | AN87: 0 | AO87: 0 | AP87: 53 | AQ87: 28 | AR87: 0 | AS87: 0 | AT87: 44 | AU87: 24 | AV87: 0 | AW87: 0 | AX87: 44 | AY87: 26 | AZ87: 0 | BA87: 0 | BB87: 52 | BC87: 15 | BD87: 0 | BE87: 0 | BF87: 76 | BG87: 24 | BH87: 0 | BI87: 0 | BJ87: 49 | BK87: 18 | BL87: 0 | BM87: 0 | BN87: 45 | BO87: 22 | BP87: 0 | BQ87: 0 | BR87: 54 | BS87: 40 | BT87: 0 | BU87: 0 | BV87: =SUM(BV4:BV86) -> 61 | BW87: 41 | BX87: 0 | BY87: 0 | BZ87: 54 | CA87: 38 | CB87: 0 | CC87: 0 | CD87: 59 | CE87: 33 | CF87: 0 | CG87: 0 | CH87: 58 | CI87: 47 | CJ87: 0 | CK87: 0 | CL87: 57 | CM87: 38 | CN87: 0 | CO87: 0 | CP87: 65 | CQ87: 38 | CR87: 0 | CS87: 0 | CT87: 65 | CU87: 40 | CV87: 0 | CW87: 0 | CX87: 65 | CY87: 38 | CZ87: 0 | DA87: 0 | DB87: 65 | DC87: 36 | DD87: 0 | DE87: 0 | DF87: 55 | DG87: 54 | DH87: 0 | DI87: 0 | DJ87: 63 | DK87: 47 | DL87: 4 | DM87: 0 | DN87: 65 | DO87: 49 | DP87: 0 | DQ87: 0 | DR87: 69 | DS87: 46 | DT87: 0 | DU87: 0 | DV87: 69 | DW87: 46 | DX87: 0 | DY87: 0 | DZ87: 1815 | EA87: 1041 | EB87: 30 | EC87: 0
DZ89: =F89+J89+N89+R89+V89+Z89+AD89+AH89+AL89+AP89+AT89+AX89+BB89+BF89+BJ89+BN89+BR89+BV89+BZ89+CD89+CH89+CL89+CP89+CT89+CX89+DB89+DF89+DJ89+DN89+DR89+DV89 -> 0 | EA89: =G89+K89+O89+S89+W89+AA89+AE89+AI89+AM89+AQ89+AU89+AY89+BC89+BG89+BK89+BO89+BS89+BW89+CA89+CE89+CI89+CM89+CQ89+CU89+CY89+DC89+DG89+DK89+DO89+DS89+DW89 -> 0 | EB89: =H89+L89+P89+T89+X89+AB89+AF89+AJ89+AN89+AR89+AV89+AZ89+BD89+BH89+BL89+BP89+BT89+BX89+CB89+CF89+CJ89+CN89+CR89+CV89+CZ89+DD89+DH89+DL89+DP89+DT89+DX89 -> 0 | EC89: =I89+M89+Q89+U89+Y89+AC89+AG89+AK89+AO89+AS89+AW89+BA89+BE89+BI89+BM89+BQ89+BU89+BY89+CC89+CG89+CK89+CO89+CS89+CW89+DA89+DE89+DI89+DM89+DQ89+DU89+DY89 -> 0
DZ90: 0 | EA90: 0 | EB90: 0 | EC90: 0
DZ91: 0 | EA91: 0 | EB91: 0 | EC91: 0
DZ92: 0 | EA92: 0 | EB92: 0 | EC92: 0
DZ93: 0 | EA93: 0 | EB93: 0 | EC93: 0
DZ94: 0 | EA94: 0 | EB94: 0 | EC94: 0
DZ95: 0 | EA95: 0 | EB95: 0 | EC95: 0
DZ96: 0 | EA96: 0 | EB96: 0 | EC96: 0
DZ97: 0 | EA97: 0 | EB97: 0 | EC97: 0
DZ98: 0 | EA98: 0 | EB98: 0 | EC98: 0
DZ99: 0 | EA99: 0 | EB99: 0 | EC99: 0
DZ100: 0 | EA100: 0 | EB100: 0 | EC100: 0
DZ101: 0 | EA101: 0 | EB101: 0 | EC101: 0
DZ102: 0 | EA102: 0 | EB102: 0 | EC102: 0
DZ103: 0 | EA103: 0 | EB103: 0 | EC103: 0
DZ104: 0 | EA104: 0 | EB104: 0 | EC104: 0
DZ105: 0 | EA105: 0 | EB105: 0 | EC105: 0
DZ106: 0 | EA106: 0 | EB106: 0 | EC106: 0
DZ107: 0 | EA107: 0 | EB107: 0 | EC107: 0
DZ108: 0 | EA108: 0 | EB108: 0 | EC108: 0
DZ109: 0 | EA109: 0 | EB109: 0 | EC109: 0
DZ110: 0 | EA110: 0 | EB110: 0 | EC110: 0
DZ111: 0 | EA111: 0 | EB111: 0 | EC111: 0
DZ112: 0 | EA112: 0 | EB112: 0 | EC112: 0
DZ113: 0 | EA113: 0 | EB113: 0 | EC113: 0
DZ114: 0 | EA114: 0 | EB114: 0 | EC114: 0
DZ115: 0 | EA115: 0 | EB115: 0 | EC115: 0
DZ116: 0 | EA116: 0 | EB116: 0 | EC116: 0
DZ117: 0 | EA117: 0 | EB117: 0 | EC117: 0
DZ118: 0 | EA118: 0 | EB118: 0 | EC118: 0
DZ119: 0 | EA119: 0 | EB119: 0 | EC119: 0
DZ120: 0 | EA120: 0 | EB120: 0 | EC120: 0
DZ121: 0 | EA121: 0 | EB121: 0 | EC121: 0
DZ122: 0 | EA122: 0 | EB122: 0 | EC122: 0
DZ123: 0 | EA123: 0 | EB123: 0 | EC123: 0
DZ124: 0 | EA124: 0 | EB124: 0 | EC124: 0
DZ125: 0 | EA125: 0 | EB125: 0 | EC125: 0
DZ126: 0 | EA126: 0 | EB126: 0 | EC126: 0
DZ127: 0 | EA127: 0 | EB127: 0 | EC127: 0
DZ128: 0 | EA128: 0 | EB128: 0 | EC128: 0
DZ129: 0 | EA129: 0 | EB129: 0 | EC129: 0
DZ130: 0 | EA130: 0 | EB130: 0 | EC130: 0
DZ131: 0 | EA131: 0 | EB131: 0 | EC131: 0
DZ132: 0 | EA132: 0 | EB132: 0 | EC132: 0
DZ133: 0 | EA133: 0 | EB133: 0 | EC133: 0
DZ134: =F134+J134+N134+R134+V134+Z134+AD134+AH134+AL134+AP134+AT134+AX134+BB134+BF134+BJ134+BN134+BR134+BV134+BZ134+CD134+CH134+CL134+CP134+CT134+CX134+DB134+DF134+DJ134+DN134+DR134+DV134 -> 0 | EA134: =G134+K134+O134+S134+W134+AA134+AE134+AI134+AM134+AQ134+AU134+AY134+BC134+BG134+BK134+BO134+BS134+BW134+CA134+CE134+CI134+CM134+CQ134+CU134+CY134+DC134+DG134+DK134+DO134+DS134+DW134 -> 0 | EB134: =H134+L134+P134+T134+X134+AB134+AF134+AJ134+AN134+AR134+AV134+AZ134+BD134+BH134+BL134+BP134+BT134+BX134+CB134+CF134+CJ134+CN134+CR134+CV134+CZ134+DD134+DH134+DL134+DP134+DT134+DX134 -> 0 | EC134: =I134+M134+Q134+U134+Y134+AC134+AG134+AK134+AO134+AS134+AW134+BA134+BE134+BI134+BM134+BQ134+BU134+BY134+CC134+CG134+CK134+CO134+CS134+CW134+DA134+DE134+DI134+DM134+DQ134+DU134+DY134 -> 0
DZ135: 0 | EA135: 0 | EB135: 0 | EC135: 0
DZ136: 0 | EA136: 0 | EB136: 0 | EC136: 0
DZ137: 0 | EA137: 0 | EB137: 0 | EC137: 0
DZ138: 0 | EA138: 0 | EB138: 0 | EC138: 0
DZ139: 0 | EA139: 0 | EB139: 0 | EC139: 0
DZ140: 0 | EA140: 0 | EB140: 0 | EC140: 0
DZ141: 0 | EA141: 0 | EB141: 0 | EC141: 0
DZ142: 0 | EA142: 0 | EB142: 0 | EC142: 0
DZ143: 0 | EA143: 0 | EB143: 0 | EC143: 0
DZ144: 0 | EA144: 0 | EB144: 0 | EC144: 0
DZ145: 0 | EA145: 0 | EB145: 0 | EC145: 0
DZ146: 0 | EA146: 0 | EB146: 0 | EC146: 0
DZ147: 0 | EA147: 0 | EB147: 0 | EC147: 0
DZ148: 0 | EA148: 0 | EB148: 0 | EC148: 0
DZ149: 0 | EA149: 0 | EB149: 0 | EC149: 0
DZ150: 0 | EA150: 0 | EB150: 0 | EC150: 0
DZ151: 0 | EA151: 0 | EB151: 0 | EC151: 0
DZ152: 0 | EA152: 0 | EB152: 0 | EC152: 0
DZ153: 0 | EA153: 0 | EB153: 0 | EC153: 0
DZ154: 0 | EA154: 0 | EB154: 0 | EC154: 0
DZ155: 0 | EA155: 0 | EB155: 0 | EC155: 0
DZ156: 0 | EA156: 0 | EB156: 0 | EC156: 0
DZ157: 0 | EA157: 0 | EB157: 0 | EC157: 0
DZ158: 0 | EA158: 0 | EB158: 0 | EC158: 0
DZ159: 0 | EA159: 0 | EB159: 0 | EC159: 0
DZ160: 0 | EA160: 0 | EB160: 0 | EC160: 0
DZ161: 0 | EA161: 0 | EB161: 0 | EC161: 0
DZ162: 0 | EA162: 0 | EB162: 0 | EC162: 0
DZ163: 0 | EA163: 0 | EB163: 0 | EC163: 0
DZ164: 0 | EA164: 0 | EB164: 0 | EC164: 0
DZ165: 0 | EA165: 0 | EB165: 0 | EC165: 0
DZ166: 0 | EA166: 0 | EB166: 0 | EC166: 0
DZ167: 0 | EA167: 0 | EB167: 0 | EC167: 0
DZ168: 0 | EA168: 0 | EB168: 0 | EC168: 0
DZ169: 0 | EA169: 0 | EB169: 0 | EC169: 0
DZ170: 0 | EA170: 0 | EB170: 0 | EC170: 0
DZ171: 0 | EA171: 0 | EB171: 0 | EC171: 0
DZ172: 0 | EA172: 0 | EB172: 0 | EC172: 0
DZ173: 0 | EA173: 0 | EB173: 0 | EC173: 0
DZ174: 0 | EA174: 0 | EB174: 0 | EC174: 0
DZ175: 0 | EA175: 0 | EB175: 0 | EC175: 0
DZ176: 0 | EA176: 0 | EB176: 0 | EC176: 0
DZ177: 0 | EA177: 0 | EB177: 0 | EC177: 0
DZ178: 0 | EA178: 0 | EB178: 0 | EC178: 0
DZ179: 0 | EA179: 0 | EB179: 0 | EC179: 0
DZ180: 0 | EA180: 0 | EB180: 0 | EC180: 0
DZ181: 0 | EA181: 0 | EB181: 0 | EC181: 0
DZ182: 0 | EA182: 0 | EB182: 0 | EC182: 0
DZ183: 0 | EA183: 0 | EB183: 0 | EC183: 0
DZ184: 0 | EA184: 0 | EB184: 0 | EC184: 0
DZ185: 0 | EA185: 0 | EB185: 0 | EC185: 0
DZ186: 0 | EA186: 0 | EB186: 0 | EC186: 0
DZ187: 0 | EA187: 0 | EB187: 0 | EC187: 0
DZ188: 0 | EA188: 0 | EB188: 0 | EC188: 0
DZ189: 0 | EA189: 0 | EB189: 0 | EC189: 0
DZ190: 0 | EA190: 0 | EB190: 0 | EC190: 0
DZ191: 0 | EA191: 0 | EB191: 0 | EC191: 0
DZ192: 0 | EA192: 0 | EB192: 0 | EC192: 0
DZ193: 0 | EA193: 0 | EB193: 0 | EC193: 0
DZ194: 0 | EA194: 0 | EB194: 0 | EC194: 0
DZ195: 0 | EA195: 0 | EB195: 0 | EC195: 0
DZ196: 0 | EA196: 0 | EB196: 0 | EC196: 0
DZ197: 0 | EA197: 0 | EB197: 0 | EC197: 0
DZ198: =F198+J198+N198+R198+V198+Z198+AD198+AH198+AL198+AP198+AT198+AX198+BB198+BF198+BJ198+BN198+BR198+BV198+BZ198+CD198+CH198+CL198+CP198+CT198+CX198+DB198+DF198+DJ198+DN198+DR198+DV198 -> 0 | EA198: =G198+K198+O198+S198+W198+AA198+AE198+AI198+AM198+AQ198+AU198+AY198+BC198+BG198+BK198+BO198+BS198+BW198+CA198+CE198+CI198+CM198+CQ198+CU198+CY198+DC198+DG198+DK198+DO198+DS198+DW198 -> 0 | EB198: =H198+L198+P198+T198+X198+AB198+AF198+AJ198+AN198+AR198+AV198+AZ198+BD198+BH198+BL198+BP198+BT198+BX198+CB198+CF198+CJ198+CN198+CR198+CV198+CZ198+DD198+DH198+DL198+DP198+DT198+DX198 -> 0 | EC198: =I198+M198+Q198+U198+Y198+AC198+AG198+AK198+AO198+AS198+AW198+BA198+BE198+BI198+BM198+BQ198+BU198+BY198+CC198+CG198+CK198+CO198+CS198+CW198+DA198+DE198+DI198+DM198+DQ198+DU198+DY198 -> 0
DZ199: 0 | EA199: 0 | EB199: 0 | EC199: 0
DZ200: 0 | EA200: 0 | EB200: 0 | EC200: 0
DZ201: 0 | EA201: 0 | EB201: 0 | EC201: 0
... 433 more rows

Sheet Asifabad
A1: =Nizamabad!A1 -> DECEMBER MONTH REPORT | F1: =Nizamabad!F1 -> 2021-12-01 | J1: =Nizamabad!J1 -> 2021-12-02 | N1: =Nizamabad!N1 -> 2021-12-03 | R1: =Nizamabad!R1 -> 2021-12-04 | V1: =Nizamabad!V1 -> 2021-12-05 | Z1: =Nizamabad!Z1 -> 2021-12-06 | AD1: =Nizamabad!AD1 -> 2021-12-07 | AH1: =Nizamabad!AH1 -> 2021-12-08 | AL1: =Nizamabad!AL1 -> 2021-12-09 | AP1: =Nizamabad!AP1 -> 2021-12-10 | AT1: =Nizamabad!AT1 -> 2021-12-11 | AX1: =Nizamabad!AX1 -> 2021-12-12 | BB1: =Nizamabad!BB1 -> 2021-12-13 | BF1: =Nizamabad!BF1 -> 2021-12-14 | BJ1: =Nizamabad!BJ1 -> 2021-12-15 | BN1: =Nizamabad!BN1 -> 2021-12-16 | BR1: =Nizamabad!BR1 -> 2021-12-17 | BV1: =Nizamabad!BV1 -> 2021-12-18 | BZ1: =Nizamabad!BZ1 -> 2021-12-19 | CD1: =Nizamabad!CD1 -> 2021-12-20 | CH1: =Nizamabad!CH1 -> 2021-12-21 | CL1: =Nizamabad!CL1 -> 2021-12-22 | CP1: =Nizamabad!CP1 -> 2021-12-23 | CT1: =Nizamabad!CT1 -> 2021-12-24 | CX1: =Nizamabad!CX1 -> 2021-12-25 | DB1: =Nizamabad!DB1 -> 2021-12-26 | DF1: =Nizamabad!DF1 -> 2021-12-27 | DJ1: =Nizamabad!DJ1 -> 2021-12-28 | DN1: =Nizamabad!DN1 -> 2021-12-29 | DR1: =Nizamabad!DR1 -> 2021-12-30 | DV1: =Nizamabad!DV1 -> 2021-12-31 | DZ1: TOTAL
A2: SNO | B2: HCF ID | C2: NAME OF THE HCF | D2: ADDRESS OF THE HCFS | E2: NO.OF BEDS | F2: Yellow | G2: Red | H2: Blue | I2: White | J2: Yellow | K2: Red | L2: Blue | M2: White | N2: Yellow | O2: Red | P2: Blue | Q2: White | R2: Yellow | S2: Red | T2: Blue | U2: White | V2: Yellow | W2: Red | X2: Blue | Y2: White | Z2: Yellow | AA2: Red | AB2: Blue | AC2: White | AD2: Yellow | AE2: Red | AF2: Blue | AG2: White | AH2: Yellow | AI2: Red | AJ2: Blue | AK2: White | AL2: Yellow | AM2: Red | AN2: Blue | AO2: White | AP2: Yellow | AQ2: Red | AR2: Blue | AS2: White | AT2: Yellow | AU2: Red | AV2: Blue | AW2: White | AX2: Yellow | AY2: Red | AZ2: Blue | BA2: White | BB2: Yellow | BC2: Red | BD2: Blue | BE2: White | BF2: Yellow | BG2: Red | BH2: Blue | BI2: White | BJ2: Yellow | BK2: Red | BL2: Blue | BM2: White | BN2: Yellow | BO2: Red | BP2: Blue | BQ2: White | BR2: Yellow | BS2: Red | BT2: Blue | BU2: White | BV2: Yellow | BW2: Red | BX2: Blue | BY2: White | BZ2: Yellow | CA2: Red | CB2: Blue | CC2: White | CD2: Yellow | CE2: Red | CF2: Blue | CG2: White | CH2: Yellow | CI2: Red | CJ2: Blue | CK2: White | CL2: Yellow | CM2: Red | CN2: Blue | CO2: White | CP2: Yellow | CQ2: Red | CR2: Blue | CS2: White | CT2: Yellow | CU2: Red | CV2: Blue | CW2: White | CX2: Yellow | CY2: Red | CZ2: Blue | DA2: White | DB2: Yellow | DC2: Red | DD2: Blue | DE2: White | DF2: Yellow | DG2: Red | DH2: Blue | DI2: White | DJ2: Yellow | DK2: Red | DL2: Blue | DM2: White | DN2: Yellow | DO2: Red | DP2: Blue | DQ2: White | DR2: Yellow | DS2: Red | DT2: Blue | DU2: White | DV2: Yellow | DW2: Red | DX2: Blue | DY2: White | DZ2: Yellow | EA2: Red | EB2: Blue | EC2: White
A3: BELOW 100 BEDS HCFs
A4: 1 | B4: DISTR504293TSBH06110 | C4: GOVT. HOSPITAL ASIFABAD | D4: NEAR BUS STATION, ASIFABAD | E4: 60 | F4: 1 | G4: 1 | J4: 1 | K4: 1 | N4: 1 | O4: 1 | R4: 1 | S4: 1 | V4: 1 | W4: 1 | Z4: 1 | AA4: 1 | AD4: 1 | AE4: 1 | AH4: 1 | AI4: 1 | AL4: 1 | AM4: 1 | AP4: 1 | AQ4: 1 | AT4: 1 | AU4: 1 | AX4: 1 | AY4: 1 | BB4: 1 | BC4: 1 | BF4: 1 | BG4: 1 | BJ4: 1 | BK4: 1 | BN4: 1 | BO4: 1 | BR4: 1 | BS4: 1 | BV4: 1 | BW4: 1 | BZ4: 1 | CA4: 1 | CD4: 1 | CE4: 1 | CH4: 1 | CI4: 1 | CL4: 1 | CM4: 1 | CP4: 1 | CQ4: 1 | CT4: 1 | CU4: 1 | CX4: 1 | CY4: 1 | DB4: 1 | DC4: 1 | DF4: 1 | DG4: 1 | DJ4: 1 | DK4: 1 | DN4: 1 | DO4: 1 | DR4: 1 | DS4: 1 | DV4: 1 | DW4: 1 | DZ4: =F4+J4+N4+R4+V4+Z4+AD4+AH4+AL4+AP4+AT4+AX4+BB4+BF4+BJ4+BN4+BR4+BV4+BZ4+CD4+CH4+CL4+CP4+CT4+CX4+DB4+DF4+DJ4+DN4+DR4+DV4 -> 31 | EA4: =G4+K4+O4+S4+W4+AA4+AE4+AI4+AM4+AQ4+AU4+AY4+BC4+BG4+BK4+BO4+BS4+BW4+CA4+CE4+CI4+CM4+CQ4+CU4+CY4+DC4+DG4+DK4+DO4+DS4+DW4 -> 31 | EB4: =H4+L4+P4+T4+X4+AB4+AF4+AJ4+AN4+AR4+AV4+AZ4+BD4+BH4+BL4+BP4+BT4+BX4+CB4+CF4+CJ4+CN4+CR4+CV4+CZ4+DD4+DH4+DL4+DP4+DT4+DX4 -> 0 | EC4: =I4+M4+Q4+U4+Y4+AC4+AG4+AK4+AO4+AS4+AW4+BA4+BE4+BI4+BM4+BQ4+BU4+BY4+CC4+CG4+CK4+CO4+CS4+CW4+DA4+DE4+DI4+DM4+DQ4+DU4+DY4 -> 0
A5: 2 | B5: COMMU504293TSBH09923 | C5: COMMUNITY HEALTH CENTER, ASIFABAD | D5: H.NO.3-108, NAR BUS STAND, BAPUNAGAR, ASIFABAD | E5: 50 | F5: 2 | G5: 1 | J5: 2 | K5: 1 | N5: 2 | O5: 1 | R5: 2 | S5: 1 | V5: 2 | W5: 1 | Z5: 2 | AA5: 1 | AD5: 2 | AE5: 1 | AH5: 2 | AI5: 1 | AL5: 2 | AM5: 1 | AP5: 2 | AQ5: 1 | AT5: 2 | AU5: 1 | AX5: 2 | AY5: 1 | BB5: 2 | BC5: 1 | BF5: 2 | BG5: 1 | BJ5: 2 | BK5: 1 | BN5: 2 | BO5: 1 | BR5: 2 | BS5: 1 | BV5: 2 | BW5: 1 | BZ5: 1 | CD5: 1 | CH5: 1 | CL5: 1 | CP5: 1 | CT5: 1 | CX5: 1 | DB5: 1 | DF5: 1 | DJ5: 1 | DN5: 1 | DR5: 1 | DV5: 1 | DZ5: =F5+J5+N5+R5+V5+Z5+AD5+AH5+AL5+AP5+AT5+AX5+BB5+BF5+BJ5+BN5+BR5+BV5+BZ5+CD5+CH5+CL5+CP5+CT5+CX5+DB5+DF5+DJ5+DN5+DR5+DV5 -> 49 | EA5: =G5+K5+O5+S5+W5+AA5+AE5+AI5+AM5+AQ5+AU5+AY5+BC5+BG5+BK5+BO5+BS5+BW5+CA5+CE5+CI5+CM5+CQ5+CU5+CY5+DC5+DG5+DK5+DO5+DS5+DW5 -> 18 | EB5: =H5+L5+P5+T5+X5+AB5+AF5+AJ5+AN5+AR5+AV5+AZ5+BD5+BH5+BL5+BP5+BT5+BX5+CB5+CF5+CJ5+CN5+CR5+CV5+CZ5+DD5+DH5+DL5+DP5+DT5+DX5 -> 0 | EC5: =I5+M5+Q5+U5+Y5+AC5+AG5+AK5+AO5+AS5+AW5+BA5+BE5+BI5+BM5+BQ5+BU5+BY5+CC5+CG5+CK5+CO5+CS5+CW5+DA5+DE5+DI5+DM5+DQ5+DU5+DY5 -> 0
A6: 3 | B6: KIMSH504296TSBH09900 | C6: K I M S HOSPITAL (KOTTAPALLI INSTITUTE OF MEDICAL SCIENCES) | D6: #1-16-553/3, OPP: MUNICIPAL OFFICE, BEHIND VENKATARAMANA THEATRE, KAGAZNAGAR, DIST. KUMARAMBHEEM ASIFABAD. | E6: 50 | G6: 1 | K6: 1 | O6: 1 | S6: 1 | W6: 1 | AA6: 1 | AE6: 1 | AI6: 1 | AM6: 1 | AQ6: 1 | AU6: 1 | AY6: 1 | BC6: 1 | BG6: 1 | BK6: 1 | BO6: 1 | BS6: 1 | BW6: 1 | CA6: 1 | CE6: 1 | CI6: 1 | CM6: 1 | CQ6: 1 | CU6: 1 | CY6: 1 | DC6: 1 | DG6: 1 | DK6: 1 | DO6: 1 | DS6: 1 | DW6: 1 | DZ6: 0 | EA6: 31 | EB6: 0 | EC6: 0
A7: 4 | B7: PRAJA504296TSBH09921 | C7: PRAJA LIFE CARE HOSPITAL | D7: OPP; H.P. PETROL PUMP, SIRPUR KAGHAZNAGAR-504296. #7893956532 | E7: 50 | F7: 1 | J7: 1 | N7: 1 | R7: 1 | V7: 1 | Z7: 1 | AD7: 1 | AH7: 1 | AL7: 1 | AP7: 1 | AT7: 1 | AX7: 1 | BB7: 1 | BF7: 1 | BJ7: 1 | BN7: 1 | BR7: 1 | BV7: 1 | BZ7: 1 | CD7: 1 | CH7: 1 | CL7: 1 | CP7: 1 | CT7: 1 | CX7: 1 | DB7: 1 | DF7: 1 | DJ7: 1 | DN7: 1 | DR7: 1 | DV7: 1 | DZ7: 31 | EA7: 0 | EB7: 0 | EC7: 0
A8: 5 | B8: COMMU504299TSBH09924 | C8: THIRUMALA SUPER SPECIALITY HOSPITAL, NIZAMABAD | D8: H.No.4-92, NEAR POST OFFICE, ARAB MOHALLA, SIRPUR(T),ASIFABAD -504299 | E8: 30 | G8: 1 | K8: 1 | O8: 1 | S8: 1 | W8: 1 | AA8: 1 | AE8: 1 | AI8: 1 | AM8: 1 | AQ8: 1 | AU8: 1 | AY8: 1 | BC8: 1 | BG8: 1 | BK8: 1 | BO8: 1 | BS8: 1 | BW8: 1 | CA8: 1 | CE8: 1 | CI8: 1 | CM8: 1 | CQ8: 1 | CU8: 1 | CY8: 1 | DC8: 1 | DG8: 1 | DK8: 1 | DO8: 1 | DS8: 1 | DW8: 1 | DZ8: 0 | EA8: 31 | EB8: 0 | EC8: 0
A9: 6 | B9: VIJET504296TSBH09908 | C9: VIJETHA HOSPITAL | D9: OPP ANDHRA BANK ATM, THIRANDAS TALKIES ROAD, SIRPUR-KAGHAZNAGAR-504296 | E9: 30 | F9: 1 | J9: 1 | N9: 1 | R9: 1 | V9: 1 | Z9: 1 | AD9: 1 | AH9: 1 | AL9: 1 | AP9: 1 | AT9: 1 | AX9: 1 | BB9: 1 | BF9: 1 | BJ9: 1 | BN9: 1 | BR9: 1 | BV9: 1 | BZ9: 1 | CD9: 1 | CH9: 1 | CL9: 1 | CP9: 1 | CT9: 1 | CX9: 1 | DB9: 1 | DF9: 1 | DJ9: 1 | DN9: 1 | DR9: 1 | DV9: 1 | DZ9: 31 | EA9: 0 | EB9: 0 | EC9: 0
A10: 7 | B10: HOLYT504346TSBH09922 | C10: HOLY TRINITY HOSPITAL | D10: H.No.63/2017, INDERVELLY, ADILABAD | E10: 25 | F10: 1 | J10: 1 | N10: 1 | R10: 1 | V10: 1 | Z10: 1 | AD10: 1 | AH10: 1 | AL10: 1 | AP10: 1 | AT10: 1 | AX10: 1 | BB10: 1 | BF10: 1 | BJ10: 1 | BN10: 1 | BR10: 1 | BV10: 1 | BZ10: 1 | CD10: 1 | CH10: 1 | CL10: 1 | CP10: 1 | CT10: 1 | CX10: 1 | DB10: 1 | DF10: 1 | DJ10: 1 | DN10: 1 | DR10: 1 | DV10: 1 | DZ10: 31 | EA10: 0 | EB10: 0 | EC10: 0
A11: 8 | B11: VIMAL504299TSBH09926 | C11: VIMALA LIFE CARE HOSPITAL | D11: D.No.3-298/1, BESIDE SBI, THALODI X ROAD, KOUTHULA, ASIFABAD | E11: 25 | F11: 1 | J11: 1 | N11: 1 | R11: 1 | V11: 1 | Z11: 1 | AD11: 1 | AH11: 1 | AL11: 1 | AP11: 1 | AT11: 1 | AX11: 1 | BB11: 1 | BF11: 1 | BJ11: 1 | BN11: 1 | BR11: 1 | BV11: 1 | BZ11: 1 | CD11: 1 | CH11: 1 | CL11: 1 | CP11: 1 | CT11: 1 | CX11: 1 | DB11: 1 | DF11: 1 | DJ11: 1 | DN11: 1 | DR11: 1 | DV11: 1 | DZ11: 31 | EA11: 0 | EB11: 0 | EC11: 0
A12: 9 | B12: VIJAY504296TSBH09925 | C12: VIJAYA HOSPITAL | D12: D.No.1-3-9, M.G. ROAD, OLD MADHU HOSPITAL BUILDING, SIRPUR-KAGHAZNAGAR- 504296 | E12: 24 | G12: 1 | K12: 1 | O12: 1 | S12: 1 | W12: 1 | AA12: 1 | AE12: 1 | AI12: 1 | AM12: 1 | AQ12: 1 | AU12: 1 | AY12: 1 | BC12: 1 | BG12: 1 | BK12: 1 | BO12: 1 | BS12: 1 | BW12: 1 | CA12: 1 | CE12: 1 | CI12: 1 | CM12: 1 | CQ12: 1 | CU12: 1 | CY12: 1 | DC12: 1 | DG12: 1 | DK12: 1 | DO12: 1 | DS12: 1 | DW12: 1 | DZ12: 0 | EA12: 31 | EB12: 0 | EC12: 0
A13: 10 | B13: ADITY504296TSBH09927 | C13: ADITYA NURSING HOME | D13: Dr.RAOJI RATNAM, D.No.1-14-378/3, YELLAGOUD THOTA,NEAR ESEVA, NEAR MUNICIPAL WATER TANK,SIRPUR KAGHAZNAGAR | E13: 20 | G13: 1 | K13: 1 | O13: 1 | S13: 1 | W13: 1 | AA13: 1 | AE13: 1 | AI13: 1 | AM13: 1 | AQ13: 1 | AU13: 1 | AY13: 1 | BC13: 1 | BG13: 1 | BK13: 1 | BO13: 1 | BS13: 1 | BW13: 1 | CA13: 1 | CE13: 1 | CI13: 1 | CM13: 1 | CQ13: 1 | CU13: 1 | CY13: 1 | DC13: 1 | DG13: 1 | DK13: 1 | DO13: 1 | DS13: 1 | DW13: 1 | DZ13: 0 | EA13: 31 | EB13: 0 | EC13: 0
A14: 11 | B14: JYOTH504296TSBH09915 | C14: JYOTHI HOSPITAL | D14: # 2-3-48, BESIDE STATE BANK, RAJEEV CHOWK,SIRPUR-KAGHAZNAGAR-504296 | E14: 20 | F14: 1 | J14: 1 | N14: 1 | R14: 1 | V14: 1 | Z14: 1 | AD14: 1 | AH14: 1 | AL14: 1 | AP14: 1 | AT14: 1 | AX14: 1 | BB14: 1 | BF14: 1 | BJ14: 1 | BN14: 1 | BR14: 1 | BV14: 1 | BZ14: 1 | CD14: 1 | CH14: 1 | CL14: 1 | CP14: 1 | CT14: 1 | CX14: 1 | DB14: 1 | DF14: 1 | DJ14: 1 | DN14: 1 | DR14: 1 | DV14: 1 | DZ14: 31 | EA14: 0 | EB14: 0 | EC14: 0
A15: 12 | B15: MADHU504296TSBH09929 | C15: MADHURA HOSPITAL | D15: D.No.1-69/2/2, BESIDE HP PETROL BUNK, SIRPUR-KAGHAZNAGAR-504296 | E15: 20 | G15: 1 | K15: 1 | O15: 1 | S15: 1 | W15: 1 | AA15: 1 | AE15: 1 | AI15: 1 | AM15: 1 | AQ15: 1 | AU15: 1 | AY15: 1 | BC15: 1 | BG15: 1 | BK15: 1 | BO15: 1 | BS15: 1 | BW15: 1 | CA15: 1 | CE15: 1 | CI15: 1 | CM15: 1 | CQ15: 1 | CU15: 1 | CY15: 1 | DC15: 1 | DG15: 1 | DK15: 1 | DO15: 1 | DS15: 1 | DW15: 1 | DZ15: 0 | EA15: 31 | EB15: 0 | EC15: 0
A16: 13 | B16: NAZAR504299TSBH09909 | C16: NAZARETH MISSION HOSPITAL | D16: 2-155/1, KOYAGUDA, VIJAYANAGAR ROAD, KOUTALA, KUMARAMBHEEM ASIFABAD | E16: 20 | F16: 1 | J16: 1 | N16: 1 | R16: 1 | V16: 1 | Z16: 1 | AD16: 1 | AH16: 1 | AL16: 1 | AP16: 1 | AT16: 1 | AX16: 1 | BB16: 1 | BF16: 1 | BJ16: 1 | BN16: 1 | BR16: 1 | BV16: 1 | BZ16: 1 | CD16: 1 | CH16: 1 | CL16: 1 | CP16: 1 | CT16: 1 | CX16: 1 | DB16: 1 | DF16: 1 | DJ16: 1 | DN16: 1 | DR16: 1 | DV16: 1 | DZ16: 31 | EA16: 0 | EB16: 0 | EC16: 0
A17: 14 | B17: SRILA504296TSBH09917 | C17: SRI LAXMI CHILDREN'S HOSPITAL | D17: Dr. ANITHA, H.No.1-16-273/6, OPP: INDIAN OIL PETROLPUMP, SIRPUR-KAGHAZNAGAR | E17: 20 | G17: 1 | K17: 1 | O17: 1 | S17: 1 | W17: 1 | AA17: 1 | AE17: 1 | AI17: 1 | AM17: 1 | AQ17: 1 | AU17: 1 | AY17: 1 | BC17: 1 | BG17: 1 | BK17: 1 | BO17: 1 | BS17: 1 | BW17: 1 | CA17: 1 | CE17: 1 | CI17: 1 | CM17: 1 | CQ17: 1 | CU17: 1 | CY17: 1 | DC17: 1 | DG17: 1 | DK17: 1 | DO17: 1 | DS17: 1 | DW17: 1 | DZ17: 0 | EA17: 31 | EB17: 0 | EC17: 0
A18: 15 | B18: USHAH504293TSBH09910 | C18: USHA HOSPITAL | D18: COURT CHOURASTHA, DANAPUR ROAD, ASIFABAD | E18: 20 | F18: 1 | J18: 1 | N18: 1 | R18: 1 | V18: 1 | Z18: 1 | AD18: 1 | AH18: 1 | AL18: 1 | AP18: 1 | AT18: 1 | AX18: 1 | BB18: 1 | BF18: 1 | BJ18: 1 | BN18: 1 | BR18: 1 | BV18: 1 | BZ18: 1 | CD18: 1 | CH18: 1 | CL18: 1 | CP18: 1 | CT18: 1 | CX18: 1 | DB18: 1 | DF18: 1 | DJ18: 1 | DN18: 1 | DR18: 1 | DV18: 1 | DZ18: 31 | EA18: 0 | EB18: 0 | EC18: 0
A19: 16 | B19: SRINI504293TSBH09912 | C19: SRINIVASA HOSPITAL | D19: D.NO.2-161/8, OPP: REGISTRATION OFFICE, NH-7 KUMARAMBHEEM CHOWK, ASIFABAD | E19: 15 | J19: 1 | N19: 1 | R19: 1 | V19: 1 | Z19: 1 | AD19: 1 | AH19: 1 | AL19: 1 | AP19: 1 | AT19: 1 | AX19: 1 | BB19: 1 | BF19: 1 | BJ19: 1 | BN19: 1 | BR19: 1 | BV19: 1 | BZ19: 1 | CD19: 1 | CH19: 1 | CL19: 1 | CP19: 1 | CT19: 1 | CX19: 1 | DB19: 1 | DF19: 1 | DJ19: 1 | DN19: 1 | DR19: 1 | DV19: 1 | DZ19: 30 | EA19: 0 | EB19: 0 | EC19: 0
A20: 17 | B20: RAMAC504296TSBH09928 | C20: RAMA CHILDREN'S HOSPITAL | D20: 1-4-165, SUBASH ROAD, KAGAZNAGAR | E20: 6 | G20: 1 | K20: 1 | O20: 1 | S20: 1 | W20: 1 | AA20: 1 | AE20: 1 | AI20: 1 | AM20: 1 | AQ20: 1 | AU20: 1 | AY20: 1 | BC20: 1 | BG20: 1 | BK20: 1 | BO20: 1 | BS20: 1 | BW20: 1 | CA20: 1 | CE20: 1 | CI20: 1 | CM20: 1 | CQ20: 1 | CU20: 1 | CY20: 1 | DC20: 1 | DG20: 1 | DK20: 1 | DO20: 1 | DS20: 1 | DW20: 1 | DZ20: 0 | EA20: 31 | EB20: 0 | EC20: 0 | EE20: =SUM(EE3:EE19) -> 0 | EF20: 0 | EG20: 0 | EH20: 0 | EI20: 0 | EJ20: 0 | EK20: 0 | EL20: 0 | EM20: 0 | EN20: 0 | EO20: 0 | EP20: 0 | EQ20: 0 | ER20: 0 | ES20: 0 | ET20: 0 | EU20: 0 | EV20: 0 | EW20: 0 | EX20: 0 | EY20: 0 | EZ20: 0 | FA20: 0 | FB20: 0 | FC20: 0 | FD20: 0 | FE20: 0 | FF20: 0 | FG20: 0 | FH20: 0 | FI20: 0 | FJ20: 0 | FK20: 0 | FL20: 0 | FM20: 0 | FN20: 0 | FO20: 0 | FP20: 0 | FQ20: 0 | FR20: 0 | FS20: 0 | FT20: 0 | FU20: 0 | FV20: 0 | FW20: 0 | FX20: 0 | FY20: 0 | FZ20: 0 | GA20: 0 | GB20: 0 | GC20: 0 | GD20: 0 | GE20: 0 | GF20: 0 | GG20: 0 | GH20: 0 | GI20: 0 | GJ20: 0 | GK20: 0 | GL20: 0 | GM20: 0 | GN20: 0 | GO20: =SUM(GO3:GO19) -> 0 | GP20: 0 | GQ20: 0 | GR20: 0 | GS20: 0 | GT20: 0 | GU20: 0 | GV20: 0 | GW20: 0 | GX20: 0 | GY20: 0 | GZ20: 0 | HA20: 0 | HB20: 0 | HC20: 0 | HD20: 0 | HE20: 0 | HF20: 0 | HG20: 0 | HH20: 0 | HI20: 0 | HJ20: 0 | HK20: 0 | HL20: 0 | HM20: 0 | HN20: 0 | HO20: 0 | HP20: 0 | HQ20: 0 | HR20: 0 | HS20: 0 | HT20: 0 | HU20: 0 | HV20: 0 | HW20: 0 | HX20: 0 | HY20: 0 | HZ20: 0 | IA20: 0 | IB20: 0 | IC20: 0 | ID20: 0 | IE20: 0 | IF20: 0 | IG20: 0 | IH20: 0 | II20: 0 | IJ20: 0 | IK20: 0 | IL20: 0 | IM20: 0 | IN20: 0 | IO20: 0 | IP20: 0 | IQ20: 0 | IR20: 0 | IS20: 0 | IT20: 0 | IU20: 0 | IV20: 0 | IW20: 0
A21: 18 | B21: AYANC504296TSBH09914 | C21: AYAN CHILDREN'S HOSPITAL | D21: H.NO, 1-3-280, HAQ COMPLEX, Indira Market, Sriram Nagar, Kagaznagar (M), Telangana 504296 | E21: 5 | G21: 1 | K21: 1 | O21: 1 | S21: 1 | W21: 1 | AA21: 1 | AE21: 1 | AI21: 1 | AM21: 1 | AQ21: 1 | AU21: 1 | AY21: 1 | BC21: 1 | BG21: 1 | BK21: 1 | BO21: 1 | BS21: 1 | BW21: 1 | CA21: 1 | CE21: 1 | CI21: 1 | CM21: 1 | CQ21: 1 | CU21: 1 | CY21: 1 | DC21: 1 | DG21: 1 | DK21: 1 | DO21: 1 | DS21: 1 | DW21: 1 | DZ21: 0 | EA21: 31 | EB21: 0 | EC21: 0
A22: 19 | B22: SHAIL504296TSBH09918 | C22: SHAILAJA HOSPITAL | D22: D.NO.1-16-319, BESIDE TELANGANA GRAMEENA BANK, PETROL PUMP AREA,SIRPUR-KAGHAZNAGAR-504296 | E22: 5 | J22: 1 | N22: 1 | R22: 1 | V22: 1 | Z22: 1 | AD22: 1 | AH22: 1 | AL22: 1 | AP22: 1 | AT22: 1 | AX22: 1 | BB22: 1 | BF22: 1 | BJ22: 1 | BN22: 1 | BR22: 1 | BV22: 1 | BZ22: 1 | CD22: 1 | CH22: 1 | CL22: 1 | CP22: 1 | CT22: 1 | CX22: 1 | DB22: 1 | DF22: 1 | DJ22: 1 | DN22: 1 | DR22: 1 | DV22: 1 | DZ22: 30 | EA22: 0 | EB22: 0 | EC22: 0
A23: 20 | B23: SRIVE504296TSBH09931 | C23: SRI VENKATESHWARA X RAY & CLINIC, SIRPUR KAGAZNAGAR, ASIFABAD | D23: DR GIRIDHARILAL MUNDADA, 1-2-57, NEAR AMBEDKAR CHOWK, Maulana Azad Rd, Nizamuddin Colony, Kagaznagar | E23: 5 | F23: 1 | J23: 1 | N23: 1 | R23: 1 | V23: 1 | Z23: 1 | AD23: 1 | AH23: 1 | AL23: 1 | AP23: 1 | AT23: 1 | AX23: 1 | BB23: 1 | BF23: 1 | BJ23: 1 | BN23: 1 | BR23: 1 | BV23: 1 | BZ23: 1 | CD23: 1 | CH23: 1 | CL23: 1 | CP23: 1 | CT23: 1 | CX23: 1 | DB23: 1 | DF23: 1 | DJ23: 1 | DN23: 1 | DR23: 1 | DV23: 1 | DZ23: 31 | EA23: 0 | EB23: 0 | EC23: 0
A24: 21 | B24: DRSMI504293TSBH09930 | C24: DR SMILE MULTISPECIALITY DENTAL HOSPITAL | D24: H.No.6-57/1/6, BESIDE ROSE GARDEN, MAIN ROAD, ASIFABAD | E24: 2 | F24: 1 | J24: 1 | N24: 1 | R24: 1 | V24: 1 | Z24: 1 | AD24: 1 | AH24: 1 | AL24: 1 | AP24: 1 | AT24: 1 | AX24: 1 | BB24: 1 | BF24: 1 | BJ24: 1 | BN24: 1 | BR24: 1 | BV24: 1 | BZ24: 1 | CD24: 1 | CH24: 1 | CL24: 1 | CP24: 1 | CT24: 1 | CX24: 1 | DB24: 1 | DF24: 1 | DJ24: 1 | DN24: 1 | DR24: 1 | DV24: 1 | DZ24: 31 | EA24: 0 | EB24: 0 | EC24: 0
A25: 22 | B25: BLOOD504293TSBH06115 | C25: BLOOD BANK, DIST. HOSPITAL | D25: NEAR BUS STATION, ASIFABAD | E25: 0 | J25: 1 | N25: 1 | R25: 1 | V25: 1 | Z25: 1 | AD25: 1 | AH25: 1 | AL25: 1 | AP25: 1 | AT25: 1 | AX25: 1 | BB25: 1 | BF25: 1 | BJ25: 1 | BN25: 1 | BR25: 1 | BV25: 1 | BZ25: 1 | CD25: 1 | CH25: 1 | CL25: 1 | CP25: 1 | CT25: 1 | CX25: 1 | DB25: 1 | DF25: 1 | DJ25: 1 | DN25: 1 | DR25: 1 | DV25: 1 | DZ25: 30 | EA25: 0 | EB25: 0 | EC25: 0
A26: 23 | B26: DR.KR504296TSCL09913 | C26: DR KRISHNA RAO CLINIC | D26: 1-2-310, M.G. ROAD, SIRPUR KAGHAZNAGAR | E26: 0 | F26: 1 | J26: 1 | N26: 1 | R26: 1 | V26: 1 | Z26: 1 | AD26: 1 | AH26: 1 | AL26: 1 | AP26: 1 | AT26: 1 | AX26: 1 | BB26: 1 | BF26: 1 | BJ26: 1 | BN26: 1 | BR26: 1 | BV26: 1 | BZ26: 1 | CD26: 1 | CH26: 1 | CL26: 1 | CP26: 1 | CT26: 1 | CX26: 1 | DB26: 1 | DF26: 1 | DJ26: 1 | DN26: 1 | DR26: 1 | DV26: 1 | DZ26: 31 | EA26: 0 | EB26: 0 | EC26: 0
A27: 24 | B27: VASIS504293TSPL07801 | C27: VASISHTA DIAGNOSTIC CENTRE | D27: #1-16-333/5, OPP: PRAJA LIFE CARE HOSPITAL, KAGAZNAGAR | E27: 0 | F27: 1 | J27: 1 | N27: 1 | R27: 1 | V27: 1 | Z27: 1 | AD27: 1 | AH27: 1 | AL27: 1 | AP27: 1 | AT27: 1 | AX27: 1 | BB27: 1 | BF27: 1 | BJ27: 1 | BN27: 1 | BR27: 1 | BV27: 1 | BZ27: 1 | CD27: 1 | CH27: 1 | CL27: 1 | CP27: 1 | CT27: 1 | CX27: 1 | DB27: 1 | DF27: 1 | DJ27: 1 | DN27: 1 | DR27: 1 | DV27: 1 | DZ27: 31 | EA27: 0 | EB27: 0 | EC27: 0
A28: 25 | B28: MMSDE504293TSBH09965 | C28: MMS DENTAL HOSPITAL | D28: 1st Floor, above Grocery 4U Supermarket, Kumrambheem Chowk, Asifabad (CT), Telangana 504293 | E28: 3 | G28: 1 | K28: 1 | O28: 1 | S28: 1 | W28: 1 | AA28: 1 | AE28: 1 | AI28: 1 | AM28: 1 | AQ28: 1 | AU28: 1 | AY28: 1 | BC28: 1 | BG28: 1 | BK28: 1 | BO28: 1 | BS28: 1 | BW28: 1 | CA28: 1 | CE28: 1 | CI28: 1 | CM28: 1 | CQ28: 1 | CU28: 1 | CY28: 1 | DC28: 1 | DG28: 1 | DK28: 1 | DO28: 1 | DS28: 1 | DW28: 1 | DZ28: 0 | EA28: 31 | EB28: 0 | EC28: 0
A29: 26 | B29: SSANS504293TSBH10063 | C29: SS ANSARI HOSPITAL | D29: 5-168/1, K.B. CHOWK, ASIFABAD | E29: 20 | F29: 1 | J29: 1 | N29: 1 | R29: 1 | V29: 1 | Z29: 1 | AD29: 1 | AH29: 1 | AL29: 1 | AP29: 1 | AT29: 1 | AX29: 1 | BB29: 1 | BF29: 1 | BJ29: 1 | BN29: 1 | BR29: 1 | BV29: 1 | BZ29: 1 | CD29: 1 | CH29: 1 | CL29: 1 | CP29: 1 | CT29: 1 | CX29: 1 | DB29: 1 | DF29: 1 | DJ29: 1 | DN29: 1 | DR29: 1 | DV29: 1 | DZ29: 31 | EA29: 0 | EB29: 0 | EC29: 0
A30: 27 | B30: CHAIT504299TSCL11251 | C30: CHAITANYA POLY CLINIC | D30: THALODI X ROAD, VILL & MDL: KOUTALA, KOMARAMBHEEM ASIFABAD | E30: 0 | AT30: 1 | AX30: 1 | BB30: 1 | BF30: 1 | BJ30: 1 | BN30: 1 | BR30: 1 | BV30: 1 | BZ30: 1 | CD30: 1 | CH30: 1 | CL30: 1 | CP30: 1 | CT30: 1 | CX30: 1 | DB30: 1 | DF30: 1 | DJ30: 1 | DN30: 1 | DR30: 1 | DV30: 1 | DZ30: =F30+J30+N30+R30+V30+Z30+AD30+AH30+AL30+AP30+AT30+AX30+BB30+BF30+BJ30+BN30+BR30+BV30+BZ30+CD30+CH30+CL30+CP30+CT30+CX30+DB30+DF30+DJ30+DN30+DR30+DV30 -> 21 | EA30: =G30+K30+O30+S30+W30+AA30+AE30+AI30+AM30+AQ30+AU30+AY30+BC30+BG30+BK30+BO30+BS30+BW30+CA30+CE30+CI30+CM30+CQ30+CU30+CY30+DC30+DG30+DK30+DO30+DS30+DW30 -> 0 | EB30: =H30+L30+P30+T30+X30+AB30+AF30+AJ30+AN30+AR30+AV30+AZ30+BD30+BH30+BL30+BP30+BT30+BX30+CB30+CF30+CJ30+CN30+CR30+CV30+CZ30+DD30+DH30+DL30+DP30+DT30+DX30 -> 0 | EC30: =I30+M30+Q30+U30+Y30+AC30+AG30+AK30+AO30+AS30+AW30+BA30+BE30+BI30+BM30+BQ30+BU30+BY30+CC30+CG30+CK30+CO30+CS30+CW30+DA30+DE30+DI30+DM30+DQ30+DU30+DY30 -> 0
C31: TOTAL | E31: =SUM(E4:E30) -> 525 | F31: =SUM(F4:F30) -> 15 | G31: =SUM(G4:G30) -> 11 | H31: =SUM(H4:H30) -> 0 | I31: =SUM(I4:I30) -> 0 | J31: =SUM(J4:J30) -> 18 | K31: 11 | L31: 0 | M31: 0 | N31: 18 | O31: 11 | P31: 0 | Q31: 0 | R31: 18 | S31: 11 | T31: 0 | U31: 0 | V31: 18 | W31: 11 | X31: 0 | Y31: 0 | Z31: 18 | AA31: 11 | AB31: 0 | AC31: 0 | AD31: 18 | AE31: 11 | AF31: 0 | AG31: 0 | AH31: 18 | AI31: 11 | AJ31: 0 | AK31: 0 | AL31: 18 | AM31: 11 | AN31: 0 | AO31: 0 | AP31: 18 | AQ31: 11 | AR31: 0 | AS31: 0 | AT31: 19 | AU31: 11 | AV31: 0 | AW31: 0 | AX31: 19 | AY31: 11 | AZ31: 0 | BA31: 0 | BB31: 19 | BC31: 11 | BD31: 0 | BE31: 0 | BF31: 19 | BG31: 11 | BH31: 0 | BI31: 0 | BJ31: 19 | BK31: 11 | BL31: 0 | BM31: 0 | BN31: 19 | BO31: 11 | BP31: 0 | BQ31: 0 | BR31: 19 | BS31: 11 | BT31: 0 | BU31: 0 | BV31: =SUM(BV4:BV30) -> 19 | BW31: 11 | BX31: 0 | BY31: 0 | BZ31: 18 | CA31: 10 | CB31: 0 | CC31: 0 | CD31: 18 | CE31: 10 | CF31: 0 | CG31: 0 | CH31: 18 | CI31: 10 | CJ31: 0 | CK31: 0 | CL31: 18 | CM31: 10 | CN31: 0 | CO31: 0 | CP31: 18 | CQ31: 10 | CR31: 0 | CS31: 0 | CT31: 18 | CU31: 10 | CV31: 0 | CW31: 0 | CX31: 18 | CY31: 10 | CZ31: 0 | DA31: 0 | DB31: 18 | DC31: 10 | DD31: 0 | DE31: 0 | DF31: 18 | DG31: 10 | DH31: 0 | DI31: 0 | DJ31: 18 | DK31: 10 | DL31: 0 | DM31: 0 | DN31: 18 | DO31: 10 | DP31: 0 | DQ31: 0 | DR31: 18 | DS31: 10 | DT31: 0 | DU31: 0 | DV31: 18 | DW31: 10 | DX31: 0 | DY31: 0 | DZ31: 563 | EA31: 328 | EB31: 0 | EC31: 0
